Workbook

Sheet Settings
A1: SportsDataStuff.com Fantasy Football Draft Kit
A3: Directions 1. Modify the point values below for your league's settings to adjust the projections for each player. 2. Modify the number of players at each position to adjust VORP & VOSP VORP is Value Over Replacement Player and will give you an idea of the value a player has relative to the expected waiver wire player at his position. VOSP is Value Over Starting Player and will give you an idea of the value a player has relative to the worst starting quality player for that position. Results are on the "Draft Sheet" tab. The results should auto-sort themselves if you enabled the macros. Player projections can be modified on the data tabs.
C13: PASSING | F13: RUSHING | I13: RECEIVING | L13: MISC
C14: Stat | D14: Points | F14: Stat | G14: Points | I14: Stat | J14: Points | L14: Stat | M14: Points
C15: Yds | D15: 0.04 | F15: Rushing Yds | G15: 0.1 | I15: Receiving Yds | J15: 0.1 | L15: Fumbles | M15: -2
C16: TDs | D16: 4 | F16: Rushing TDs | G16: 6 | I16: Receiving TDs | J16: 6
C17: INT | D17: -2 | I17: PPR | J17: 1
C20: POSITIONAL BREAKDOWN | F20: Number of Teams
C21: Position | D21: # Starting | F21: 12
C22: QB | D22: 1
C23: RB | D23: 2
C24: WR | D24: 2
C25: TE | D25: 1
C26: RB/WR/TE | D26: 1
C27: K | D27: 1
C28: QB/RB/WR/TE | D28: 0
C29: DST | D29: 1
C30: BN | D30: 7

Sheet data validation (hidden)
A1: 0 | C1: 8
A2: 0.5 | C2: 10
A3: 1 | C3: 12
C4: 14

Sheet Position Expectations (hidden)
A1: Position
A2: Total Drafted Players | B2: =Settings!F21*SUM(Settings!D22:D30) -> 192
A3: QB | B3: =ROUND(Settings!F21*(22/14)*Settings!D22+Settings!F21*(20/14)*Settings!D28,0) -> 19
A4: RB | B4: =B2-B3-B5-B6-B7-B8 -> 66
A5: WR | B5: =ROUND((B2-B3-B6-B7-B8)*0.49,0) -> 64
A6: TE | B6: =ROUND(Settings!F21*(21/14)*Settings!D25,0) -> 18
A7: K | B7: =Settings!F21*Settings!D27 -> 12
A8: DST | B8: =ROUND(Settings!F21*(15/14)*Settings!D29,0) -> 13

Sheet Draft Sheet
A1: QB | H1: RB | O1: WR | V1: TE | AC1: NOTE: ES is the team's early season schedule rank, FS is the full season schedule rank, AB is an estimate of the defense's raw ability.
A2: Name | B2: Team | C2: Pts | D2: VORP | E2: VOSP | F2: ADP | H2: Name | I2: Team | J2: Pts | K2: VORP | L2: VOSP | M2: ADP | O2: Name | P2: Team | Q2: Pts | R2: VORP | S2: VOSP | T2: ADP | V2: Name | W2: Team | X2: Pts | Y2: VORP | Z2: VOSP | AA2: ADP
A3: Lamar Jackson | B3: BAL | C3: =VLOOKUP(A3,'qb data'!G:S,13,FALSE) -> 343.4000527 | D3: =IFERROR(C3-LARGE($C$3:$C$34,'Position Expectations'!$B$3+1),C3-MIN($C$3:$C$34)) -> 78.4775998 | E3: =IFERROR(C3-LARGE($C$3:$C$34,Settings!$F$21*Settings!$D$22),C3-MIN($C$3:$C$34)) -> 62.0033815 | F3: =(IFERROR(IF(Settings!$J$17=1,VLOOKUP(_xlfn.CONCAT(B3,A3),'full ppr adp'!$A:$K,11,FALSE),IF(Settings!$J$17=0,VLOOKUP(_xlfn.CONCAT(B3,A3),'standard adp'!$A:$J,10,FALSE),VLOOKUP(_xlfn.CONCAT(B3,A3),'half ppr adp'!$A:$J,10,FALSE))),VLOOKUP(_xlfn.CONCAT(B3,A3),'full ppr adp'!$A:$K,11,FALSE))) -> 21.33333333 | H3: Christian McCaffrey | I3: CAR | J3: =VLOOKUP(_xlfn.CONCAT(I3,H3),'rb data'!A:X,24,FALSE) -> 388.1279918 | K3: =IFERROR(J3-LARGE($J$3:$J$100,'Position Expectations'!$B$4+1),J3-MIN($J$3:$J$100)) -> 328.561467 | L3: =IFERROR(J3-LARGE($J$3:$J$100,Settings!$F$21*Settings!$D$23),J3-MIN($J$3:$J$100))+IF(Settings!$D$26>0,MAX(0,LARGE($J$3:$J$100,Settings!$F$21*Settings!$D$23)-LARGE(($Q$3:$Q$150,$J$3:$J$100),Settings!$F$21*(Settings!$D$23+Settings!$D$24+Settings!$D$26))),0) -> 219.0723303 | M3: =IFERROR((IFERROR(IF(Settings!$J$17=1,VLOOKUP(_xlfn.CONCAT(I3,H3),'full ppr adp'!$A:$K,11,FALSE),IF(Settings!$J$17=0,VLOOKUP(_xlfn.CONCAT(I3,H3),'standard adp'!$A:$J,10,FALSE),VLOOKUP(_xlfn.CONCAT(I3,H3),'half ppr adp'!$A:$J,10,FALSE))),VLOOKUP(_xlfn.CONCAT(I3,H3),'full ppr adp'!$A:$K,11,FALSE))),"UND") -> 1 | O3: Michael Thomas | P3: NO | Q3: =VLOOKUP(_xlfn.CONCAT(P3,O3),'wr data'!A:X,24,FALSE) -> 309.1710223 | R3: =IFERROR(Q3-LARGE($Q$3:$Q$150,'Position Expectations'!$B$5+1),Q3-MIN($Q$3:$Q$150)) -> 182.6104278 | S3: =IFERROR(Q3-LARGE($Q$3:$Q$150,Settings!$F$21*Settings!$D$24),Q3-MIN($Q$3:$Q$150))+IF(Settings!$D$26>0,MAX(0,LARGE($Q$3:$Q$150,Settings!$F$21*Settings!$D$24)-LARGE(($Q$3:$Q$150,$J$3:$J$100),Settings!$F$21*(Settings!$D$23+Settings!$D$24+Settings!$D$26))),0) -> 137.4227444 | T3: =IFERROR((IFERROR(IF(Settings!$J$17=1,VLOOKUP(_xlfn.CONCAT(P3,O3),'full ppr adp'!$A:$K,11,FALSE),IF(Settings!$J$17=0,VLOOKUP(_xlfn.CONCAT(P3,O3),'standard adp'!$A:$J,10,FALSE),VLOOKUP(_xlfn.CONCAT(P3,O3),'half ppr adp'!$A:$J,10,FALSE))),VLOOKUP(_xlfn.CONCAT(P3,O3),'full ppr adp'!$A:$K,11,FALSE))),"UND") -> 4.666666667 | V3: Travis Kelce | W3: KC | X3: =VLOOKUP(_xlfn.CONCAT(W3,V3),'te data'!A:X,24,FALSE) -> 237.149577 | Y3: =IFERROR(X3-LARGE($X$3:$X$75,'Position Expectations'!$B$6+1),X3-MIN($X$3:$X$75)) -> 114.5525794 | Z3: =IFERROR(X3-LARGE($X$3:$X$75,Settings!$F$21*Settings!$D$25),X3-MIN($X$3:$X$75))+IF(Settings!$D$26>0,MAX(0,LARGE($X$3:$X$75,Settings!$F$21*Settings!$D$25)-LARGE(($Q$3:$Q$150,$J$3:$J$100,$X$3:$X$75),Settings!$F$21*(Settings!$D$23+Settings!$D$24+Settings!$D$26))),0) -> 103.7238255 | AA3: =IFERROR((IFERROR(IF(Settings!$J$17=1,VLOOKUP(_xlfn.CONCAT(W3,V3),'full ppr adp'!$A:$K,11,FALSE),IF(Settings!$J$17=0,VLOOKUP(_xlfn.CONCAT(W3,V3),'standard adp'!$A:$J,10,FALSE),VLOOKUP(_xlfn.CONCAT(W3,V3),'half ppr adp'!$A:$J,10,FALSE))),VLOOKUP(_xlfn.CONCAT(W3,V3),'full ppr adp'!$A:$K,11,FALSE))),"UND") -> 18
A4: Patrick Mahomes | B4: KC | C4: =VLOOKUP(A4,'qb data'!G:S,13,FALSE) -> 323.691912 | D4: =IFERROR(C4-LARGE($C$3:$C$34,'Position Expectations'!$B$3+1),C4-MIN($C$3:$C$34)) -> 58.7694591 | E4: =IFERROR(C4-LARGE($C$3:$C$34,Settings!$F$21*Settings!$D$22),C4-MIN($C$3:$C$34)) -> 42.2952408 | F4: =(IFERROR(IF(Settings!$J$17=1,VLOOKUP(_xlfn.CONCAT(B4,A4),'full ppr adp'!$A:$K,11,FALSE),IF(Settings!$J$17=0,VLOOKUP(_xlfn.CONCAT(B4,A4),'standard adp'!$A:$J,10,FALSE),VLOOKUP(_xlfn.CONCAT(B4,A4),'half ppr adp'!$A:$J,10,FALSE))),VLOOKUP(_xlfn.CONCAT(B4,A4),'full ppr adp'!$A:$K,11,FALSE))) -> 20.66666667 | H4: Saquon Barkley | I4: NYG | J4: =VLOOKUP(_xlfn.CONCAT(I4,H4),'rb data'!A:X,24,FALSE) -> 315.8095588 | K4: =IFERROR(J4-LARGE($J$3:$J$100,'Position Expectations'!$B$4+1),J4-MIN($J$3:$J$100)) -> 256.243034 | L4: =IFERROR(J4-LARGE($J$3:$J$100,Settings!$F$21*Settings!$D$23),J4-MIN($J$3:$J$100))+IF(Settings!$D$26>0,MAX(0,LARGE($J$3:$J$100,Settings!$F$21*Settings!$D$23)-LARGE(($Q$3:$Q$150,$J$3:$J$100),Settings!$F$21*(Settings!$D$23+Settings!$D$24+Settings!$D$26))),0) -> 146.7538973 | M4: =IFERROR((IFERROR(IF(Settings!$J$17=1,VLOOKUP(_xlfn.CONCAT(I4,H4),'full ppr adp'!$A:$K,11,FALSE),IF(Settings!$J$17=0,VLOOKUP(_xlfn.CONCAT(I4,H4),'standard adp'!$A:$J,10,FALSE),VLOOKUP(_xlfn.CONCAT(I4,H4),'half ppr adp'!$A:$J,10,FALSE))),VLOOKUP(_xlfn.CONCAT(I4,H4),'full ppr adp'!$A:$K,11,FALSE))),"UND") -> 2 | O4: Julio Jones | P4: ATL | Q4: =VLOOKUP(_xlfn.CONCAT(P4,O4),'wr data'!A:X,24,FALSE) -> 289.0846748 | R4: =IFERROR(Q4-LARGE($Q$3:$Q$150,'Position Expectations'!$B$5+1),Q4-MIN($Q$3:$Q$150)) -> 162.5240803 | S4: =IFERROR(Q4-LARGE($Q$3:$Q$150,Settings!$F$21*Settings!$D$24),Q4-MIN($Q$3:$Q$150))+IF(Settings!$D$26>0,MAX(0,LARGE($Q$3:$Q$150,Settings!$F$21*Settings!$D$24)-LARGE(($Q$3:$Q$150,$J$3:$J$100),Settings!$F$21*(Settings!$D$23+Settings!$D$24+Settings!$D$26))),0) -> 117.3363969 | T4: =IFERROR((IFERROR(IF(Settings!$J$17=1,VLOOKUP(_xlfn.CONCAT(P4,O4),'full ppr adp'!$A:$K,11,FALSE),IF(Settings!$J$17=0,VLOOKUP(_xlfn.CONCAT(P4,O4),'standard adp'!$A:$J,10,FALSE),VLOOKUP(_xlfn.CONCAT(P4,O4),'half ppr adp'!$A:$J,10,FALSE))),VLOOKUP(_xlfn.CONCAT(P4,O4),'full ppr adp'!$A:$K,11,FALSE))),"UND") -> 16.33333333 | V4: George Kittle | W4: SF | X4: =VLOOKUP(_xlfn.CONCAT(W4,V4),'te data'!A:X,24,FALSE) -> 214.7658 | Y4: =IFERROR(X4-LARGE($X$3:$X$54,'Position Expectations'!$B$6+1),X4-MIN($X$3:$X$54)) -> 92.16880236 | Z4: =IFERROR(X4-LARGE($X$3:$X$75,Settings!$F$21*Settings!$D$25),X4-MIN($X$3:$X$75))+IF(Settings!$D$26>0,MAX(0,LARGE($X$3:$X$75,Settings!$F$21*Settings!$D$25)-LARGE(($Q$3:$Q$150,$J$3:$J$100,$X$3:$X$75),Settings!$F$21*(Settings!$D$23+Settings!$D$24+Settings!$D$26))),0) -> 81.34004846 | AA4: =IFERROR((IFERROR(IF(Settings!$J$17=1,VLOOKUP(_xlfn.CONCAT(W4,V4),'full ppr adp'!$A:$K,11,FALSE),IF(Settings!$J$17=0,VLOOKUP(_xlfn.CONCAT(W4,V4),'standard adp'!$A:$J,10,FALSE),VLOOKUP(_xlfn.CONCAT(W4,V4),'half ppr adp'!$A:$J,10,FALSE))),VLOOKUP(_xlfn.CONCAT(W4,V4),'full ppr adp'!$A:$K,11,FALSE))),"UND") -> 22 | AC4: D/ST
A5: Dak Prescott | B5: DAL | C5: =VLOOKUP(A5,'qb data'!G:S,13,FALSE) -> 317.3659965 | D5: =IFERROR(C5-LARGE($C$3:$C$34,'Position Expectations'!$B$3+1),C5-MIN($C$3:$C$34)) -> 52.4435436 | E5: =IFERROR(C5-LARGE($C$3:$C$34,Settings!$F$21*Settings!$D$22),C5-MIN($C$3:$C$34)) -> 35.9693253 | F5: =(IFERROR(IF(Settings!$J$17=1,VLOOKUP(_xlfn.CONCAT(B5,A5),'full ppr adp'!$A:$K,11,FALSE),IF(Settings!$J$17=0,VLOOKUP(_xlfn.CONCAT(B5,A5),'standard adp'!$A:$J,10,FALSE),VLOOKUP(_xlfn.CONCAT(B5,A5),'half ppr adp'!$A:$J,10,FALSE))),VLOOKUP(_xlfn.CONCAT(B5,A5),'full ppr adp'!$A:$K,11,FALSE))) -> 55.33333333 | H5: Ezekiel Elliott | I5: DAL | J5: =VLOOKUP(_xlfn.CONCAT(I5,H5),'rb data'!A:X,24,FALSE) -> 300.4277716 | K5: =IFERROR(J5-LARGE($J$3:$J$100,'Position Expectations'!$B$4+1),J5-MIN($J$3:$J$100)) -> 240.8612468 | L5: =IFERROR(J5-LARGE($J$3:$J$100,Settings!$F$21*Settings!$D$23),J5-MIN($J$3:$J$100))+IF(Settings!$D$26>0,MAX(0,LARGE($J$3:$J$100,Settings!$F$21*Settings!$D$23)-LARGE(($Q$3:$Q$150,$J$3:$J$100),Settings!$F$21*(Settings!$D$23+Settings!$D$24+Settings!$D$26))),0) -> 131.3721101 | M5: =IFERROR((IFERROR(IF(Settings!$J$17=1,VLOOKUP(_xlfn.CONCAT(I5,H5),'full ppr adp'!$A:$K,11,FALSE),IF(Settings!$J$17=0,VLOOKUP(_xlfn.CONCAT(I5,H5),'standard adp'!$A:$J,10,FALSE),VLOOKUP(_xlfn.CONCAT(I5,H5),'half ppr adp'!$A:$J,10,FALSE))),VLOOKUP(_xlfn.CONCAT(I5,H5),'full ppr adp'!$A:$K,11,FALSE))),"UND") -> 3.333333333 | O5: Davante Adams | P5: GB | Q5: =VLOOKUP(_xlfn.CONCAT(P5,O5),'wr data'!A:X,24,FALSE) -> 279.739505 | R5: =IFERROR(Q5-LARGE($Q$3:$Q$150,'Position Expectations'!$B$5+1),Q5-MIN($Q$3:$Q$150)) -> 153.1789105 | S5: =IFERROR(Q5-LARGE($Q$3:$Q$150,Settings!$F$21*Settings!$D$24),Q5-MIN($Q$3:$Q$150))+IF(Settings!$D$26>0,MAX(0,LARGE($Q$3:$Q$150,Settings!$F$21*Settings!$D$24)-LARGE(($Q$3:$Q$150,$J$3:$J$100),Settings!$F$21*(Settings!$D$23+Settings!$D$24+Settings!$D$26))),0) -> 107.9912271 | T5: =IFERROR((IFERROR(IF(Settings!$J$17=1,VLOOKUP(_xlfn.CONCAT(P5,O5),'full ppr adp'!$A:$K,11,FALSE),IF(Settings!$J$17=0,VLOOKUP(_xlfn.CONCAT(P5,O5),'standard adp'!$A:$J,10,FALSE),VLOOKUP(_xlfn.CONCAT(P5,O5),'half ppr adp'!$A:$J,10,FALSE))),VLOOKUP(_xlfn.CONCAT(P5,O5),'full ppr adp'!$A:$K,11,FALSE))),"UND") -> 11.33333333 | V5: Zach Ertz | W5: PHI | X5: =VLOOKUP(_xlfn.CONCAT(W5,V5),'te data'!A:X,24,FALSE) -> 190.8227085 | Y5: =IFERROR(X5-LARGE($X$3:$X$54,'Position Expectations'!$B$6+1),X5-MIN($X$3:$X$54)) -> 68.2257109 | Z5: =IFERROR(X5-LARGE($X$3:$X$75,Settings!$F$21*Settings!$D$25),X5-MIN($X$3:$X$75))+IF(Settings!$D$26>0,MAX(0,LARGE($X$3:$X$75,Settings!$F$21*Settings!$D$25)-LARGE(($Q$3:$Q$150,$J$3:$J$100,$X$3:$X$75),Settings!$F$21*(Settings!$D$23+Settings!$D$24+Settings!$D$26))),0) -> 57.396957 | AA5: =IFERROR((IFERROR(IF(Settings!$J$17=1,VLOOKUP(_xlfn.CONCAT(W5,V5),'full ppr adp'!$A:$K,11,FALSE),IF(Settings!$J$17=0,VLOOKUP(_xlfn.CONCAT(W5,V5),'standard adp'!$A:$J,10,FALSE),VLOOKUP(_xlfn.CONCAT(W5,V5),'half ppr adp'!$A:$J,10,FALSE))),VLOOKUP(_xlfn.CONCAT(W5,V5),'full ppr adp'!$A:$K,11,FALSE))),"UND") -> 38 | AC5: Rk | AD5: Team | AE5: ES | AF5: FS | AG5: AB | AH5: ADP
A6: Russell Wilson | B6: SEA | C6: =VLOOKUP(A6,'qb data'!G:S,13,FALSE) -> 316.15829 | D6: =IFERROR(C6-LARGE($C$3:$C$34,'Position Expectations'!$B$3+1),C6-MIN($C$3:$C$34)) -> 51.2358371 | E6: =IFERROR(C6-LARGE($C$3:$C$34,Settings!$F$21*Settings!$D$22),C6-MIN($C$3:$C$34)) -> 34.7616188 | F6: =(IFERROR(IF(Settings!$J$17=1,VLOOKUP(_xlfn.CONCAT(B6,A6),'full ppr adp'!$A:$K,11,FALSE),IF(Settings!$J$17=0,VLOOKUP(_xlfn.CONCAT(B6,A6),'standard adp'!$A:$J,10,FALSE),VLOOKUP(_xlfn.CONCAT(B6,A6),'half ppr adp'!$A:$J,10,FALSE))),VLOOKUP(_xlfn.CONCAT(B6,A6),'full ppr adp'!$A:$K,11,FALSE))) -> 58 | H6: Alvin Kamara | I6: NO | J6: =VLOOKUP(_xlfn.CONCAT(I6,H6),'rb data'!A:X,24,FALSE) -> 293.8804184 | K6: =IFERROR(J6-LARGE($J$3:$J$100,'Position Expectations'!$B$4+1),J6-MIN($J$3:$J$100)) -> 234.3138936 | L6: =IFERROR(J6-LARGE($J$3:$J$100,Settings!$F$21*Settings!$D$23),J6-MIN($J$3:$J$100))+IF(Settings!$D$26>0,MAX(0,LARGE($J$3:$J$100,Settings!$F$21*Settings!$D$23)-LARGE(($Q$3:$Q$150,$J$3:$J$100),Settings!$F$21*(Settings!$D$23+Settings!$D$24+Settings!$D$26))),0) -> 124.8247569 | M6: =IFERROR((IFERROR(IF(Settings!$J$17=1,VLOOKUP(_xlfn.CONCAT(I6,H6),'full ppr adp'!$A:$K,11,FALSE),IF(Settings!$J$17=0,VLOOKUP(_xlfn.CONCAT(I6,H6),'standard adp'!$A:$J,10,FALSE),VLOOKUP(_xlfn.CONCAT(I6,H6),'half ppr adp'!$A:$J,10,FALSE))),VLOOKUP(_xlfn.CONCAT(I6,H6),'full ppr adp'!$A:$K,11,FALSE))),"UND") -> 5.333333333 | O6: Tyreek Hill | P6: KC | Q6: =VLOOKUP(_xlfn.CONCAT(P6,O6),'wr data'!A:X,24,FALSE) -> 264.1346004 | R6: =IFERROR(Q6-LARGE($Q$3:$Q$150,'Position Expectations'!$B$5+1),Q6-MIN($Q$3:$Q$150)) -> 137.5740059 | S6: =IFERROR(Q6-LARGE($Q$3:$Q$150,Settings!$F$21*Settings!$D$24),Q6-MIN($Q$3:$Q$150))+IF(Settings!$D$26>0,MAX(0,LARGE($Q$3:$Q$150,Settings!$F$21*Settings!$D$24)-LARGE(($Q$3:$Q$150,$J$3:$J$100),Settings!$F$21*(Settings!$D$23+Settings!$D$24+Settings!$D$26))),0) -> 92.3863225 | T6: =IFERROR((IFERROR(IF(Settings!$J$17=1,VLOOKUP(_xlfn.CONCAT(P6,O6),'full ppr adp'!$A:$K,11,FALSE),IF(Settings!$J$17=0,VLOOKUP(_xlfn.CONCAT(P6,O6),'standard adp'!$A:$J,10,FALSE),VLOOKUP(_xlfn.CONCAT(P6,O6),'half ppr adp'!$A:$J,10,FALSE))),VLOOKUP(_xlfn.CONCAT(P6,O6),'full ppr adp'!$A:$K,11,FALSE))),"UND") -> 15 | V6: Darren Waller | W6: LV | X6: =VLOOKUP(_xlfn.CONCAT(W6,V6),'te data'!A:X,24,FALSE) -> 167.7904096 | Y6: =IFERROR(X6-LARGE($X$3:$X$54,'Position Expectations'!$B$6+1),X6-MIN($X$3:$X$54)) -> 45.193412 | Z6: =IFERROR(X6-LARGE($X$3:$X$75,Settings!$F$21*Settings!$D$25),X6-MIN($X$3:$X$75))+IF(Settings!$D$26>0,MAX(0,LARGE($X$3:$X$75,Settings!$F$21*Settings!$D$25)-LARGE(($Q$3:$Q$150,$J$3:$J$100,$X$3:$X$75),Settings!$F$21*(Settings!$D$23+Settings!$D$24+Settings!$D$26))),0) -> 34.3646581 | AA6: =IFERROR((IFERROR(IF(Settings!$J$17=1,VLOOKUP(_xlfn.CONCAT(W6,V6),'full ppr adp'!$A:$K,11,FALSE),IF(Settings!$J$17=0,VLOOKUP(_xlfn.CONCAT(W6,V6),'standard adp'!$A:$J,10,FALSE),VLOOKUP(_xlfn.CONCAT(W6,V6),'half ppr adp'!$A:$J,10,FALSE))),VLOOKUP(_xlfn.CONCAT(W6,V6),'full ppr adp'!$A:$K,11,FALSE))),"UND") -> 57 | AC6: =VLOOKUP(AD6,'def data'!A:F,6,FALSE) -> 1 | AD6: Baltimore Ravens | AE6: =VLOOKUP($AD6,'def data'!$A:$F,2,FALSE) -> 2 | AF6: =VLOOKUP($AD6,'def data'!$A:$F,3,FALSE) -> 4 | AG6: =VLOOKUP($AD6,'def data'!$A:$F,4,FALSE) -> 3 | AH6: =IFERROR(IF(Settings!$J$17=1,VLOOKUP(AD6,'full ppr adp'!C:K,9,FALSE),IF(Settings!$J$17=0,VLOOKUP(AD6,'standard adp'!C:J,8,FALSE),VLOOKUP(AD6,'half ppr adp'!C:J,8,FALSE))),VLOOKUP(AD6,'full ppr adp'!C:K,9,FALSE)) -> 127
A7: Deshaun Watson | B7: HOU | C7: =VLOOKUP(A7,'qb data'!G:S,13,FALSE) -> 313.8819614 | D7: =IFERROR(C7-LARGE($C$3:$C$34,'Position Expectations'!$B$3+1),C7-MIN($C$3:$C$34)) -> 48.9595085 | E7: =IFERROR(C7-LARGE($C$3:$C$34,Settings!$F$21*Settings!$D$22),C7-MIN($C$3:$C$34)) -> 32.4852902 | F7: =(IFERROR(IF(Settings!$J$17=1,VLOOKUP(_xlfn.CONCAT(B7,A7),'full ppr adp'!$A:$K,11,FALSE),IF(Settings!$J$17=0,VLOOKUP(_xlfn.CONCAT(B7,A7),'standard adp'!$A:$J,10,FALSE),VLOOKUP(_xlfn.CONCAT(B7,A7),'half ppr adp'!$A:$J,10,FALSE))),VLOOKUP(_xlfn.CONCAT(B7,A7),'full ppr adp'!$A:$K,11,FALSE))) -> 57.33333333 | H7: Dalvin Cook | I7: MIN | J7: =VLOOKUP(_xlfn.CONCAT(I7,H7),'rb data'!A:X,24,FALSE) -> 287.7938985 | K7: =IFERROR(J7-LARGE($J$3:$J$100,'Position Expectations'!$B$4+1),J7-MIN($J$3:$J$100)) -> 228.2273737 | L7: =IFERROR(J7-LARGE($J$3:$J$100,Settings!$F$21*Settings!$D$23),J7-MIN($J$3:$J$100))+IF(Settings!$D$26>0,MAX(0,LARGE($J$3:$J$100,Settings!$F$21*Settings!$D$23)-LARGE(($Q$3:$Q$150,$J$3:$J$100),Settings!$F$21*(Settings!$D$23+Settings!$D$24+Settings!$D$26))),0) -> 118.738237 | M7: =IFERROR((IFERROR(IF(Settings!$J$17=1,VLOOKUP(_xlfn.CONCAT(I7,H7),'full ppr adp'!$A:$K,11,FALSE),IF(Settings!$J$17=0,VLOOKUP(_xlfn.CONCAT(I7,H7),'standard adp'!$A:$J,10,FALSE),VLOOKUP(_xlfn.CONCAT(I7,H7),'half ppr adp'!$A:$J,10,FALSE))),VLOOKUP(_xlfn.CONCAT(I7,H7),'full ppr adp'!$A:$K,11,FALSE))),"UND") -> 4.666666667 | O7: DeAndre Hopkins | P7: ARI | Q7: =VLOOKUP(_xlfn.CONCAT(P7,O7),'wr data'!A:X,24,FALSE) -> 255.3583326 | R7: =IFERROR(Q7-LARGE($Q$3:$Q$150,'Position Expectations'!$B$5+1),Q7-MIN($Q$3:$Q$150)) -> 128.7977381 | S7: =IFERROR(Q7-LARGE($Q$3:$Q$150,Settings!$F$21*Settings!$D$24),Q7-MIN($Q$3:$Q$150))+IF(Settings!$D$26>0,MAX(0,LARGE($Q$3:$Q$150,Settings!$F$21*Settings!$D$24)-LARGE(($Q$3:$Q$150,$J$3:$J$100),Settings!$F$21*(Settings!$D$23+Settings!$D$24+Settings!$D$26))),0) -> 83.6100547 | T7: =IFERROR((IFERROR(IF(Settings!$J$17=1,VLOOKUP(_xlfn.CONCAT(P7,O7),'full ppr adp'!$A:$K,11,FALSE),IF(Settings!$J$17=0,VLOOKUP(_xlfn.CONCAT(P7,O7),'standard adp'!$A:$J,10,FALSE),VLOOKUP(_xlfn.CONCAT(P7,O7),'half ppr adp'!$A:$J,10,FALSE))),VLOOKUP(_xlfn.CONCAT(P7,O7),'full ppr adp'!$A:$K,11,FALSE))),"UND") -> 12 | V7: Mark Andrews | W7: BAL | X7: =VLOOKUP(_xlfn.CONCAT(W7,V7),'te data'!A:X,24,FALSE) -> 166.71048 | Y7: =IFERROR(X7-LARGE($X$3:$X$54,'Position Expectations'!$B$6+1),X7-MIN($X$3:$X$54)) -> 44.1134824 | Z7: =IFERROR(X7-LARGE($X$3:$X$75,Settings!$F$21*Settings!$D$25),X7-MIN($X$3:$X$75))+IF(Settings!$D$26>0,MAX(0,LARGE($X$3:$X$75,Settings!$F$21*Settings!$D$25)-LARGE(($Q$3:$Q$150,$J$3:$J$100,$X$3:$X$75),Settings!$F$21*(Settings!$D$23+Settings!$D$24+Settings!$D$26))),0) -> 33.2847285 | AA7: =IFERROR((IFERROR(IF(Settings!$J$17=1,VLOOKUP(_xlfn.CONCAT(W7,V7),'full ppr adp'!$A:$K,11,FALSE),IF(Settings!$J$17=0,VLOOKUP(_xlfn.CONCAT(W7,V7),'standard adp'!$A:$J,10,FALSE),VLOOKUP(_xlfn.CONCAT(W7,V7),'half ppr adp'!$A:$J,10,FALSE))),VLOOKUP(_xlfn.CONCAT(W7,V7),'full ppr adp'!$A:$K,11,FALSE))),"UND") -> 43.33333333 | AC7: =VLOOKUP(AD7,'def data'!A:F,6,FALSE) -> 1 | AD7: San Francisco 49ers | AE7: =VLOOKUP($AD7,'def data'!$A:$F,2,FALSE) -> 5 | AF7: =VLOOKUP($AD7,'def data'!$A:$F,3,FALSE) -> 6 | AG7: =VLOOKUP($AD7,'def data'!$A:$F,4,FALSE) -> 2 | AH7: =IFERROR(IF(Settings!$J$17=1,VLOOKUP(AD7,'full ppr adp'!C:K,9,FALSE),IF(Settings!$J$17=0,VLOOKUP(AD7,'standard adp'!C:J,8,FALSE),VLOOKUP(AD7,'half ppr adp'!C:J,8,FALSE))),VLOOKUP(AD7,'full ppr adp'!C:K,9,FALSE)) -> 109.3333333
A8: Kyler Murray | B8: ARI | C8: =VLOOKUP(A8,'qb data'!G:S,13,FALSE) -> 307.1110304 | D8: =IFERROR(C8-LARGE($C$3:$C$34,'Position Expectations'!$B$3+1),C8-MIN($C$3:$C$34)) -> 42.1885775 | E8: =IFERROR(C8-LARGE($C$3:$C$34,Settings!$F$21*Settings!$D$22),C8-MIN($C$3:$C$34)) -> 25.7143592 | F8: =(IFERROR(IF(Settings!$J$17=1,VLOOKUP(_xlfn.CONCAT(B8,A8),'full ppr adp'!$A:$K,11,FALSE),IF(Settings!$J$17=0,VLOOKUP(_xlfn.CONCAT(B8,A8),'standard adp'!$A:$J,10,FALSE),VLOOKUP(_xlfn.CONCAT(B8,A8),'half ppr adp'!$A:$J,10,FALSE))),VLOOKUP(_xlfn.CONCAT(B8,A8),'full ppr adp'!$A:$K,11,FALSE))) -> 55.33333333 | H8: Derrick Henry | I8: TEN | J8: =VLOOKUP(_xlfn.CONCAT(I8,H8),'rb data'!A:X,24,FALSE) -> 274.0937703 | K8: =IFERROR(J8-LARGE($J$3:$J$100,'Position Expectations'!$B$4+1),J8-MIN($J$3:$J$100)) -> 214.5272455 | L8: =IFERROR(J8-LARGE($J$3:$J$100,Settings!$F$21*Settings!$D$23),J8-MIN($J$3:$J$100))+IF(Settings!$D$26>0,MAX(0,LARGE($J$3:$J$100,Settings!$F$21*Settings!$D$23)-LARGE(($Q$3:$Q$150,$J$3:$J$100),Settings!$F$21*(Settings!$D$23+Settings!$D$24+Settings!$D$26))),0) -> 105.0381088 | M8: =IFERROR((IFERROR(IF(Settings!$J$17=1,VLOOKUP(_xlfn.CONCAT(I8,H8),'full ppr adp'!$A:$K,11,FALSE),IF(Settings!$J$17=0,VLOOKUP(_xlfn.CONCAT(I8,H8),'standard adp'!$A:$J,10,FALSE),VLOOKUP(_xlfn.CONCAT(I8,H8),'half ppr adp'!$A:$J,10,FALSE))),VLOOKUP(_xlfn.CONCAT(I8,H8),'full ppr adp'!$A:$K,11,FALSE))),"UND") -> 7.333333333 | O8: Chris Godwin | P8: TB | Q8: =VLOOKUP(_xlfn.CONCAT(P8,O8),'wr data'!A:X,24,FALSE) -> 245.5472336 | R8: =IFERROR(Q8-LARGE($Q$3:$Q$150,'Position Expectations'!$B$5+1),Q8-MIN($Q$3:$Q$150)) -> 118.9866391 | S8: =IFERROR(Q8-LARGE($Q$3:$Q$150,Settings!$F$21*Settings!$D$24),Q8-MIN($Q$3:$Q$150))+IF(Settings!$D$26>0,MAX(0,LARGE($Q$3:$Q$150,Settings!$F$21*Settings!$D$24)-LARGE(($Q$3:$Q$150,$J$3:$J$100),Settings!$F$21*(Settings!$D$23+Settings!$D$24+Settings!$D$26))),0) -> 73.79895566 | T8: =IFERROR((IFERROR(IF(Settings!$J$17=1,VLOOKUP(_xlfn.CONCAT(P8,O8),'full ppr adp'!$A:$K,11,FALSE),IF(Settings!$J$17=0,VLOOKUP(_xlfn.CONCAT(P8,O8),'standard adp'!$A:$J,10,FALSE),VLOOKUP(_xlfn.CONCAT(P8,O8),'half ppr adp'!$A:$J,10,FALSE))),VLOOKUP(_xlfn.CONCAT(P8,O8),'full ppr adp'!$A:$K,11,FALSE))),"UND") -> 19.33333333 | V8: Hunter Henry | W8: LAC | X8: =VLOOKUP(_xlfn.CONCAT(W8,V8),'te data'!A:X,24,FALSE) -> 154.4440934 | Y8: =IFERROR(X8-LARGE($X$3:$X$54,'Position Expectations'!$B$6+1),X8-MIN($X$3:$X$54)) -> 31.84709584 | Z8: =IFERROR(X8-LARGE($X$3:$X$75,Settings!$F$21*Settings!$D$25),X8-MIN($X$3:$X$75))+IF(Settings!$D$26>0,MAX(0,LARGE($X$3:$X$75,Settings!$F$21*Settings!$D$25)-LARGE(($Q$3:$Q$150,$J$3:$J$100,$X$3:$X$75),Settings!$F$21*(Settings!$D$23+Settings!$D$24+Settings!$D$26))),0) -> 21.01834194 | AA8: =IFERROR((IFERROR(IF(Settings!$J$17=1,VLOOKUP(_xlfn.CONCAT(W8,V8),'full ppr adp'!$A:$K,11,FALSE),IF(Settings!$J$17=0,VLOOKUP(_xlfn.CONCAT(W8,V8),'standard adp'!$A:$J,10,FALSE),VLOOKUP(_xlfn.CONCAT(W8,V8),'half ppr adp'!$A:$J,10,FALSE))),VLOOKUP(_xlfn.CONCAT(W8,V8),'full ppr adp'!$A:$K,11,FALSE))),"UND") -> 84.33333333 | AC8: =VLOOKUP(AD8,'def data'!A:F,6,FALSE) -> 3 | AD8: New England Patriots | AE8: =VLOOKUP($AD8,'def data'!$A:$F,2,FALSE) -> 3 | AF8: =VLOOKUP($AD8,'def data'!$A:$F,3,FALSE) -> 1 | AG8: =VLOOKUP($AD8,'def data'!$A:$F,4,FALSE) -> 4 | AH8: =IFERROR(IF(Settings!$J$17=1,VLOOKUP(AD8,'full ppr adp'!C:K,9,FALSE),IF(Settings!$J$17=0,VLOOKUP(AD8,'standard adp'!C:J,8,FALSE),VLOOKUP(AD8,'half ppr adp'!C:J,8,FALSE))),VLOOKUP(AD8,'full ppr adp'!C:K,9,FALSE)) -> 145.6666667
A9: Josh Allen | B9: BUF | C9: =VLOOKUP(A9,'qb data'!G:S,13,FALSE) -> 302.5936764 | D9: =IFERROR(C9-LARGE($C$3:$C$34,'Position Expectations'!$B$3+1),C9-MIN($C$3:$C$34)) -> 37.6712235 | E9: =IFERROR(C9-LARGE($C$3:$C$34,Settings!$F$21*Settings!$D$22),C9-MIN($C$3:$C$34)) -> 21.1970052 | F9: =(IFERROR(IF(Settings!$J$17=1,VLOOKUP(_xlfn.CONCAT(B9,A9),'full ppr adp'!$A:$K,11,FALSE),IF(Settings!$J$17=0,VLOOKUP(_xlfn.CONCAT(B9,A9),'standard adp'!$A:$J,10,FALSE),VLOOKUP(_xlfn.CONCAT(B9,A9),'half ppr adp'!$A:$J,10,FALSE))),VLOOKUP(_xlfn.CONCAT(B9,A9),'full ppr adp'!$A:$K,11,FALSE))) -> 89 | H9: Miles Sanders | I9: PHI | J9: =VLOOKUP(_xlfn.CONCAT(I9,H9),'rb data'!A:X,24,FALSE) -> 246.0364888 | K9: =IFERROR(J9-LARGE($J$3:$J$100,'Position Expectations'!$B$4+1),J9-MIN($J$3:$J$100)) -> 186.469964 | L9: =IFERROR(J9-LARGE($J$3:$J$100,Settings!$F$21*Settings!$D$23),J9-MIN($J$3:$J$100))+IF(Settings!$D$26>0,MAX(0,LARGE($J$3:$J$100,Settings!$F$21*Settings!$D$23)-LARGE(($Q$3:$Q$150,$J$3:$J$100),Settings!$F$21*(Settings!$D$23+Settings!$D$24+Settings!$D$26))),0) -> 76.9808273 | M9: =IFERROR((IFERROR(IF(Settings!$J$17=1,VLOOKUP(_xlfn.CONCAT(I9,H9),'full ppr adp'!$A:$K,11,FALSE),IF(Settings!$J$17=0,VLOOKUP(_xlfn.CONCAT(I9,H9),'standard adp'!$A:$J,10,FALSE),VLOOKUP(_xlfn.CONCAT(I9,H9),'half ppr adp'!$A:$J,10,FALSE))),VLOOKUP(_xlfn.CONCAT(I9,H9),'full ppr adp'!$A:$K,11,FALSE))),"UND") -> 13 | O9: Kenny Golladay | P9: DET | Q9: =VLOOKUP(_xlfn.CONCAT(P9,O9),'wr data'!A:X,24,FALSE) -> 240.9893331 | R9: =IFERROR(Q9-LARGE($Q$3:$Q$150,'Position Expectations'!$B$5+1),Q9-MIN($Q$3:$Q$150)) -> 114.4287386 | S9: =IFERROR(Q9-LARGE($Q$3:$Q$150,Settings!$F$21*Settings!$D$24),Q9-MIN($Q$3:$Q$150))+IF(Settings!$D$26>0,MAX(0,LARGE($Q$3:$Q$150,Settings!$F$21*Settings!$D$24)-LARGE(($Q$3:$Q$150,$J$3:$J$100),Settings!$F$21*(Settings!$D$23+Settings!$D$24+Settings!$D$26))),0) -> 69.24105523 | T9: =IFERROR((IFERROR(IF(Settings!$J$17=1,VLOOKUP(_xlfn.CONCAT(P9,O9),'full ppr adp'!$A:$K,11,FALSE),IF(Settings!$J$17=0,VLOOKUP(_xlfn.CONCAT(P9,O9),'standard adp'!$A:$J,10,FALSE),VLOOKUP(_xlfn.CONCAT(P9,O9),'half ppr adp'!$A:$J,10,FALSE))),VLOOKUP(_xlfn.CONCAT(P9,O9),'full ppr adp'!$A:$K,11,FALSE))),"UND") -> 25 | V9: Evan Engram | W9: NYG | X9: =VLOOKUP(_xlfn.CONCAT(W9,V9),'te data'!A:X,24,FALSE) -> 150.721794 | Y9: =IFERROR(X9-LARGE($X$3:$X$54,'Position Expectations'!$B$6+1),X9-MIN($X$3:$X$54)) -> 28.1247964 | Z9: =IFERROR(X9-LARGE($X$3:$X$75,Settings!$F$21*Settings!$D$25),X9-MIN($X$3:$X$75))+IF(Settings!$D$26>0,MAX(0,LARGE($X$3:$X$75,Settings!$F$21*Settings!$D$25)-LARGE(($Q$3:$Q$150,$J$3:$J$100,$X$3:$X$75),Settings!$F$21*(Settings!$D$23+Settings!$D$24+Settings!$D$26))),0) -> 17.2960425 | AA9: =IFERROR((IFERROR(IF(Settings!$J$17=1,VLOOKUP(_xlfn.CONCAT(W9,V9),'full ppr adp'!$A:$K,11,FALSE),IF(Settings!$J$17=0,VLOOKUP(_xlfn.CONCAT(W9,V9),'standard adp'!$A:$J,10,FALSE),VLOOKUP(_xlfn.CONCAT(W9,V9),'half ppr adp'!$A:$J,10,FALSE))),VLOOKUP(_xlfn.CONCAT(W9,V9),'full ppr adp'!$A:$K,11,FALSE))),"UND") -> 71 | AC9: =VLOOKUP(AD9,'def data'!A:F,6,FALSE) -> 4 | AD9: Pittsburgh Steelers | AE9: =VLOOKUP($AD9,'def data'!$A:$F,2,FALSE) -> 20 | AF9: =VLOOKUP($AD9,'def data'!$A:$F,3,FALSE) -> 2 | AG9: =VLOOKUP($AD9,'def data'!$A:$F,4,FALSE) -> 1 | AH9: =IFERROR(IF(Settings!$J$17=1,VLOOKUP(AD9,'full ppr adp'!C:K,9,FALSE),IF(Settings!$J$17=0,VLOOKUP(AD9,'standard adp'!C:J,8,FALSE),VLOOKUP(AD9,'half ppr adp'!C:J,8,FALSE))),VLOOKUP(AD9,'full ppr adp'!C:K,9,FALSE)) -> 117.3333333
A10: Tom Brady | B10: TB | C10: =VLOOKUP(A10,'qb data'!G:S,13,FALSE) -> 296.4362566 | D10: =IFERROR(C10-LARGE($C$3:$C$34,'Position Expectations'!$B$3+1),C10-MIN($C$3:$C$34)) -> 31.51380366 | E10: =IFERROR(C10-LARGE($C$3:$C$34,Settings!$F$21*Settings!$D$22),C10-MIN($C$3:$C$34)) -> 15.03958536 | F10: =(IFERROR(IF(Settings!$J$17=1,VLOOKUP(_xlfn.CONCAT(B10,A10),'full ppr adp'!$A:$K,11,FALSE),IF(Settings!$J$17=0,VLOOKUP(_xlfn.CONCAT(B10,A10),'standard adp'!$A:$J,10,FALSE),VLOOKUP(_xlfn.CONCAT(B10,A10),'half ppr adp'!$A:$J,10,FALSE))),VLOOKUP(_xlfn.CONCAT(B10,A10),'full ppr adp'!$A:$K,11,FALSE))) -> 81.33333333 | H10: Clyde Edwards-Helaire | I10: KC | J10: =VLOOKUP(_xlfn.CONCAT(I10,H10),'rb data'!A:X,24,FALSE) -> 245.8050462 | K10: =IFERROR(J10-LARGE($J$3:$J$100,'Position Expectations'!$B$4+1),J10-MIN($J$3:$J$100)) -> 186.2385214 | L10: =IFERROR(J10-LARGE($J$3:$J$100,Settings!$F$21*Settings!$D$23),J10-MIN($J$3:$J$100))+IF(Settings!$D$26>0,MAX(0,LARGE($J$3:$J$100,Settings!$F$21*Settings!$D$23)-LARGE(($Q$3:$Q$150,$J$3:$J$100),Settings!$F$21*(Settings!$D$23+Settings!$D$24+Settings!$D$26))),0) -> 76.7493847 | M10: =IFERROR((IFERROR(IF(Settings!$J$17=1,VLOOKUP(_xlfn.CONCAT(I10,H10),'full ppr adp'!$A:$K,11,FALSE),IF(Settings!$J$17=0,VLOOKUP(_xlfn.CONCAT(I10,H10),'standard adp'!$A:$J,10,FALSE),VLOOKUP(_xlfn.CONCAT(I10,H10),'half ppr adp'!$A:$J,10,FALSE))),VLOOKUP(_xlfn.CONCAT(I10,H10),'full ppr adp'!$A:$K,11,FALSE))),"UND") -> 16 | O10: Mike Evans | P10: TB | Q10: =VLOOKUP(_xlfn.CONCAT(P10,O10),'wr data'!A:X,24,FALSE) -> 236.7642295 | R10: =IFERROR(Q10-LARGE($Q$3:$Q$150,'Position Expectations'!$B$5+1),Q10-MIN($Q$3:$Q$150)) -> 110.203635 | S10: =IFERROR(Q10-LARGE($Q$3:$Q$150,Settings!$F$21*Settings!$D$24),Q10-MIN($Q$3:$Q$150))+IF(Settings!$D$26>0,MAX(0,LARGE($Q$3:$Q$150,Settings!$F$21*Settings!$D$24)-LARGE(($Q$3:$Q$150,$J$3:$J$100),Settings!$F$21*(Settings!$D$23+Settings!$D$24+Settings!$D$26))),0) -> 65.0159516 | T10: =IFERROR((IFERROR(IF(Settings!$J$17=1,VLOOKUP(_xlfn.CONCAT(P10,O10),'full ppr adp'!$A:$K,11,FALSE),IF(Settings!$J$17=0,VLOOKUP(_xlfn.CONCAT(P10,O10),'standard adp'!$A:$J,10,FALSE),VLOOKUP(_xlfn.CONCAT(P10,O10),'half ppr adp'!$A:$J,10,FALSE))),VLOOKUP(_xlfn.CONCAT(P10,O10),'full ppr adp'!$A:$K,11,FALSE))),"UND") -> 25.33333333 | V10: Tyler Higbee | W10: LAR | X10: =VLOOKUP(_xlfn.CONCAT(W10,V10),'te data'!A:X,24,FALSE) -> 148.2387413 | Y10: =IFERROR(X10-LARGE($X$3:$X$54,'Position Expectations'!$B$6+1),X10-MIN($X$3:$X$54)) -> 25.64174368 | Z10: =IFERROR(X10-LARGE($X$3:$X$75,Settings!$F$21*Settings!$D$25),X10-MIN($X$3:$X$75))+IF(Settings!$D$26>0,MAX(0,LARGE($X$3:$X$75,Settings!$F$21*Settings!$D$25)-LARGE(($Q$3:$Q$150,$J$3:$J$100,$X$3:$X$75),Settings!$F$21*(Settings!$D$23+Settings!$D$24+Settings!$D$26))),0) -> 14.81298978 | AA10: =IFERROR((IFERROR(IF(Settings!$J$17=1,VLOOKUP(_xlfn.CONCAT(W10,V10),'full ppr adp'!$A:$K,11,FALSE),IF(Settings!$J$17=0,VLOOKUP(_xlfn.CONCAT(W10,V10),'standard adp'!$A:$J,10,FALSE),VLOOKUP(_xlfn.CONCAT(W10,V10),'half ppr adp'!$A:$J,10,FALSE))),VLOOKUP(_xlfn.CONCAT(W10,V10),'full ppr adp'!$A:$K,11,FALSE))),"UND") -> 81.33333333 | AC10: =VLOOKUP(AD10,'def data'!A:F,6,FALSE) -> 5 | AD10: Buffalo Bills | AE10: =VLOOKUP($AD10,'def data'!$A:$F,2,FALSE) -> 6 | AF10: =VLOOKUP($AD10,'def data'!$A:$F,3,FALSE) -> 3 | AG10: =VLOOKUP($AD10,'def data'!$A:$F,4,FALSE) -> 5 | AH10: =IFERROR(IF(Settings!$J$17=1,VLOOKUP(AD10,'full ppr adp'!C:K,9,FALSE),IF(Settings!$J$17=0,VLOOKUP(AD10,'standard adp'!C:J,8,FALSE),VLOOKUP(AD10,'half ppr adp'!C:J,8,FALSE))),VLOOKUP(AD10,'full ppr adp'!C:K,9,FALSE)) -> 130.6666667
A11: Aaron Rodgers | B11: GB | C11: =VLOOKUP(A11,'qb data'!G:S,13,FALSE) -> 286.3851 | D11: =IFERROR(C11-LARGE($C$3:$C$34,'Position Expectations'!$B$3+1),C11-MIN($C$3:$C$34)) -> 21.4626471 | E11: =IFERROR(C11-LARGE($C$3:$C$34,Settings!$F$21*Settings!$D$22),C11-MIN($C$3:$C$34)) -> 4.9884288 | F11: =(IFERROR(IF(Settings!$J$17=1,VLOOKUP(_xlfn.CONCAT(B11,A11),'full ppr adp'!$A:$K,11,FALSE),IF(Settings!$J$17=0,VLOOKUP(_xlfn.CONCAT(B11,A11),'standard adp'!$A:$J,10,FALSE),VLOOKUP(_xlfn.CONCAT(B11,A11),'half ppr adp'!$A:$J,10,FALSE))),VLOOKUP(_xlfn.CONCAT(B11,A11),'full ppr adp'!$A:$K,11,FALSE))) -> 97 | H11: Austin Ekeler | I11: LAC | J11: =VLOOKUP(_xlfn.CONCAT(I11,H11),'rb data'!A:X,24,FALSE) -> 243.4593024 | K11: =IFERROR(J11-LARGE($J$3:$J$100,'Position Expectations'!$B$4+1),J11-MIN($J$3:$J$100)) -> 183.8927776 | L11: =IFERROR(J11-LARGE($J$3:$J$100,Settings!$F$21*Settings!$D$23),J11-MIN($J$3:$J$100))+IF(Settings!$D$26>0,MAX(0,LARGE($J$3:$J$100,Settings!$F$21*Settings!$D$23)-LARGE(($Q$3:$Q$150,$J$3:$J$100),Settings!$F$21*(Settings!$D$23+Settings!$D$24+Settings!$D$26))),0) -> 74.4036409 | M11: =IFERROR((IFERROR(IF(Settings!$J$17=1,VLOOKUP(_xlfn.CONCAT(I11,H11),'full ppr adp'!$A:$K,11,FALSE),IF(Settings!$J$17=0,VLOOKUP(_xlfn.CONCAT(I11,H11),'standard adp'!$A:$J,10,FALSE),VLOOKUP(_xlfn.CONCAT(I11,H11),'half ppr adp'!$A:$J,10,FALSE))),VLOOKUP(_xlfn.CONCAT(I11,H11),'full ppr adp'!$A:$K,11,FALSE))),"UND") -> 15 | O11: Robert Woods | P11: LAR | Q11: =VLOOKUP(_xlfn.CONCAT(P11,O11),'wr data'!A:X,24,FALSE) -> 234.534262 | R11: =IFERROR(Q11-LARGE($Q$3:$Q$150,'Position Expectations'!$B$5+1),Q11-MIN($Q$3:$Q$150)) -> 107.9736675 | S11: =IFERROR(Q11-LARGE($Q$3:$Q$150,Settings!$F$21*Settings!$D$24),Q11-MIN($Q$3:$Q$150))+IF(Settings!$D$26>0,MAX(0,LARGE($Q$3:$Q$150,Settings!$F$21*Settings!$D$24)-LARGE(($Q$3:$Q$150,$J$3:$J$100),Settings!$F$21*(Settings!$D$23+Settings!$D$24+Settings!$D$26))),0) -> 62.78598405 | T11: =IFERROR((IFERROR(IF(Settings!$J$17=1,VLOOKUP(_xlfn.CONCAT(P11,O11),'full ppr adp'!$A:$K,11,FALSE),IF(Settings!$J$17=0,VLOOKUP(_xlfn.CONCAT(P11,O11),'standard adp'!$A:$J,10,FALSE),VLOOKUP(_xlfn.CONCAT(P11,O11),'half ppr adp'!$A:$J,10,FALSE))),VLOOKUP(_xlfn.CONCAT(P11,O11),'full ppr adp'!$A:$K,11,FALSE))),"UND") -> 46 | V11: Hayden Hurst | W11: ATL | X11: =VLOOKUP(_xlfn.CONCAT(W11,V11),'te data'!A:X,24,FALSE) -> 147.64688 | Y11: =IFERROR(X11-LARGE($X$3:$X$54,'Position Expectations'!$B$6+1),X11-MIN($X$3:$X$54)) -> 25.0498824 | Z11: =IFERROR(X11-LARGE($X$3:$X$75,Settings!$F$21*Settings!$D$25),X11-MIN($X$3:$X$75))+IF(Settings!$D$26>0,MAX(0,LARGE($X$3:$X$75,Settings!$F$21*Settings!$D$25)-LARGE(($Q$3:$Q$150,$J$3:$J$100,$X$3:$X$75),Settings!$F$21*(Settings!$D$23+Settings!$D$24+Settings!$D$26))),0) -> 14.2211285 | AA11: =IFERROR((IFERROR(IF(Settings!$J$17=1,VLOOKUP(_xlfn.CONCAT(W11,V11),'full ppr adp'!$A:$K,11,FALSE),IF(Settings!$J$17=0,VLOOKUP(_xlfn.CONCAT(W11,V11),'standard adp'!$A:$J,10,FALSE),VLOOKUP(_xlfn.CONCAT(W11,V11),'half ppr adp'!$A:$J,10,FALSE))),VLOOKUP(_xlfn.CONCAT(W11,V11),'full ppr adp'!$A:$K,11,FALSE))),"UND") -> 113 | AC11: =VLOOKUP(AD11,'def data'!A:F,6,FALSE) -> 6 | AD11: Tennessee Titans | AE11: =VLOOKUP($AD11,'def data'!$A:$F,2,FALSE) -> 4 | AF11: =VLOOKUP($AD11,'def data'!$A:$F,3,FALSE) -> 5 | AG11: =VLOOKUP($AD11,'def data'!$A:$F,4,FALSE) -> 8 | AH11: =IFERROR(IF(Settings!$J$17=1,VLOOKUP(AD11,'full ppr adp'!C:K,9,FALSE),IF(Settings!$J$17=0,VLOOKUP(AD11,'standard adp'!C:J,8,FALSE),VLOOKUP(AD11,'half ppr adp'!C:J,8,FALSE))),VLOOKUP(AD11,'full ppr adp'!C:K,9,FALSE)) -> 242.6666667
A12: Carson Wentz | B12: PHI | C12: =VLOOKUP(A12,'qb data'!G:S,13,FALSE) -> 283.046752 | D12: =IFERROR(C12-LARGE($C$3:$C$34,'Position Expectations'!$B$3+1),C12-MIN($C$3:$C$34)) -> 18.1242991 | E12: =IFERROR(C12-LARGE($C$3:$C$34,Settings!$F$21*Settings!$D$22),C12-MIN($C$3:$C$34)) -> 1.6500808 | F12: =(IFERROR(IF(Settings!$J$17=1,VLOOKUP(_xlfn.CONCAT(B12,A12),'full ppr adp'!$A:$K,11,FALSE),IF(Settings!$J$17=0,VLOOKUP(_xlfn.CONCAT(B12,A12),'standard adp'!$A:$J,10,FALSE),VLOOKUP(_xlfn.CONCAT(B12,A12),'half ppr adp'!$A:$J,10,FALSE))),VLOOKUP(_xlfn.CONCAT(B12,A12),'full ppr adp'!$A:$K,11,FALSE))) -> 103.3333333 | H12: Kenyan Drake | I12: ARI | J12: =VLOOKUP(_xlfn.CONCAT(I12,H12),'rb data'!A:X,24,FALSE) -> 238.72412 | K12: =IFERROR(J12-LARGE($J$3:$J$100,'Position Expectations'!$B$4+1),J12-MIN($J$3:$J$100)) -> 179.1575952 | L12: =IFERROR(J12-LARGE($J$3:$J$100,Settings!$F$21*Settings!$D$23),J12-MIN($J$3:$J$100))+IF(Settings!$D$26>0,MAX(0,LARGE($J$3:$J$100,Settings!$F$21*Settings!$D$23)-LARGE(($Q$3:$Q$150,$J$3:$J$100),Settings!$F$21*(Settings!$D$23+Settings!$D$24+Settings!$D$26))),0) -> 69.6684585 | M12: =IFERROR((IFERROR(IF(Settings!$J$17=1,VLOOKUP(_xlfn.CONCAT(I12,H12),'full ppr adp'!$A:$K,11,FALSE),IF(Settings!$J$17=0,VLOOKUP(_xlfn.CONCAT(I12,H12),'standard adp'!$A:$J,10,FALSE),VLOOKUP(_xlfn.CONCAT(I12,H12),'half ppr adp'!$A:$J,10,FALSE))),VLOOKUP(_xlfn.CONCAT(I12,H12),'full ppr adp'!$A:$K,11,FALSE))),"UND") -> 15.33333333 | O12: Amari Cooper | P12: DAL | Q12: =VLOOKUP(_xlfn.CONCAT(P12,O12),'wr data'!A:X,24,FALSE) -> 232.1573412 | R12: =IFERROR(Q12-LARGE($Q$3:$Q$150,'Position Expectations'!$B$5+1),Q12-MIN($Q$3:$Q$150)) -> 105.5967467 | S12: =IFERROR(Q12-LARGE($Q$3:$Q$150,Settings!$F$21*Settings!$D$24),Q12-MIN($Q$3:$Q$150))+IF(Settings!$D$26>0,MAX(0,LARGE($Q$3:$Q$150,Settings!$F$21*Settings!$D$24)-LARGE(($Q$3:$Q$150,$J$3:$J$100),Settings!$F$21*(Settings!$D$23+Settings!$D$24+Settings!$D$26))),0) -> 60.40906334 | T12: =IFERROR((IFERROR(IF(Settings!$J$17=1,VLOOKUP(_xlfn.CONCAT(P12,O12),'full ppr adp'!$A:$K,11,FALSE),IF(Settings!$J$17=0,VLOOKUP(_xlfn.CONCAT(P12,O12),'standard adp'!$A:$J,10,FALSE),VLOOKUP(_xlfn.CONCAT(P12,O12),'half ppr adp'!$A:$J,10,FALSE))),VLOOKUP(_xlfn.CONCAT(P12,O12),'full ppr adp'!$A:$K,11,FALSE))),"UND") -> 32.66666667 | V12: Jared Cook | W12: NO | X12: =VLOOKUP(_xlfn.CONCAT(W12,V12),'te data'!A:X,24,FALSE) -> 136.3733672 | Y12: =IFERROR(X12-LARGE($X$3:$X$54,'Position Expectations'!$B$6+1),X12-MIN($X$3:$X$54)) -> 13.7763696 | Z12: =IFERROR(X12-LARGE($X$3:$X$75,Settings!$F$21*Settings!$D$25),X12-MIN($X$3:$X$75))+IF(Settings!$D$26>0,MAX(0,LARGE($X$3:$X$75,Settings!$F$21*Settings!$D$25)-LARGE(($Q$3:$Q$150,$J$3:$J$100,$X$3:$X$75),Settings!$F$21*(Settings!$D$23+Settings!$D$24+Settings!$D$26))),0) -> 2.9476157 | AA12: =IFERROR((IFERROR(IF(Settings!$J$17=1,VLOOKUP(_xlfn.CONCAT(W12,V12),'full ppr adp'!$A:$K,11,FALSE),IF(Settings!$J$17=0,VLOOKUP(_xlfn.CONCAT(W12,V12),'standard adp'!$A:$J,10,FALSE),VLOOKUP(_xlfn.CONCAT(W12,V12),'half ppr adp'!$A:$J,10,FALSE))),VLOOKUP(_xlfn.CONCAT(W12,V12),'full ppr adp'!$A:$K,11,FALSE))),"UND") -> 101.3333333 | AC12: =VLOOKUP(AD12,'def data'!A:F,6,FALSE) -> 7 | AD12: Los Angeles Rams | AE12: =VLOOKUP($AD12,'def data'!$A:$F,2,FALSE) -> 7 | AF12: =VLOOKUP($AD12,'def data'!$A:$F,3,FALSE) -> 10 | AG12: =VLOOKUP($AD12,'def data'!$A:$F,4,FALSE) -> 7 | AH12: =IFERROR(IF(Settings!$J$17=1,VLOOKUP(AD12,'full ppr adp'!C:K,9,FALSE),IF(Settings!$J$17=0,VLOOKUP(AD12,'standard adp'!C:J,8,FALSE),VLOOKUP(AD12,'half ppr adp'!C:J,8,FALSE))),VLOOKUP(AD12,'full ppr adp'!C:K,9,FALSE)) -> 193
A13: Matt Stafford | B13: DET | C13: =VLOOKUP(A13,'qb data'!G:S,13,FALSE) -> 282.23181 | D13: =IFERROR(C13-LARGE($C$3:$C$34,'Position Expectations'!$B$3+1),C13-MIN($C$3:$C$34)) -> 17.3093571 | E13: =IFERROR(C13-LARGE($C$3:$C$34,Settings!$F$21*Settings!$D$22),C13-MIN($C$3:$C$34)) -> 0.8351388 | F13: =(IFERROR(IF(Settings!$J$17=1,VLOOKUP(_xlfn.CONCAT(B13,A13),'full ppr adp'!$A:$K,11,FALSE),IF(Settings!$J$17=0,VLOOKUP(_xlfn.CONCAT(B13,A13),'standard adp'!$A:$J,10,FALSE),VLOOKUP(_xlfn.CONCAT(B13,A13),'half ppr adp'!$A:$J,10,FALSE))),VLOOKUP(_xlfn.CONCAT(B13,A13),'full ppr adp'!$A:$K,11,FALSE))) -> 110.3333333 | H13: Aaron Jones | I13: GB | J13: =VLOOKUP(_xlfn.CONCAT(I13,H13),'rb data'!A:X,24,FALSE) -> 236.6431334 | K13: =IFERROR(J13-LARGE($J$3:$J$100,'Position Expectations'!$B$4+1),J13-MIN($J$3:$J$100)) -> 177.0766086 | L13: =IFERROR(J13-LARGE($J$3:$J$100,Settings!$F$21*Settings!$D$23),J13-MIN($J$3:$J$100))+IF(Settings!$D$26>0,MAX(0,LARGE($J$3:$J$100,Settings!$F$21*Settings!$D$23)-LARGE(($Q$3:$Q$150,$J$3:$J$100),Settings!$F$21*(Settings!$D$23+Settings!$D$24+Settings!$D$26))),0) -> 67.5874719 | M13: =IFERROR((IFERROR(IF(Settings!$J$17=1,VLOOKUP(_xlfn.CONCAT(I13,H13),'full ppr adp'!$A:$K,11,FALSE),IF(Settings!$J$17=0,VLOOKUP(_xlfn.CONCAT(I13,H13),'standard adp'!$A:$J,10,FALSE),VLOOKUP(_xlfn.CONCAT(I13,H13),'half ppr adp'!$A:$J,10,FALSE))),VLOOKUP(_xlfn.CONCAT(I13,H13),'full ppr adp'!$A:$K,11,FALSE))),"UND") -> 17.66666667 | O13: JuJu Smith-Schuster | P13: PIT | Q13: =VLOOKUP(_xlfn.CONCAT(P13,O13),'wr data'!A:X,24,FALSE) -> 231.4309826 | R13: =IFERROR(Q13-LARGE($Q$3:$Q$150,'Position Expectations'!$B$5+1),Q13-MIN($Q$3:$Q$150)) -> 104.8703881 | S13: =IFERROR(Q13-LARGE($Q$3:$Q$150,Settings!$F$21*Settings!$D$24),Q13-MIN($Q$3:$Q$150))+IF(Settings!$D$26>0,MAX(0,LARGE($Q$3:$Q$150,Settings!$F$21*Settings!$D$24)-LARGE(($Q$3:$Q$150,$J$3:$J$100),Settings!$F$21*(Settings!$D$23+Settings!$D$24+Settings!$D$26))),0) -> 59.68270474 | T13: =IFERROR((IFERROR(IF(Settings!$J$17=1,VLOOKUP(_xlfn.CONCAT(P13,O13),'full ppr adp'!$A:$K,11,FALSE),IF(Settings!$J$17=0,VLOOKUP(_xlfn.CONCAT(P13,O13),'standard adp'!$A:$J,10,FALSE),VLOOKUP(_xlfn.CONCAT(P13,O13),'half ppr adp'!$A:$J,10,FALSE))),VLOOKUP(_xlfn.CONCAT(P13,O13),'full ppr adp'!$A:$K,11,FALSE))),"UND") -> 32.66666667 | V13: Rob Gronkowski | W13: TB | X13: =VLOOKUP(_xlfn.CONCAT(W13,V13),'te data'!A:X,24,FALSE) -> 135.9092419 | Y13: =IFERROR(X13-LARGE($X$3:$X$54,'Position Expectations'!$B$6+1),X13-MIN($X$3:$X$54)) -> 13.31224432 | Z13: =IFERROR(X13-LARGE($X$3:$X$75,Settings!$F$21*Settings!$D$25),X13-MIN($X$3:$X$75))+IF(Settings!$D$26>0,MAX(0,LARGE($X$3:$X$75,Settings!$F$21*Settings!$D$25)-LARGE(($Q$3:$Q$150,$J$3:$J$100,$X$3:$X$75),Settings!$F$21*(Settings!$D$23+Settings!$D$24+Settings!$D$26))),0) -> 2.483490425 | AA13: =IFERROR((IFERROR(IF(Settings!$J$17=1,VLOOKUP(_xlfn.CONCAT(W13,V13),'full ppr adp'!$A:$K,11,FALSE),IF(Settings!$J$17=0,VLOOKUP(_xlfn.CONCAT(W13,V13),'standard adp'!$A:$J,10,FALSE),VLOOKUP(_xlfn.CONCAT(W13,V13),'half ppr adp'!$A:$J,10,FALSE))),VLOOKUP(_xlfn.CONCAT(W13,V13),'full ppr adp'!$A:$K,11,FALSE))),"UND") -> 81.66666667 | AC13: =VLOOKUP(AD13,'def data'!A:F,6,FALSE) -> 8 | AD13: Indianapolis Colts | AE13: =VLOOKUP($AD13,'def data'!$A:$F,2,FALSE) -> 1 | AF13: =VLOOKUP($AD13,'def data'!$A:$F,3,FALSE) -> 7 | AG13: =VLOOKUP($AD13,'def data'!$A:$F,4,FALSE) -> 11 | AH13: =IFERROR(IF(Settings!$J$17=1,VLOOKUP(AD13,'full ppr adp'!C:K,9,FALSE),IF(Settings!$J$17=0,VLOOKUP(AD13,'standard adp'!C:J,8,FALSE),VLOOKUP(AD13,'half ppr adp'!C:J,8,FALSE))),VLOOKUP(AD13,'full ppr adp'!C:K,9,FALSE)) -> 207.6666667
A14: Gardner Minshew | B14: JAC | C14: =VLOOKUP(A14,'qb data'!G:S,13,FALSE) -> 281.3966712 | D14: =IFERROR(C14-LARGE($C$3:$C$34,'Position Expectations'!$B$3+1),C14-MIN($C$3:$C$34)) -> 16.4742183 | E14: =IFERROR(C14-LARGE($C$3:$C$34,Settings!$F$21*Settings!$D$22),C14-MIN($C$3:$C$34)) -> 0 | F14: =(IFERROR(IF(Settings!$J$17=1,VLOOKUP(_xlfn.CONCAT(B14,A14),'full ppr adp'!$A:$K,11,FALSE),IF(Settings!$J$17=0,VLOOKUP(_xlfn.CONCAT(B14,A14),'standard adp'!$A:$J,10,FALSE),VLOOKUP(_xlfn.CONCAT(B14,A14),'half ppr adp'!$A:$J,10,FALSE))),VLOOKUP(_xlfn.CONCAT(B14,A14),'full ppr adp'!$A:$K,11,FALSE))) -> 178 | H14: Josh Jacobs | I14: LV | J14: =VLOOKUP(_xlfn.CONCAT(I14,H14),'rb data'!A:X,24,FALSE) -> 235.1810556 | K14: =IFERROR(J14-LARGE($J$3:$J$100,'Position Expectations'!$B$4+1),J14-MIN($J$3:$J$100)) -> 175.6145308 | L14: =IFERROR(J14-LARGE($J$3:$J$100,Settings!$F$21*Settings!$D$23),J14-MIN($J$3:$J$100))+IF(Settings!$D$26>0,MAX(0,LARGE($J$3:$J$100,Settings!$F$21*Settings!$D$23)-LARGE(($Q$3:$Q$150,$J$3:$J$100),Settings!$F$21*(Settings!$D$23+Settings!$D$24+Settings!$D$26))),0) -> 66.1253941 | M14: =IFERROR((IFERROR(IF(Settings!$J$17=1,VLOOKUP(_xlfn.CONCAT(I14,H14),'full ppr adp'!$A:$K,11,FALSE),IF(Settings!$J$17=0,VLOOKUP(_xlfn.CONCAT(I14,H14),'standard adp'!$A:$J,10,FALSE),VLOOKUP(_xlfn.CONCAT(I14,H14),'half ppr adp'!$A:$J,10,FALSE))),VLOOKUP(_xlfn.CONCAT(I14,H14),'full ppr adp'!$A:$K,11,FALSE))),"UND") -> 14.66666667 | O14: Cooper Kupp | P14: LAR | Q14: =VLOOKUP(_xlfn.CONCAT(P14,O14),'wr data'!A:X,24,FALSE) -> 230.7638608 | R14: =IFERROR(Q14-LARGE($Q$3:$Q$150,'Position Expectations'!$B$5+1),Q14-MIN($Q$3:$Q$150)) -> 104.2032663 | S14: =IFERROR(Q14-LARGE($Q$3:$Q$150,Settings!$F$21*Settings!$D$24),Q14-MIN($Q$3:$Q$150))+IF(Settings!$D$26>0,MAX(0,LARGE($Q$3:$Q$150,Settings!$F$21*Settings!$D$24)-LARGE(($Q$3:$Q$150,$J$3:$J$100),Settings!$F$21*(Settings!$D$23+Settings!$D$24+Settings!$D$26))),0) -> 59.01558288 | T14: =IFERROR((IFERROR(IF(Settings!$J$17=1,VLOOKUP(_xlfn.CONCAT(P14,O14),'full ppr adp'!$A:$K,11,FALSE),IF(Settings!$J$17=0,VLOOKUP(_xlfn.CONCAT(P14,O14),'standard adp'!$A:$J,10,FALSE),VLOOKUP(_xlfn.CONCAT(P14,O14),'half ppr adp'!$A:$J,10,FALSE))),VLOOKUP(_xlfn.CONCAT(P14,O14),'full ppr adp'!$A:$K,11,FALSE))),"UND") -> 38 | V14: Mike Gesicki | W14: MIA | X14: =VLOOKUP(_xlfn.CONCAT(W14,V14),'te data'!A:X,24,FALSE) -> 133.4257515 | Y14: =IFERROR(X14-LARGE($X$3:$X$54,'Position Expectations'!$B$6+1),X14-MIN($X$3:$X$54)) -> 10.8287539 | Z14: =IFERROR(X14-LARGE($X$3:$X$75,Settings!$F$21*Settings!$D$25),X14-MIN($X$3:$X$75))+IF(Settings!$D$26>0,MAX(0,LARGE($X$3:$X$75,Settings!$F$21*Settings!$D$25)-LARGE(($Q$3:$Q$150,$J$3:$J$100,$X$3:$X$75),Settings!$F$21*(Settings!$D$23+Settings!$D$24+Settings!$D$26))),0) -> 0 | AA14: =IFERROR((IFERROR(IF(Settings!$J$17=1,VLOOKUP(_xlfn.CONCAT(W14,V14),'full ppr adp'!$A:$K,11,FALSE),IF(Settings!$J$17=0,VLOOKUP(_xlfn.CONCAT(W14,V14),'standard adp'!$A:$J,10,FALSE),VLOOKUP(_xlfn.CONCAT(W14,V14),'half ppr adp'!$A:$J,10,FALSE))),VLOOKUP(_xlfn.CONCAT(W14,V14),'full ppr adp'!$A:$K,11,FALSE))),"UND") -> 129.3333333 | AC14: =VLOOKUP(AD14,'def data'!A:F,6,FALSE) -> 9 | AD14: Minnesota Vikings | AE14: =VLOOKUP($AD14,'def data'!$A:$F,2,FALSE) -> 19 | AF14: =VLOOKUP($AD14,'def data'!$A:$F,3,FALSE) -> 15 | AG14: =VLOOKUP($AD14,'def data'!$A:$F,4,FALSE) -> 6 | AH14: =IFERROR(IF(Settings!$J$17=1,VLOOKUP(AD14,'full ppr adp'!C:K,9,FALSE),IF(Settings!$J$17=0,VLOOKUP(AD14,'standard adp'!C:J,8,FALSE),VLOOKUP(AD14,'half ppr adp'!C:J,8,FALSE))),VLOOKUP(AD14,'full ppr adp'!C:K,9,FALSE)) -> 167
A15: Cam Newton | B15: NE | C15: =VLOOKUP(A15,'qb data'!G:S,13,FALSE) -> 280.707684 | D15: =IFERROR(C15-LARGE($C$3:$C$34,'Position Expectations'!$B$3+1),C15-MIN($C$3:$C$34)) -> 15.7852311 | E15: =IFERROR(C15-LARGE($C$3:$C$34,Settings!$F$21*Settings!$D$22),C15-MIN($C$3:$C$34)) -> -0.6889872 | F15: =(IFERROR(IF(Settings!$J$17=1,VLOOKUP(_xlfn.CONCAT(B15,A15),'full ppr adp'!$A:$K,11,FALSE),IF(Settings!$J$17=0,VLOOKUP(_xlfn.CONCAT(B15,A15),'standard adp'!$A:$J,10,FALSE),VLOOKUP(_xlfn.CONCAT(B15,A15),'half ppr adp'!$A:$J,10,FALSE))),VLOOKUP(_xlfn.CONCAT(B15,A15),'full ppr adp'!$A:$K,11,FALSE))) -> 180 | H15: Joe Mixon | I15: CIN | J15: =VLOOKUP(_xlfn.CONCAT(I15,H15),'rb data'!A:X,24,FALSE) -> 227.193866 | K15: =IFERROR(J15-LARGE($J$3:$J$100,'Position Expectations'!$B$4+1),J15-MIN($J$3:$J$100)) -> 167.6273412 | L15: =IFERROR(J15-LARGE($J$3:$J$100,Settings!$F$21*Settings!$D$23),J15-MIN($J$3:$J$100))+IF(Settings!$D$26>0,MAX(0,LARGE($J$3:$J$100,Settings!$F$21*Settings!$D$23)-LARGE(($Q$3:$Q$150,$J$3:$J$100),Settings!$F$21*(Settings!$D$23+Settings!$D$24+Settings!$D$26))),0) -> 58.1382045 | M15: =IFERROR((IFERROR(IF(Settings!$J$17=1,VLOOKUP(_xlfn.CONCAT(I15,H15),'full ppr adp'!$A:$K,11,FALSE),IF(Settings!$J$17=0,VLOOKUP(_xlfn.CONCAT(I15,H15),'standard adp'!$A:$J,10,FALSE),VLOOKUP(_xlfn.CONCAT(I15,H15),'half ppr adp'!$A:$J,10,FALSE))),VLOOKUP(_xlfn.CONCAT(I15,H15),'full ppr adp'!$A:$K,11,FALSE))),"UND") -> 15 | O15: D.J. Moore | P15: CAR | Q15: =VLOOKUP(_xlfn.CONCAT(P15,O15),'wr data'!A:X,24,FALSE) -> 229.8389156 | R15: =IFERROR(Q15-LARGE($Q$3:$Q$150,'Position Expectations'!$B$5+1),Q15-MIN($Q$3:$Q$150)) -> 103.2783211 | S15: =IFERROR(Q15-LARGE($Q$3:$Q$150,Settings!$F$21*Settings!$D$24),Q15-MIN($Q$3:$Q$150))+IF(Settings!$D$26>0,MAX(0,LARGE($Q$3:$Q$150,Settings!$F$21*Settings!$D$24)-LARGE(($Q$3:$Q$150,$J$3:$J$100),Settings!$F$21*(Settings!$D$23+Settings!$D$24+Settings!$D$26))),0) -> 58.0906377 | T15: =IFERROR((IFERROR(IF(Settings!$J$17=1,VLOOKUP(_xlfn.CONCAT(P15,O15),'full ppr adp'!$A:$K,11,FALSE),IF(Settings!$J$17=0,VLOOKUP(_xlfn.CONCAT(P15,O15),'standard adp'!$A:$J,10,FALSE),VLOOKUP(_xlfn.CONCAT(P15,O15),'half ppr adp'!$A:$J,10,FALSE))),VLOOKUP(_xlfn.CONCAT(P15,O15),'full ppr adp'!$A:$K,11,FALSE))),"UND") -> 30 | V15: Noah Fant | W15: DEN | X15: =VLOOKUP(_xlfn.CONCAT(W15,V15),'te data'!A:X,24,FALSE) -> 131.000509 | Y15: =IFERROR(X15-LARGE($X$3:$X$54,'Position Expectations'!$B$6+1),X15-MIN($X$3:$X$54)) -> 8.40351136 | Z15: =IFERROR(X15-LARGE($X$3:$X$75,Settings!$F$21*Settings!$D$25),X15-MIN($X$3:$X$75))+IF(Settings!$D$26>0,MAX(0,LARGE($X$3:$X$75,Settings!$F$21*Settings!$D$25)-LARGE(($Q$3:$Q$150,$J$3:$J$100,$X$3:$X$75),Settings!$F$21*(Settings!$D$23+Settings!$D$24+Settings!$D$26))),0) -> -2.42524254 | AA15: =IFERROR((IFERROR(IF(Settings!$J$17=1,VLOOKUP(_xlfn.CONCAT(W15,V15),'full ppr adp'!$A:$K,11,FALSE),IF(Settings!$J$17=0,VLOOKUP(_xlfn.CONCAT(W15,V15),'standard adp'!$A:$J,10,FALSE),VLOOKUP(_xlfn.CONCAT(W15,V15),'half ppr adp'!$A:$J,10,FALSE))),VLOOKUP(_xlfn.CONCAT(W15,V15),'full ppr adp'!$A:$K,11,FALSE))),"UND") -> 112.3333333 | AC15: =VLOOKUP(AD15,'def data'!A:F,6,FALSE) -> 10 | AD15: New York Jets | AE15: =VLOOKUP($AD15,'def data'!$A:$F,2,FALSE) -> 9 | AF15: =VLOOKUP($AD15,'def data'!$A:$F,3,FALSE) -> 8 | AG15: =VLOOKUP($AD15,'def data'!$A:$F,4,FALSE) -> 12 | AH15: =IFERROR(IF(Settings!$J$17=1,VLOOKUP(AD15,'full ppr adp'!C:K,9,FALSE),IF(Settings!$J$17=0,VLOOKUP(AD15,'standard adp'!C:J,8,FALSE),VLOOKUP(AD15,'half ppr adp'!C:J,8,FALSE))),VLOOKUP(AD15,'full ppr adp'!C:K,9,FALSE)) -> 248.5
A16: Drew Brees | B16: NO | C16: =VLOOKUP(A16,'qb data'!G:S,13,FALSE) -> 279.642365 | D16: =IFERROR(C16-LARGE($C$3:$C$34,'Position Expectations'!$B$3+1),C16-MIN($C$3:$C$34)) -> 14.71991205 | E16: =IFERROR(C16-LARGE($C$3:$C$34,Settings!$F$21*Settings!$D$22),C16-MIN($C$3:$C$34)) -> -1.75430625 | F16: =(IFERROR(IF(Settings!$J$17=1,VLOOKUP(_xlfn.CONCAT(B16,A16),'full ppr adp'!$A:$K,11,FALSE),IF(Settings!$J$17=0,VLOOKUP(_xlfn.CONCAT(B16,A16),'standard adp'!$A:$J,10,FALSE),VLOOKUP(_xlfn.CONCAT(B16,A16),'half ppr adp'!$A:$J,10,FALSE))),VLOOKUP(_xlfn.CONCAT(B16,A16),'full ppr adp'!$A:$K,11,FALSE))) -> 86 | H16: James Conner | I16: PIT | J16: =VLOOKUP(_xlfn.CONCAT(I16,H16),'rb data'!A:X,24,FALSE) -> 219.3352636 | K16: =IFERROR(J16-LARGE($J$3:$J$100,'Position Expectations'!$B$4+1),J16-MIN($J$3:$J$100)) -> 159.7687388 | L16: =IFERROR(J16-LARGE($J$3:$J$100,Settings!$F$21*Settings!$D$23),J16-MIN($J$3:$J$100))+IF(Settings!$D$26>0,MAX(0,LARGE($J$3:$J$100,Settings!$F$21*Settings!$D$23)-LARGE(($Q$3:$Q$150,$J$3:$J$100),Settings!$F$21*(Settings!$D$23+Settings!$D$24+Settings!$D$26))),0) -> 50.2796021 | M16: =IFERROR((IFERROR(IF(Settings!$J$17=1,VLOOKUP(_xlfn.CONCAT(I16,H16),'full ppr adp'!$A:$K,11,FALSE),IF(Settings!$J$17=0,VLOOKUP(_xlfn.CONCAT(I16,H16),'standard adp'!$A:$J,10,FALSE),VLOOKUP(_xlfn.CONCAT(I16,H16),'half ppr adp'!$A:$J,10,FALSE))),VLOOKUP(_xlfn.CONCAT(I16,H16),'full ppr adp'!$A:$K,11,FALSE))),"UND") -> 41.66666667 | O16: Calvin Ridley | P16: ATL | Q16: =VLOOKUP(_xlfn.CONCAT(P16,O16),'wr data'!A:X,24,FALSE) -> 228.9203218 | R16: =IFERROR(Q16-LARGE($Q$3:$Q$150,'Position Expectations'!$B$5+1),Q16-MIN($Q$3:$Q$150)) -> 102.3597273 | S16: =IFERROR(Q16-LARGE($Q$3:$Q$150,Settings!$F$21*Settings!$D$24),Q16-MIN($Q$3:$Q$150))+IF(Settings!$D$26>0,MAX(0,LARGE($Q$3:$Q$150,Settings!$F$21*Settings!$D$24)-LARGE(($Q$3:$Q$150,$J$3:$J$100),Settings!$F$21*(Settings!$D$23+Settings!$D$24+Settings!$D$26))),0) -> 57.1720439 | T16: =IFERROR((IFERROR(IF(Settings!$J$17=1,VLOOKUP(_xlfn.CONCAT(P16,O16),'full ppr adp'!$A:$K,11,FALSE),IF(Settings!$J$17=0,VLOOKUP(_xlfn.CONCAT(P16,O16),'standard adp'!$A:$J,10,FALSE),VLOOKUP(_xlfn.CONCAT(P16,O16),'half ppr adp'!$A:$J,10,FALSE))),VLOOKUP(_xlfn.CONCAT(P16,O16),'full ppr adp'!$A:$K,11,FALSE))),"UND") -> 42.33333333 | V16: Chris Herndon | W16: NYJ | X16: =VLOOKUP(_xlfn.CONCAT(W16,V16),'te data'!A:X,24,FALSE) -> 128.2181809 | Y16: =IFERROR(X16-LARGE($X$3:$X$54,'Position Expectations'!$B$6+1),X16-MIN($X$3:$X$54)) -> 5.62118326 | Z16: =IFERROR(X16-LARGE($X$3:$X$75,Settings!$F$21*Settings!$D$25),X16-MIN($X$3:$X$75))+IF(Settings!$D$26>0,MAX(0,LARGE($X$3:$X$75,Settings!$F$21*Settings!$D$25)-LARGE(($Q$3:$Q$150,$J$3:$J$100,$X$3:$X$75),Settings!$F$21*(Settings!$D$23+Settings!$D$24+Settings!$D$26))),0) -> -5.20757064 | AA16: =IFERROR((IFERROR(IF(Settings!$J$17=1,VLOOKUP(_xlfn.CONCAT(W16,V16),'full ppr adp'!$A:$K,11,FALSE),IF(Settings!$J$17=0,VLOOKUP(_xlfn.CONCAT(W16,V16),'standard adp'!$A:$J,10,FALSE),VLOOKUP(_xlfn.CONCAT(W16,V16),'half ppr adp'!$A:$J,10,FALSE))),VLOOKUP(_xlfn.CONCAT(W16,V16),'full ppr adp'!$A:$K,11,FALSE))),"UND") -> 162.3333333 | AC16: =VLOOKUP(AD16,'def data'!A:F,6,FALSE) -> 11 | AD16: New Orleans Saints | AE16: =VLOOKUP($AD16,'def data'!$A:$F,2,FALSE) -> 11 | AF16: =VLOOKUP($AD16,'def data'!$A:$F,3,FALSE) -> 22 | AG16: =VLOOKUP($AD16,'def data'!$A:$F,4,FALSE) -> 10 | AH16: =IFERROR(IF(Settings!$J$17=1,VLOOKUP(AD16,'full ppr adp'!C:K,9,FALSE),IF(Settings!$J$17=0,VLOOKUP(AD16,'standard adp'!C:J,8,FALSE),VLOOKUP(AD16,'half ppr adp'!C:J,8,FALSE))),VLOOKUP(AD16,'full ppr adp'!C:K,9,FALSE)) -> 169
A17: Matt Ryan | B17: ATL | C17: =VLOOKUP(A17,'qb data'!G:S,13,FALSE) -> 278.487422 | D17: =IFERROR(C17-LARGE($C$3:$C$34,'Position Expectations'!$B$3+1),C17-MIN($C$3:$C$34)) -> 13.5649691 | E17: =IFERROR(C17-LARGE($C$3:$C$34,Settings!$F$21*Settings!$D$22),C17-MIN($C$3:$C$34)) -> -2.9092492 | F17: =(IFERROR(IF(Settings!$J$17=1,VLOOKUP(_xlfn.CONCAT(B17,A17),'full ppr adp'!$A:$K,11,FALSE),IF(Settings!$J$17=0,VLOOKUP(_xlfn.CONCAT(B17,A17),'standard adp'!$A:$J,10,FALSE),VLOOKUP(_xlfn.CONCAT(B17,A17),'half ppr adp'!$A:$J,10,FALSE))),VLOOKUP(_xlfn.CONCAT(B17,A17),'full ppr adp'!$A:$K,11,FALSE))) -> 85.66666667 | H17: Todd Gurley | I17: ATL | J17: =VLOOKUP(_xlfn.CONCAT(I17,H17),'rb data'!A:X,24,FALSE) -> 218.1503266 | K17: =IFERROR(J17-LARGE($J$3:$J$100,'Position Expectations'!$B$4+1),J17-MIN($J$3:$J$100)) -> 158.5838018 | L17: =IFERROR(J17-LARGE($J$3:$J$100,Settings!$F$21*Settings!$D$23),J17-MIN($J$3:$J$100))+IF(Settings!$D$26>0,MAX(0,LARGE($J$3:$J$100,Settings!$F$21*Settings!$D$23)-LARGE(($Q$3:$Q$150,$J$3:$J$100),Settings!$F$21*(Settings!$D$23+Settings!$D$24+Settings!$D$26))),0) -> 49.0946651 | M17: =IFERROR((IFERROR(IF(Settings!$J$17=1,VLOOKUP(_xlfn.CONCAT(I17,H17),'full ppr adp'!$A:$K,11,FALSE),IF(Settings!$J$17=0,VLOOKUP(_xlfn.CONCAT(I17,H17),'standard adp'!$A:$J,10,FALSE),VLOOKUP(_xlfn.CONCAT(I17,H17),'half ppr adp'!$A:$J,10,FALSE))),VLOOKUP(_xlfn.CONCAT(I17,H17),'full ppr adp'!$A:$K,11,FALSE))),"UND") -> 31 | O17: Allen Robinson | P17: CHI | Q17: =VLOOKUP(_xlfn.CONCAT(P17,O17),'wr data'!A:X,24,FALSE) -> 228.7230738 | R17: =IFERROR(Q17-LARGE($Q$3:$Q$150,'Position Expectations'!$B$5+1),Q17-MIN($Q$3:$Q$150)) -> 102.1624793 | S17: =IFERROR(Q17-LARGE($Q$3:$Q$150,Settings!$F$21*Settings!$D$24),Q17-MIN($Q$3:$Q$150))+IF(Settings!$D$26>0,MAX(0,LARGE($Q$3:$Q$150,Settings!$F$21*Settings!$D$24)-LARGE(($Q$3:$Q$150,$J$3:$J$100),Settings!$F$21*(Settings!$D$23+Settings!$D$24+Settings!$D$26))),0) -> 56.97479594 | T17: =IFERROR((IFERROR(IF(Settings!$J$17=1,VLOOKUP(_xlfn.CONCAT(P17,O17),'full ppr adp'!$A:$K,11,FALSE),IF(Settings!$J$17=0,VLOOKUP(_xlfn.CONCAT(P17,O17),'standard adp'!$A:$J,10,FALSE),VLOOKUP(_xlfn.CONCAT(P17,O17),'half ppr adp'!$A:$J,10,FALSE))),VLOOKUP(_xlfn.CONCAT(P17,O17),'full ppr adp'!$A:$K,11,FALSE))),"UND") -> 30.66666667 | V17: Jonnu Smith | W17: TEN | X17: =VLOOKUP(_xlfn.CONCAT(W17,V17),'te data'!A:X,24,FALSE) -> 127.2997779 | Y17: =IFERROR(X17-LARGE($X$3:$X$54,'Position Expectations'!$B$6+1),X17-MIN($X$3:$X$54)) -> 4.7027803 | Z17: =IFERROR(X17-LARGE($X$3:$X$75,Settings!$F$21*Settings!$D$25),X17-MIN($X$3:$X$75))+IF(Settings!$D$26>0,MAX(0,LARGE($X$3:$X$75,Settings!$F$21*Settings!$D$25)-LARGE(($Q$3:$Q$150,$J$3:$J$100,$X$3:$X$75),Settings!$F$21*(Settings!$D$23+Settings!$D$24+Settings!$D$26))),0) -> -6.1259736 | AA17: =IFERROR((IFERROR(IF(Settings!$J$17=1,VLOOKUP(_xlfn.CONCAT(W17,V17),'full ppr adp'!$A:$K,11,FALSE),IF(Settings!$J$17=0,VLOOKUP(_xlfn.CONCAT(W17,V17),'standard adp'!$A:$J,10,FALSE),VLOOKUP(_xlfn.CONCAT(W17,V17),'half ppr adp'!$A:$J,10,FALSE))),VLOOKUP(_xlfn.CONCAT(W17,V17),'full ppr adp'!$A:$K,11,FALSE))),"UND") -> 160 | AC17: =VLOOKUP(AD17,'def data'!A:F,6,FALSE) -> 12 | AD17: Kansas City Chiefs | AE17: =VLOOKUP($AD17,'def data'!$A:$F,2,FALSE) -> 23 | AF17: =VLOOKUP($AD17,'def data'!$A:$F,3,FALSE) -> 9 | AG17: =VLOOKUP($AD17,'def data'!$A:$F,4,FALSE) -> 9 | AH17: =IFERROR(IF(Settings!$J$17=1,VLOOKUP(AD17,'full ppr adp'!C:K,9,FALSE),IF(Settings!$J$17=0,VLOOKUP(AD17,'standard adp'!C:J,8,FALSE),VLOOKUP(AD17,'half ppr adp'!C:J,8,FALSE))),VLOOKUP(AD17,'full ppr adp'!C:K,9,FALSE)) -> 188
A18: Ben Roethlisberger | B18: PIT | C18: =VLOOKUP(A18,'qb data'!G:S,13,FALSE) -> 267.4825369 | D18: =IFERROR(C18-LARGE($C$3:$C$34,'Position Expectations'!$B$3+1),C18-MIN($C$3:$C$34)) -> 2.56008404 | E18: =IFERROR(C18-LARGE($C$3:$C$34,Settings!$F$21*Settings!$D$22),C18-MIN($C$3:$C$34)) -> -13.91413426 | F18: =(IFERROR(IF(Settings!$J$17=1,VLOOKUP(_xlfn.CONCAT(B18,A18),'full ppr adp'!$A:$K,11,FALSE),IF(Settings!$J$17=0,VLOOKUP(_xlfn.CONCAT(B18,A18),'standard adp'!$A:$J,10,FALSE),VLOOKUP(_xlfn.CONCAT(B18,A18),'half ppr adp'!$A:$J,10,FALSE))),VLOOKUP(_xlfn.CONCAT(B18,A18),'full ppr adp'!$A:$K,11,FALSE))) -> 135.3333333 | H18: Nick Chubb | I18: CLE | J18: =VLOOKUP(_xlfn.CONCAT(I18,H18),'rb data'!A:X,24,FALSE) -> 211.895319 | K18: =IFERROR(J18-LARGE($J$3:$J$100,'Position Expectations'!$B$4+1),J18-MIN($J$3:$J$100)) -> 152.3287942 | L18: =IFERROR(J18-LARGE($J$3:$J$100,Settings!$F$21*Settings!$D$23),J18-MIN($J$3:$J$100))+IF(Settings!$D$26>0,MAX(0,LARGE($J$3:$J$100,Settings!$F$21*Settings!$D$23)-LARGE(($Q$3:$Q$150,$J$3:$J$100),Settings!$F$21*(Settings!$D$23+Settings!$D$24+Settings!$D$26))),0) -> 42.83965755 | M18: =IFERROR((IFERROR(IF(Settings!$J$17=1,VLOOKUP(_xlfn.CONCAT(I18,H18),'full ppr adp'!$A:$K,11,FALSE),IF(Settings!$J$17=0,VLOOKUP(_xlfn.CONCAT(I18,H18),'standard adp'!$A:$J,10,FALSE),VLOOKUP(_xlfn.CONCAT(I18,H18),'half ppr adp'!$A:$J,10,FALSE))),VLOOKUP(_xlfn.CONCAT(I18,H18),'full ppr adp'!$A:$K,11,FALSE))),"UND") -> 14 | O18: A.J. Brown | P18: TEN | Q18: =VLOOKUP(_xlfn.CONCAT(P18,O18),'wr data'!A:X,24,FALSE) -> 227.9190825 | R18: =IFERROR(Q18-LARGE($Q$3:$Q$150,'Position Expectations'!$B$5+1),Q18-MIN($Q$3:$Q$150)) -> 101.358488 | S18: =IFERROR(Q18-LARGE($Q$3:$Q$150,Settings!$F$21*Settings!$D$24),Q18-MIN($Q$3:$Q$150))+IF(Settings!$D$26>0,MAX(0,LARGE($Q$3:$Q$150,Settings!$F$21*Settings!$D$24)-LARGE(($Q$3:$Q$150,$J$3:$J$100),Settings!$F$21*(Settings!$D$23+Settings!$D$24+Settings!$D$26))),0) -> 56.1708046 | T18: =IFERROR((IFERROR(IF(Settings!$J$17=1,VLOOKUP(_xlfn.CONCAT(P18,O18),'full ppr adp'!$A:$K,11,FALSE),IF(Settings!$J$17=0,VLOOKUP(_xlfn.CONCAT(P18,O18),'standard adp'!$A:$J,10,FALSE),VLOOKUP(_xlfn.CONCAT(P18,O18),'half ppr adp'!$A:$J,10,FALSE))),VLOOKUP(_xlfn.CONCAT(P18,O18),'full ppr adp'!$A:$K,11,FALSE))),"UND") -> 41 | V18: Dallas Goedert | W18: PHI | X18: =VLOOKUP(_xlfn.CONCAT(W18,V18),'te data'!A:X,24,FALSE) -> 125.9551076 | Y18: =IFERROR(X18-LARGE($X$3:$X$54,'Position Expectations'!$B$6+1),X18-MIN($X$3:$X$54)) -> 3.35811 | Z18: =IFERROR(X18-LARGE($X$3:$X$75,Settings!$F$21*Settings!$D$25),X18-MIN($X$3:$X$75))+IF(Settings!$D$26>0,MAX(0,LARGE($X$3:$X$75,Settings!$F$21*Settings!$D$25)-LARGE(($Q$3:$Q$150,$J$3:$J$100,$X$3:$X$75),Settings!$F$21*(Settings!$D$23+Settings!$D$24+Settings!$D$26))),0) -> -7.4706439 | AA18: =IFERROR((IFERROR(IF(Settings!$J$17=1,VLOOKUP(_xlfn.CONCAT(W18,V18),'full ppr adp'!$A:$K,11,FALSE),IF(Settings!$J$17=0,VLOOKUP(_xlfn.CONCAT(W18,V18),'standard adp'!$A:$J,10,FALSE),VLOOKUP(_xlfn.CONCAT(W18,V18),'half ppr adp'!$A:$J,10,FALSE))),VLOOKUP(_xlfn.CONCAT(W18,V18),'full ppr adp'!$A:$K,11,FALSE))),"UND") -> 149 | AC18: =VLOOKUP(AD18,'def data'!A:F,6,FALSE) -> 13 | AD18: Philadelphia Eagles | AE18: =VLOOKUP($AD18,'def data'!$A:$F,2,FALSE) -> 10 | AF18: =VLOOKUP($AD18,'def data'!$A:$F,3,FALSE) -> 14 | AG18: =VLOOKUP($AD18,'def data'!$A:$F,4,FALSE) -> 13 | AH18: =IFERROR(IF(Settings!$J$17=1,VLOOKUP(AD18,'full ppr adp'!C:K,9,FALSE),IF(Settings!$J$17=0,VLOOKUP(AD18,'standard adp'!C:J,8,FALSE),VLOOKUP(AD18,'half ppr adp'!C:J,8,FALSE))),VLOOKUP(AD18,'full ppr adp'!C:K,9,FALSE)) -> 223.3333333
A19: Jared Goff | B19: LAR | C19: =VLOOKUP(A19,'qb data'!G:S,13,FALSE) -> 266.135456 | D19: =IFERROR(C19-LARGE($C$3:$C$34,'Position Expectations'!$B$3+1),C19-MIN($C$3:$C$34)) -> 1.2130031 | E19: =IFERROR(C19-LARGE($C$3:$C$34,Settings!$F$21*Settings!$D$22),C19-MIN($C$3:$C$34)) -> -15.2612152 | F19: =(IFERROR(IF(Settings!$J$17=1,VLOOKUP(_xlfn.CONCAT(B19,A19),'full ppr adp'!$A:$K,11,FALSE),IF(Settings!$J$17=0,VLOOKUP(_xlfn.CONCAT(B19,A19),'standard adp'!$A:$J,10,FALSE),VLOOKUP(_xlfn.CONCAT(B19,A19),'half ppr adp'!$A:$J,10,FALSE))),VLOOKUP(_xlfn.CONCAT(B19,A19),'full ppr adp'!$A:$K,11,FALSE))) -> 142 | H19: David Johnson | I19: HOU | J19: =VLOOKUP(_xlfn.CONCAT(I19,H19),'rb data'!A:X,24,FALSE) -> 204.65308 | K19: =IFERROR(J19-LARGE($J$3:$J$100,'Position Expectations'!$B$4+1),J19-MIN($J$3:$J$100)) -> 145.0865552 | L19: =IFERROR(J19-LARGE($J$3:$J$100,Settings!$F$21*Settings!$D$23),J19-MIN($J$3:$J$100))+IF(Settings!$D$26>0,MAX(0,LARGE($J$3:$J$100,Settings!$F$21*Settings!$D$23)-LARGE(($Q$3:$Q$150,$J$3:$J$100),Settings!$F$21*(Settings!$D$23+Settings!$D$24+Settings!$D$26))),0) -> 35.5974185 | M19: =IFERROR((IFERROR(IF(Settings!$J$17=1,VLOOKUP(_xlfn.CONCAT(I19,H19),'full ppr adp'!$A:$K,11,FALSE),IF(Settings!$J$17=0,VLOOKUP(_xlfn.CONCAT(I19,H19),'standard adp'!$A:$J,10,FALSE),VLOOKUP(_xlfn.CONCAT(I19,H19),'half ppr adp'!$A:$J,10,FALSE))),VLOOKUP(_xlfn.CONCAT(I19,H19),'full ppr adp'!$A:$K,11,FALSE))),"UND") -> 38.66666667 | O19: DJ Chark | P19: JAC | Q19: =VLOOKUP(_xlfn.CONCAT(P19,O19),'wr data'!A:X,24,FALSE) -> 224.0889749 | R19: =IFERROR(Q19-LARGE($Q$3:$Q$150,'Position Expectations'!$B$5+1),Q19-MIN($Q$3:$Q$150)) -> 97.52838037 | S19: =IFERROR(Q19-LARGE($Q$3:$Q$150,Settings!$F$21*Settings!$D$24),Q19-MIN($Q$3:$Q$150))+IF(Settings!$D$26>0,MAX(0,LARGE($Q$3:$Q$150,Settings!$F$21*Settings!$D$24)-LARGE(($Q$3:$Q$150,$J$3:$J$100),Settings!$F$21*(Settings!$D$23+Settings!$D$24+Settings!$D$26))),0) -> 52.34069697 | T19: =IFERROR((IFERROR(IF(Settings!$J$17=1,VLOOKUP(_xlfn.CONCAT(P19,O19),'full ppr adp'!$A:$K,11,FALSE),IF(Settings!$J$17=0,VLOOKUP(_xlfn.CONCAT(P19,O19),'standard adp'!$A:$J,10,FALSE),VLOOKUP(_xlfn.CONCAT(P19,O19),'half ppr adp'!$A:$J,10,FALSE))),VLOOKUP(_xlfn.CONCAT(P19,O19),'full ppr adp'!$A:$K,11,FALSE))),"UND") -> 54.66666667 | V19: Blake Jarwin | W19: DAL | X19: =VLOOKUP(_xlfn.CONCAT(W19,V19),'te data'!A:X,24,FALSE) -> 125.2933425 | Y19: =IFERROR(X19-LARGE($X$3:$X$54,'Position Expectations'!$B$6+1),X19-MIN($X$3:$X$54)) -> 2.696344945 | Z19: =IFERROR(X19-LARGE($X$3:$X$75,Settings!$F$21*Settings!$D$25),X19-MIN($X$3:$X$75))+IF(Settings!$D$26>0,MAX(0,LARGE($X$3:$X$75,Settings!$F$21*Settings!$D$25)-LARGE(($Q$3:$Q$150,$J$3:$J$100,$X$3:$X$75),Settings!$F$21*(Settings!$D$23+Settings!$D$24+Settings!$D$26))),0) -> -8.132408955 | AA19: =IFERROR((IFERROR(IF(Settings!$J$17=1,VLOOKUP(_xlfn.CONCAT(W19,V19),'full ppr adp'!$A:$K,11,FALSE),IF(Settings!$J$17=0,VLOOKUP(_xlfn.CONCAT(W19,V19),'standard adp'!$A:$J,10,FALSE),VLOOKUP(_xlfn.CONCAT(W19,V19),'half ppr adp'!$A:$J,10,FALSE))),VLOOKUP(_xlfn.CONCAT(W19,V19),'full ppr adp'!$A:$K,11,FALSE))),"UND") -> 169.3333333 | AC19: =VLOOKUP(AD19,'def data'!A:F,6,FALSE) -> 14 | AD19: Tampa Bay Buccaneers | AE19: =VLOOKUP($AD19,'def data'!$A:$F,2,FALSE) -> 12 | AF19: =VLOOKUP($AD19,'def data'!$A:$F,3,FALSE) -> 23 | AG19: =VLOOKUP($AD19,'def data'!$A:$F,4,FALSE) -> 14 | AH19: =IFERROR(IF(Settings!$J$17=1,VLOOKUP(AD19,'full ppr adp'!C:K,9,FALSE),IF(Settings!$J$17=0,VLOOKUP(AD19,'standard adp'!C:J,8,FALSE),VLOOKUP(AD19,'half ppr adp'!C:J,8,FALSE))),VLOOKUP(AD19,'full ppr adp'!C:K,9,FALSE)) -> 217
A20: Joe Burrow | B20: CIN | C20: =VLOOKUP(A20,'qb data'!G:S,13,FALSE) -> 265.56 | D20: =IFERROR(C20-LARGE($C$3:$C$34,'Position Expectations'!$B$3+1),C20-MIN($C$3:$C$34)) -> 0.6375471 | E20: =IFERROR(C20-LARGE($C$3:$C$34,Settings!$F$21*Settings!$D$22),C20-MIN($C$3:$C$34)) -> -15.8366712 | F20: =(IFERROR(IF(Settings!$J$17=1,VLOOKUP(_xlfn.CONCAT(B20,A20),'full ppr adp'!$A:$K,11,FALSE),IF(Settings!$J$17=0,VLOOKUP(_xlfn.CONCAT(B20,A20),'standard adp'!$A:$J,10,FALSE),VLOOKUP(_xlfn.CONCAT(B20,A20),'half ppr adp'!$A:$J,10,FALSE))),VLOOKUP(_xlfn.CONCAT(B20,A20),'full ppr adp'!$A:$K,11,FALSE))) -> 151.3333333 | H20: Melvin Gordon | I20: DEN | J20: =VLOOKUP(_xlfn.CONCAT(I20,H20),'rb data'!A:X,24,FALSE) -> 202.9737368 | K20: =IFERROR(J20-LARGE($J$3:$J$100,'Position Expectations'!$B$4+1),J20-MIN($J$3:$J$100)) -> 143.407212 | L20: =IFERROR(J20-LARGE($J$3:$J$100,Settings!$F$21*Settings!$D$23),J20-MIN($J$3:$J$100))+IF(Settings!$D$26>0,MAX(0,LARGE($J$3:$J$100,Settings!$F$21*Settings!$D$23)-LARGE(($Q$3:$Q$150,$J$3:$J$100),Settings!$F$21*(Settings!$D$23+Settings!$D$24+Settings!$D$26))),0) -> 33.9180753 | M20: =IFERROR((IFERROR(IF(Settings!$J$17=1,VLOOKUP(_xlfn.CONCAT(I20,H20),'full ppr adp'!$A:$K,11,FALSE),IF(Settings!$J$17=0,VLOOKUP(_xlfn.CONCAT(I20,H20),'standard adp'!$A:$J,10,FALSE),VLOOKUP(_xlfn.CONCAT(I20,H20),'half ppr adp'!$A:$J,10,FALSE))),VLOOKUP(_xlfn.CONCAT(I20,H20),'full ppr adp'!$A:$K,11,FALSE))),"UND") -> 41.33333333 | O20: Terry McLaurin | P20: WAS | Q20: =VLOOKUP(_xlfn.CONCAT(P20,O20),'wr data'!A:X,24,FALSE) -> 220.0079016 | R20: =IFERROR(Q20-LARGE($Q$3:$Q$150,'Position Expectations'!$B$5+1),Q20-MIN($Q$3:$Q$150)) -> 93.4473071 | S20: =IFERROR(Q20-LARGE($Q$3:$Q$150,Settings!$F$21*Settings!$D$24),Q20-MIN($Q$3:$Q$150))+IF(Settings!$D$26>0,MAX(0,LARGE($Q$3:$Q$150,Settings!$F$21*Settings!$D$24)-LARGE(($Q$3:$Q$150,$J$3:$J$100),Settings!$F$21*(Settings!$D$23+Settings!$D$24+Settings!$D$26))),0) -> 48.2596237 | T20: =IFERROR((IFERROR(IF(Settings!$J$17=1,VLOOKUP(_xlfn.CONCAT(P20,O20),'full ppr adp'!$A:$K,11,FALSE),IF(Settings!$J$17=0,VLOOKUP(_xlfn.CONCAT(P20,O20),'standard adp'!$A:$J,10,FALSE),VLOOKUP(_xlfn.CONCAT(P20,O20),'half ppr adp'!$A:$J,10,FALSE))),VLOOKUP(_xlfn.CONCAT(P20,O20),'full ppr adp'!$A:$K,11,FALSE))),"UND") -> 58 | V20: T.J. Hockenson | W20: DET | X20: =VLOOKUP(_xlfn.CONCAT(W20,V20),'te data'!A:X,24,FALSE) -> 123.4888142 | Y20: =IFERROR(X20-LARGE($X$3:$X$54,'Position Expectations'!$B$6+1),X20-MIN($X$3:$X$54)) -> 0.89181664 | Z20: =IFERROR(X20-LARGE($X$3:$X$75,Settings!$F$21*Settings!$D$25),X20-MIN($X$3:$X$75))+IF(Settings!$D$26>0,MAX(0,LARGE($X$3:$X$75,Settings!$F$21*Settings!$D$25)-LARGE(($Q$3:$Q$150,$J$3:$J$100,$X$3:$X$75),Settings!$F$21*(Settings!$D$23+Settings!$D$24+Settings!$D$26))),0) -> -9.93693726 | AA20: =IFERROR((IFERROR(IF(Settings!$J$17=1,VLOOKUP(_xlfn.CONCAT(W20,V20),'full ppr adp'!$A:$K,11,FALSE),IF(Settings!$J$17=0,VLOOKUP(_xlfn.CONCAT(W20,V20),'standard adp'!$A:$J,10,FALSE),VLOOKUP(_xlfn.CONCAT(W20,V20),'half ppr adp'!$A:$J,10,FALSE))),VLOOKUP(_xlfn.CONCAT(W20,V20),'full ppr adp'!$A:$K,11,FALSE))),"UND") -> 128 | AC20: =VLOOKUP(AD20,'def data'!A:F,6,FALSE) -> 15 | AD20: Seattle Seahawks | AE20: =VLOOKUP($AD20,'def data'!$A:$F,2,FALSE) -> 14 | AF20: =VLOOKUP($AD20,'def data'!$A:$F,3,FALSE) -> 12 | AG20: =VLOOKUP($AD20,'def data'!$A:$F,4,FALSE) -> 17 | AH20: =IFERROR(IF(Settings!$J$17=1,VLOOKUP(AD20,'full ppr adp'!C:K,9,FALSE),IF(Settings!$J$17=0,VLOOKUP(AD20,'standard adp'!C:J,8,FALSE),VLOOKUP(AD20,'half ppr adp'!C:J,8,FALSE))),VLOOKUP(AD20,'full ppr adp'!C:K,9,FALSE)) -> 220.3333333
A21: Daniel Jones | B21: NYG | C21: =VLOOKUP(A21,'qb data'!G:S,13,FALSE) -> 265.09145 | D21: =IFERROR(C21-LARGE($C$3:$C$34,'Position Expectations'!$B$3+1),C21-MIN($C$3:$C$34)) -> 0.1689971 | E21: =IFERROR(C21-LARGE($C$3:$C$34,Settings!$F$21*Settings!$D$22),C21-MIN($C$3:$C$34)) -> -16.3052212 | F21: =(IFERROR(IF(Settings!$J$17=1,VLOOKUP(_xlfn.CONCAT(B21,A21),'full ppr adp'!$A:$K,11,FALSE),IF(Settings!$J$17=0,VLOOKUP(_xlfn.CONCAT(B21,A21),'standard adp'!$A:$J,10,FALSE),VLOOKUP(_xlfn.CONCAT(B21,A21),'half ppr adp'!$A:$J,10,FALSE))),VLOOKUP(_xlfn.CONCAT(B21,A21),'full ppr adp'!$A:$K,11,FALSE))) -> 127.6666667 | H21: Le'Veon Bell | I21: NYJ | J21: =VLOOKUP(_xlfn.CONCAT(I21,H21),'rb data'!A:X,24,FALSE) -> 191.5781695 | K21: =IFERROR(J21-LARGE($J$3:$J$100,'Position Expectations'!$B$4+1),J21-MIN($J$3:$J$100)) -> 132.0116447 | L21: =IFERROR(J21-LARGE($J$3:$J$100,Settings!$F$21*Settings!$D$23),J21-MIN($J$3:$J$100))+IF(Settings!$D$26>0,MAX(0,LARGE($J$3:$J$100,Settings!$F$21*Settings!$D$23)-LARGE(($Q$3:$Q$150,$J$3:$J$100),Settings!$F$21*(Settings!$D$23+Settings!$D$24+Settings!$D$26))),0) -> 22.52250804 | M21: =IFERROR((IFERROR(IF(Settings!$J$17=1,VLOOKUP(_xlfn.CONCAT(I21,H21),'full ppr adp'!$A:$K,11,FALSE),IF(Settings!$J$17=0,VLOOKUP(_xlfn.CONCAT(I21,H21),'standard adp'!$A:$J,10,FALSE),VLOOKUP(_xlfn.CONCAT(I21,H21),'half ppr adp'!$A:$J,10,FALSE))),VLOOKUP(_xlfn.CONCAT(I21,H21),'full ppr adp'!$A:$K,11,FALSE))),"UND") -> 38 | O21: DeVante Parker | P21: MIA | Q21: =VLOOKUP(_xlfn.CONCAT(P21,O21),'wr data'!A:X,24,FALSE) -> 218.6909373 | R21: =IFERROR(Q21-LARGE($Q$3:$Q$150,'Position Expectations'!$B$5+1),Q21-MIN($Q$3:$Q$150)) -> 92.1303428 | S21: =IFERROR(Q21-LARGE($Q$3:$Q$150,Settings!$F$21*Settings!$D$24),Q21-MIN($Q$3:$Q$150))+IF(Settings!$D$26>0,MAX(0,LARGE($Q$3:$Q$150,Settings!$F$21*Settings!$D$24)-LARGE(($Q$3:$Q$150,$J$3:$J$100),Settings!$F$21*(Settings!$D$23+Settings!$D$24+Settings!$D$26))),0) -> 46.9426594 | T21: =IFERROR((IFERROR(IF(Settings!$J$17=1,VLOOKUP(_xlfn.CONCAT(P21,O21),'full ppr adp'!$A:$K,11,FALSE),IF(Settings!$J$17=0,VLOOKUP(_xlfn.CONCAT(P21,O21),'standard adp'!$A:$J,10,FALSE),VLOOKUP(_xlfn.CONCAT(P21,O21),'half ppr adp'!$A:$J,10,FALSE))),VLOOKUP(_xlfn.CONCAT(P21,O21),'full ppr adp'!$A:$K,11,FALSE))),"UND") -> 58.66666667 | V21: Jack Doyle | W21: IND | X21: =VLOOKUP(_xlfn.CONCAT(W21,V21),'te data'!A:X,24,FALSE) -> 122.5969976 | Y21: =IFERROR(X21-LARGE($X$3:$X$54,'Position Expectations'!$B$6+1),X21-MIN($X$3:$X$54)) -> 0 | Z21: =IFERROR(X21-LARGE($X$3:$X$75,Settings!$F$21*Settings!$D$25),X21-MIN($X$3:$X$75))+IF(Settings!$D$26>0,MAX(0,LARGE($X$3:$X$75,Settings!$F$21*Settings!$D$25)-LARGE(($Q$3:$Q$150,$J$3:$J$100,$X$3:$X$75),Settings!$F$21*(Settings!$D$23+Settings!$D$24+Settings!$D$26))),0) -> -10.8287539 | AA21: =IFERROR((IFERROR(IF(Settings!$J$17=1,VLOOKUP(_xlfn.CONCAT(W21,V21),'full ppr adp'!$A:$K,11,FALSE),IF(Settings!$J$17=0,VLOOKUP(_xlfn.CONCAT(W21,V21),'standard adp'!$A:$J,10,FALSE),VLOOKUP(_xlfn.CONCAT(W21,V21),'half ppr adp'!$A:$J,10,FALSE))),VLOOKUP(_xlfn.CONCAT(W21,V21),'full ppr adp'!$A:$K,11,FALSE))),"UND") -> 158 | AC21: =VLOOKUP(AD21,'def data'!A:F,6,FALSE) -> 16 | AD21: Denver Broncos | AE21: =VLOOKUP($AD21,'def data'!$A:$F,2,FALSE) -> 25 | AF21: =VLOOKUP($AD21,'def data'!$A:$F,3,FALSE) -> 16 | AG21: =VLOOKUP($AD21,'def data'!$A:$F,4,FALSE) -> 16 | AH21: =IFERROR(IF(Settings!$J$17=1,VLOOKUP(AD21,'full ppr adp'!C:K,9,FALSE),IF(Settings!$J$17=0,VLOOKUP(AD21,'standard adp'!C:J,8,FALSE),VLOOKUP(AD21,'half ppr adp'!C:J,8,FALSE))),VLOOKUP(AD21,'full ppr adp'!C:K,9,FALSE)) -> 195
A22: Jimmy Garoppolo | B22: SF | C22: =VLOOKUP(A22,'qb data'!G:S,13,FALSE) -> 264.9224529 | D22: =IFERROR(C22-LARGE($C$3:$C$34,'Position Expectations'!$B$3+1),C22-MIN($C$3:$C$34)) -> 0 | E22: =IFERROR(C22-LARGE($C$3:$C$34,Settings!$F$21*Settings!$D$22),C22-MIN($C$3:$C$34)) -> -16.4742183 | F22: =(IFERROR(IF(Settings!$J$17=1,VLOOKUP(_xlfn.CONCAT(B22,A22),'full ppr adp'!$A:$K,11,FALSE),IF(Settings!$J$17=0,VLOOKUP(_xlfn.CONCAT(B22,A22),'standard adp'!$A:$J,10,FALSE),VLOOKUP(_xlfn.CONCAT(B22,A22),'half ppr adp'!$A:$J,10,FALSE))),VLOOKUP(_xlfn.CONCAT(B22,A22),'full ppr adp'!$A:$K,11,FALSE))) -> 157.6666667 | H22: Chris Carson | I22: SEA | J22: =VLOOKUP(_xlfn.CONCAT(I22,H22),'rb data'!A:X,24,FALSE) -> 186.9775356 | K22: =IFERROR(J22-LARGE($J$3:$J$100,'Position Expectations'!$B$4+1),J22-MIN($J$3:$J$100)) -> 127.4110108 | L22: =IFERROR(J22-LARGE($J$3:$J$100,Settings!$F$21*Settings!$D$23),J22-MIN($J$3:$J$100))+IF(Settings!$D$26>0,MAX(0,LARGE($J$3:$J$100,Settings!$F$21*Settings!$D$23)-LARGE(($Q$3:$Q$150,$J$3:$J$100),Settings!$F$21*(Settings!$D$23+Settings!$D$24+Settings!$D$26))),0) -> 17.9218741 | M22: =IFERROR((IFERROR(IF(Settings!$J$17=1,VLOOKUP(_xlfn.CONCAT(I22,H22),'full ppr adp'!$A:$K,11,FALSE),IF(Settings!$J$17=0,VLOOKUP(_xlfn.CONCAT(I22,H22),'standard adp'!$A:$J,10,FALSE),VLOOKUP(_xlfn.CONCAT(I22,H22),'half ppr adp'!$A:$J,10,FALSE))),VLOOKUP(_xlfn.CONCAT(I22,H22),'full ppr adp'!$A:$K,11,FALSE))),"UND") -> 32.33333333 | O22: Adam Thielen | P22: MIN | Q22: =VLOOKUP(_xlfn.CONCAT(P22,O22),'wr data'!A:X,24,FALSE) -> 206.5587528 | R22: =IFERROR(Q22-LARGE($Q$3:$Q$150,'Position Expectations'!$B$5+1),Q22-MIN($Q$3:$Q$150)) -> 79.9981583 | S22: =IFERROR(Q22-LARGE($Q$3:$Q$150,Settings!$F$21*Settings!$D$24),Q22-MIN($Q$3:$Q$150))+IF(Settings!$D$26>0,MAX(0,LARGE($Q$3:$Q$150,Settings!$F$21*Settings!$D$24)-LARGE(($Q$3:$Q$150,$J$3:$J$100),Settings!$F$21*(Settings!$D$23+Settings!$D$24+Settings!$D$26))),0) -> 34.8104749 | T22: =IFERROR((IFERROR(IF(Settings!$J$17=1,VLOOKUP(_xlfn.CONCAT(P22,O22),'full ppr adp'!$A:$K,11,FALSE),IF(Settings!$J$17=0,VLOOKUP(_xlfn.CONCAT(P22,O22),'standard adp'!$A:$J,10,FALSE),VLOOKUP(_xlfn.CONCAT(P22,O22),'half ppr adp'!$A:$J,10,FALSE))),VLOOKUP(_xlfn.CONCAT(P22,O22),'full ppr adp'!$A:$K,11,FALSE))),"UND") -> 33.66666667 | V22: Eric Ebron | W22: PIT | X22: =VLOOKUP(_xlfn.CONCAT(W22,V22),'te data'!A:X,24,FALSE) -> 122.0368226 | Y22: =IFERROR(X22-LARGE($X$3:$X$54,'Position Expectations'!$B$6+1),X22-MIN($X$3:$X$54)) -> -0.560175 | Z22: =IFERROR(X22-LARGE($X$3:$X$75,Settings!$F$21*Settings!$D$25),X22-MIN($X$3:$X$75))+IF(Settings!$D$26>0,MAX(0,LARGE($X$3:$X$75,Settings!$F$21*Settings!$D$25)-LARGE(($Q$3:$Q$150,$J$3:$J$100,$X$3:$X$75),Settings!$F$21*(Settings!$D$23+Settings!$D$24+Settings!$D$26))),0) -> -11.3889289 | AA22: =IFERROR((IFERROR(IF(Settings!$J$17=1,VLOOKUP(_xlfn.CONCAT(W22,V22),'full ppr adp'!$A:$K,11,FALSE),IF(Settings!$J$17=0,VLOOKUP(_xlfn.CONCAT(W22,V22),'standard adp'!$A:$J,10,FALSE),VLOOKUP(_xlfn.CONCAT(W22,V22),'half ppr adp'!$A:$J,10,FALSE))),VLOOKUP(_xlfn.CONCAT(W22,V22),'full ppr adp'!$A:$K,11,FALSE))),"UND") -> 151.3333333 | AC22: =VLOOKUP(AD22,'def data'!A:F,6,FALSE) -> 17 | AD22: Chicago Bears | AE22: =VLOOKUP($AD22,'def data'!$A:$F,2,FALSE) -> 31 | AF22: =VLOOKUP($AD22,'def data'!$A:$F,3,FALSE) -> 24 | AG22: =VLOOKUP($AD22,'def data'!$A:$F,4,FALSE) -> 15 | AH22: =IFERROR(IF(Settings!$J$17=1,VLOOKUP(AD22,'full ppr adp'!C:K,9,FALSE),IF(Settings!$J$17=0,VLOOKUP(AD22,'standard adp'!C:J,8,FALSE),VLOOKUP(AD22,'half ppr adp'!C:J,8,FALSE))),VLOOKUP(AD22,'full ppr adp'!C:K,9,FALSE)) -> 155.6666667
A23: Ryan Tannehill | B23: TEN | C23: =VLOOKUP(A23,'qb data'!G:S,13,FALSE) -> 260.509345 | D23: =IFERROR(C23-LARGE($C$3:$C$34,'Position Expectations'!$B$3+1),C23-MIN($C$3:$C$34)) -> -4.41310786 | E23: =IFERROR(C23-LARGE($C$3:$C$34,Settings!$F$21*Settings!$D$22),C23-MIN($C$3:$C$34)) -> -20.88732616 | F23: =(IFERROR(IF(Settings!$J$17=1,VLOOKUP(_xlfn.CONCAT(B23,A23),'full ppr adp'!$A:$K,11,FALSE),IF(Settings!$J$17=0,VLOOKUP(_xlfn.CONCAT(B23,A23),'standard adp'!$A:$J,10,FALSE),VLOOKUP(_xlfn.CONCAT(B23,A23),'half ppr adp'!$A:$J,10,FALSE))),VLOOKUP(_xlfn.CONCAT(B23,A23),'full ppr adp'!$A:$K,11,FALSE))) -> 148.3333333 | H23: Devin Singletary | I23: BUF | J23: =VLOOKUP(_xlfn.CONCAT(I23,H23),'rb data'!A:X,24,FALSE) -> 175.6412017 | K23: =IFERROR(J23-LARGE($J$3:$J$100,'Position Expectations'!$B$4+1),J23-MIN($J$3:$J$100)) -> 116.0746769 | L23: =IFERROR(J23-LARGE($J$3:$J$100,Settings!$F$21*Settings!$D$23),J23-MIN($J$3:$J$100))+IF(Settings!$D$26>0,MAX(0,LARGE($J$3:$J$100,Settings!$F$21*Settings!$D$23)-LARGE(($Q$3:$Q$150,$J$3:$J$100),Settings!$F$21*(Settings!$D$23+Settings!$D$24+Settings!$D$26))),0) -> 6.5855402 | M23: =IFERROR((IFERROR(IF(Settings!$J$17=1,VLOOKUP(_xlfn.CONCAT(I23,H23),'full ppr adp'!$A:$K,11,FALSE),IF(Settings!$J$17=0,VLOOKUP(_xlfn.CONCAT(I23,H23),'standard adp'!$A:$J,10,FALSE),VLOOKUP(_xlfn.CONCAT(I23,H23),'half ppr adp'!$A:$J,10,FALSE))),VLOOKUP(_xlfn.CONCAT(I23,H23),'full ppr adp'!$A:$K,11,FALSE))),"UND") -> 50.33333333 | O23: A.J. Green | P23: CIN | Q23: =VLOOKUP(_xlfn.CONCAT(P23,O23),'wr data'!A:X,24,FALSE) -> 205.3743412 | R23: =IFERROR(Q23-LARGE($Q$3:$Q$150,'Position Expectations'!$B$5+1),Q23-MIN($Q$3:$Q$150)) -> 78.8137467 | S23: =IFERROR(Q23-LARGE($Q$3:$Q$150,Settings!$F$21*Settings!$D$24),Q23-MIN($Q$3:$Q$150))+IF(Settings!$D$26>0,MAX(0,LARGE($Q$3:$Q$150,Settings!$F$21*Settings!$D$24)-LARGE(($Q$3:$Q$150,$J$3:$J$100),Settings!$F$21*(Settings!$D$23+Settings!$D$24+Settings!$D$26))),0) -> 33.6260633 | T23: =IFERROR((IFERROR(IF(Settings!$J$17=1,VLOOKUP(_xlfn.CONCAT(P23,O23),'full ppr adp'!$A:$K,11,FALSE),IF(Settings!$J$17=0,VLOOKUP(_xlfn.CONCAT(P23,O23),'standard adp'!$A:$J,10,FALSE),VLOOKUP(_xlfn.CONCAT(P23,O23),'half ppr adp'!$A:$J,10,FALSE))),VLOOKUP(_xlfn.CONCAT(P23,O23),'full ppr adp'!$A:$K,11,FALSE))),"UND") -> 70 | V23: Ian Thomas | W23: CAR | X23: =VLOOKUP(_xlfn.CONCAT(W23,V23),'te data'!A:X,24,FALSE) -> 119.8621216 | Y23: =IFERROR(X23-LARGE($X$3:$X$54,'Position Expectations'!$B$6+1),X23-MIN($X$3:$X$54)) -> -2.734876 | Z23: =IFERROR(X23-LARGE($X$3:$X$75,Settings!$F$21*Settings!$D$25),X23-MIN($X$3:$X$75))+IF(Settings!$D$26>0,MAX(0,LARGE($X$3:$X$75,Settings!$F$21*Settings!$D$25)-LARGE(($Q$3:$Q$150,$J$3:$J$100,$X$3:$X$75),Settings!$F$21*(Settings!$D$23+Settings!$D$24+Settings!$D$26))),0) -> -13.5636299 | AA23: =IFERROR((IFERROR(IF(Settings!$J$17=1,VLOOKUP(_xlfn.CONCAT(W23,V23),'full ppr adp'!$A:$K,11,FALSE),IF(Settings!$J$17=0,VLOOKUP(_xlfn.CONCAT(W23,V23),'standard adp'!$A:$J,10,FALSE),VLOOKUP(_xlfn.CONCAT(W23,V23),'half ppr adp'!$A:$J,10,FALSE))),VLOOKUP(_xlfn.CONCAT(W23,V23),'full ppr adp'!$A:$K,11,FALSE))),"UND") -> 180.5 | AC23: =VLOOKUP(AD23,'def data'!A:F,6,FALSE) -> 18 | AD23: Jacksonville Jaguars | AE23: =VLOOKUP($AD23,'def data'!$A:$F,2,FALSE) -> 17 | AF23: =VLOOKUP($AD23,'def data'!$A:$F,3,FALSE) -> 21 | AG23: =VLOOKUP($AD23,'def data'!$A:$F,4,FALSE) -> 20 | AH23: =IFERROR(IF(Settings!$J$17=1,VLOOKUP(AD23,'full ppr adp'!C:K,9,FALSE),IF(Settings!$J$17=0,VLOOKUP(AD23,'standard adp'!C:J,8,FALSE),VLOOKUP(AD23,'half ppr adp'!C:J,8,FALSE))),VLOOKUP(AD23,'full ppr adp'!C:K,9,FALSE)) -> 288.3333333
A24: Fitzpatrick / Tagovailoa | B24: MIA | C24: =VLOOKUP(A24,'qb data'!G:S,13,FALSE) -> 259.98432 | D24: =IFERROR(C24-LARGE($C$3:$C$34,'Position Expectations'!$B$3+1),C24-MIN($C$3:$C$34)) -> -4.9381329 | E24: =IFERROR(C24-LARGE($C$3:$C$34,Settings!$F$21*Settings!$D$22),C24-MIN($C$3:$C$34)) -> -21.4123512 | F24: =(IFERROR(IF(Settings!$J$17=1,VLOOKUP(_xlfn.CONCAT(B24,A24),'full ppr adp'!$A:$K,11,FALSE),IF(Settings!$J$17=0,VLOOKUP(_xlfn.CONCAT(B24,A24),'standard adp'!$A:$J,10,FALSE),VLOOKUP(_xlfn.CONCAT(B24,A24),'half ppr adp'!$A:$J,10,FALSE))),VLOOKUP(_xlfn.CONCAT(B24,A24),'full ppr adp'!$A:$K,11,FALSE))) -> 239.5 | H24: Mark Ingram | I24: BAL | J24: =VLOOKUP(_xlfn.CONCAT(I24,H24),'rb data'!A:X,24,FALSE) -> 174.1688277 | K24: =IFERROR(J24-LARGE($J$3:$J$100,'Position Expectations'!$B$4+1),J24-MIN($J$3:$J$100)) -> 114.6023029 | L24: =IFERROR(J24-LARGE($J$3:$J$100,Settings!$F$21*Settings!$D$23),J24-MIN($J$3:$J$100))+IF(Settings!$D$26>0,MAX(0,LARGE($J$3:$J$100,Settings!$F$21*Settings!$D$23)-LARGE(($Q$3:$Q$150,$J$3:$J$100),Settings!$F$21*(Settings!$D$23+Settings!$D$24+Settings!$D$26))),0) -> 5.1131662 | M24: =IFERROR((IFERROR(IF(Settings!$J$17=1,VLOOKUP(_xlfn.CONCAT(I24,H24),'full ppr adp'!$A:$K,11,FALSE),IF(Settings!$J$17=0,VLOOKUP(_xlfn.CONCAT(I24,H24),'standard adp'!$A:$J,10,FALSE),VLOOKUP(_xlfn.CONCAT(I24,H24),'half ppr adp'!$A:$J,10,FALSE))),VLOOKUP(_xlfn.CONCAT(I24,H24),'full ppr adp'!$A:$K,11,FALSE))),"UND") -> 58.33333333 | O24: Keenan Allen | P24: LAC | Q24: =VLOOKUP(_xlfn.CONCAT(P24,O24),'wr data'!A:X,24,FALSE) -> 205.0923008 | R24: =IFERROR(Q24-LARGE($Q$3:$Q$150,'Position Expectations'!$B$5+1),Q24-MIN($Q$3:$Q$150)) -> 78.5317063 | S24: =IFERROR(Q24-LARGE($Q$3:$Q$150,Settings!$F$21*Settings!$D$24),Q24-MIN($Q$3:$Q$150))+IF(Settings!$D$26>0,MAX(0,LARGE($Q$3:$Q$150,Settings!$F$21*Settings!$D$24)-LARGE(($Q$3:$Q$150,$J$3:$J$100),Settings!$F$21*(Settings!$D$23+Settings!$D$24+Settings!$D$26))),0) -> 33.3440229 | T24: =IFERROR((IFERROR(IF(Settings!$J$17=1,VLOOKUP(_xlfn.CONCAT(P24,O24),'full ppr adp'!$A:$K,11,FALSE),IF(Settings!$J$17=0,VLOOKUP(_xlfn.CONCAT(P24,O24),'standard adp'!$A:$J,10,FALSE),VLOOKUP(_xlfn.CONCAT(P24,O24),'half ppr adp'!$A:$J,10,FALSE))),VLOOKUP(_xlfn.CONCAT(P24,O24),'full ppr adp'!$A:$K,11,FALSE))),"UND") -> 49 | V24: Austin Hooper | W24: CLE | X24: =VLOOKUP(_xlfn.CONCAT(W24,V24),'te data'!A:X,24,FALSE) -> 113.1517633 | Y24: =IFERROR(X24-LARGE($X$3:$X$54,'Position Expectations'!$B$6+1),X24-MIN($X$3:$X$54)) -> -9.44523432 | Z24: =IFERROR(X24-LARGE($X$3:$X$75,Settings!$F$21*Settings!$D$25),X24-MIN($X$3:$X$75))+IF(Settings!$D$26>0,MAX(0,LARGE($X$3:$X$75,Settings!$F$21*Settings!$D$25)-LARGE(($Q$3:$Q$150,$J$3:$J$100,$X$3:$X$75),Settings!$F$21*(Settings!$D$23+Settings!$D$24+Settings!$D$26))),0) -> -20.27398822 | AA24: =IFERROR((IFERROR(IF(Settings!$J$17=1,VLOOKUP(_xlfn.CONCAT(W24,V24),'full ppr adp'!$A:$K,11,FALSE),IF(Settings!$J$17=0,VLOOKUP(_xlfn.CONCAT(W24,V24),'standard adp'!$A:$J,10,FALSE),VLOOKUP(_xlfn.CONCAT(W24,V24),'half ppr adp'!$A:$J,10,FALSE))),VLOOKUP(_xlfn.CONCAT(W24,V24),'full ppr adp'!$A:$K,11,FALSE))),"UND") -> 112.6666667 | AC24: =VLOOKUP(AD24,'def data'!A:F,6,FALSE) -> 19 | AD24: Green Bay Packers | AE24: =VLOOKUP($AD24,'def data'!$A:$F,2,FALSE) -> 26 | AF24: =VLOOKUP($AD24,'def data'!$A:$F,3,FALSE) -> 26 | AG24: =VLOOKUP($AD24,'def data'!$A:$F,4,FALSE) -> 18 | AH24: =IFERROR(IF(Settings!$J$17=1,VLOOKUP(AD24,'full ppr adp'!C:K,9,FALSE),IF(Settings!$J$17=0,VLOOKUP(AD24,'standard adp'!C:J,8,FALSE),VLOOKUP(AD24,'half ppr adp'!C:J,8,FALSE))),VLOOKUP(AD24,'full ppr adp'!C:K,9,FALSE)) -> 240.3333333
A25: Derek Carr | B25: LV | C25: =VLOOKUP(A25,'qb data'!G:S,13,FALSE) -> 257.286752 | D25: =IFERROR(C25-LARGE($C$3:$C$34,'Position Expectations'!$B$3+1),C25-MIN($C$3:$C$34)) -> -7.6357009 | E25: =IFERROR(C25-LARGE($C$3:$C$34,Settings!$F$21*Settings!$D$22),C25-MIN($C$3:$C$34)) -> -24.1099192 | F25: =(IFERROR(IF(Settings!$J$17=1,VLOOKUP(_xlfn.CONCAT(B25,A25),'full ppr adp'!$A:$K,11,FALSE),IF(Settings!$J$17=0,VLOOKUP(_xlfn.CONCAT(B25,A25),'standard adp'!$A:$J,10,FALSE),VLOOKUP(_xlfn.CONCAT(B25,A25),'half ppr adp'!$A:$J,10,FALSE))),VLOOKUP(_xlfn.CONCAT(B25,A25),'full ppr adp'!$A:$K,11,FALSE))) -> 204.6666667 | H25: Raheem Mostert | I25: SF | J25: =VLOOKUP(_xlfn.CONCAT(I25,H25),'rb data'!A:X,24,FALSE) -> 169.9304611 | K25: =IFERROR(J25-LARGE($J$3:$J$100,'Position Expectations'!$B$4+1),J25-MIN($J$3:$J$100)) -> 110.3639363 | L25: =IFERROR(J25-LARGE($J$3:$J$100,Settings!$F$21*Settings!$D$23),J25-MIN($J$3:$J$100))+IF(Settings!$D$26>0,MAX(0,LARGE($J$3:$J$100,Settings!$F$21*Settings!$D$23)-LARGE(($Q$3:$Q$150,$J$3:$J$100),Settings!$F$21*(Settings!$D$23+Settings!$D$24+Settings!$D$26))),0) -> 0.874799644 | M25: =IFERROR((IFERROR(IF(Settings!$J$17=1,VLOOKUP(_xlfn.CONCAT(I25,H25),'full ppr adp'!$A:$K,11,FALSE),IF(Settings!$J$17=0,VLOOKUP(_xlfn.CONCAT(I25,H25),'standard adp'!$A:$J,10,FALSE),VLOOKUP(_xlfn.CONCAT(I25,H25),'half ppr adp'!$A:$J,10,FALSE))),VLOOKUP(_xlfn.CONCAT(I25,H25),'full ppr adp'!$A:$K,11,FALSE))),"UND") -> 60.66666667 | O25: Stefon Diggs | P25: BUF | Q25: =VLOOKUP(_xlfn.CONCAT(P25,O25),'wr data'!A:X,24,FALSE) -> 203.1727248 | R25: =IFERROR(Q25-LARGE($Q$3:$Q$150,'Position Expectations'!$B$5+1),Q25-MIN($Q$3:$Q$150)) -> 76.61213029 | S25: =IFERROR(Q25-LARGE($Q$3:$Q$150,Settings!$F$21*Settings!$D$24),Q25-MIN($Q$3:$Q$150))+IF(Settings!$D$26>0,MAX(0,LARGE($Q$3:$Q$150,Settings!$F$21*Settings!$D$24)-LARGE(($Q$3:$Q$150,$J$3:$J$100),Settings!$F$21*(Settings!$D$23+Settings!$D$24+Settings!$D$26))),0) -> 31.42444689 | T25: =IFERROR((IFERROR(IF(Settings!$J$17=1,VLOOKUP(_xlfn.CONCAT(P25,O25),'full ppr adp'!$A:$K,11,FALSE),IF(Settings!$J$17=0,VLOOKUP(_xlfn.CONCAT(P25,O25),'standard adp'!$A:$J,10,FALSE),VLOOKUP(_xlfn.CONCAT(P25,O25),'half ppr adp'!$A:$J,10,FALSE))),VLOOKUP(_xlfn.CONCAT(P25,O25),'full ppr adp'!$A:$K,11,FALSE))),"UND") -> 59.66666667 | V25: Tyler Eifert | W25: JAC | X25: =VLOOKUP(_xlfn.CONCAT(W25,V25),'te data'!A:X,24,FALSE) -> 105.2409204 | Y25: =IFERROR(X25-LARGE($X$3:$X$54,'Position Expectations'!$B$6+1),X25-MIN($X$3:$X$54)) -> -17.3560772 | Z25: =IFERROR(X25-LARGE($X$3:$X$75,Settings!$F$21*Settings!$D$25),X25-MIN($X$3:$X$75))+IF(Settings!$D$26>0,MAX(0,LARGE($X$3:$X$75,Settings!$F$21*Settings!$D$25)-LARGE(($Q$3:$Q$150,$J$3:$J$100,$X$3:$X$75),Settings!$F$21*(Settings!$D$23+Settings!$D$24+Settings!$D$26))),0) -> -28.1848311 | AA25: =IFERROR((IFERROR(IF(Settings!$J$17=1,VLOOKUP(_xlfn.CONCAT(W25,V25),'full ppr adp'!$A:$K,11,FALSE),IF(Settings!$J$17=0,VLOOKUP(_xlfn.CONCAT(W25,V25),'standard adp'!$A:$J,10,FALSE),VLOOKUP(_xlfn.CONCAT(W25,V25),'half ppr adp'!$A:$J,10,FALSE))),VLOOKUP(_xlfn.CONCAT(W25,V25),'full ppr adp'!$A:$K,11,FALSE))),"UND") -> 288 | AC25: =VLOOKUP(AD25,'def data'!A:F,6,FALSE) -> 20 | AD25: Dallas Cowboys | AE25: =VLOOKUP($AD25,'def data'!$A:$F,2,FALSE) -> 27 | AF25: =VLOOKUP($AD25,'def data'!$A:$F,3,FALSE) -> 18 | AG25: =VLOOKUP($AD25,'def data'!$A:$F,4,FALSE) -> 19 | AH25: =IFERROR(IF(Settings!$J$17=1,VLOOKUP(AD25,'full ppr adp'!C:K,9,FALSE),IF(Settings!$J$17=0,VLOOKUP(AD25,'standard adp'!C:J,8,FALSE),VLOOKUP(AD25,'half ppr adp'!C:J,8,FALSE))),VLOOKUP(AD25,'full ppr adp'!C:K,9,FALSE)) -> 215.6666667
A26: Baker Mayfield | B26: CLE | C26: =VLOOKUP(A26,'qb data'!G:S,13,FALSE) -> 246.465549 | D26: =IFERROR(C26-LARGE($C$3:$C$34,'Position Expectations'!$B$3+1),C26-MIN($C$3:$C$34)) -> -18.4569039 | E26: =IFERROR(C26-LARGE($C$3:$C$34,Settings!$F$21*Settings!$D$22),C26-MIN($C$3:$C$34)) -> -34.9311222 | F26: =(IFERROR(IF(Settings!$J$17=1,VLOOKUP(_xlfn.CONCAT(B26,A26),'full ppr adp'!$A:$K,11,FALSE),IF(Settings!$J$17=0,VLOOKUP(_xlfn.CONCAT(B26,A26),'standard adp'!$A:$J,10,FALSE),VLOOKUP(_xlfn.CONCAT(B26,A26),'half ppr adp'!$A:$J,10,FALSE))),VLOOKUP(_xlfn.CONCAT(B26,A26),'full ppr adp'!$A:$K,11,FALSE))) -> 144 | H26: Cam Akers | I26: LAR | J26: =VLOOKUP(_xlfn.CONCAT(I26,H26),'rb data'!A:X,24,FALSE) -> 169.0556615 | K26: =IFERROR(J26-LARGE($J$3:$J$100,'Position Expectations'!$B$4+1),J26-MIN($J$3:$J$100)) -> 109.4891367 | L26: =IFERROR(J26-LARGE($J$3:$J$100,Settings!$F$21*Settings!$D$23),J26-MIN($J$3:$J$100))+IF(Settings!$D$26>0,MAX(0,LARGE($J$3:$J$100,Settings!$F$21*Settings!$D$23)-LARGE(($Q$3:$Q$150,$J$3:$J$100),Settings!$F$21*(Settings!$D$23+Settings!$D$24+Settings!$D$26))),0) -> 0 | M26: =IFERROR((IFERROR(IF(Settings!$J$17=1,VLOOKUP(_xlfn.CONCAT(I26,H26),'full ppr adp'!$A:$K,11,FALSE),IF(Settings!$J$17=0,VLOOKUP(_xlfn.CONCAT(I26,H26),'standard adp'!$A:$J,10,FALSE),VLOOKUP(_xlfn.CONCAT(I26,H26),'half ppr adp'!$A:$J,10,FALSE))),VLOOKUP(_xlfn.CONCAT(I26,H26),'full ppr adp'!$A:$K,11,FALSE))),"UND") -> 62 | O26: Courtland Sutton | P26: DEN | Q26: =VLOOKUP(_xlfn.CONCAT(P26,O26),'wr data'!A:X,24,FALSE) -> 198.7118112 | R26: =IFERROR(Q26-LARGE($Q$3:$Q$150,'Position Expectations'!$B$5+1),Q26-MIN($Q$3:$Q$150)) -> 72.1512167 | S26: =IFERROR(Q26-LARGE($Q$3:$Q$150,Settings!$F$21*Settings!$D$24),Q26-MIN($Q$3:$Q$150))+IF(Settings!$D$26>0,MAX(0,LARGE($Q$3:$Q$150,Settings!$F$21*Settings!$D$24)-LARGE(($Q$3:$Q$150,$J$3:$J$100),Settings!$F$21*(Settings!$D$23+Settings!$D$24+Settings!$D$26))),0) -> 26.9635333 | T26: =IFERROR((IFERROR(IF(Settings!$J$17=1,VLOOKUP(_xlfn.CONCAT(P26,O26),'full ppr adp'!$A:$K,11,FALSE),IF(Settings!$J$17=0,VLOOKUP(_xlfn.CONCAT(P26,O26),'standard adp'!$A:$J,10,FALSE),VLOOKUP(_xlfn.CONCAT(P26,O26),'half ppr adp'!$A:$J,10,FALSE))),VLOOKUP(_xlfn.CONCAT(P26,O26),'full ppr adp'!$A:$K,11,FALSE))),"UND") -> 42.33333333 | V26: Dawson Knox | W26: BUF | X26: =VLOOKUP(_xlfn.CONCAT(W26,V26),'te data'!A:X,24,FALSE) -> 100.2982912 | Y26: =IFERROR(X26-LARGE($X$3:$X$54,'Position Expectations'!$B$6+1),X26-MIN($X$3:$X$54)) -> -22.2987064 | Z26: =IFERROR(X26-LARGE($X$3:$X$75,Settings!$F$21*Settings!$D$25),X26-MIN($X$3:$X$75))+IF(Settings!$D$26>0,MAX(0,LARGE($X$3:$X$75,Settings!$F$21*Settings!$D$25)-LARGE(($Q$3:$Q$150,$J$3:$J$100,$X$3:$X$75),Settings!$F$21*(Settings!$D$23+Settings!$D$24+Settings!$D$26))),0) -> -33.1274603 | AA26: =IFERROR((IFERROR(IF(Settings!$J$17=1,VLOOKUP(_xlfn.CONCAT(W26,V26),'full ppr adp'!$A:$K,11,FALSE),IF(Settings!$J$17=0,VLOOKUP(_xlfn.CONCAT(W26,V26),'standard adp'!$A:$J,10,FALSE),VLOOKUP(_xlfn.CONCAT(W26,V26),'half ppr adp'!$A:$J,10,FALSE))),VLOOKUP(_xlfn.CONCAT(W26,V26),'full ppr adp'!$A:$K,11,FALSE))),"UND") -> 239 | AC26: =VLOOKUP(AD26,'def data'!A:F,6,FALSE) -> 21 | AD26: Los Angeles Chargers | AE26: =VLOOKUP($AD26,'def data'!$A:$F,2,FALSE) -> 29 | AF26: =VLOOKUP($AD26,'def data'!$A:$F,3,FALSE) -> 11 | AG26: =VLOOKUP($AD26,'def data'!$A:$F,4,FALSE) -> 21 | AH26: =IFERROR(IF(Settings!$J$17=1,VLOOKUP(AD26,'full ppr adp'!C:K,9,FALSE),IF(Settings!$J$17=0,VLOOKUP(AD26,'standard adp'!C:J,8,FALSE),VLOOKUP(AD26,'half ppr adp'!C:J,8,FALSE))),VLOOKUP(AD26,'full ppr adp'!C:K,9,FALSE)) -> 196.6666667
A27: Teddy Bridgewater | B27: CAR | C27: =VLOOKUP(A27,'qb data'!G:S,13,FALSE) -> 243.066924 | D27: =IFERROR(C27-LARGE($C$3:$C$34,'Position Expectations'!$B$3+1),C27-MIN($C$3:$C$34)) -> -21.8555289 | E27: =IFERROR(C27-LARGE($C$3:$C$34,Settings!$F$21*Settings!$D$22),C27-MIN($C$3:$C$34)) -> -38.3297472 | F27: =(IFERROR(IF(Settings!$J$17=1,VLOOKUP(_xlfn.CONCAT(B27,A27),'full ppr adp'!$A:$K,11,FALSE),IF(Settings!$J$17=0,VLOOKUP(_xlfn.CONCAT(B27,A27),'standard adp'!$A:$J,10,FALSE),VLOOKUP(_xlfn.CONCAT(B27,A27),'half ppr adp'!$A:$J,10,FALSE))),VLOOKUP(_xlfn.CONCAT(B27,A27),'full ppr adp'!$A:$K,11,FALSE))) -> 194 | H27: Tarik Cohen | I27: CHI | J27: =VLOOKUP(_xlfn.CONCAT(I27,H27),'rb data'!A:X,24,FALSE) -> 168.1073832 | K27: =IFERROR(J27-LARGE($J$3:$J$100,'Position Expectations'!$B$4+1),J27-MIN($J$3:$J$100)) -> 108.5408584 | L27: =IFERROR(J27-LARGE($J$3:$J$100,Settings!$F$21*Settings!$D$23),J27-MIN($J$3:$J$100))+IF(Settings!$D$26>0,MAX(0,LARGE($J$3:$J$100,Settings!$F$21*Settings!$D$23)-LARGE(($Q$3:$Q$150,$J$3:$J$100),Settings!$F$21*(Settings!$D$23+Settings!$D$24+Settings!$D$26))),0) -> -0.94827828 | M27: =IFERROR((IFERROR(IF(Settings!$J$17=1,VLOOKUP(_xlfn.CONCAT(I27,H27),'full ppr adp'!$A:$K,11,FALSE),IF(Settings!$J$17=0,VLOOKUP(_xlfn.CONCAT(I27,H27),'standard adp'!$A:$J,10,FALSE),VLOOKUP(_xlfn.CONCAT(I27,H27),'half ppr adp'!$A:$J,10,FALSE))),VLOOKUP(_xlfn.CONCAT(I27,H27),'full ppr adp'!$A:$K,11,FALSE))),"UND") -> 88 | O27: T.Y. Hilton | P27: IND | Q27: =VLOOKUP(_xlfn.CONCAT(P27,O27),'wr data'!A:X,24,FALSE) -> 193.3702224 | R27: =IFERROR(Q27-LARGE($Q$3:$Q$150,'Position Expectations'!$B$5+1),Q27-MIN($Q$3:$Q$150)) -> 66.8096279 | S27: =IFERROR(Q27-LARGE($Q$3:$Q$150,Settings!$F$21*Settings!$D$24),Q27-MIN($Q$3:$Q$150))+IF(Settings!$D$26>0,MAX(0,LARGE($Q$3:$Q$150,Settings!$F$21*Settings!$D$24)-LARGE(($Q$3:$Q$150,$J$3:$J$100),Settings!$F$21*(Settings!$D$23+Settings!$D$24+Settings!$D$26))),0) -> 21.6219445 | T27: =IFERROR((IFERROR(IF(Settings!$J$17=1,VLOOKUP(_xlfn.CONCAT(P27,O27),'full ppr adp'!$A:$K,11,FALSE),IF(Settings!$J$17=0,VLOOKUP(_xlfn.CONCAT(P27,O27),'standard adp'!$A:$J,10,FALSE),VLOOKUP(_xlfn.CONCAT(P27,O27),'half ppr adp'!$A:$J,10,FALSE))),VLOOKUP(_xlfn.CONCAT(P27,O27),'full ppr adp'!$A:$K,11,FALSE))),"UND") -> 57.33333333 | V27: Greg Olsen | W27: SEA | X27: =VLOOKUP(_xlfn.CONCAT(W27,V27),'te data'!A:X,24,FALSE) -> 96.4603145 | Y27: =IFERROR(X27-LARGE($X$3:$X$54,'Position Expectations'!$B$6+1),X27-MIN($X$3:$X$54)) -> -26.1366831 | Z27: =IFERROR(X27-LARGE($X$3:$X$75,Settings!$F$21*Settings!$D$25),X27-MIN($X$3:$X$75))+IF(Settings!$D$26>0,MAX(0,LARGE($X$3:$X$75,Settings!$F$21*Settings!$D$25)-LARGE(($Q$3:$Q$150,$J$3:$J$100,$X$3:$X$75),Settings!$F$21*(Settings!$D$23+Settings!$D$24+Settings!$D$26))),0) -> -36.965437 | AA27: =IFERROR((IFERROR(IF(Settings!$J$17=1,VLOOKUP(_xlfn.CONCAT(W27,V27),'full ppr adp'!$A:$K,11,FALSE),IF(Settings!$J$17=0,VLOOKUP(_xlfn.CONCAT(W27,V27),'standard adp'!$A:$J,10,FALSE),VLOOKUP(_xlfn.CONCAT(W27,V27),'half ppr adp'!$A:$J,10,FALSE))),VLOOKUP(_xlfn.CONCAT(W27,V27),'full ppr adp'!$A:$K,11,FALSE))),"UND") -> 208 | AC27: =VLOOKUP(AD27,'def data'!A:F,6,FALSE) -> 22 | AD27: Cleveland Browns | AE27: =VLOOKUP($AD27,'def data'!$A:$F,2,FALSE) -> 13 | AF27: =VLOOKUP($AD27,'def data'!$A:$F,3,FALSE) -> 20 | AG27: =VLOOKUP($AD27,'def data'!$A:$F,4,FALSE) -> 24 | AH27: =IFERROR(IF(Settings!$J$17=1,VLOOKUP(AD27,'full ppr adp'!C:K,9,FALSE),IF(Settings!$J$17=0,VLOOKUP(AD27,'standard adp'!C:J,8,FALSE),VLOOKUP(AD27,'half ppr adp'!C:J,8,FALSE))),VLOOKUP(AD27,'full ppr adp'!C:K,9,FALSE)) -> 260
A28: Kirk Cousins | B28: MIN | C28: =VLOOKUP(A28,'qb data'!G:S,13,FALSE) -> 242.44614 | D28: =IFERROR(C28-LARGE($C$3:$C$34,'Position Expectations'!$B$3+1),C28-MIN($C$3:$C$34)) -> -22.4763129 | E28: =IFERROR(C28-LARGE($C$3:$C$34,Settings!$F$21*Settings!$D$22),C28-MIN($C$3:$C$34)) -> -38.9505312 | F28: =(IFERROR(IF(Settings!$J$17=1,VLOOKUP(_xlfn.CONCAT(B28,A28),'full ppr adp'!$A:$K,11,FALSE),IF(Settings!$J$17=0,VLOOKUP(_xlfn.CONCAT(B28,A28),'standard adp'!$A:$J,10,FALSE),VLOOKUP(_xlfn.CONCAT(B28,A28),'half ppr adp'!$A:$J,10,FALSE))),VLOOKUP(_xlfn.CONCAT(B28,A28),'full ppr adp'!$A:$K,11,FALSE))) -> 168 | H28: Kareem Hunt | I28: CLE | J28: =VLOOKUP(_xlfn.CONCAT(I28,H28),'rb data'!A:X,24,FALSE) -> 167.1094671 | K28: =IFERROR(J28-LARGE($J$3:$J$100,'Position Expectations'!$B$4+1),J28-MIN($J$3:$J$100)) -> 107.5429423 | L28: =IFERROR(J28-LARGE($J$3:$J$100,Settings!$F$21*Settings!$D$23),J28-MIN($J$3:$J$100))+IF(Settings!$D$26>0,MAX(0,LARGE($J$3:$J$100,Settings!$F$21*Settings!$D$23)-LARGE(($Q$3:$Q$150,$J$3:$J$100),Settings!$F$21*(Settings!$D$23+Settings!$D$24+Settings!$D$26))),0) -> -1.946194355 | M28: =IFERROR((IFERROR(IF(Settings!$J$17=1,VLOOKUP(_xlfn.CONCAT(I28,H28),'full ppr adp'!$A:$K,11,FALSE),IF(Settings!$J$17=0,VLOOKUP(_xlfn.CONCAT(I28,H28),'standard adp'!$A:$J,10,FALSE),VLOOKUP(_xlfn.CONCAT(I28,H28),'half ppr adp'!$A:$J,10,FALSE))),VLOOKUP(_xlfn.CONCAT(I28,H28),'full ppr adp'!$A:$K,11,FALSE))),"UND") -> 61.33333333 | O28: Michael Gallup | P28: DAL | Q28: =VLOOKUP(_xlfn.CONCAT(P28,O28),'wr data'!A:X,24,FALSE) -> 192.6083883 | R28: =IFERROR(Q28-LARGE($Q$3:$Q$150,'Position Expectations'!$B$5+1),Q28-MIN($Q$3:$Q$150)) -> 66.04779375 | S28: =IFERROR(Q28-LARGE($Q$3:$Q$150,Settings!$F$21*Settings!$D$24),Q28-MIN($Q$3:$Q$150))+IF(Settings!$D$26>0,MAX(0,LARGE($Q$3:$Q$150,Settings!$F$21*Settings!$D$24)-LARGE(($Q$3:$Q$150,$J$3:$J$100),Settings!$F$21*(Settings!$D$23+Settings!$D$24+Settings!$D$26))),0) -> 20.86011035 | T28: =IFERROR((IFERROR(IF(Settings!$J$17=1,VLOOKUP(_xlfn.CONCAT(P28,O28),'full ppr adp'!$A:$K,11,FALSE),IF(Settings!$J$17=0,VLOOKUP(_xlfn.CONCAT(P28,O28),'standard adp'!$A:$J,10,FALSE),VLOOKUP(_xlfn.CONCAT(P28,O28),'half ppr adp'!$A:$J,10,FALSE))),VLOOKUP(_xlfn.CONCAT(P28,O28),'full ppr adp'!$A:$K,11,FALSE))),"UND") -> 75.33333333 | V28: Kyle Rudolph | W28: MIN | X28: =VLOOKUP(_xlfn.CONCAT(W28,V28),'te data'!A:X,24,FALSE) -> 90.6783795 | Y28: =IFERROR(X28-LARGE($X$3:$X$54,'Position Expectations'!$B$6+1),X28-MIN($X$3:$X$54)) -> -31.9186181 | Z28: =IFERROR(X28-LARGE($X$3:$X$75,Settings!$F$21*Settings!$D$25),X28-MIN($X$3:$X$75))+IF(Settings!$D$26>0,MAX(0,LARGE($X$3:$X$75,Settings!$F$21*Settings!$D$25)-LARGE(($Q$3:$Q$150,$J$3:$J$100,$X$3:$X$75),Settings!$F$21*(Settings!$D$23+Settings!$D$24+Settings!$D$26))),0) -> -42.747372 | AA28: =IFERROR((IFERROR(IF(Settings!$J$17=1,VLOOKUP(_xlfn.CONCAT(W28,V28),'full ppr adp'!$A:$K,11,FALSE),IF(Settings!$J$17=0,VLOOKUP(_xlfn.CONCAT(W28,V28),'standard adp'!$A:$J,10,FALSE),VLOOKUP(_xlfn.CONCAT(W28,V28),'half ppr adp'!$A:$J,10,FALSE))),VLOOKUP(_xlfn.CONCAT(W28,V28),'full ppr adp'!$A:$K,11,FALSE))),"UND") -> 220 | AC28: =VLOOKUP(AD28,'def data'!A:F,6,FALSE) -> 23 | AD28: Houston Texans | AE28: =VLOOKUP($AD28,'def data'!$A:$F,2,FALSE) -> 15 | AF28: =VLOOKUP($AD28,'def data'!$A:$F,3,FALSE) -> 13 | AG28: =VLOOKUP($AD28,'def data'!$A:$F,4,FALSE) -> 25 | AH28: =IFERROR(IF(Settings!$J$17=1,VLOOKUP(AD28,'full ppr adp'!C:K,9,FALSE),IF(Settings!$J$17=0,VLOOKUP(AD28,'standard adp'!C:J,8,FALSE),VLOOKUP(AD28,'half ppr adp'!C:J,8,FALSE))),VLOOKUP(AD28,'full ppr adp'!C:K,9,FALSE)) -> 270
A29: Drew Lock | B29: DEN | C29: =VLOOKUP(A29,'qb data'!G:S,13,FALSE) -> 236.881436 | D29: =IFERROR(C29-LARGE($C$3:$C$34,'Position Expectations'!$B$3+1),C29-MIN($C$3:$C$34)) -> -28.0410169 | E29: =IFERROR(C29-LARGE($C$3:$C$34,Settings!$F$21*Settings!$D$22),C29-MIN($C$3:$C$34)) -> -44.5152352 | F29: =(IFERROR(IF(Settings!$J$17=1,VLOOKUP(_xlfn.CONCAT(B29,A29),'full ppr adp'!$A:$K,11,FALSE),IF(Settings!$J$17=0,VLOOKUP(_xlfn.CONCAT(B29,A29),'standard adp'!$A:$J,10,FALSE),VLOOKUP(_xlfn.CONCAT(B29,A29),'half ppr adp'!$A:$J,10,FALSE))),VLOOKUP(_xlfn.CONCAT(B29,A29),'full ppr adp'!$A:$K,11,FALSE))) -> 177.6666667 | H29: James White | I29: NE | J29: =VLOOKUP(_xlfn.CONCAT(I29,H29),'rb data'!A:X,24,FALSE) -> 166.0324732 | K29: =IFERROR(J29-LARGE($J$3:$J$100,'Position Expectations'!$B$4+1),J29-MIN($J$3:$J$100)) -> 106.4659484 | L29: =IFERROR(J29-LARGE($J$3:$J$100,Settings!$F$21*Settings!$D$23),J29-MIN($J$3:$J$100))+IF(Settings!$D$26>0,MAX(0,LARGE($J$3:$J$100,Settings!$F$21*Settings!$D$23)-LARGE(($Q$3:$Q$150,$J$3:$J$100),Settings!$F$21*(Settings!$D$23+Settings!$D$24+Settings!$D$26))),0) -> -3.02318826 | M29: =IFERROR((IFERROR(IF(Settings!$J$17=1,VLOOKUP(_xlfn.CONCAT(I29,H29),'full ppr adp'!$A:$K,11,FALSE),IF(Settings!$J$17=0,VLOOKUP(_xlfn.CONCAT(I29,H29),'standard adp'!$A:$J,10,FALSE),VLOOKUP(_xlfn.CONCAT(I29,H29),'half ppr adp'!$A:$J,10,FALSE))),VLOOKUP(_xlfn.CONCAT(I29,H29),'full ppr adp'!$A:$K,11,FALSE))),"UND") -> 84 | O29: Odell Beckham Jr. | P29: CLE | Q29: =VLOOKUP(_xlfn.CONCAT(P29,O29),'wr data'!A:X,24,FALSE) -> 190.1180045 | R29: =IFERROR(Q29-LARGE($Q$3:$Q$150,'Position Expectations'!$B$5+1),Q29-MIN($Q$3:$Q$150)) -> 63.55740995 | S29: =IFERROR(Q29-LARGE($Q$3:$Q$150,Settings!$F$21*Settings!$D$24),Q29-MIN($Q$3:$Q$150))+IF(Settings!$D$26>0,MAX(0,LARGE($Q$3:$Q$150,Settings!$F$21*Settings!$D$24)-LARGE(($Q$3:$Q$150,$J$3:$J$100),Settings!$F$21*(Settings!$D$23+Settings!$D$24+Settings!$D$26))),0) -> 18.36972655 | T29: =IFERROR((IFERROR(IF(Settings!$J$17=1,VLOOKUP(_xlfn.CONCAT(P29,O29),'full ppr adp'!$A:$K,11,FALSE),IF(Settings!$J$17=0,VLOOKUP(_xlfn.CONCAT(P29,O29),'standard adp'!$A:$J,10,FALSE),VLOOKUP(_xlfn.CONCAT(P29,O29),'half ppr adp'!$A:$J,10,FALSE))),VLOOKUP(_xlfn.CONCAT(P29,O29),'full ppr adp'!$A:$K,11,FALSE))),"UND") -> 30 | V29: Jace Sternberger | W29: GB | X29: =VLOOKUP(_xlfn.CONCAT(W29,V29),'te data'!A:X,24,FALSE) -> 90.1314544 | Y29: =IFERROR(X29-LARGE($X$3:$X$54,'Position Expectations'!$B$6+1),X29-MIN($X$3:$X$54)) -> -32.4655432 | Z29: =IFERROR(X29-LARGE($X$3:$X$75,Settings!$F$21*Settings!$D$25),X29-MIN($X$3:$X$75))+IF(Settings!$D$26>0,MAX(0,LARGE($X$3:$X$75,Settings!$F$21*Settings!$D$25)-LARGE(($Q$3:$Q$150,$J$3:$J$100,$X$3:$X$75),Settings!$F$21*(Settings!$D$23+Settings!$D$24+Settings!$D$26))),0) -> -43.2942971 | AA29: =IFERROR((IFERROR(IF(Settings!$J$17=1,VLOOKUP(_xlfn.CONCAT(W29,V29),'full ppr adp'!$A:$K,11,FALSE),IF(Settings!$J$17=0,VLOOKUP(_xlfn.CONCAT(W29,V29),'standard adp'!$A:$J,10,FALSE),VLOOKUP(_xlfn.CONCAT(W29,V29),'half ppr adp'!$A:$J,10,FALSE))),VLOOKUP(_xlfn.CONCAT(W29,V29),'full ppr adp'!$A:$K,11,FALSE))),"UND") -> 245 | AC29: =VLOOKUP(AD29,'def data'!A:F,6,FALSE) -> 24 | AD29: Detroit Lions | AE29: =VLOOKUP($AD29,'def data'!$A:$F,2,FALSE) -> 8 | AF29: =VLOOKUP($AD29,'def data'!$A:$F,3,FALSE) -> 17 | AG29: =VLOOKUP($AD29,'def data'!$A:$F,4,FALSE) -> 27 | AH29: =IFERROR(IF(Settings!$J$17=1,VLOOKUP(AD29,'full ppr adp'!C:K,9,FALSE),IF(Settings!$J$17=0,VLOOKUP(AD29,'standard adp'!C:J,8,FALSE),VLOOKUP(AD29,'half ppr adp'!C:J,8,FALSE))),VLOOKUP(AD29,'full ppr adp'!C:K,9,FALSE)) -> 234
A30: Philip Rivers | B30: IND | C30: =VLOOKUP(A30,'qb data'!G:S,13,FALSE) -> 228.399192 | D30: =IFERROR(C30-LARGE($C$3:$C$34,'Position Expectations'!$B$3+1),C30-MIN($C$3:$C$34)) -> -36.5232609 | E30: =IFERROR(C30-LARGE($C$3:$C$34,Settings!$F$21*Settings!$D$22),C30-MIN($C$3:$C$34)) -> -52.9974792 | F30: =(IFERROR(IF(Settings!$J$17=1,VLOOKUP(_xlfn.CONCAT(B30,A30),'full ppr adp'!$A:$K,11,FALSE),IF(Settings!$J$17=0,VLOOKUP(_xlfn.CONCAT(B30,A30),'standard adp'!$A:$J,10,FALSE),VLOOKUP(_xlfn.CONCAT(B30,A30),'half ppr adp'!$A:$J,10,FALSE))),VLOOKUP(_xlfn.CONCAT(B30,A30),'full ppr adp'!$A:$K,11,FALSE))) -> 182.3333333 | H30: D'Andre Swift | I30: DET | J30: =VLOOKUP(_xlfn.CONCAT(I30,H30),'rb data'!A:X,24,FALSE) -> 152.4477422 | K30: =IFERROR(J30-LARGE($J$3:$J$100,'Position Expectations'!$B$4+1),J30-MIN($J$3:$J$100)) -> 92.8812174 | L30: =IFERROR(J30-LARGE($J$3:$J$100,Settings!$F$21*Settings!$D$23),J30-MIN($J$3:$J$100))+IF(Settings!$D$26>0,MAX(0,LARGE($J$3:$J$100,Settings!$F$21*Settings!$D$23)-LARGE(($Q$3:$Q$150,$J$3:$J$100),Settings!$F$21*(Settings!$D$23+Settings!$D$24+Settings!$D$26))),0) -> -16.6079193 | M30: =IFERROR((IFERROR(IF(Settings!$J$17=1,VLOOKUP(_xlfn.CONCAT(I30,H30),'full ppr adp'!$A:$K,11,FALSE),IF(Settings!$J$17=0,VLOOKUP(_xlfn.CONCAT(I30,H30),'standard adp'!$A:$J,10,FALSE),VLOOKUP(_xlfn.CONCAT(I30,H30),'half ppr adp'!$A:$J,10,FALSE))),VLOOKUP(_xlfn.CONCAT(I30,H30),'full ppr adp'!$A:$K,11,FALSE))),"UND") -> 60.33333333 | O30: Julian Edelman | P30: NE | Q30: =VLOOKUP(_xlfn.CONCAT(P30,O30),'wr data'!A:X,24,FALSE) -> 189.9645186 | R30: =IFERROR(Q30-LARGE($Q$3:$Q$150,'Position Expectations'!$B$5+1),Q30-MIN($Q$3:$Q$150)) -> 63.40392414 | S30: =IFERROR(Q30-LARGE($Q$3:$Q$150,Settings!$F$21*Settings!$D$24),Q30-MIN($Q$3:$Q$150))+IF(Settings!$D$26>0,MAX(0,LARGE($Q$3:$Q$150,Settings!$F$21*Settings!$D$24)-LARGE(($Q$3:$Q$150,$J$3:$J$100),Settings!$F$21*(Settings!$D$23+Settings!$D$24+Settings!$D$26))),0) -> 18.21624074 | T30: =IFERROR((IFERROR(IF(Settings!$J$17=1,VLOOKUP(_xlfn.CONCAT(P30,O30),'full ppr adp'!$A:$K,11,FALSE),IF(Settings!$J$17=0,VLOOKUP(_xlfn.CONCAT(P30,O30),'standard adp'!$A:$J,10,FALSE),VLOOKUP(_xlfn.CONCAT(P30,O30),'half ppr adp'!$A:$J,10,FALSE))),VLOOKUP(_xlfn.CONCAT(P30,O30),'full ppr adp'!$A:$K,11,FALSE))),"UND") -> 75 | V30: Devin Asiasi | W30: NE | X30: =VLOOKUP(_xlfn.CONCAT(W30,V30),'te data'!A:X,24,FALSE) -> 89.5652888 | Y30: =IFERROR(X30-LARGE($X$3:$X$54,'Position Expectations'!$B$6+1),X30-MIN($X$3:$X$54)) -> -33.0317088 | Z30: =IFERROR(X30-LARGE($X$3:$X$75,Settings!$F$21*Settings!$D$25),X30-MIN($X$3:$X$75))+IF(Settings!$D$26>0,MAX(0,LARGE($X$3:$X$75,Settings!$F$21*Settings!$D$25)-LARGE(($Q$3:$Q$150,$J$3:$J$100,$X$3:$X$75),Settings!$F$21*(Settings!$D$23+Settings!$D$24+Settings!$D$26))),0) -> -43.8604627 | AA30: =IFERROR((IFERROR(IF(Settings!$J$17=1,VLOOKUP(_xlfn.CONCAT(W30,V30),'full ppr adp'!$A:$K,11,FALSE),IF(Settings!$J$17=0,VLOOKUP(_xlfn.CONCAT(W30,V30),'standard adp'!$A:$J,10,FALSE),VLOOKUP(_xlfn.CONCAT(W30,V30),'half ppr adp'!$A:$J,10,FALSE))),VLOOKUP(_xlfn.CONCAT(W30,V30),'full ppr adp'!$A:$K,11,FALSE))),"UND") -> 270 | AC30: =VLOOKUP(AD30,'def data'!A:F,6,FALSE) -> 25 | AD30: Atlanta Falcons | AE30: =VLOOKUP($AD30,'def data'!$A:$F,2,FALSE) -> 22 | AF30: =VLOOKUP($AD30,'def data'!$A:$F,3,FALSE) -> 30 | AG30: =VLOOKUP($AD30,'def data'!$A:$F,4,FALSE) -> 22 | AH30: =IFERROR(IF(Settings!$J$17=1,VLOOKUP(AD30,'full ppr adp'!C:K,9,FALSE),IF(Settings!$J$17=0,VLOOKUP(AD30,'standard adp'!C:J,8,FALSE),VLOOKUP(AD30,'half ppr adp'!C:J,8,FALSE))),VLOOKUP(AD30,'full ppr adp'!C:K,9,FALSE)) -> 228.5
A31: Sam Darnold | B31: NYJ | C31: =VLOOKUP(A31,'qb data'!G:S,13,FALSE) -> 224.0150325 | D31: =IFERROR(C31-LARGE($C$3:$C$34,'Position Expectations'!$B$3+1),C31-MIN($C$3:$C$34)) -> -40.9074204 | E31: =IFERROR(C31-LARGE($C$3:$C$34,Settings!$F$21*Settings!$D$22),C31-MIN($C$3:$C$34)) -> -57.3816387 | F31: =(IFERROR(IF(Settings!$J$17=1,VLOOKUP(_xlfn.CONCAT(B31,A31),'full ppr adp'!$A:$K,11,FALSE),IF(Settings!$J$17=0,VLOOKUP(_xlfn.CONCAT(B31,A31),'standard adp'!$A:$J,10,FALSE),VLOOKUP(_xlfn.CONCAT(B31,A31),'half ppr adp'!$A:$J,10,FALSE))),VLOOKUP(_xlfn.CONCAT(B31,A31),'full ppr adp'!$A:$K,11,FALSE))) -> 209 | H31: David Montgomery | I31: CHI | J31: =VLOOKUP(_xlfn.CONCAT(I31,H31),'rb data'!A:X,24,FALSE) -> 152.3718707 | K31: =IFERROR(J31-LARGE($J$3:$J$100,'Position Expectations'!$B$4+1),J31-MIN($J$3:$J$100)) -> 92.80534587 | L31: =IFERROR(J31-LARGE($J$3:$J$100,Settings!$F$21*Settings!$D$23),J31-MIN($J$3:$J$100))+IF(Settings!$D$26>0,MAX(0,LARGE($J$3:$J$100,Settings!$F$21*Settings!$D$23)-LARGE(($Q$3:$Q$150,$J$3:$J$100),Settings!$F$21*(Settings!$D$23+Settings!$D$24+Settings!$D$26))),0) -> -16.68379083 | M31: =IFERROR((IFERROR(IF(Settings!$J$17=1,VLOOKUP(_xlfn.CONCAT(I31,H31),'full ppr adp'!$A:$K,11,FALSE),IF(Settings!$J$17=0,VLOOKUP(_xlfn.CONCAT(I31,H31),'standard adp'!$A:$J,10,FALSE),VLOOKUP(_xlfn.CONCAT(I31,H31),'half ppr adp'!$A:$J,10,FALSE))),VLOOKUP(_xlfn.CONCAT(I31,H31),'full ppr adp'!$A:$K,11,FALSE))),"UND") -> 62.66666667 | O31: Tyler Boyd | P31: CIN | Q31: =VLOOKUP(_xlfn.CONCAT(P31,O31),'wr data'!A:X,24,FALSE) -> 188.9744392 | R31: =IFERROR(Q31-LARGE($Q$3:$Q$150,'Position Expectations'!$B$5+1),Q31-MIN($Q$3:$Q$150)) -> 62.4138447 | S31: =IFERROR(Q31-LARGE($Q$3:$Q$150,Settings!$F$21*Settings!$D$24),Q31-MIN($Q$3:$Q$150))+IF(Settings!$D$26>0,MAX(0,LARGE($Q$3:$Q$150,Settings!$F$21*Settings!$D$24)-LARGE(($Q$3:$Q$150,$J$3:$J$100),Settings!$F$21*(Settings!$D$23+Settings!$D$24+Settings!$D$26))),0) -> 17.2261613 | T31: =IFERROR((IFERROR(IF(Settings!$J$17=1,VLOOKUP(_xlfn.CONCAT(P31,O31),'full ppr adp'!$A:$K,11,FALSE),IF(Settings!$J$17=0,VLOOKUP(_xlfn.CONCAT(P31,O31),'standard adp'!$A:$J,10,FALSE),VLOOKUP(_xlfn.CONCAT(P31,O31),'half ppr adp'!$A:$J,10,FALSE))),VLOOKUP(_xlfn.CONCAT(P31,O31),'full ppr adp'!$A:$K,11,FALSE))),"UND") -> 72 | V31: C.J. Uzomah | W31: CIN | X31: =VLOOKUP(_xlfn.CONCAT(W31,V31),'te data'!A:X,24,FALSE) -> 89.52818545 | Y31: =IFERROR(X31-LARGE($X$3:$X$54,'Position Expectations'!$B$6+1),X31-MIN($X$3:$X$54)) -> -33.06881215 | Z31: =IFERROR(X31-LARGE($X$3:$X$75,Settings!$F$21*Settings!$D$25),X31-MIN($X$3:$X$75))+IF(Settings!$D$26>0,MAX(0,LARGE($X$3:$X$75,Settings!$F$21*Settings!$D$25)-LARGE(($Q$3:$Q$150,$J$3:$J$100,$X$3:$X$75),Settings!$F$21*(Settings!$D$23+Settings!$D$24+Settings!$D$26))),0) -> -43.89756605 | AA31: =IFERROR((IFERROR(IF(Settings!$J$17=1,VLOOKUP(_xlfn.CONCAT(W31,V31),'full ppr adp'!$A:$K,11,FALSE),IF(Settings!$J$17=0,VLOOKUP(_xlfn.CONCAT(W31,V31),'standard adp'!$A:$J,10,FALSE),VLOOKUP(_xlfn.CONCAT(W31,V31),'half ppr adp'!$A:$J,10,FALSE))),VLOOKUP(_xlfn.CONCAT(W31,V31),'full ppr adp'!$A:$K,11,FALSE))),"UND") -> 236 | AC31: =VLOOKUP(AD31,'def data'!A:F,6,FALSE) -> 26 | AD31: Washington Football Team | AE31: =VLOOKUP($AD31,'def data'!$A:$F,2,FALSE) -> 21 | AF31: =VLOOKUP($AD31,'def data'!$A:$F,3,FALSE) -> 31 | AG31: =VLOOKUP($AD31,'def data'!$A:$F,4,FALSE) -> 23 | AH31: =IFERROR(IF(Settings!$J$17=1,VLOOKUP(AD31,'full ppr adp'!C:K,9,FALSE),IF(Settings!$J$17=0,VLOOKUP(AD31,'standard adp'!C:J,8,FALSE),VLOOKUP(AD31,'half ppr adp'!C:J,8,FALSE))),VLOOKUP(AD31,'full ppr adp'!C:K,9,FALSE)) -> 224.5
A32: Dwayne Haskins | B32: WAS | C32: =VLOOKUP(A32,'qb data'!G:S,13,FALSE) -> 207.320894 | D32: =IFERROR(C32-LARGE($C$3:$C$34,'Position Expectations'!$B$3+1),C32-MIN($C$3:$C$34)) -> -57.6015589 | E32: =IFERROR(C32-LARGE($C$3:$C$34,Settings!$F$21*Settings!$D$22),C32-MIN($C$3:$C$34)) -> -74.0757772 | F32: =(IFERROR(IF(Settings!$J$17=1,VLOOKUP(_xlfn.CONCAT(B32,A32),'full ppr adp'!$A:$K,11,FALSE),IF(Settings!$J$17=0,VLOOKUP(_xlfn.CONCAT(B32,A32),'standard adp'!$A:$J,10,FALSE),VLOOKUP(_xlfn.CONCAT(B32,A32),'half ppr adp'!$A:$J,10,FALSE))),VLOOKUP(_xlfn.CONCAT(B32,A32),'full ppr adp'!$A:$K,11,FALSE))) -> 262.6666667 | H32: Jonathan Taylor | I32: IND | J32: =VLOOKUP(_xlfn.CONCAT(I32,H32),'rb data'!A:X,24,FALSE) -> 149.0545748 | K32: =IFERROR(J32-LARGE($J$3:$J$100,'Position Expectations'!$B$4+1),J32-MIN($J$3:$J$100)) -> 89.48805 | L32: =IFERROR(J32-LARGE($J$3:$J$100,Settings!$F$21*Settings!$D$23),J32-MIN($J$3:$J$100))+IF(Settings!$D$26>0,MAX(0,LARGE($J$3:$J$100,Settings!$F$21*Settings!$D$23)-LARGE(($Q$3:$Q$150,$J$3:$J$100),Settings!$F$21*(Settings!$D$23+Settings!$D$24+Settings!$D$26))),0) -> -20.0010867 | M32: =IFERROR((IFERROR(IF(Settings!$J$17=1,VLOOKUP(_xlfn.CONCAT(I32,H32),'full ppr adp'!$A:$K,11,FALSE),IF(Settings!$J$17=0,VLOOKUP(_xlfn.CONCAT(I32,H32),'standard adp'!$A:$J,10,FALSE),VLOOKUP(_xlfn.CONCAT(I32,H32),'half ppr adp'!$A:$J,10,FALSE))),VLOOKUP(_xlfn.CONCAT(I32,H32),'full ppr adp'!$A:$K,11,FALSE))),"UND") -> 45.33333333 | O32: Marvin Jones | P32: DET | Q32: =VLOOKUP(_xlfn.CONCAT(P32,O32),'wr data'!A:X,24,FALSE) -> 187.8206115 | R32: =IFERROR(Q32-LARGE($Q$3:$Q$150,'Position Expectations'!$B$5+1),Q32-MIN($Q$3:$Q$150)) -> 61.26001703 | S32: =IFERROR(Q32-LARGE($Q$3:$Q$150,Settings!$F$21*Settings!$D$24),Q32-MIN($Q$3:$Q$150))+IF(Settings!$D$26>0,MAX(0,LARGE($Q$3:$Q$150,Settings!$F$21*Settings!$D$24)-LARGE(($Q$3:$Q$150,$J$3:$J$100),Settings!$F$21*(Settings!$D$23+Settings!$D$24+Settings!$D$26))),0) -> 16.07233363 | T32: =IFERROR((IFERROR(IF(Settings!$J$17=1,VLOOKUP(_xlfn.CONCAT(P32,O32),'full ppr adp'!$A:$K,11,FALSE),IF(Settings!$J$17=0,VLOOKUP(_xlfn.CONCAT(P32,O32),'standard adp'!$A:$J,10,FALSE),VLOOKUP(_xlfn.CONCAT(P32,O32),'half ppr adp'!$A:$J,10,FALSE))),VLOOKUP(_xlfn.CONCAT(P32,O32),'full ppr adp'!$A:$K,11,FALSE))),"UND") -> 86.66666667 | V32: O.J. Howard | W32: TB | X32: =VLOOKUP(_xlfn.CONCAT(W32,V32),'te data'!A:X,24,FALSE) -> 88.23884376 | Y32: =IFERROR(X32-LARGE($X$3:$X$54,'Position Expectations'!$B$6+1),X32-MIN($X$3:$X$54)) -> -34.35815384 | Z32: =IFERROR(X32-LARGE($X$3:$X$75,Settings!$F$21*Settings!$D$25),X32-MIN($X$3:$X$75))+IF(Settings!$D$26>0,MAX(0,LARGE($X$3:$X$75,Settings!$F$21*Settings!$D$25)-LARGE(($Q$3:$Q$150,$J$3:$J$100,$X$3:$X$75),Settings!$F$21*(Settings!$D$23+Settings!$D$24+Settings!$D$26))),0) -> -45.18690774 | AA32: =IFERROR((IFERROR(IF(Settings!$J$17=1,VLOOKUP(_xlfn.CONCAT(W32,V32),'full ppr adp'!$A:$K,11,FALSE),IF(Settings!$J$17=0,VLOOKUP(_xlfn.CONCAT(W32,V32),'standard adp'!$A:$J,10,FALSE),VLOOKUP(_xlfn.CONCAT(W32,V32),'half ppr adp'!$A:$J,10,FALSE))),VLOOKUP(_xlfn.CONCAT(W32,V32),'full ppr adp'!$A:$K,11,FALSE))),"UND") -> 207 | AC32: =VLOOKUP(AD32,'def data'!A:F,6,FALSE) -> 27 | AD32: Carolina Panthers | AE32: =VLOOKUP($AD32,'def data'!$A:$F,2,FALSE) -> 24 | AF32: =VLOOKUP($AD32,'def data'!$A:$F,3,FALSE) -> 25 | AG32: =VLOOKUP($AD32,'def data'!$A:$F,4,FALSE) -> 26 | AH32: =IFERROR(IF(Settings!$J$17=1,VLOOKUP(AD32,'full ppr adp'!C:K,9,FALSE),IF(Settings!$J$17=0,VLOOKUP(AD32,'standard adp'!C:J,8,FALSE),VLOOKUP(AD32,'half ppr adp'!C:J,8,FALSE))),VLOOKUP(AD32,'full ppr adp'!C:K,9,FALSE)) -> 293
A33: Nick Foles | B33: CHI | C33: =VLOOKUP(A33,'qb data'!G:S,13,FALSE) -> 206.95824 | D33: =IFERROR(C33-LARGE($C$3:$C$34,'Position Expectations'!$B$3+1),C33-MIN($C$3:$C$34)) -> -57.9642129 | E33: =IFERROR(C33-LARGE($C$3:$C$34,Settings!$F$21*Settings!$D$22),C33-MIN($C$3:$C$34)) -> -74.4384312 | F33: =(IFERROR(IF(Settings!$J$17=1,VLOOKUP(_xlfn.CONCAT(B33,A33),'full ppr adp'!$A:$K,11,FALSE),IF(Settings!$J$17=0,VLOOKUP(_xlfn.CONCAT(B33,A33),'standard adp'!$A:$J,10,FALSE),VLOOKUP(_xlfn.CONCAT(B33,A33),'half ppr adp'!$A:$J,10,FALSE))),VLOOKUP(_xlfn.CONCAT(B33,A33),'full ppr adp'!$A:$K,11,FALSE))) -> 298 | H33: Leonard Fournette | I33: TB | J33: =VLOOKUP(_xlfn.CONCAT(I33,H33),'rb data'!A:X,24,FALSE) -> 144.6611992 | K33: =IFERROR(J33-LARGE($J$3:$J$100,'Position Expectations'!$B$4+1),J33-MIN($J$3:$J$100)) -> 85.09467444 | L33: =IFERROR(J33-LARGE($J$3:$J$100,Settings!$F$21*Settings!$D$23),J33-MIN($J$3:$J$100))+IF(Settings!$D$26>0,MAX(0,LARGE($J$3:$J$100,Settings!$F$21*Settings!$D$23)-LARGE(($Q$3:$Q$150,$J$3:$J$100),Settings!$F$21*(Settings!$D$23+Settings!$D$24+Settings!$D$26))),0) -> -24.39446226 | M33: =IFERROR((IFERROR(IF(Settings!$J$17=1,VLOOKUP(_xlfn.CONCAT(I33,H33),'full ppr adp'!$A:$K,11,FALSE),IF(Settings!$J$17=0,VLOOKUP(_xlfn.CONCAT(I33,H33),'standard adp'!$A:$J,10,FALSE),VLOOKUP(_xlfn.CONCAT(I33,H33),'half ppr adp'!$A:$J,10,FALSE))),VLOOKUP(_xlfn.CONCAT(I33,H33),'full ppr adp'!$A:$K,11,FALSE))),"UND") -> 51 | O33: Tyler Lockett | P33: SEA | Q33: =VLOOKUP(_xlfn.CONCAT(P33,O33),'wr data'!A:X,24,FALSE) -> 186.2096688 | R33: =IFERROR(Q33-LARGE($Q$3:$Q$150,'Position Expectations'!$B$5+1),Q33-MIN($Q$3:$Q$150)) -> 59.6490743 | S33: =IFERROR(Q33-LARGE($Q$3:$Q$150,Settings!$F$21*Settings!$D$24),Q33-MIN($Q$3:$Q$150))+IF(Settings!$D$26>0,MAX(0,LARGE($Q$3:$Q$150,Settings!$F$21*Settings!$D$24)-LARGE(($Q$3:$Q$150,$J$3:$J$100),Settings!$F$21*(Settings!$D$23+Settings!$D$24+Settings!$D$26))),0) -> 14.4613909 | T33: =IFERROR((IFERROR(IF(Settings!$J$17=1,VLOOKUP(_xlfn.CONCAT(P33,O33),'full ppr adp'!$A:$K,11,FALSE),IF(Settings!$J$17=0,VLOOKUP(_xlfn.CONCAT(P33,O33),'standard adp'!$A:$J,10,FALSE),VLOOKUP(_xlfn.CONCAT(P33,O33),'half ppr adp'!$A:$J,10,FALSE))),VLOOKUP(_xlfn.CONCAT(P33,O33),'full ppr adp'!$A:$K,11,FALSE))),"UND") -> 51 | V33: Jimmy Graham | W33: CHI | X33: =VLOOKUP(_xlfn.CONCAT(W33,V33),'te data'!A:X,24,FALSE) -> 87.67399704 | Y33: =IFERROR(X33-LARGE($X$3:$X$54,'Position Expectations'!$B$6+1),X33-MIN($X$3:$X$54)) -> -34.92300056 | Z33: =IFERROR(X33-LARGE($X$3:$X$75,Settings!$F$21*Settings!$D$25),X33-MIN($X$3:$X$75))+IF(Settings!$D$26>0,MAX(0,LARGE($X$3:$X$75,Settings!$F$21*Settings!$D$25)-LARGE(($Q$3:$Q$150,$J$3:$J$100,$X$3:$X$75),Settings!$F$21*(Settings!$D$23+Settings!$D$24+Settings!$D$26))),0) -> -45.75175446 | AA33: =IFERROR((IFERROR(IF(Settings!$J$17=1,VLOOKUP(_xlfn.CONCAT(W33,V33),'full ppr adp'!$A:$K,11,FALSE),IF(Settings!$J$17=0,VLOOKUP(_xlfn.CONCAT(W33,V33),'standard adp'!$A:$J,10,FALSE),VLOOKUP(_xlfn.CONCAT(W33,V33),'half ppr adp'!$A:$J,10,FALSE))),VLOOKUP(_xlfn.CONCAT(W33,V33),'full ppr adp'!$A:$K,11,FALSE))),"UND") -> 233 | AC33: =VLOOKUP(AD33,'def data'!A:F,6,FALSE) -> 28 | AD33: Cincinnati Bengals | AE33: =VLOOKUP($AD33,'def data'!$A:$F,2,FALSE) -> 16 | AF33: =VLOOKUP($AD33,'def data'!$A:$F,3,FALSE) -> 27 | AG33: =VLOOKUP($AD33,'def data'!$A:$F,4,FALSE) -> 29 | AH33: =IFERROR(IF(Settings!$J$17=1,VLOOKUP(AD33,'full ppr adp'!C:K,9,FALSE),IF(Settings!$J$17=0,VLOOKUP(AD33,'standard adp'!C:J,8,FALSE),VLOOKUP(AD33,'half ppr adp'!C:J,8,FALSE))),VLOOKUP(AD33,'full ppr adp'!C:K,9,FALSE)) -> 207
A34: Taylor / Herbert | B34: LAC | C34: =VLOOKUP(A34,'qb data'!G:S,13,FALSE) -> 195.6222 | D34: =IFERROR(C34-LARGE($C$3:$C$34,'Position Expectations'!$B$3+1),C34-MIN($C$3:$C$34)) -> -69.3002529 | E34: =IFERROR(C34-LARGE($C$3:$C$34,Settings!$F$21*Settings!$D$22),C34-MIN($C$3:$C$34)) -> -85.7744712 | F34: =(IFERROR(IF(Settings!$J$17=1,VLOOKUP(_xlfn.CONCAT(B34,A34),'full ppr adp'!$A:$K,11,FALSE),IF(Settings!$J$17=0,VLOOKUP(_xlfn.CONCAT(B34,A34),'standard adp'!$A:$J,10,FALSE),VLOOKUP(_xlfn.CONCAT(B34,A34),'half ppr adp'!$A:$J,10,FALSE))),VLOOKUP(_xlfn.CONCAT(B34,A34),'full ppr adp'!$A:$K,11,FALSE))) -> 250.5 | H34: Kerryon Johnson | I34: DET | J34: =VLOOKUP(_xlfn.CONCAT(I34,H34),'rb data'!A:X,24,FALSE) -> 138.4825138 | K34: =IFERROR(J34-LARGE($J$3:$J$100,'Position Expectations'!$B$4+1),J34-MIN($J$3:$J$100)) -> 78.91598904 | L34: =IFERROR(J34-LARGE($J$3:$J$100,Settings!$F$21*Settings!$D$23),J34-MIN($J$3:$J$100))+IF(Settings!$D$26>0,MAX(0,LARGE($J$3:$J$100,Settings!$F$21*Settings!$D$23)-LARGE(($Q$3:$Q$150,$J$3:$J$100),Settings!$F$21*(Settings!$D$23+Settings!$D$24+Settings!$D$26))),0) -> -30.57314766 | M34: =IFERROR((IFERROR(IF(Settings!$J$17=1,VLOOKUP(_xlfn.CONCAT(I34,H34),'full ppr adp'!$A:$K,11,FALSE),IF(Settings!$J$17=0,VLOOKUP(_xlfn.CONCAT(I34,H34),'standard adp'!$A:$J,10,FALSE),VLOOKUP(_xlfn.CONCAT(I34,H34),'half ppr adp'!$A:$J,10,FALSE))),VLOOKUP(_xlfn.CONCAT(I34,H34),'full ppr adp'!$A:$K,11,FALSE))),"UND") -> 98.33333333 | O34: Will Fuller | P34: HOU | Q34: =VLOOKUP(_xlfn.CONCAT(P34,O34),'wr data'!A:X,24,FALSE) -> 181.008645 | R34: =IFERROR(Q34-LARGE($Q$3:$Q$150,'Position Expectations'!$B$5+1),Q34-MIN($Q$3:$Q$150)) -> 54.4480505 | S34: =IFERROR(Q34-LARGE($Q$3:$Q$150,Settings!$F$21*Settings!$D$24),Q34-MIN($Q$3:$Q$150))+IF(Settings!$D$26>0,MAX(0,LARGE($Q$3:$Q$150,Settings!$F$21*Settings!$D$24)-LARGE(($Q$3:$Q$150,$J$3:$J$100),Settings!$F$21*(Settings!$D$23+Settings!$D$24+Settings!$D$26))),0) -> 9.2603671 | T34: =IFERROR((IFERROR(IF(Settings!$J$17=1,VLOOKUP(_xlfn.CONCAT(P34,O34),'full ppr adp'!$A:$K,11,FALSE),IF(Settings!$J$17=0,VLOOKUP(_xlfn.CONCAT(P34,O34),'standard adp'!$A:$J,10,FALSE),VLOOKUP(_xlfn.CONCAT(P34,O34),'half ppr adp'!$A:$J,10,FALSE))),VLOOKUP(_xlfn.CONCAT(P34,O34),'full ppr adp'!$A:$K,11,FALSE))),"UND") -> 77 | V34: Darren Fells | W34: HOU | X34: =VLOOKUP(_xlfn.CONCAT(W34,V34),'te data'!A:X,24,FALSE) -> 86.27136 | Y34: =IFERROR(X34-LARGE($X$3:$X$54,'Position Expectations'!$B$6+1),X34-MIN($X$3:$X$54)) -> -36.3256376 | Z34: =IFERROR(X34-LARGE($X$3:$X$75,Settings!$F$21*Settings!$D$25),X34-MIN($X$3:$X$75))+IF(Settings!$D$26>0,MAX(0,LARGE($X$3:$X$75,Settings!$F$21*Settings!$D$25)-LARGE(($Q$3:$Q$150,$J$3:$J$100,$X$3:$X$75),Settings!$F$21*(Settings!$D$23+Settings!$D$24+Settings!$D$26))),0) -> -47.1543915 | AA34: =IFERROR((IFERROR(IF(Settings!$J$17=1,VLOOKUP(_xlfn.CONCAT(W34,V34),'full ppr adp'!$A:$K,11,FALSE),IF(Settings!$J$17=0,VLOOKUP(_xlfn.CONCAT(W34,V34),'standard adp'!$A:$J,10,FALSE),VLOOKUP(_xlfn.CONCAT(W34,V34),'half ppr adp'!$A:$J,10,FALSE))),VLOOKUP(_xlfn.CONCAT(W34,V34),'full ppr adp'!$A:$K,11,FALSE))),"UND") -> 325 | AC34: =VLOOKUP(AD34,'def data'!A:F,6,FALSE) -> 29 | AD34: New York Giants | AE34: =VLOOKUP($AD34,'def data'!$A:$F,2,FALSE) -> 30 | AF34: =VLOOKUP($AD34,'def data'!$A:$F,3,FALSE) -> 29 | AG34: =VLOOKUP($AD34,'def data'!$A:$F,4,FALSE) -> 28 | AH34: =IFERROR(IF(Settings!$J$17=1,VLOOKUP(AD34,'full ppr adp'!C:K,9,FALSE),IF(Settings!$J$17=0,VLOOKUP(AD34,'standard adp'!C:J,8,FALSE),VLOOKUP(AD34,'half ppr adp'!C:J,8,FALSE))),VLOOKUP(AD34,'full ppr adp'!C:K,9,FALSE)) -> 228
H35: Phillip Lindsay | I35: DEN | J35: =VLOOKUP(_xlfn.CONCAT(I35,H35),'rb data'!A:X,24,FALSE) -> 135.3524869 | K35: =IFERROR(J35-LARGE($J$3:$J$100,'Position Expectations'!$B$4+1),J35-MIN($J$3:$J$100)) -> 75.78596208 | L35: =IFERROR(J35-LARGE($J$3:$J$100,Settings!$F$21*Settings!$D$23),J35-MIN($J$3:$J$100))+IF(Settings!$D$26>0,MAX(0,LARGE($J$3:$J$100,Settings!$F$21*Settings!$D$23)-LARGE(($Q$3:$Q$150,$J$3:$J$100),Settings!$F$21*(Settings!$D$23+Settings!$D$24+Settings!$D$26))),0) -> -33.70317462 | M35: =IFERROR((IFERROR(IF(Settings!$J$17=1,VLOOKUP(_xlfn.CONCAT(I35,H35),'full ppr adp'!$A:$K,11,FALSE),IF(Settings!$J$17=0,VLOOKUP(_xlfn.CONCAT(I35,H35),'standard adp'!$A:$J,10,FALSE),VLOOKUP(_xlfn.CONCAT(I35,H35),'half ppr adp'!$A:$J,10,FALSE))),VLOOKUP(_xlfn.CONCAT(I35,H35),'full ppr adp'!$A:$K,11,FALSE))),"UND") -> 88 | O35: Jamison Crowder | P35: NYJ | Q35: =VLOOKUP(_xlfn.CONCAT(P35,O35),'wr data'!A:X,24,FALSE) -> 178.1657941 | R35: =IFERROR(Q35-LARGE($Q$3:$Q$150,'Position Expectations'!$B$5+1),Q35-MIN($Q$3:$Q$150)) -> 51.60519956 | S35: =IFERROR(Q35-LARGE($Q$3:$Q$150,Settings!$F$21*Settings!$D$24),Q35-MIN($Q$3:$Q$150))+IF(Settings!$D$26>0,MAX(0,LARGE($Q$3:$Q$150,Settings!$F$21*Settings!$D$24)-LARGE(($Q$3:$Q$150,$J$3:$J$100),Settings!$F$21*(Settings!$D$23+Settings!$D$24+Settings!$D$26))),0) -> 6.417516165 | T35: =IFERROR((IFERROR(IF(Settings!$J$17=1,VLOOKUP(_xlfn.CONCAT(P35,O35),'full ppr adp'!$A:$K,11,FALSE),IF(Settings!$J$17=0,VLOOKUP(_xlfn.CONCAT(P35,O35),'standard adp'!$A:$J,10,FALSE),VLOOKUP(_xlfn.CONCAT(P35,O35),'half ppr adp'!$A:$J,10,FALSE))),VLOOKUP(_xlfn.CONCAT(P35,O35),'full ppr adp'!$A:$K,11,FALSE))),"UND") -> 99.66666667 | V35: Gerald Everett | W35: LAR | X35: =VLOOKUP(_xlfn.CONCAT(W35,V35),'te data'!A:X,24,FALSE) -> 80.80243884 | Y35: =IFERROR(X35-LARGE($X$3:$X$54,'Position Expectations'!$B$6+1),X35-MIN($X$3:$X$54)) -> -41.79455876 | Z35: =IFERROR(X35-LARGE($X$3:$X$75,Settings!$F$21*Settings!$D$25),X35-MIN($X$3:$X$75))+IF(Settings!$D$26>0,MAX(0,LARGE($X$3:$X$75,Settings!$F$21*Settings!$D$25)-LARGE(($Q$3:$Q$150,$J$3:$J$100,$X$3:$X$75),Settings!$F$21*(Settings!$D$23+Settings!$D$24+Settings!$D$26))),0) -> -52.62331266 | AA35: =IFERROR((IFERROR(IF(Settings!$J$17=1,VLOOKUP(_xlfn.CONCAT(W35,V35),'full ppr adp'!$A:$K,11,FALSE),IF(Settings!$J$17=0,VLOOKUP(_xlfn.CONCAT(W35,V35),'standard adp'!$A:$J,10,FALSE),VLOOKUP(_xlfn.CONCAT(W35,V35),'half ppr adp'!$A:$J,10,FALSE))),VLOOKUP(_xlfn.CONCAT(W35,V35),'full ppr adp'!$A:$K,11,FALSE))),"UND") -> 261 | AC35: =VLOOKUP(AD35,'def data'!A:F,6,FALSE) -> 30 | AD35: Arizona Cardinals | AE35: =VLOOKUP($AD35,'def data'!$A:$F,2,FALSE) -> 18 | AF35: =VLOOKUP($AD35,'def data'!$A:$F,3,FALSE) -> 32 | AG35: =VLOOKUP($AD35,'def data'!$A:$F,4,FALSE) -> 31 | AH35: =IFERROR(IF(Settings!$J$17=1,VLOOKUP(AD35,'full ppr adp'!C:K,9,FALSE),IF(Settings!$J$17=0,VLOOKUP(AD35,'standard adp'!C:J,8,FALSE),VLOOKUP(AD35,'half ppr adp'!C:J,8,FALSE))),VLOOKUP(AD35,'full ppr adp'!C:K,9,FALSE)) -> 298
A36: K | H36: Ronald Jones II | I36: TB | J36: =VLOOKUP(_xlfn.CONCAT(I36,H36),'rb data'!A:X,24,FALSE) -> 134.7243674 | K36: =IFERROR(J36-LARGE($J$3:$J$100,'Position Expectations'!$B$4+1),J36-MIN($J$3:$J$100)) -> 75.15784257 | L36: =IFERROR(J36-LARGE($J$3:$J$100,Settings!$F$21*Settings!$D$23),J36-MIN($J$3:$J$100))+IF(Settings!$D$26>0,MAX(0,LARGE($J$3:$J$100,Settings!$F$21*Settings!$D$23)-LARGE(($Q$3:$Q$150,$J$3:$J$100),Settings!$F$21*(Settings!$D$23+Settings!$D$24+Settings!$D$26))),0) -> -34.33129413 | M36: =IFERROR((IFERROR(IF(Settings!$J$17=1,VLOOKUP(_xlfn.CONCAT(I36,H36),'full ppr adp'!$A:$K,11,FALSE),IF(Settings!$J$17=0,VLOOKUP(_xlfn.CONCAT(I36,H36),'standard adp'!$A:$J,10,FALSE),VLOOKUP(_xlfn.CONCAT(I36,H36),'half ppr adp'!$A:$J,10,FALSE))),VLOOKUP(_xlfn.CONCAT(I36,H36),'full ppr adp'!$A:$K,11,FALSE))),"UND") -> 79.33333333 | O36: Diontae Johnson | P36: PIT | Q36: =VLOOKUP(_xlfn.CONCAT(P36,O36),'wr data'!A:X,24,FALSE) -> 176.0106192 | R36: =IFERROR(Q36-LARGE($Q$3:$Q$150,'Position Expectations'!$B$5+1),Q36-MIN($Q$3:$Q$150)) -> 49.4500247 | S36: =IFERROR(Q36-LARGE($Q$3:$Q$150,Settings!$F$21*Settings!$D$24),Q36-MIN($Q$3:$Q$150))+IF(Settings!$D$26>0,MAX(0,LARGE($Q$3:$Q$150,Settings!$F$21*Settings!$D$24)-LARGE(($Q$3:$Q$150,$J$3:$J$100),Settings!$F$21*(Settings!$D$23+Settings!$D$24+Settings!$D$26))),0) -> 4.2623413 | T36: =IFERROR((IFERROR(IF(Settings!$J$17=1,VLOOKUP(_xlfn.CONCAT(P36,O36),'full ppr adp'!$A:$K,11,FALSE),IF(Settings!$J$17=0,VLOOKUP(_xlfn.CONCAT(P36,O36),'standard adp'!$A:$J,10,FALSE),VLOOKUP(_xlfn.CONCAT(P36,O36),'half ppr adp'!$A:$J,10,FALSE))),VLOOKUP(_xlfn.CONCAT(P36,O36),'full ppr adp'!$A:$K,11,FALSE))),"UND") -> 102.6666667 | V36: David Njoku | W36: CLE | X36: =VLOOKUP(_xlfn.CONCAT(W36,V36),'te data'!A:X,24,FALSE) -> 79.60017807 | Y36: =IFERROR(X36-LARGE($X$3:$X$54,'Position Expectations'!$B$6+1),X36-MIN($X$3:$X$54)) -> -42.99681953 | Z36: =IFERROR(X36-LARGE($X$3:$X$75,Settings!$F$21*Settings!$D$25),X36-MIN($X$3:$X$75))+IF(Settings!$D$26>0,MAX(0,LARGE($X$3:$X$75,Settings!$F$21*Settings!$D$25)-LARGE(($Q$3:$Q$150,$J$3:$J$100,$X$3:$X$75),Settings!$F$21*(Settings!$D$23+Settings!$D$24+Settings!$D$26))),0) -> -53.82557343 | AA36: =IFERROR((IFERROR(IF(Settings!$J$17=1,VLOOKUP(_xlfn.CONCAT(W36,V36),'full ppr adp'!$A:$K,11,FALSE),IF(Settings!$J$17=0,VLOOKUP(_xlfn.CONCAT(W36,V36),'standard adp'!$A:$J,10,FALSE),VLOOKUP(_xlfn.CONCAT(W36,V36),'half ppr adp'!$A:$J,10,FALSE))),VLOOKUP(_xlfn.CONCAT(W36,V36),'full ppr adp'!$A:$K,11,FALSE))),"UND") -> 249.5 | AC36: =VLOOKUP(AD36,'def data'!A:F,6,FALSE) -> 31 | AD36: Miami Dolphins | AE36: =VLOOKUP($AD36,'def data'!$A:$F,2,FALSE) -> 28 | AF36: =VLOOKUP($AD36,'def data'!$A:$F,3,FALSE) -> 19 | AG36: =VLOOKUP($AD36,'def data'!$A:$F,4,FALSE) -> 32 | AH36: =IFERROR(IF(Settings!$J$17=1,VLOOKUP(AD36,'full ppr adp'!C:K,9,FALSE),IF(Settings!$J$17=0,VLOOKUP(AD36,'standard adp'!C:J,8,FALSE),VLOOKUP(AD36,'half ppr adp'!C:J,8,FALSE))),VLOOKUP(AD36,'full ppr adp'!C:K,9,FALSE)) -> 351
A37: Name | B37: Team | C37: Pts | D37: VORP | E37: VOSP | F37: ADP | H37: Duke Johnson | I37: HOU | J37: =VLOOKUP(_xlfn.CONCAT(I37,H37),'rb data'!A:X,24,FALSE) -> 133.3027008 | K37: =IFERROR(J37-LARGE($J$3:$J$100,'Position Expectations'!$B$4+1),J37-MIN($J$3:$J$100)) -> 73.736176 | L37: =IFERROR(J37-LARGE($J$3:$J$100,Settings!$F$21*Settings!$D$23),J37-MIN($J$3:$J$100))+IF(Settings!$D$26>0,MAX(0,LARGE($J$3:$J$100,Settings!$F$21*Settings!$D$23)-LARGE(($Q$3:$Q$150,$J$3:$J$100),Settings!$F$21*(Settings!$D$23+Settings!$D$24+Settings!$D$26))),0) -> -35.7529607 | M37: =IFERROR((IFERROR(IF(Settings!$J$17=1,VLOOKUP(_xlfn.CONCAT(I37,H37),'full ppr adp'!$A:$K,11,FALSE),IF(Settings!$J$17=0,VLOOKUP(_xlfn.CONCAT(I37,H37),'standard adp'!$A:$J,10,FALSE),VLOOKUP(_xlfn.CONCAT(I37,H37),'half ppr adp'!$A:$J,10,FALSE))),VLOOKUP(_xlfn.CONCAT(I37,H37),'full ppr adp'!$A:$K,11,FALSE))),"UND") -> 132.3333333 | O37: Marquise Brown | P37: BAL | Q37: =VLOOKUP(_xlfn.CONCAT(P37,O37),'wr data'!A:X,24,FALSE) -> 174.5061024 | R37: =IFERROR(Q37-LARGE($Q$3:$Q$150,'Position Expectations'!$B$5+1),Q37-MIN($Q$3:$Q$150)) -> 47.9455079 | S37: =IFERROR(Q37-LARGE($Q$3:$Q$150,Settings!$F$21*Settings!$D$24),Q37-MIN($Q$3:$Q$150))+IF(Settings!$D$26>0,MAX(0,LARGE($Q$3:$Q$150,Settings!$F$21*Settings!$D$24)-LARGE(($Q$3:$Q$150,$J$3:$J$100),Settings!$F$21*(Settings!$D$23+Settings!$D$24+Settings!$D$26))),0) -> 2.7578245 | T37: =IFERROR((IFERROR(IF(Settings!$J$17=1,VLOOKUP(_xlfn.CONCAT(P37,O37),'full ppr adp'!$A:$K,11,FALSE),IF(Settings!$J$17=0,VLOOKUP(_xlfn.CONCAT(P37,O37),'standard adp'!$A:$J,10,FALSE),VLOOKUP(_xlfn.CONCAT(P37,O37),'half ppr adp'!$A:$J,10,FALSE))),VLOOKUP(_xlfn.CONCAT(P37,O37),'full ppr adp'!$A:$K,11,FALSE))),"UND") -> 73.33333333 | V37: Vance McDonald | W37: PIT | X37: =VLOOKUP(_xlfn.CONCAT(W37,V37),'te data'!A:X,24,FALSE) -> 75.625538 | Y37: =IFERROR(X37-LARGE($X$3:$X$54,'Position Expectations'!$B$6+1),X37-MIN($X$3:$X$54)) -> -46.9714596 | Z37: =IFERROR(X37-LARGE($X$3:$X$75,Settings!$F$21*Settings!$D$25),X37-MIN($X$3:$X$75))+IF(Settings!$D$26>0,MAX(0,LARGE($X$3:$X$75,Settings!$F$21*Settings!$D$25)-LARGE(($Q$3:$Q$150,$J$3:$J$100,$X$3:$X$75),Settings!$F$21*(Settings!$D$23+Settings!$D$24+Settings!$D$26))),0) -> -57.8002135 | AA37: =IFERROR((IFERROR(IF(Settings!$J$17=1,VLOOKUP(_xlfn.CONCAT(W37,V37),'full ppr adp'!$A:$K,11,FALSE),IF(Settings!$J$17=0,VLOOKUP(_xlfn.CONCAT(W37,V37),'standard adp'!$A:$J,10,FALSE),VLOOKUP(_xlfn.CONCAT(W37,V37),'half ppr adp'!$A:$J,10,FALSE))),VLOOKUP(_xlfn.CONCAT(W37,V37),'full ppr adp'!$A:$K,11,FALSE))),"UND") -> 264.5 | AC37: =VLOOKUP(AD37,'def data'!A:F,6,FALSE) -> 32 | AD37: Las Vegas Raiders | AE37: =VLOOKUP($AD37,'def data'!$A:$F,2,FALSE) -> 32 | AF37: =VLOOKUP($AD37,'def data'!$A:$F,3,FALSE) -> 28 | AG37: =VLOOKUP($AD37,'def data'!$A:$F,4,FALSE) -> 30 | AH37: =IFERROR(IF(Settings!$J$17=1,VLOOKUP(AD37,'full ppr adp'!C:K,9,FALSE),IF(Settings!$J$17=0,VLOOKUP(AD37,'standard adp'!C:J,8,FALSE),VLOOKUP(AD37,'half ppr adp'!C:J,8,FALSE))),VLOOKUP(AD37,'full ppr adp'!C:K,9,FALSE)) -> 239
A38: Harrison Butker | B38: KC | C38: =VLOOKUP(_xlfn.CONCAT(B38,A38),'k data'!A:E,5,FALSE) -> 154.77 | D38: =IFERROR(C38-LARGE($C$38:$C$69,'Position Expectations'!$B$7+1),C38-MIN($C$38:$C$69)) -> 24.71 | E38: =IFERROR(C38-LARGE($C$38:$C$75,Settings!$F$21*Settings!$D$27),C38-MIN($C$38:$C$75)) -> 23.28 | F38: =IFERROR(IF(Settings!$J$17=1,VLOOKUP(_xlfn.CONCAT(B38,A38),'full ppr adp'!$A:$K,11,FALSE),IF(Settings!$J$17=0,VLOOKUP(_xlfn.CONCAT(B38,A38),'standard adp'!$A:$J,10,FALSE),VLOOKUP(_xlfn.CONCAT(B38,A38),'half ppr adp'!$A:$J,10,FALSE))),VLOOKUP(_xlfn.CONCAT(B38,A38),'full ppr adp'!$A:$K,11,FALSE)) -> 133.6666667 | H38: Marlon Mack | I38: IND | J38: =VLOOKUP(_xlfn.CONCAT(I38,H38),'rb data'!A:X,24,FALSE) -> 130.9433952 | K38: =IFERROR(J38-LARGE($J$3:$J$100,'Position Expectations'!$B$4+1),J38-MIN($J$3:$J$100)) -> 71.3768704 | L38: =IFERROR(J38-LARGE($J$3:$J$100,Settings!$F$21*Settings!$D$23),J38-MIN($J$3:$J$100))+IF(Settings!$D$26>0,MAX(0,LARGE($J$3:$J$100,Settings!$F$21*Settings!$D$23)-LARGE(($Q$3:$Q$150,$J$3:$J$100),Settings!$F$21*(Settings!$D$23+Settings!$D$24+Settings!$D$26))),0) -> -38.1122663 | M38: =IFERROR((IFERROR(IF(Settings!$J$17=1,VLOOKUP(_xlfn.CONCAT(I38,H38),'full ppr adp'!$A:$K,11,FALSE),IF(Settings!$J$17=0,VLOOKUP(_xlfn.CONCAT(I38,H38),'standard adp'!$A:$J,10,FALSE),VLOOKUP(_xlfn.CONCAT(I38,H38),'half ppr adp'!$A:$J,10,FALSE))),VLOOKUP(_xlfn.CONCAT(I38,H38),'full ppr adp'!$A:$K,11,FALSE))),"UND") -> 107.6666667 | O38: Jarvis Landry | P38: CLE | Q38: =VLOOKUP(_xlfn.CONCAT(P38,O38),'wr data'!A:X,24,FALSE) -> 174.468597 | R38: =IFERROR(Q38-LARGE($Q$3:$Q$150,'Position Expectations'!$B$5+1),Q38-MIN($Q$3:$Q$150)) -> 47.90800246 | S38: =IFERROR(Q38-LARGE($Q$3:$Q$150,Settings!$F$21*Settings!$D$24),Q38-MIN($Q$3:$Q$150))+IF(Settings!$D$26>0,MAX(0,LARGE($Q$3:$Q$150,Settings!$F$21*Settings!$D$24)-LARGE(($Q$3:$Q$150,$J$3:$J$100),Settings!$F$21*(Settings!$D$23+Settings!$D$24+Settings!$D$26))),0) -> 2.72031906 | T38: =IFERROR((IFERROR(IF(Settings!$J$17=1,VLOOKUP(_xlfn.CONCAT(P38,O38),'full ppr adp'!$A:$K,11,FALSE),IF(Settings!$J$17=0,VLOOKUP(_xlfn.CONCAT(P38,O38),'standard adp'!$A:$J,10,FALSE),VLOOKUP(_xlfn.CONCAT(P38,O38),'half ppr adp'!$A:$J,10,FALSE))),VLOOKUP(_xlfn.CONCAT(P38,O38),'full ppr adp'!$A:$K,11,FALSE))),"UND") -> 67.33333333 | V38: Irv Smith Jr. | W38: MIN | X38: =VLOOKUP(_xlfn.CONCAT(W38,V38),'te data'!A:X,24,FALSE) -> 75.289672 | Y38: =IFERROR(X38-LARGE($X$3:$X$54,'Position Expectations'!$B$6+1),X38-MIN($X$3:$X$54)) -> -47.3073256 | Z38: =IFERROR(X38-LARGE($X$3:$X$75,Settings!$F$21*Settings!$D$25),X38-MIN($X$3:$X$75))+IF(Settings!$D$26>0,MAX(0,LARGE($X$3:$X$75,Settings!$F$21*Settings!$D$25)-LARGE(($Q$3:$Q$150,$J$3:$J$100,$X$3:$X$75),Settings!$F$21*(Settings!$D$23+Settings!$D$24+Settings!$D$26))),0) -> -58.1360795 | AA38: =IFERROR((IFERROR(IF(Settings!$J$17=1,VLOOKUP(_xlfn.CONCAT(W38,V38),'full ppr adp'!$A:$K,11,FALSE),IF(Settings!$J$17=0,VLOOKUP(_xlfn.CONCAT(W38,V38),'standard adp'!$A:$J,10,FALSE),VLOOKUP(_xlfn.CONCAT(W38,V38),'half ppr adp'!$A:$J,10,FALSE))),VLOOKUP(_xlfn.CONCAT(W38,V38),'full ppr adp'!$A:$K,11,FALSE))),"UND") -> 205
A39: Wil Lutz | B39: NO | C39: =VLOOKUP(_xlfn.CONCAT(B39,A39),'k data'!A:E,5,FALSE) -> 154.49 | D39: =IFERROR(C39-LARGE($C$38:$C$69,'Position Expectations'!$B$7+1),C39-MIN($C$38:$C$69)) -> 24.43 | E39: =IFERROR(C39-LARGE($C$38:$C$75,Settings!$F$21*Settings!$D$27),C39-MIN($C$38:$C$75)) -> 23 | F39: =IFERROR(IF(Settings!$J$17=1,VLOOKUP(_xlfn.CONCAT(B39,A39),'full ppr adp'!$A:$K,11,FALSE),IF(Settings!$J$17=0,VLOOKUP(_xlfn.CONCAT(B39,A39),'standard adp'!$A:$J,10,FALSE),VLOOKUP(_xlfn.CONCAT(B39,A39),'half ppr adp'!$A:$J,10,FALSE))),VLOOKUP(_xlfn.CONCAT(B39,A39),'full ppr adp'!$A:$K,11,FALSE)) -> 145.6666667 | H39: Latavius Murray | I39: NO | J39: =VLOOKUP(_xlfn.CONCAT(I39,H39),'rb data'!A:X,24,FALSE) -> 125.542014 | K39: =IFERROR(J39-LARGE($J$3:$J$100,'Position Expectations'!$B$4+1),J39-MIN($J$3:$J$100)) -> 65.97548924 | L39: =IFERROR(J39-LARGE($J$3:$J$100,Settings!$F$21*Settings!$D$23),J39-MIN($J$3:$J$100))+IF(Settings!$D$26>0,MAX(0,LARGE($J$3:$J$100,Settings!$F$21*Settings!$D$23)-LARGE(($Q$3:$Q$150,$J$3:$J$100),Settings!$F$21*(Settings!$D$23+Settings!$D$24+Settings!$D$26))),0) -> -43.51364746 | M39: =IFERROR((IFERROR(IF(Settings!$J$17=1,VLOOKUP(_xlfn.CONCAT(I39,H39),'full ppr adp'!$A:$K,11,FALSE),IF(Settings!$J$17=0,VLOOKUP(_xlfn.CONCAT(I39,H39),'standard adp'!$A:$J,10,FALSE),VLOOKUP(_xlfn.CONCAT(I39,H39),'half ppr adp'!$A:$J,10,FALSE))),VLOOKUP(_xlfn.CONCAT(I39,H39),'full ppr adp'!$A:$K,11,FALSE))),"UND") -> 108.6666667 | O39: D.K. Metcalf | P39: SEA | Q39: =VLOOKUP(_xlfn.CONCAT(P39,O39),'wr data'!A:X,24,FALSE) -> 173.4085248 | R39: =IFERROR(Q39-LARGE($Q$3:$Q$150,'Position Expectations'!$B$5+1),Q39-MIN($Q$3:$Q$150)) -> 46.8479303 | S39: =IFERROR(Q39-LARGE($Q$3:$Q$150,Settings!$F$21*Settings!$D$24),Q39-MIN($Q$3:$Q$150))+IF(Settings!$D$26>0,MAX(0,LARGE($Q$3:$Q$150,Settings!$F$21*Settings!$D$24)-LARGE(($Q$3:$Q$150,$J$3:$J$100),Settings!$F$21*(Settings!$D$23+Settings!$D$24+Settings!$D$26))),0) -> 1.6602469 | T39: =IFERROR((IFERROR(IF(Settings!$J$17=1,VLOOKUP(_xlfn.CONCAT(P39,O39),'full ppr adp'!$A:$K,11,FALSE),IF(Settings!$J$17=0,VLOOKUP(_xlfn.CONCAT(P39,O39),'standard adp'!$A:$J,10,FALSE),VLOOKUP(_xlfn.CONCAT(P39,O39),'half ppr adp'!$A:$J,10,FALSE))),VLOOKUP(_xlfn.CONCAT(P39,O39),'full ppr adp'!$A:$K,11,FALSE))),"UND") -> 53.33333333 | V39: Dan Arnold | W39: ARI | X39: =VLOOKUP(_xlfn.CONCAT(W39,V39),'te data'!A:X,24,FALSE) -> 69.2735616 | Y39: =IFERROR(X39-LARGE($X$3:$X$54,'Position Expectations'!$B$6+1),X39-MIN($X$3:$X$54)) -> -53.323436 | Z39: =IFERROR(X39-LARGE($X$3:$X$75,Settings!$F$21*Settings!$D$25),X39-MIN($X$3:$X$75))+IF(Settings!$D$26>0,MAX(0,LARGE($X$3:$X$75,Settings!$F$21*Settings!$D$25)-LARGE(($Q$3:$Q$150,$J$3:$J$100,$X$3:$X$75),Settings!$F$21*(Settings!$D$23+Settings!$D$24+Settings!$D$26))),0) -> -64.1521899 | AA39: =IFERROR((IFERROR(IF(Settings!$J$17=1,VLOOKUP(_xlfn.CONCAT(W39,V39),'full ppr adp'!$A:$K,11,FALSE),IF(Settings!$J$17=0,VLOOKUP(_xlfn.CONCAT(W39,V39),'standard adp'!$A:$J,10,FALSE),VLOOKUP(_xlfn.CONCAT(W39,V39),'half ppr adp'!$A:$J,10,FALSE))),VLOOKUP(_xlfn.CONCAT(W39,V39),'full ppr adp'!$A:$K,11,FALSE))),"UND") -> 307.5
A40: Justin Tucker | B40: BAL | C40: =VLOOKUP(_xlfn.CONCAT(B40,A40),'k data'!A:E,5,FALSE) -> 148.63 | D40: =IFERROR(C40-LARGE($C$38:$C$69,'Position Expectations'!$B$7+1),C40-MIN($C$38:$C$69)) -> 18.57 | E40: =IFERROR(C40-LARGE($C$38:$C$75,Settings!$F$21*Settings!$D$27),C40-MIN($C$38:$C$75)) -> 17.14 | F40: =IFERROR(IF(Settings!$J$17=1,VLOOKUP(_xlfn.CONCAT(B40,A40),'full ppr adp'!$A:$K,11,FALSE),IF(Settings!$J$17=0,VLOOKUP(_xlfn.CONCAT(B40,A40),'standard adp'!$A:$J,10,FALSE),VLOOKUP(_xlfn.CONCAT(B40,A40),'half ppr adp'!$A:$J,10,FALSE))),VLOOKUP(_xlfn.CONCAT(B40,A40),'full ppr adp'!$A:$K,11,FALSE)) -> 131.6666667 | H40: Matt Breida | I40: MIA | J40: =VLOOKUP(_xlfn.CONCAT(I40,H40),'rb data'!A:X,24,FALSE) -> 124.818204 | K40: =IFERROR(J40-LARGE($J$3:$J$100,'Position Expectations'!$B$4+1),J40-MIN($J$3:$J$100)) -> 65.2516792 | L40: =IFERROR(J40-LARGE($J$3:$J$100,Settings!$F$21*Settings!$D$23),J40-MIN($J$3:$J$100))+IF(Settings!$D$26>0,MAX(0,LARGE($J$3:$J$100,Settings!$F$21*Settings!$D$23)-LARGE(($Q$3:$Q$150,$J$3:$J$100),Settings!$F$21*(Settings!$D$23+Settings!$D$24+Settings!$D$26))),0) -> -44.2374575 | M40: =IFERROR((IFERROR(IF(Settings!$J$17=1,VLOOKUP(_xlfn.CONCAT(I40,H40),'full ppr adp'!$A:$K,11,FALSE),IF(Settings!$J$17=0,VLOOKUP(_xlfn.CONCAT(I40,H40),'standard adp'!$A:$J,10,FALSE),VLOOKUP(_xlfn.CONCAT(I40,H40),'half ppr adp'!$A:$J,10,FALSE))),VLOOKUP(_xlfn.CONCAT(I40,H40),'full ppr adp'!$A:$K,11,FALSE))),"UND") -> 98.66666667 | O40: Christian Kirk | P40: ARI | Q40: =VLOOKUP(_xlfn.CONCAT(P40,O40),'wr data'!A:X,24,FALSE) -> 171.7482779 | R40: =IFERROR(Q40-LARGE($Q$3:$Q$150,'Position Expectations'!$B$5+1),Q40-MIN($Q$3:$Q$150)) -> 45.1876834 | S40: =IFERROR(Q40-LARGE($Q$3:$Q$150,Settings!$F$21*Settings!$D$24),Q40-MIN($Q$3:$Q$150))+IF(Settings!$D$26>0,MAX(0,LARGE($Q$3:$Q$150,Settings!$F$21*Settings!$D$24)-LARGE(($Q$3:$Q$150,$J$3:$J$100),Settings!$F$21*(Settings!$D$23+Settings!$D$24+Settings!$D$26))),0) -> 0 | T40: =IFERROR((IFERROR(IF(Settings!$J$17=1,VLOOKUP(_xlfn.CONCAT(P40,O40),'full ppr adp'!$A:$K,11,FALSE),IF(Settings!$J$17=0,VLOOKUP(_xlfn.CONCAT(P40,O40),'standard adp'!$A:$J,10,FALSE),VLOOKUP(_xlfn.CONCAT(P40,O40),'half ppr adp'!$A:$J,10,FALSE))),VLOOKUP(_xlfn.CONCAT(P40,O40),'full ppr adp'!$A:$K,11,FALSE))),"UND") -> 97.33333333 | V40: Trey Burton | W40: IND | X40: =VLOOKUP(_xlfn.CONCAT(W40,V40),'te data'!A:X,24,FALSE) -> 68.993448 | Y40: =IFERROR(X40-LARGE($X$3:$X$54,'Position Expectations'!$B$6+1),X40-MIN($X$3:$X$54)) -> -53.6035496 | Z40: =IFERROR(X40-LARGE($X$3:$X$75,Settings!$F$21*Settings!$D$25),X40-MIN($X$3:$X$75))+IF(Settings!$D$26>0,MAX(0,LARGE($X$3:$X$75,Settings!$F$21*Settings!$D$25)-LARGE(($Q$3:$Q$150,$J$3:$J$100,$X$3:$X$75),Settings!$F$21*(Settings!$D$23+Settings!$D$24+Settings!$D$26))),0) -> -64.4323035 | AA40: =IFERROR((IFERROR(IF(Settings!$J$17=1,VLOOKUP(_xlfn.CONCAT(W40,V40),'full ppr adp'!$A:$K,11,FALSE),IF(Settings!$J$17=0,VLOOKUP(_xlfn.CONCAT(W40,V40),'standard adp'!$A:$J,10,FALSE),VLOOKUP(_xlfn.CONCAT(W40,V40),'half ppr adp'!$A:$J,10,FALSE))),VLOOKUP(_xlfn.CONCAT(W40,V40),'full ppr adp'!$A:$K,11,FALSE))),"UND") -> UND
A41: Matt Gay | B41: TB | C41: =VLOOKUP(_xlfn.CONCAT(B41,A41),'k data'!A:E,5,FALSE) -> 143.71 | D41: =IFERROR(C41-LARGE($C$38:$C$69,'Position Expectations'!$B$7+1),C41-MIN($C$38:$C$69)) -> 13.65 | E41: =IFERROR(C41-LARGE($C$38:$C$75,Settings!$F$21*Settings!$D$27),C41-MIN($C$38:$C$75)) -> 12.22 | F41: =IFERROR(IF(Settings!$J$17=1,VLOOKUP(_xlfn.CONCAT(B41,A41),'full ppr adp'!$A:$K,11,FALSE),IF(Settings!$J$17=0,VLOOKUP(_xlfn.CONCAT(B41,A41),'standard adp'!$A:$J,10,FALSE),VLOOKUP(_xlfn.CONCAT(B41,A41),'half ppr adp'!$A:$J,10,FALSE))),VLOOKUP(_xlfn.CONCAT(B41,A41),'full ppr adp'!$A:$K,11,FALSE)) -> 176 | H41: Antonio Gibson | I41: WAS | J41: =VLOOKUP(_xlfn.CONCAT(I41,H41),'rb data'!A:X,24,FALSE) -> 121.309249 | K41: =IFERROR(J41-LARGE($J$3:$J$100,'Position Expectations'!$B$4+1),J41-MIN($J$3:$J$100)) -> 61.7427242 | L41: =IFERROR(J41-LARGE($J$3:$J$100,Settings!$F$21*Settings!$D$23),J41-MIN($J$3:$J$100))+IF(Settings!$D$26>0,MAX(0,LARGE($J$3:$J$100,Settings!$F$21*Settings!$D$23)-LARGE(($Q$3:$Q$150,$J$3:$J$100),Settings!$F$21*(Settings!$D$23+Settings!$D$24+Settings!$D$26))),0) -> -47.7464125 | M41: =IFERROR((IFERROR(IF(Settings!$J$17=1,VLOOKUP(_xlfn.CONCAT(I41,H41),'full ppr adp'!$A:$K,11,FALSE),IF(Settings!$J$17=0,VLOOKUP(_xlfn.CONCAT(I41,H41),'standard adp'!$A:$J,10,FALSE),VLOOKUP(_xlfn.CONCAT(I41,H41),'half ppr adp'!$A:$J,10,FALSE))),VLOOKUP(_xlfn.CONCAT(I41,H41),'full ppr adp'!$A:$K,11,FALSE))),"UND") -> 141 | O41: Anthony Miller | P41: CHI | Q41: =VLOOKUP(_xlfn.CONCAT(P41,O41),'wr data'!A:X,24,FALSE) -> 170.6843591 | R41: =IFERROR(Q41-LARGE($Q$3:$Q$150,'Position Expectations'!$B$5+1),Q41-MIN($Q$3:$Q$150)) -> 44.12376455 | S41: =IFERROR(Q41-LARGE($Q$3:$Q$150,Settings!$F$21*Settings!$D$24),Q41-MIN($Q$3:$Q$150))+IF(Settings!$D$26>0,MAX(0,LARGE($Q$3:$Q$150,Settings!$F$21*Settings!$D$24)-LARGE(($Q$3:$Q$150,$J$3:$J$100),Settings!$F$21*(Settings!$D$23+Settings!$D$24+Settings!$D$26))),0) -> -1.06391885 | T41: =IFERROR((IFERROR(IF(Settings!$J$17=1,VLOOKUP(_xlfn.CONCAT(P41,O41),'full ppr adp'!$A:$K,11,FALSE),IF(Settings!$J$17=0,VLOOKUP(_xlfn.CONCAT(P41,O41),'standard adp'!$A:$J,10,FALSE),VLOOKUP(_xlfn.CONCAT(P41,O41),'half ppr adp'!$A:$J,10,FALSE))),VLOOKUP(_xlfn.CONCAT(P41,O41),'full ppr adp'!$A:$K,11,FALSE))),"UND") -> 143.6666667 | V41: Cole Kmet | W41: CHI | X41: =VLOOKUP(_xlfn.CONCAT(W41,V41),'te data'!A:X,24,FALSE) -> 65.9595108 | Y41: =IFERROR(X41-LARGE($X$3:$X$54,'Position Expectations'!$B$6+1),X41-MIN($X$3:$X$54)) -> -56.6374868 | Z41: =IFERROR(X41-LARGE($X$3:$X$75,Settings!$F$21*Settings!$D$25),X41-MIN($X$3:$X$75))+IF(Settings!$D$26>0,MAX(0,LARGE($X$3:$X$75,Settings!$F$21*Settings!$D$25)-LARGE(($Q$3:$Q$150,$J$3:$J$100,$X$3:$X$75),Settings!$F$21*(Settings!$D$23+Settings!$D$24+Settings!$D$26))),0) -> -67.4662407 | AA41: =IFERROR((IFERROR(IF(Settings!$J$17=1,VLOOKUP(_xlfn.CONCAT(W41,V41),'full ppr adp'!$A:$K,11,FALSE),IF(Settings!$J$17=0,VLOOKUP(_xlfn.CONCAT(W41,V41),'standard adp'!$A:$J,10,FALSE),VLOOKUP(_xlfn.CONCAT(W41,V41),'half ppr adp'!$A:$J,10,FALSE))),VLOOKUP(_xlfn.CONCAT(W41,V41),'full ppr adp'!$A:$K,11,FALSE))),"UND") -> 276
A42: Zane Gonzalez | B42: ARI | C42: =VLOOKUP(_xlfn.CONCAT(B42,A42),'k data'!A:E,5,FALSE) -> 142.11 | D42: =IFERROR(C42-LARGE($C$38:$C$69,'Position Expectations'!$B$7+1),C42-MIN($C$38:$C$69)) -> 12.05 | E42: =IFERROR(C42-LARGE($C$38:$C$75,Settings!$F$21*Settings!$D$27),C42-MIN($C$38:$C$75)) -> 10.62 | F42: =IFERROR(IF(Settings!$J$17=1,VLOOKUP(_xlfn.CONCAT(B42,A42),'full ppr adp'!$A:$K,11,FALSE),IF(Settings!$J$17=0,VLOOKUP(_xlfn.CONCAT(B42,A42),'standard adp'!$A:$J,10,FALSE),VLOOKUP(_xlfn.CONCAT(B42,A42),'half ppr adp'!$A:$J,10,FALSE))),VLOOKUP(_xlfn.CONCAT(B42,A42),'full ppr adp'!$A:$K,11,FALSE)) -> 189.3333333 | H42: Zack Moss | I42: BUF | J42: =VLOOKUP(_xlfn.CONCAT(I42,H42),'rb data'!A:X,24,FALSE) -> 118.0705578 | K42: =IFERROR(J42-LARGE($J$3:$J$100,'Position Expectations'!$B$4+1),J42-MIN($J$3:$J$100)) -> 58.504033 | L42: =IFERROR(J42-LARGE($J$3:$J$100,Settings!$F$21*Settings!$D$23),J42-MIN($J$3:$J$100))+IF(Settings!$D$26>0,MAX(0,LARGE($J$3:$J$100,Settings!$F$21*Settings!$D$23)-LARGE(($Q$3:$Q$150,$J$3:$J$100),Settings!$F$21*(Settings!$D$23+Settings!$D$24+Settings!$D$26))),0) -> -50.9851037 | M42: =IFERROR((IFERROR(IF(Settings!$J$17=1,VLOOKUP(_xlfn.CONCAT(I42,H42),'full ppr adp'!$A:$K,11,FALSE),IF(Settings!$J$17=0,VLOOKUP(_xlfn.CONCAT(I42,H42),'standard adp'!$A:$J,10,FALSE),VLOOKUP(_xlfn.CONCAT(I42,H42),'half ppr adp'!$A:$J,10,FALSE))),VLOOKUP(_xlfn.CONCAT(I42,H42),'full ppr adp'!$A:$K,11,FALSE))),"UND") -> 116.6666667 | O42: Chris Conley | P42: JAC | Q42: =VLOOKUP(_xlfn.CONCAT(P42,O42),'wr data'!A:X,24,FALSE) -> 167.978568 | R42: =IFERROR(Q42-LARGE($Q$3:$Q$150,'Position Expectations'!$B$5+1),Q42-MIN($Q$3:$Q$150)) -> 41.4179735 | S42: =IFERROR(Q42-LARGE($Q$3:$Q$150,Settings!$F$21*Settings!$D$24),Q42-MIN($Q$3:$Q$150))+IF(Settings!$D$26>0,MAX(0,LARGE($Q$3:$Q$150,Settings!$F$21*Settings!$D$24)-LARGE(($Q$3:$Q$150,$J$3:$J$100),Settings!$F$21*(Settings!$D$23+Settings!$D$24+Settings!$D$26))),0) -> -3.7697099 | T42: =IFERROR((IFERROR(IF(Settings!$J$17=1,VLOOKUP(_xlfn.CONCAT(P42,O42),'full ppr adp'!$A:$K,11,FALSE),IF(Settings!$J$17=0,VLOOKUP(_xlfn.CONCAT(P42,O42),'standard adp'!$A:$J,10,FALSE),VLOOKUP(_xlfn.CONCAT(P42,O42),'half ppr adp'!$A:$J,10,FALSE))),VLOOKUP(_xlfn.CONCAT(P42,O42),'full ppr adp'!$A:$K,11,FALSE))),"UND") -> 274 | V42: Jordan Akins | W42: HOU | X42: =VLOOKUP(_xlfn.CONCAT(W42,V42),'te data'!A:X,24,FALSE) -> 63.32528 | Y42: =IFERROR(X42-LARGE($X$3:$X$54,'Position Expectations'!$B$6+1),X42-MIN($X$3:$X$54)) -> -59.2717176 | Z42: =IFERROR(X42-LARGE($X$3:$X$75,Settings!$F$21*Settings!$D$25),X42-MIN($X$3:$X$75))+IF(Settings!$D$26>0,MAX(0,LARGE($X$3:$X$75,Settings!$F$21*Settings!$D$25)-LARGE(($Q$3:$Q$150,$J$3:$J$100,$X$3:$X$75),Settings!$F$21*(Settings!$D$23+Settings!$D$24+Settings!$D$26))),0) -> -70.1004715 | AA42: =IFERROR((IFERROR(IF(Settings!$J$17=1,VLOOKUP(_xlfn.CONCAT(W42,V42),'full ppr adp'!$A:$K,11,FALSE),IF(Settings!$J$17=0,VLOOKUP(_xlfn.CONCAT(W42,V42),'standard adp'!$A:$J,10,FALSE),VLOOKUP(_xlfn.CONCAT(W42,V42),'half ppr adp'!$A:$J,10,FALSE))),VLOOKUP(_xlfn.CONCAT(W42,V42),'full ppr adp'!$A:$K,11,FALSE))),"UND") -> UND
A43: Younghoe Koo | B43: ATL | C43: =VLOOKUP(_xlfn.CONCAT(B43,A43),'k data'!A:E,5,FALSE) -> 139.51 | D43: =IFERROR(C43-LARGE($C$38:$C$69,'Position Expectations'!$B$7+1),C43-MIN($C$38:$C$69)) -> 9.45 | E43: =IFERROR(C43-LARGE($C$38:$C$75,Settings!$F$21*Settings!$D$27),C43-MIN($C$38:$C$75)) -> 8.02 | F43: =IFERROR(IF(Settings!$J$17=1,VLOOKUP(_xlfn.CONCAT(B43,A43),'full ppr adp'!$A:$K,11,FALSE),IF(Settings!$J$17=0,VLOOKUP(_xlfn.CONCAT(B43,A43),'standard adp'!$A:$J,10,FALSE),VLOOKUP(_xlfn.CONCAT(B43,A43),'half ppr adp'!$A:$J,10,FALSE))),VLOOKUP(_xlfn.CONCAT(B43,A43),'full ppr adp'!$A:$K,11,FALSE)) -> 224.6666667 | H43: Chris Thompson | I43: JAC | J43: =VLOOKUP(_xlfn.CONCAT(I43,H43),'rb data'!A:X,24,FALSE) -> 117.639244 | K43: =IFERROR(J43-LARGE($J$3:$J$100,'Position Expectations'!$B$4+1),J43-MIN($J$3:$J$100)) -> 58.0727192 | L43: =IFERROR(J43-LARGE($J$3:$J$100,Settings!$F$21*Settings!$D$23),J43-MIN($J$3:$J$100))+IF(Settings!$D$26>0,MAX(0,LARGE($J$3:$J$100,Settings!$F$21*Settings!$D$23)-LARGE(($Q$3:$Q$150,$J$3:$J$100),Settings!$F$21*(Settings!$D$23+Settings!$D$24+Settings!$D$26))),0) -> -51.4164175 | M43: =IFERROR((IFERROR(IF(Settings!$J$17=1,VLOOKUP(_xlfn.CONCAT(I43,H43),'full ppr adp'!$A:$K,11,FALSE),IF(Settings!$J$17=0,VLOOKUP(_xlfn.CONCAT(I43,H43),'standard adp'!$A:$J,10,FALSE),VLOOKUP(_xlfn.CONCAT(I43,H43),'half ppr adp'!$A:$J,10,FALSE))),VLOOKUP(_xlfn.CONCAT(I43,H43),'full ppr adp'!$A:$K,11,FALSE))),"UND") -> 205.6666667 | O43: John Brown | P43: BUF | Q43: =VLOOKUP(_xlfn.CONCAT(P43,O43),'wr data'!A:X,24,FALSE) -> 166.9466469 | R43: =IFERROR(Q43-LARGE($Q$3:$Q$150,'Position Expectations'!$B$5+1),Q43-MIN($Q$3:$Q$150)) -> 40.3860524 | S43: =IFERROR(Q43-LARGE($Q$3:$Q$150,Settings!$F$21*Settings!$D$24),Q43-MIN($Q$3:$Q$150))+IF(Settings!$D$26>0,MAX(0,LARGE($Q$3:$Q$150,Settings!$F$21*Settings!$D$24)-LARGE(($Q$3:$Q$150,$J$3:$J$100),Settings!$F$21*(Settings!$D$23+Settings!$D$24+Settings!$D$26))),0) -> -4.801631 | T43: =IFERROR((IFERROR(IF(Settings!$J$17=1,VLOOKUP(_xlfn.CONCAT(P43,O43),'full ppr adp'!$A:$K,11,FALSE),IF(Settings!$J$17=0,VLOOKUP(_xlfn.CONCAT(P43,O43),'standard adp'!$A:$J,10,FALSE),VLOOKUP(_xlfn.CONCAT(P43,O43),'half ppr adp'!$A:$J,10,FALSE))),VLOOKUP(_xlfn.CONCAT(P43,O43),'full ppr adp'!$A:$K,11,FALSE))),"UND") -> 105 | V43: Ryan Griffin | W43: NYJ | X43: =VLOOKUP(_xlfn.CONCAT(W43,V43),'te data'!A:X,24,FALSE) -> 58.61409134 | Y43: =IFERROR(X43-LARGE($X$3:$X$54,'Position Expectations'!$B$6+1),X43-MIN($X$3:$X$54)) -> -63.98290626 | Z43: =IFERROR(X43-LARGE($X$3:$X$75,Settings!$F$21*Settings!$D$25),X43-MIN($X$3:$X$75))+IF(Settings!$D$26>0,MAX(0,LARGE($X$3:$X$75,Settings!$F$21*Settings!$D$25)-LARGE(($Q$3:$Q$150,$J$3:$J$100,$X$3:$X$75),Settings!$F$21*(Settings!$D$23+Settings!$D$24+Settings!$D$26))),0) -> -74.81166016 | AA43: =IFERROR((IFERROR(IF(Settings!$J$17=1,VLOOKUP(_xlfn.CONCAT(W43,V43),'full ppr adp'!$A:$K,11,FALSE),IF(Settings!$J$17=0,VLOOKUP(_xlfn.CONCAT(W43,V43),'standard adp'!$A:$J,10,FALSE),VLOOKUP(_xlfn.CONCAT(W43,V43),'half ppr adp'!$A:$J,10,FALSE))),VLOOKUP(_xlfn.CONCAT(W43,V43),'full ppr adp'!$A:$K,11,FALSE))),"UND") -> 405
A44: Brandon McManus | B44: DEN | C44: =VLOOKUP(_xlfn.CONCAT(B44,A44),'k data'!A:E,5,FALSE) -> 138.97 | D44: =IFERROR(C44-LARGE($C$38:$C$69,'Position Expectations'!$B$7+1),C44-MIN($C$38:$C$69)) -> 8.91 | E44: =IFERROR(C44-LARGE($C$38:$C$75,Settings!$F$21*Settings!$D$27),C44-MIN($C$38:$C$75)) -> 7.48 | F44: =IFERROR(IF(Settings!$J$17=1,VLOOKUP(_xlfn.CONCAT(B44,A44),'full ppr adp'!$A:$K,11,FALSE),IF(Settings!$J$17=0,VLOOKUP(_xlfn.CONCAT(B44,A44),'standard adp'!$A:$J,10,FALSE),VLOOKUP(_xlfn.CONCAT(B44,A44),'half ppr adp'!$A:$J,10,FALSE))),VLOOKUP(_xlfn.CONCAT(B44,A44),'full ppr adp'!$A:$K,11,FALSE)) -> 251.5 | H44: Tony Pollard | I44: DAL | J44: =VLOOKUP(_xlfn.CONCAT(I44,H44),'rb data'!A:X,24,FALSE) -> 116.8854732 | K44: =IFERROR(J44-LARGE($J$3:$J$100,'Position Expectations'!$B$4+1),J44-MIN($J$3:$J$100)) -> 57.31894835 | L44: =IFERROR(J44-LARGE($J$3:$J$100,Settings!$F$21*Settings!$D$23),J44-MIN($J$3:$J$100))+IF(Settings!$D$26>0,MAX(0,LARGE($J$3:$J$100,Settings!$F$21*Settings!$D$23)-LARGE(($Q$3:$Q$150,$J$3:$J$100),Settings!$F$21*(Settings!$D$23+Settings!$D$24+Settings!$D$26))),0) -> -52.17018835 | M44: =IFERROR((IFERROR(IF(Settings!$J$17=1,VLOOKUP(_xlfn.CONCAT(I44,H44),'full ppr adp'!$A:$K,11,FALSE),IF(Settings!$J$17=0,VLOOKUP(_xlfn.CONCAT(I44,H44),'standard adp'!$A:$J,10,FALSE),VLOOKUP(_xlfn.CONCAT(I44,H44),'half ppr adp'!$A:$J,10,FALSE))),VLOOKUP(_xlfn.CONCAT(I44,H44),'full ppr adp'!$A:$K,11,FALSE))),"UND") -> 137 | O44: Brandin Cooks | P44: HOU | Q44: =VLOOKUP(_xlfn.CONCAT(P44,O44),'wr data'!A:X,24,FALSE) -> 166.721604 | R44: =IFERROR(Q44-LARGE($Q$3:$Q$150,'Position Expectations'!$B$5+1),Q44-MIN($Q$3:$Q$150)) -> 40.1610095 | S44: =IFERROR(Q44-LARGE($Q$3:$Q$150,Settings!$F$21*Settings!$D$24),Q44-MIN($Q$3:$Q$150))+IF(Settings!$D$26>0,MAX(0,LARGE($Q$3:$Q$150,Settings!$F$21*Settings!$D$24)-LARGE(($Q$3:$Q$150,$J$3:$J$100),Settings!$F$21*(Settings!$D$23+Settings!$D$24+Settings!$D$26))),0) -> -5.0266739 | T44: =IFERROR((IFERROR(IF(Settings!$J$17=1,VLOOKUP(_xlfn.CONCAT(P44,O44),'full ppr adp'!$A:$K,11,FALSE),IF(Settings!$J$17=0,VLOOKUP(_xlfn.CONCAT(P44,O44),'standard adp'!$A:$J,10,FALSE),VLOOKUP(_xlfn.CONCAT(P44,O44),'half ppr adp'!$A:$J,10,FALSE))),VLOOKUP(_xlfn.CONCAT(P44,O44),'full ppr adp'!$A:$K,11,FALSE))),"UND") -> 86.33333333 | V44: Nick Boyle | W44: BAL | X44: =VLOOKUP(_xlfn.CONCAT(W44,V44),'te data'!A:X,24,FALSE) -> 58.558038 | Y44: =IFERROR(X44-LARGE($X$3:$X$54,'Position Expectations'!$B$6+1),X44-MIN($X$3:$X$54)) -> -64.0389596 | Z44: =IFERROR(X44-LARGE($X$3:$X$75,Settings!$F$21*Settings!$D$25),X44-MIN($X$3:$X$75))+IF(Settings!$D$26>0,MAX(0,LARGE($X$3:$X$75,Settings!$F$21*Settings!$D$25)-LARGE(($Q$3:$Q$150,$J$3:$J$100,$X$3:$X$75),Settings!$F$21*(Settings!$D$23+Settings!$D$24+Settings!$D$26))),0) -> -74.8677135 | AA44: =IFERROR((IFERROR(IF(Settings!$J$17=1,VLOOKUP(_xlfn.CONCAT(W44,V44),'full ppr adp'!$A:$K,11,FALSE),IF(Settings!$J$17=0,VLOOKUP(_xlfn.CONCAT(W44,V44),'standard adp'!$A:$J,10,FALSE),VLOOKUP(_xlfn.CONCAT(W44,V44),'half ppr adp'!$A:$J,10,FALSE))),VLOOKUP(_xlfn.CONCAT(W44,V44),'full ppr adp'!$A:$K,11,FALSE))),"UND") -> 276
A45: Josh Lambo | B45: JAC | C45: =VLOOKUP(_xlfn.CONCAT(B45,A45),'k data'!A:E,5,FALSE) -> 137.9 | D45: =IFERROR(C45-LARGE($C$38:$C$69,'Position Expectations'!$B$7+1),C45-MIN($C$38:$C$69)) -> 7.84 | E45: =IFERROR(C45-LARGE($C$38:$C$75,Settings!$F$21*Settings!$D$27),C45-MIN($C$38:$C$75)) -> 6.41 | F45: =IFERROR(IF(Settings!$J$17=1,VLOOKUP(_xlfn.CONCAT(B45,A45),'full ppr adp'!$A:$K,11,FALSE),IF(Settings!$J$17=0,VLOOKUP(_xlfn.CONCAT(B45,A45),'standard adp'!$A:$J,10,FALSE),VLOOKUP(_xlfn.CONCAT(B45,A45),'half ppr adp'!$A:$J,10,FALSE))),VLOOKUP(_xlfn.CONCAT(B45,A45),'full ppr adp'!$A:$K,11,FALSE)) -> 256.3333333 | H45: Boston Scott | I45: PHI | J45: =VLOOKUP(_xlfn.CONCAT(I45,H45),'rb data'!A:X,24,FALSE) -> 114.3805607 | K45: =IFERROR(J45-LARGE($J$3:$J$100,'Position Expectations'!$B$4+1),J45-MIN($J$3:$J$100)) -> 54.8140359 | L45: =IFERROR(J45-LARGE($J$3:$J$100,Settings!$F$21*Settings!$D$23),J45-MIN($J$3:$J$100))+IF(Settings!$D$26>0,MAX(0,LARGE($J$3:$J$100,Settings!$F$21*Settings!$D$23)-LARGE(($Q$3:$Q$150,$J$3:$J$100),Settings!$F$21*(Settings!$D$23+Settings!$D$24+Settings!$D$26))),0) -> -54.6751008 | M45: =IFERROR((IFERROR(IF(Settings!$J$17=1,VLOOKUP(_xlfn.CONCAT(I45,H45),'full ppr adp'!$A:$K,11,FALSE),IF(Settings!$J$17=0,VLOOKUP(_xlfn.CONCAT(I45,H45),'standard adp'!$A:$J,10,FALSE),VLOOKUP(_xlfn.CONCAT(I45,H45),'half ppr adp'!$A:$J,10,FALSE))),VLOOKUP(_xlfn.CONCAT(I45,H45),'full ppr adp'!$A:$K,11,FALSE))),"UND") -> 141.6666667 | O45: Robby Anderson | P45: CAR | Q45: =VLOOKUP(_xlfn.CONCAT(P45,O45),'wr data'!A:X,24,FALSE) -> 165.6759186 | R45: =IFERROR(Q45-LARGE($Q$3:$Q$150,'Position Expectations'!$B$5+1),Q45-MIN($Q$3:$Q$150)) -> 39.11532414 | S45: =IFERROR(Q45-LARGE($Q$3:$Q$150,Settings!$F$21*Settings!$D$24),Q45-MIN($Q$3:$Q$150))+IF(Settings!$D$26>0,MAX(0,LARGE($Q$3:$Q$150,Settings!$F$21*Settings!$D$24)-LARGE(($Q$3:$Q$150,$J$3:$J$100),Settings!$F$21*(Settings!$D$23+Settings!$D$24+Settings!$D$26))),0) -> -6.07235926 | T45: =IFERROR((IFERROR(IF(Settings!$J$17=1,VLOOKUP(_xlfn.CONCAT(P45,O45),'full ppr adp'!$A:$K,11,FALSE),IF(Settings!$J$17=0,VLOOKUP(_xlfn.CONCAT(P45,O45),'standard adp'!$A:$J,10,FALSE),VLOOKUP(_xlfn.CONCAT(P45,O45),'half ppr adp'!$A:$J,10,FALSE))),VLOOKUP(_xlfn.CONCAT(P45,O45),'full ppr adp'!$A:$K,11,FALSE))),"UND") -> 128.6666667 | V45: Will Dissly | W45: SEA | X45: =VLOOKUP(_xlfn.CONCAT(W45,V45),'te data'!A:X,24,FALSE) -> 58.539208 | Y45: =IFERROR(X45-LARGE($X$3:$X$54,'Position Expectations'!$B$6+1),X45-MIN($X$3:$X$54)) -> -64.0577896 | Z45: =IFERROR(X45-LARGE($X$3:$X$75,Settings!$F$21*Settings!$D$25),X45-MIN($X$3:$X$75))+IF(Settings!$D$26>0,MAX(0,LARGE($X$3:$X$75,Settings!$F$21*Settings!$D$25)-LARGE(($Q$3:$Q$150,$J$3:$J$100,$X$3:$X$75),Settings!$F$21*(Settings!$D$23+Settings!$D$24+Settings!$D$26))),0) -> -74.8865435 | AA45: =IFERROR((IFERROR(IF(Settings!$J$17=1,VLOOKUP(_xlfn.CONCAT(W45,V45),'full ppr adp'!$A:$K,11,FALSE),IF(Settings!$J$17=0,VLOOKUP(_xlfn.CONCAT(W45,V45),'standard adp'!$A:$J,10,FALSE),VLOOKUP(_xlfn.CONCAT(W45,V45),'half ppr adp'!$A:$J,10,FALSE))),VLOOKUP(_xlfn.CONCAT(W45,V45),'full ppr adp'!$A:$K,11,FALSE))),"UND") -> 253.6666667
A46: Chris Boswell | B46: PIT | C46: =VLOOKUP(_xlfn.CONCAT(B46,A46),'k data'!A:E,5,FALSE) -> 137.89 | D46: =IFERROR(C46-LARGE($C$38:$C$69,'Position Expectations'!$B$7+1),C46-MIN($C$38:$C$69)) -> 7.83 | E46: =IFERROR(C46-LARGE($C$38:$C$75,Settings!$F$21*Settings!$D$27),C46-MIN($C$38:$C$75)) -> 6.4 | F46: =IFERROR(IF(Settings!$J$17=1,VLOOKUP(_xlfn.CONCAT(B46,A46),'full ppr adp'!$A:$K,11,FALSE),IF(Settings!$J$17=0,VLOOKUP(_xlfn.CONCAT(B46,A46),'standard adp'!$A:$J,10,FALSE),VLOOKUP(_xlfn.CONCAT(B46,A46),'half ppr adp'!$A:$J,10,FALSE))),VLOOKUP(_xlfn.CONCAT(B46,A46),'full ppr adp'!$A:$K,11,FALSE)) -> 225 | H46: Tevin Coleman | I46: SF | J46: =VLOOKUP(_xlfn.CONCAT(I46,H46),'rb data'!A:X,24,FALSE) -> 110.6479754 | K46: =IFERROR(J46-LARGE($J$3:$J$100,'Position Expectations'!$B$4+1),J46-MIN($J$3:$J$100)) -> 51.08145063 | L46: =IFERROR(J46-LARGE($J$3:$J$100,Settings!$F$21*Settings!$D$23),J46-MIN($J$3:$J$100))+IF(Settings!$D$26>0,MAX(0,LARGE($J$3:$J$100,Settings!$F$21*Settings!$D$23)-LARGE(($Q$3:$Q$150,$J$3:$J$100),Settings!$F$21*(Settings!$D$23+Settings!$D$24+Settings!$D$26))),0) -> -58.40768607 | M46: =IFERROR((IFERROR(IF(Settings!$J$17=1,VLOOKUP(_xlfn.CONCAT(I46,H46),'full ppr adp'!$A:$K,11,FALSE),IF(Settings!$J$17=0,VLOOKUP(_xlfn.CONCAT(I46,H46),'standard adp'!$A:$J,10,FALSE),VLOOKUP(_xlfn.CONCAT(I46,H46),'half ppr adp'!$A:$J,10,FALSE))),VLOOKUP(_xlfn.CONCAT(I46,H46),'full ppr adp'!$A:$K,11,FALSE))),"UND") -> 112.6666667 | O46: Breshad Perriman | P46: NYJ | Q46: =VLOOKUP(_xlfn.CONCAT(P46,O46),'wr data'!A:X,24,FALSE) -> 165.110972 | R46: =IFERROR(Q46-LARGE($Q$3:$Q$150,'Position Expectations'!$B$5+1),Q46-MIN($Q$3:$Q$150)) -> 38.5503775 | S46: =IFERROR(Q46-LARGE($Q$3:$Q$150,Settings!$F$21*Settings!$D$24),Q46-MIN($Q$3:$Q$150))+IF(Settings!$D$26>0,MAX(0,LARGE($Q$3:$Q$150,Settings!$F$21*Settings!$D$24)-LARGE(($Q$3:$Q$150,$J$3:$J$100),Settings!$F$21*(Settings!$D$23+Settings!$D$24+Settings!$D$26))),0) -> -6.6373059 | T46: =IFERROR((IFERROR(IF(Settings!$J$17=1,VLOOKUP(_xlfn.CONCAT(P46,O46),'full ppr adp'!$A:$K,11,FALSE),IF(Settings!$J$17=0,VLOOKUP(_xlfn.CONCAT(P46,O46),'standard adp'!$A:$J,10,FALSE),VLOOKUP(_xlfn.CONCAT(P46,O46),'half ppr adp'!$A:$J,10,FALSE))),VLOOKUP(_xlfn.CONCAT(P46,O46),'full ppr adp'!$A:$K,11,FALSE))),"UND") -> 160 | V46: Anthony Firkser | W46: TEN | X46: =VLOOKUP(_xlfn.CONCAT(W46,V46),'te data'!A:X,24,FALSE) -> 56.80726084 | Y46: =IFERROR(X46-LARGE($X$3:$X$54,'Position Expectations'!$B$6+1),X46-MIN($X$3:$X$54)) -> -65.78973677 | Z46: =IFERROR(X46-LARGE($X$3:$X$75,Settings!$F$21*Settings!$D$25),X46-MIN($X$3:$X$75))+IF(Settings!$D$26>0,MAX(0,LARGE($X$3:$X$75,Settings!$F$21*Settings!$D$25)-LARGE(($Q$3:$Q$150,$J$3:$J$100,$X$3:$X$75),Settings!$F$21*(Settings!$D$23+Settings!$D$24+Settings!$D$26))),0) -> -76.61849066 | AA46: =IFERROR((IFERROR(IF(Settings!$J$17=1,VLOOKUP(_xlfn.CONCAT(W46,V46),'full ppr adp'!$A:$K,11,FALSE),IF(Settings!$J$17=0,VLOOKUP(_xlfn.CONCAT(W46,V46),'standard adp'!$A:$J,10,FALSE),VLOOKUP(_xlfn.CONCAT(W46,V46),'half ppr adp'!$A:$J,10,FALSE))),VLOOKUP(_xlfn.CONCAT(W46,V46),'full ppr adp'!$A:$K,11,FALSE))),"UND") -> UND
A47: Matt Prater | B47: DET | C47: =VLOOKUP(_xlfn.CONCAT(B47,A47),'k data'!A:E,5,FALSE) -> 136.92 | D47: =IFERROR(C47-LARGE($C$38:$C$69,'Position Expectations'!$B$7+1),C47-MIN($C$38:$C$69)) -> 6.86 | E47: =IFERROR(C47-LARGE($C$38:$C$75,Settings!$F$21*Settings!$D$27),C47-MIN($C$38:$C$75)) -> 5.43 | F47: =IFERROR(IF(Settings!$J$17=1,VLOOKUP(_xlfn.CONCAT(B47,A47),'full ppr adp'!$A:$K,11,FALSE),IF(Settings!$J$17=0,VLOOKUP(_xlfn.CONCAT(B47,A47),'standard adp'!$A:$J,10,FALSE),VLOOKUP(_xlfn.CONCAT(B47,A47),'half ppr adp'!$A:$J,10,FALSE))),VLOOKUP(_xlfn.CONCAT(B47,A47),'full ppr adp'!$A:$K,11,FALSE)) -> 193.3333333 | H47: J.K. Dobbins | I47: BAL | J47: =VLOOKUP(_xlfn.CONCAT(I47,H47),'rb data'!A:X,24,FALSE) -> 110.3314821 | K47: =IFERROR(J47-LARGE($J$3:$J$100,'Position Expectations'!$B$4+1),J47-MIN($J$3:$J$100)) -> 50.7649573 | L47: =IFERROR(J47-LARGE($J$3:$J$100,Settings!$F$21*Settings!$D$23),J47-MIN($J$3:$J$100))+IF(Settings!$D$26>0,MAX(0,LARGE($J$3:$J$100,Settings!$F$21*Settings!$D$23)-LARGE(($Q$3:$Q$150,$J$3:$J$100),Settings!$F$21*(Settings!$D$23+Settings!$D$24+Settings!$D$26))),0) -> -58.7241794 | M47: =IFERROR((IFERROR(IF(Settings!$J$17=1,VLOOKUP(_xlfn.CONCAT(I47,H47),'full ppr adp'!$A:$K,11,FALSE),IF(Settings!$J$17=0,VLOOKUP(_xlfn.CONCAT(I47,H47),'standard adp'!$A:$J,10,FALSE),VLOOKUP(_xlfn.CONCAT(I47,H47),'half ppr adp'!$A:$J,10,FALSE))),VLOOKUP(_xlfn.CONCAT(I47,H47),'full ppr adp'!$A:$K,11,FALSE))),"UND") -> 91 | O47: Sterling Shepard | P47: NYG | Q47: =VLOOKUP(_xlfn.CONCAT(P47,O47),'wr data'!A:X,24,FALSE) -> 164.0546817 | R47: =IFERROR(Q47-LARGE($Q$3:$Q$150,'Position Expectations'!$B$5+1),Q47-MIN($Q$3:$Q$150)) -> 37.4940872 | S47: =IFERROR(Q47-LARGE($Q$3:$Q$150,Settings!$F$21*Settings!$D$24),Q47-MIN($Q$3:$Q$150))+IF(Settings!$D$26>0,MAX(0,LARGE($Q$3:$Q$150,Settings!$F$21*Settings!$D$24)-LARGE(($Q$3:$Q$150,$J$3:$J$100),Settings!$F$21*(Settings!$D$23+Settings!$D$24+Settings!$D$26))),0) -> -7.6935962 | T47: =IFERROR((IFERROR(IF(Settings!$J$17=1,VLOOKUP(_xlfn.CONCAT(P47,O47),'full ppr adp'!$A:$K,11,FALSE),IF(Settings!$J$17=0,VLOOKUP(_xlfn.CONCAT(P47,O47),'standard adp'!$A:$J,10,FALSE),VLOOKUP(_xlfn.CONCAT(P47,O47),'half ppr adp'!$A:$J,10,FALSE))),VLOOKUP(_xlfn.CONCAT(P47,O47),'full ppr adp'!$A:$K,11,FALSE))),"UND") -> 104.3333333 | V47: Cameron Brate | W47: TB | X47: =VLOOKUP(_xlfn.CONCAT(W47,V47),'te data'!A:X,24,FALSE) -> 55.37119368 | Y47: =IFERROR(X47-LARGE($X$3:$X$54,'Position Expectations'!$B$6+1),X47-MIN($X$3:$X$54)) -> -67.22580392 | Z47: =IFERROR(X47-LARGE($X$3:$X$75,Settings!$F$21*Settings!$D$25),X47-MIN($X$3:$X$75))+IF(Settings!$D$26>0,MAX(0,LARGE($X$3:$X$75,Settings!$F$21*Settings!$D$25)-LARGE(($Q$3:$Q$150,$J$3:$J$100,$X$3:$X$75),Settings!$F$21*(Settings!$D$23+Settings!$D$24+Settings!$D$26))),0) -> -78.05455782 | AA47: =IFERROR((IFERROR(IF(Settings!$J$17=1,VLOOKUP(_xlfn.CONCAT(W47,V47),'full ppr adp'!$A:$K,11,FALSE),IF(Settings!$J$17=0,VLOOKUP(_xlfn.CONCAT(W47,V47),'standard adp'!$A:$J,10,FALSE),VLOOKUP(_xlfn.CONCAT(W47,V47),'half ppr adp'!$A:$J,10,FALSE))),VLOOKUP(_xlfn.CONCAT(W47,V47),'full ppr adp'!$A:$K,11,FALSE))),"UND") -> 302.5
A48: Chase McLaughlin | B48: IND | C48: =VLOOKUP(_xlfn.CONCAT(B48,A48),'k data'!A:E,5,FALSE) -> 133.34 | D48: =IFERROR(C48-LARGE($C$38:$C$69,'Position Expectations'!$B$7+1),C48-MIN($C$38:$C$69)) -> 3.28 | E48: =IFERROR(C48-LARGE($C$38:$C$75,Settings!$F$21*Settings!$D$27),C48-MIN($C$38:$C$75)) -> 1.85 | F48: =IFERROR(IF(Settings!$J$17=1,VLOOKUP(_xlfn.CONCAT(B48,A48),'full ppr adp'!$A:$K,11,FALSE),IF(Settings!$J$17=0,VLOOKUP(_xlfn.CONCAT(B48,A48),'standard adp'!$A:$J,10,FALSE),VLOOKUP(_xlfn.CONCAT(B48,A48),'half ppr adp'!$A:$J,10,FALSE))),VLOOKUP(_xlfn.CONCAT(B48,A48),'full ppr adp'!$A:$K,11,FALSE)) -> 283 | H48: Darrell Henderson | I48: LAR | J48: =VLOOKUP(_xlfn.CONCAT(I48,H48),'rb data'!A:X,24,FALSE) -> 108.1281072 | K48: =IFERROR(J48-LARGE($J$3:$J$100,'Position Expectations'!$B$4+1),J48-MIN($J$3:$J$100)) -> 48.56158236 | L48: =IFERROR(J48-LARGE($J$3:$J$100,Settings!$F$21*Settings!$D$23),J48-MIN($J$3:$J$100))+IF(Settings!$D$26>0,MAX(0,LARGE($J$3:$J$100,Settings!$F$21*Settings!$D$23)-LARGE(($Q$3:$Q$150,$J$3:$J$100),Settings!$F$21*(Settings!$D$23+Settings!$D$24+Settings!$D$26))),0) -> -60.92755434 | M48: =IFERROR((IFERROR(IF(Settings!$J$17=1,VLOOKUP(_xlfn.CONCAT(I48,H48),'full ppr adp'!$A:$K,11,FALSE),IF(Settings!$J$17=0,VLOOKUP(_xlfn.CONCAT(I48,H48),'standard adp'!$A:$J,10,FALSE),VLOOKUP(_xlfn.CONCAT(I48,H48),'half ppr adp'!$A:$J,10,FALSE))),VLOOKUP(_xlfn.CONCAT(I48,H48),'full ppr adp'!$A:$K,11,FALSE))),"UND") -> 121.3333333 | O48: Darius Slayton | P48: NYG | Q48: =VLOOKUP(_xlfn.CONCAT(P48,O48),'wr data'!A:X,24,FALSE) -> 161.9456571 | R48: =IFERROR(Q48-LARGE($Q$3:$Q$150,'Position Expectations'!$B$5+1),Q48-MIN($Q$3:$Q$150)) -> 35.3850626 | S48: =IFERROR(Q48-LARGE($Q$3:$Q$150,Settings!$F$21*Settings!$D$24),Q48-MIN($Q$3:$Q$150))+IF(Settings!$D$26>0,MAX(0,LARGE($Q$3:$Q$150,Settings!$F$21*Settings!$D$24)-LARGE(($Q$3:$Q$150,$J$3:$J$100),Settings!$F$21*(Settings!$D$23+Settings!$D$24+Settings!$D$26))),0) -> -9.8026208 | T48: =IFERROR((IFERROR(IF(Settings!$J$17=1,VLOOKUP(_xlfn.CONCAT(P48,O48),'full ppr adp'!$A:$K,11,FALSE),IF(Settings!$J$17=0,VLOOKUP(_xlfn.CONCAT(P48,O48),'standard adp'!$A:$J,10,FALSE),VLOOKUP(_xlfn.CONCAT(P48,O48),'half ppr adp'!$A:$J,10,FALSE))),VLOOKUP(_xlfn.CONCAT(P48,O48),'full ppr adp'!$A:$K,11,FALSE))),"UND") -> 114.6666667 | V48: Maxx Williams | W48: ARI | X48: =VLOOKUP(_xlfn.CONCAT(W48,V48),'te data'!A:X,24,FALSE) -> 54.9352856 | Y48: =IFERROR(X48-LARGE($X$3:$X$54,'Position Expectations'!$B$6+1),X48-MIN($X$3:$X$54)) -> -67.661712 | Z48: =IFERROR(X48-LARGE($X$3:$X$75,Settings!$F$21*Settings!$D$25),X48-MIN($X$3:$X$75))+IF(Settings!$D$26>0,MAX(0,LARGE($X$3:$X$75,Settings!$F$21*Settings!$D$25)-LARGE(($Q$3:$Q$150,$J$3:$J$100,$X$3:$X$75),Settings!$F$21*(Settings!$D$23+Settings!$D$24+Settings!$D$26))),0) -> -78.4904659 | AA48: =IFERROR((IFERROR(IF(Settings!$J$17=1,VLOOKUP(_xlfn.CONCAT(W48,V48),'full ppr adp'!$A:$K,11,FALSE),IF(Settings!$J$17=0,VLOOKUP(_xlfn.CONCAT(W48,V48),'standard adp'!$A:$J,10,FALSE),VLOOKUP(_xlfn.CONCAT(W48,V48),'half ppr adp'!$A:$J,10,FALSE))),VLOOKUP(_xlfn.CONCAT(W48,V48),'full ppr adp'!$A:$K,11,FALSE))),"UND") -> UND
A49: Randy Bullock | B49: CIN | C49: =VLOOKUP(_xlfn.CONCAT(B49,A49),'k data'!A:E,5,FALSE) -> 131.49 | D49: =IFERROR(C49-LARGE($C$38:$C$69,'Position Expectations'!$B$7+1),C49-MIN($C$38:$C$69)) -> 1.43 | E49: =IFERROR(C49-LARGE($C$38:$C$75,Settings!$F$21*Settings!$D$27),C49-MIN($C$38:$C$75)) -> 0 | F49: =IFERROR(IF(Settings!$J$17=1,VLOOKUP(_xlfn.CONCAT(B49,A49),'full ppr adp'!$A:$K,11,FALSE),IF(Settings!$J$17=0,VLOOKUP(_xlfn.CONCAT(B49,A49),'standard adp'!$A:$J,10,FALSE),VLOOKUP(_xlfn.CONCAT(B49,A49),'half ppr adp'!$A:$J,10,FALSE))),VLOOKUP(_xlfn.CONCAT(B49,A49),'full ppr adp'!$A:$K,11,FALSE)) -> 289 | H49: Jordan Howard | I49: MIA | J49: =VLOOKUP(_xlfn.CONCAT(I49,H49),'rb data'!A:X,24,FALSE) -> 104.977504 | K49: =IFERROR(J49-LARGE($J$3:$J$100,'Position Expectations'!$B$4+1),J49-MIN($J$3:$J$100)) -> 45.4109792 | L49: =IFERROR(J49-LARGE($J$3:$J$100,Settings!$F$21*Settings!$D$23),J49-MIN($J$3:$J$100))+IF(Settings!$D$26>0,MAX(0,LARGE($J$3:$J$100,Settings!$F$21*Settings!$D$23)-LARGE(($Q$3:$Q$150,$J$3:$J$100),Settings!$F$21*(Settings!$D$23+Settings!$D$24+Settings!$D$26))),0) -> -64.0781575 | M49: =IFERROR((IFERROR(IF(Settings!$J$17=1,VLOOKUP(_xlfn.CONCAT(I49,H49),'full ppr adp'!$A:$K,11,FALSE),IF(Settings!$J$17=0,VLOOKUP(_xlfn.CONCAT(I49,H49),'standard adp'!$A:$J,10,FALSE),VLOOKUP(_xlfn.CONCAT(I49,H49),'half ppr adp'!$A:$J,10,FALSE))),VLOOKUP(_xlfn.CONCAT(I49,H49),'full ppr adp'!$A:$K,11,FALSE))),"UND") -> 92.66666667 | O49: Preston Williams | P49: MIA | Q49: =VLOOKUP(_xlfn.CONCAT(P49,O49),'wr data'!A:X,24,FALSE) -> 160.4955651 | R49: =IFERROR(Q49-LARGE($Q$3:$Q$150,'Position Expectations'!$B$5+1),Q49-MIN($Q$3:$Q$150)) -> 33.9349706 | S49: =IFERROR(Q49-LARGE($Q$3:$Q$150,Settings!$F$21*Settings!$D$24),Q49-MIN($Q$3:$Q$150))+IF(Settings!$D$26>0,MAX(0,LARGE($Q$3:$Q$150,Settings!$F$21*Settings!$D$24)-LARGE(($Q$3:$Q$150,$J$3:$J$100),Settings!$F$21*(Settings!$D$23+Settings!$D$24+Settings!$D$26))),0) -> -11.2527128 | T49: =IFERROR((IFERROR(IF(Settings!$J$17=1,VLOOKUP(_xlfn.CONCAT(P49,O49),'full ppr adp'!$A:$K,11,FALSE),IF(Settings!$J$17=0,VLOOKUP(_xlfn.CONCAT(P49,O49),'standard adp'!$A:$J,10,FALSE),VLOOKUP(_xlfn.CONCAT(P49,O49),'half ppr adp'!$A:$J,10,FALSE))),VLOOKUP(_xlfn.CONCAT(P49,O49),'full ppr adp'!$A:$K,11,FALSE))),"UND") -> 128 | V49: Jeremy Sprinkle | W49: WAS | X49: =VLOOKUP(_xlfn.CONCAT(W49,V49),'te data'!A:X,24,FALSE) -> 46.9305738 | Y49: =IFERROR(X49-LARGE($X$3:$X$54,'Position Expectations'!$B$6+1),X49-MIN($X$3:$X$54)) -> -75.6664238 | Z49: =IFERROR(X49-LARGE($X$3:$X$75,Settings!$F$21*Settings!$D$25),X49-MIN($X$3:$X$75))+IF(Settings!$D$26>0,MAX(0,LARGE($X$3:$X$75,Settings!$F$21*Settings!$D$25)-LARGE(($Q$3:$Q$150,$J$3:$J$100,$X$3:$X$75),Settings!$F$21*(Settings!$D$23+Settings!$D$24+Settings!$D$26))),0) -> -86.4951777 | AA49: =IFERROR((IFERROR(IF(Settings!$J$17=1,VLOOKUP(_xlfn.CONCAT(W49,V49),'full ppr adp'!$A:$K,11,FALSE),IF(Settings!$J$17=0,VLOOKUP(_xlfn.CONCAT(W49,V49),'standard adp'!$A:$J,10,FALSE),VLOOKUP(_xlfn.CONCAT(W49,V49),'half ppr adp'!$A:$J,10,FALSE))),VLOOKUP(_xlfn.CONCAT(W49,V49),'full ppr adp'!$A:$K,11,FALSE))),"UND") -> 355
A50: Greg Zuerlein | B50: DAL | C50: =VLOOKUP(_xlfn.CONCAT(B50,A50),'k data'!A:E,5,FALSE) -> 130.06 | D50: =IFERROR(C50-LARGE($C$38:$C$69,'Position Expectations'!$B$7+1),C50-MIN($C$38:$C$69)) -> 0 | E50: =IFERROR(C50-LARGE($C$38:$C$75,Settings!$F$21*Settings!$D$27),C50-MIN($C$38:$C$75)) -> -1.43 | F50: =IFERROR(IF(Settings!$J$17=1,VLOOKUP(_xlfn.CONCAT(B50,A50),'full ppr adp'!$A:$K,11,FALSE),IF(Settings!$J$17=0,VLOOKUP(_xlfn.CONCAT(B50,A50),'standard adp'!$A:$J,10,FALSE),VLOOKUP(_xlfn.CONCAT(B50,A50),'half ppr adp'!$A:$J,10,FALSE))),VLOOKUP(_xlfn.CONCAT(B50,A50),'full ppr adp'!$A:$K,11,FALSE)) -> 160.6666667 | H50: Ryquell Armstead | I50: JAC | J50: =VLOOKUP(_xlfn.CONCAT(I50,H50),'rb data'!A:X,24,FALSE) -> 103.4500909 | K50: =IFERROR(J50-LARGE($J$3:$J$100,'Position Expectations'!$B$4+1),J50-MIN($J$3:$J$100)) -> 43.88356611 | L50: =IFERROR(J50-LARGE($J$3:$J$100,Settings!$F$21*Settings!$D$23),J50-MIN($J$3:$J$100))+IF(Settings!$D$26>0,MAX(0,LARGE($J$3:$J$100,Settings!$F$21*Settings!$D$23)-LARGE(($Q$3:$Q$150,$J$3:$J$100),Settings!$F$21*(Settings!$D$23+Settings!$D$24+Settings!$D$26))),0) -> -65.60557059 | M50: =IFERROR((IFERROR(IF(Settings!$J$17=1,VLOOKUP(_xlfn.CONCAT(I50,H50),'full ppr adp'!$A:$K,11,FALSE),IF(Settings!$J$17=0,VLOOKUP(_xlfn.CONCAT(I50,H50),'standard adp'!$A:$J,10,FALSE),VLOOKUP(_xlfn.CONCAT(I50,H50),'half ppr adp'!$A:$J,10,FALSE))),VLOOKUP(_xlfn.CONCAT(I50,H50),'full ppr adp'!$A:$K,11,FALSE))),"UND") -> 142.3333333 | O50: DeSean Jackson | P50: PHI | Q50: =VLOOKUP(_xlfn.CONCAT(P50,O50),'wr data'!A:X,24,FALSE) -> 157.1846078 | R50: =IFERROR(Q50-LARGE($Q$3:$Q$150,'Position Expectations'!$B$5+1),Q50-MIN($Q$3:$Q$150)) -> 30.6240133 | S50: =IFERROR(Q50-LARGE($Q$3:$Q$150,Settings!$F$21*Settings!$D$24),Q50-MIN($Q$3:$Q$150))+IF(Settings!$D$26>0,MAX(0,LARGE($Q$3:$Q$150,Settings!$F$21*Settings!$D$24)-LARGE(($Q$3:$Q$150,$J$3:$J$100),Settings!$F$21*(Settings!$D$23+Settings!$D$24+Settings!$D$26))),0) -> -14.5636701 | T50: =IFERROR((IFERROR(IF(Settings!$J$17=1,VLOOKUP(_xlfn.CONCAT(P50,O50),'full ppr adp'!$A:$K,11,FALSE),IF(Settings!$J$17=0,VLOOKUP(_xlfn.CONCAT(P50,O50),'standard adp'!$A:$J,10,FALSE),VLOOKUP(_xlfn.CONCAT(P50,O50),'half ppr adp'!$A:$J,10,FALSE))),VLOOKUP(_xlfn.CONCAT(P50,O50),'full ppr adp'!$A:$K,11,FALSE))),"UND") -> 151.6666667 | V50: Jordan Reed | W50: SF | X50: =VLOOKUP(_xlfn.CONCAT(W50,V50),'te data'!A:X,24,FALSE) -> 46.74375296 | Y50: =IFERROR(X50-LARGE($X$3:$X$54,'Position Expectations'!$B$6+1),X50-MIN($X$3:$X$54)) -> -75.85324464 | Z50: =IFERROR(X50-LARGE($X$3:$X$75,Settings!$F$21*Settings!$D$25),X50-MIN($X$3:$X$75))+IF(Settings!$D$26>0,MAX(0,LARGE($X$3:$X$75,Settings!$F$21*Settings!$D$25)-LARGE(($Q$3:$Q$150,$J$3:$J$100,$X$3:$X$75),Settings!$F$21*(Settings!$D$23+Settings!$D$24+Settings!$D$26))),0) -> -86.68199854 | AA50: =IFERROR((IFERROR(IF(Settings!$J$17=1,VLOOKUP(_xlfn.CONCAT(W50,V50),'full ppr adp'!$A:$K,11,FALSE),IF(Settings!$J$17=0,VLOOKUP(_xlfn.CONCAT(W50,V50),'standard adp'!$A:$J,10,FALSE),VLOOKUP(_xlfn.CONCAT(W50,V50),'half ppr adp'!$A:$J,10,FALSE))),VLOOKUP(_xlfn.CONCAT(W50,V50),'full ppr adp'!$A:$K,11,FALSE))),"UND") -> 262
A51: Joey Slye | B51: CAR | C51: =VLOOKUP(_xlfn.CONCAT(B51,A51),'k data'!A:E,5,FALSE) -> 129.26 | D51: =IFERROR(C51-LARGE($C$38:$C$69,'Position Expectations'!$B$7+1),C51-MIN($C$38:$C$69)) -> -0.8 | E51: =IFERROR(C51-LARGE($C$38:$C$75,Settings!$F$21*Settings!$D$27),C51-MIN($C$38:$C$75)) -> -2.23 | F51: =IFERROR(IF(Settings!$J$17=1,VLOOKUP(_xlfn.CONCAT(B51,A51),'full ppr adp'!$A:$K,11,FALSE),IF(Settings!$J$17=0,VLOOKUP(_xlfn.CONCAT(B51,A51),'standard adp'!$A:$J,10,FALSE),VLOOKUP(_xlfn.CONCAT(B51,A51),'half ppr adp'!$A:$J,10,FALSE))),VLOOKUP(_xlfn.CONCAT(B51,A51),'full ppr adp'!$A:$K,11,FALSE)) -> 259.5 | H51: Adrian Peterson | I51: WAS | J51: =VLOOKUP(_xlfn.CONCAT(I51,H51),'rb data'!A:X,24,FALSE) -> 102.3369804 | K51: =IFERROR(J51-LARGE($J$3:$J$100,'Position Expectations'!$B$4+1),J51-MIN($J$3:$J$100)) -> 42.7704556 | L51: =IFERROR(J51-LARGE($J$3:$J$100,Settings!$F$21*Settings!$D$23),J51-MIN($J$3:$J$100))+IF(Settings!$D$26>0,MAX(0,LARGE($J$3:$J$100,Settings!$F$21*Settings!$D$23)-LARGE(($Q$3:$Q$150,$J$3:$J$100),Settings!$F$21*(Settings!$D$23+Settings!$D$24+Settings!$D$26))),0) -> -66.7186811 | M51: =IFERROR((IFERROR(IF(Settings!$J$17=1,VLOOKUP(_xlfn.CONCAT(I51,H51),'full ppr adp'!$A:$K,11,FALSE),IF(Settings!$J$17=0,VLOOKUP(_xlfn.CONCAT(I51,H51),'standard adp'!$A:$J,10,FALSE),VLOOKUP(_xlfn.CONCAT(I51,H51),'half ppr adp'!$A:$J,10,FALSE))),VLOOKUP(_xlfn.CONCAT(I51,H51),'full ppr adp'!$A:$K,11,FALSE))),"UND") -> 150 | O51: Golden Tate | P51: NYG | Q51: =VLOOKUP(_xlfn.CONCAT(P51,O51),'wr data'!A:X,24,FALSE) -> 156.6435415 | R51: =IFERROR(Q51-LARGE($Q$3:$Q$150,'Position Expectations'!$B$5+1),Q51-MIN($Q$3:$Q$150)) -> 30.082947 | S51: =IFERROR(Q51-LARGE($Q$3:$Q$150,Settings!$F$21*Settings!$D$24),Q51-MIN($Q$3:$Q$150))+IF(Settings!$D$26>0,MAX(0,LARGE($Q$3:$Q$150,Settings!$F$21*Settings!$D$24)-LARGE(($Q$3:$Q$150,$J$3:$J$100),Settings!$F$21*(Settings!$D$23+Settings!$D$24+Settings!$D$26))),0) -> -15.1047364 | T51: =IFERROR((IFERROR(IF(Settings!$J$17=1,VLOOKUP(_xlfn.CONCAT(P51,O51),'full ppr adp'!$A:$K,11,FALSE),IF(Settings!$J$17=0,VLOOKUP(_xlfn.CONCAT(P51,O51),'standard adp'!$A:$J,10,FALSE),VLOOKUP(_xlfn.CONCAT(P51,O51),'half ppr adp'!$A:$J,10,FALSE))),VLOOKUP(_xlfn.CONCAT(P51,O51),'full ppr adp'!$A:$K,11,FALSE))),"UND") -> 132.6666667 | V51: Jesse James | W51: DET | X51: =VLOOKUP(_xlfn.CONCAT(W51,V51),'te data'!A:X,24,FALSE) -> 46.0990936 | Y51: =IFERROR(X51-LARGE($X$3:$X$54,'Position Expectations'!$B$6+1),X51-MIN($X$3:$X$54)) -> -76.497904 | Z51: =IFERROR(X51-LARGE($X$3:$X$75,Settings!$F$21*Settings!$D$25),X51-MIN($X$3:$X$75))+IF(Settings!$D$26>0,MAX(0,LARGE($X$3:$X$75,Settings!$F$21*Settings!$D$25)-LARGE(($Q$3:$Q$150,$J$3:$J$100,$X$3:$X$75),Settings!$F$21*(Settings!$D$23+Settings!$D$24+Settings!$D$26))),0) -> -87.3266579 | AA51: =IFERROR((IFERROR(IF(Settings!$J$17=1,VLOOKUP(_xlfn.CONCAT(W51,V51),'full ppr adp'!$A:$K,11,FALSE),IF(Settings!$J$17=0,VLOOKUP(_xlfn.CONCAT(W51,V51),'standard adp'!$A:$J,10,FALSE),VLOOKUP(_xlfn.CONCAT(W51,V51),'half ppr adp'!$A:$J,10,FALSE))),VLOOKUP(_xlfn.CONCAT(W51,V51),'full ppr adp'!$A:$K,11,FALSE))),"UND") -> 344
A52: Dan Bailey | B52: MIN | C52: =VLOOKUP(_xlfn.CONCAT(B52,A52),'k data'!A:E,5,FALSE) -> 128.77 | D52: =IFERROR(C52-LARGE($C$38:$C$69,'Position Expectations'!$B$7+1),C52-MIN($C$38:$C$69)) -> -1.29 | E52: =IFERROR(C52-LARGE($C$38:$C$75,Settings!$F$21*Settings!$D$27),C52-MIN($C$38:$C$75)) -> -2.72 | F52: =IFERROR(IF(Settings!$J$17=1,VLOOKUP(_xlfn.CONCAT(B52,A52),'full ppr adp'!$A:$K,11,FALSE),IF(Settings!$J$17=0,VLOOKUP(_xlfn.CONCAT(B52,A52),'standard adp'!$A:$J,10,FALSE),VLOOKUP(_xlfn.CONCAT(B52,A52),'half ppr adp'!$A:$J,10,FALSE))),VLOOKUP(_xlfn.CONCAT(B52,A52),'full ppr adp'!$A:$K,11,FALSE)) -> 232.3333333 | H52: Nyheim Hines | I52: IND | J52: =VLOOKUP(_xlfn.CONCAT(I52,H52),'rb data'!A:X,24,FALSE) -> 97.0143948 | K52: =IFERROR(J52-LARGE($J$3:$J$100,'Position Expectations'!$B$4+1),J52-MIN($J$3:$J$100)) -> 37.44787 | L52: =IFERROR(J52-LARGE($J$3:$J$100,Settings!$F$21*Settings!$D$23),J52-MIN($J$3:$J$100))+IF(Settings!$D$26>0,MAX(0,LARGE($J$3:$J$100,Settings!$F$21*Settings!$D$23)-LARGE(($Q$3:$Q$150,$J$3:$J$100),Settings!$F$21*(Settings!$D$23+Settings!$D$24+Settings!$D$26))),0) -> -72.0412667 | M52: =IFERROR((IFERROR(IF(Settings!$J$17=1,VLOOKUP(_xlfn.CONCAT(I52,H52),'full ppr adp'!$A:$K,11,FALSE),IF(Settings!$J$17=0,VLOOKUP(_xlfn.CONCAT(I52,H52),'standard adp'!$A:$J,10,FALSE),VLOOKUP(_xlfn.CONCAT(I52,H52),'half ppr adp'!$A:$J,10,FALSE))),VLOOKUP(_xlfn.CONCAT(I52,H52),'full ppr adp'!$A:$K,11,FALSE))),"UND") -> 148.6666667 | O52: Emmanuel Sanders | P52: NO | Q52: =VLOOKUP(_xlfn.CONCAT(P52,O52),'wr data'!A:X,24,FALSE) -> 155.5553214 | R52: =IFERROR(Q52-LARGE($Q$3:$Q$150,'Position Expectations'!$B$5+1),Q52-MIN($Q$3:$Q$150)) -> 28.99472689 | S52: =IFERROR(Q52-LARGE($Q$3:$Q$150,Settings!$F$21*Settings!$D$24),Q52-MIN($Q$3:$Q$150))+IF(Settings!$D$26>0,MAX(0,LARGE($Q$3:$Q$150,Settings!$F$21*Settings!$D$24)-LARGE(($Q$3:$Q$150,$J$3:$J$100),Settings!$F$21*(Settings!$D$23+Settings!$D$24+Settings!$D$26))),0) -> -16.19295651 | T52: =IFERROR((IFERROR(IF(Settings!$J$17=1,VLOOKUP(_xlfn.CONCAT(P52,O52),'full ppr adp'!$A:$K,11,FALSE),IF(Settings!$J$17=0,VLOOKUP(_xlfn.CONCAT(P52,O52),'standard adp'!$A:$J,10,FALSE),VLOOKUP(_xlfn.CONCAT(P52,O52),'half ppr adp'!$A:$J,10,FALSE))),VLOOKUP(_xlfn.CONCAT(P52,O52),'full ppr adp'!$A:$K,11,FALSE))),"UND") -> 107.3333333 | V52: Logan Thomas | W52: WAS | X52: =VLOOKUP(_xlfn.CONCAT(W52,V52),'te data'!A:X,24,FALSE) -> 43.5447516 | Y52: =IFERROR(X52-LARGE($X$3:$X$54,'Position Expectations'!$B$6+1),X52-MIN($X$3:$X$54)) -> -79.052246 | Z52: =IFERROR(X52-LARGE($X$3:$X$75,Settings!$F$21*Settings!$D$25),X52-MIN($X$3:$X$75))+IF(Settings!$D$26>0,MAX(0,LARGE($X$3:$X$75,Settings!$F$21*Settings!$D$25)-LARGE(($Q$3:$Q$150,$J$3:$J$100,$X$3:$X$75),Settings!$F$21*(Settings!$D$23+Settings!$D$24+Settings!$D$26))),0) -> -89.8809999 | AA52: =IFERROR((IFERROR(IF(Settings!$J$17=1,VLOOKUP(_xlfn.CONCAT(W52,V52),'full ppr adp'!$A:$K,11,FALSE),IF(Settings!$J$17=0,VLOOKUP(_xlfn.CONCAT(W52,V52),'standard adp'!$A:$J,10,FALSE),VLOOKUP(_xlfn.CONCAT(W52,V52),'half ppr adp'!$A:$J,10,FALSE))),VLOOKUP(_xlfn.CONCAT(W52,V52),'full ppr adp'!$A:$K,11,FALSE))),"UND") -> 338
A53: Jason Sanders | B53: MIA | C53: =VLOOKUP(_xlfn.CONCAT(B53,A53),'k data'!A:E,5,FALSE) -> 128.25 | D53: =IFERROR(C53-LARGE($C$38:$C$69,'Position Expectations'!$B$7+1),C53-MIN($C$38:$C$69)) -> -1.81 | E53: =IFERROR(C53-LARGE($C$38:$C$75,Settings!$F$21*Settings!$D$27),C53-MIN($C$38:$C$75)) -> -3.24 | F53: =IFERROR(IF(Settings!$J$17=1,VLOOKUP(_xlfn.CONCAT(B53,A53),'full ppr adp'!$A:$K,11,FALSE),IF(Settings!$J$17=0,VLOOKUP(_xlfn.CONCAT(B53,A53),'standard adp'!$A:$J,10,FALSE),VLOOKUP(_xlfn.CONCAT(B53,A53),'half ppr adp'!$A:$J,10,FALSE))),VLOOKUP(_xlfn.CONCAT(B53,A53),'full ppr adp'!$A:$K,11,FALSE)) -> 283.5 | H53: Chase Edmonds | I53: ARI | J53: =VLOOKUP(_xlfn.CONCAT(I53,H53),'rb data'!A:X,24,FALSE) -> 94.515904 | K53: =IFERROR(J53-LARGE($J$3:$J$100,'Position Expectations'!$B$4+1),J53-MIN($J$3:$J$100)) -> 34.9493792 | L53: =IFERROR(J53-LARGE($J$3:$J$100,Settings!$F$21*Settings!$D$23),J53-MIN($J$3:$J$100))+IF(Settings!$D$26>0,MAX(0,LARGE($J$3:$J$100,Settings!$F$21*Settings!$D$23)-LARGE(($Q$3:$Q$150,$J$3:$J$100),Settings!$F$21*(Settings!$D$23+Settings!$D$24+Settings!$D$26))),0) -> -74.5397575 | M53: =IFERROR((IFERROR(IF(Settings!$J$17=1,VLOOKUP(_xlfn.CONCAT(I53,H53),'full ppr adp'!$A:$K,11,FALSE),IF(Settings!$J$17=0,VLOOKUP(_xlfn.CONCAT(I53,H53),'standard adp'!$A:$J,10,FALSE),VLOOKUP(_xlfn.CONCAT(I53,H53),'half ppr adp'!$A:$J,10,FALSE))),VLOOKUP(_xlfn.CONCAT(I53,H53),'full ppr adp'!$A:$K,11,FALSE))),"UND") -> 156 | O53: Mike Williams | P53: LAC | Q53: =VLOOKUP(_xlfn.CONCAT(P53,O53),'wr data'!A:X,24,FALSE) -> 155.2293333 | R53: =IFERROR(Q53-LARGE($Q$3:$Q$150,'Position Expectations'!$B$5+1),Q53-MIN($Q$3:$Q$150)) -> 28.66873878 | S53: =IFERROR(Q53-LARGE($Q$3:$Q$150,Settings!$F$21*Settings!$D$24),Q53-MIN($Q$3:$Q$150))+IF(Settings!$D$26>0,MAX(0,LARGE($Q$3:$Q$150,Settings!$F$21*Settings!$D$24)-LARGE(($Q$3:$Q$150,$J$3:$J$100),Settings!$F$21*(Settings!$D$23+Settings!$D$24+Settings!$D$26))),0) -> -16.51894462 | T53: =IFERROR((IFERROR(IF(Settings!$J$17=1,VLOOKUP(_xlfn.CONCAT(P53,O53),'full ppr adp'!$A:$K,11,FALSE),IF(Settings!$J$17=0,VLOOKUP(_xlfn.CONCAT(P53,O53),'standard adp'!$A:$J,10,FALSE),VLOOKUP(_xlfn.CONCAT(P53,O53),'half ppr adp'!$A:$J,10,FALSE))),VLOOKUP(_xlfn.CONCAT(P53,O53),'full ppr adp'!$A:$K,11,FALSE))),"UND") -> 141 | V53: Josh Hill | W53: NO | X53: =VLOOKUP(_xlfn.CONCAT(W53,V53),'te data'!A:X,24,FALSE) -> 41.97293059 | Y53: =IFERROR(X53-LARGE($X$3:$X$54,'Position Expectations'!$B$6+1),X53-MIN($X$3:$X$54)) -> -80.62406701 | Z53: =IFERROR(X53-LARGE($X$3:$X$75,Settings!$F$21*Settings!$D$25),X53-MIN($X$3:$X$75))+IF(Settings!$D$26>0,MAX(0,LARGE($X$3:$X$75,Settings!$F$21*Settings!$D$25)-LARGE(($Q$3:$Q$150,$J$3:$J$100,$X$3:$X$75),Settings!$F$21*(Settings!$D$23+Settings!$D$24+Settings!$D$26))),0) -> -91.45282091 | AA53: =IFERROR((IFERROR(IF(Settings!$J$17=1,VLOOKUP(_xlfn.CONCAT(W53,V53),'full ppr adp'!$A:$K,11,FALSE),IF(Settings!$J$17=0,VLOOKUP(_xlfn.CONCAT(W53,V53),'standard adp'!$A:$J,10,FALSE),VLOOKUP(_xlfn.CONCAT(W53,V53),'half ppr adp'!$A:$J,10,FALSE))),VLOOKUP(_xlfn.CONCAT(W53,V53),'full ppr adp'!$A:$K,11,FALSE))),"UND") -> 304
A54: Robbie Gould | B54: SF | C54: =VLOOKUP(_xlfn.CONCAT(B54,A54),'k data'!A:E,5,FALSE) -> 126.78 | D54: =IFERROR(C54-LARGE($C$38:$C$69,'Position Expectations'!$B$7+1),C54-MIN($C$38:$C$69)) -> -3.28 | E54: =IFERROR(C54-LARGE($C$38:$C$75,Settings!$F$21*Settings!$D$27),C54-MIN($C$38:$C$75)) -> -4.71 | F54: =IFERROR(IF(Settings!$J$17=1,VLOOKUP(_xlfn.CONCAT(B54,A54),'full ppr adp'!$A:$K,11,FALSE),IF(Settings!$J$17=0,VLOOKUP(_xlfn.CONCAT(B54,A54),'standard adp'!$A:$J,10,FALSE),VLOOKUP(_xlfn.CONCAT(B54,A54),'half ppr adp'!$A:$J,10,FALSE))),VLOOKUP(_xlfn.CONCAT(B54,A54),'full ppr adp'!$A:$K,11,FALSE)) -> 174.3333333 | H54: Alexander Mattison | I54: MIN | J54: =VLOOKUP(_xlfn.CONCAT(I54,H54),'rb data'!A:X,24,FALSE) -> 88.1068241 | K54: =IFERROR(J54-LARGE($J$3:$J$100,'Position Expectations'!$B$4+1),J54-MIN($J$3:$J$100)) -> 28.5402993 | L54: =IFERROR(J54-LARGE($J$3:$J$100,Settings!$F$21*Settings!$D$23),J54-MIN($J$3:$J$100))+IF(Settings!$D$26>0,MAX(0,LARGE($J$3:$J$100,Settings!$F$21*Settings!$D$23)-LARGE(($Q$3:$Q$150,$J$3:$J$100),Settings!$F$21*(Settings!$D$23+Settings!$D$24+Settings!$D$26))),0) -> -80.9488374 | M54: =IFERROR((IFERROR(IF(Settings!$J$17=1,VLOOKUP(_xlfn.CONCAT(I54,H54),'full ppr adp'!$A:$K,11,FALSE),IF(Settings!$J$17=0,VLOOKUP(_xlfn.CONCAT(I54,H54),'standard adp'!$A:$J,10,FALSE),VLOOKUP(_xlfn.CONCAT(I54,H54),'half ppr adp'!$A:$J,10,FALSE))),VLOOKUP(_xlfn.CONCAT(I54,H54),'full ppr adp'!$A:$K,11,FALSE))),"UND") -> 126.6666667 | O54: Deebo Samuel | P54: SF | Q54: =VLOOKUP(_xlfn.CONCAT(P54,O54),'wr data'!A:X,24,FALSE) -> 154.1301636 | R54: =IFERROR(Q54-LARGE($Q$3:$Q$150,'Position Expectations'!$B$5+1),Q54-MIN($Q$3:$Q$150)) -> 27.56956906 | S54: =IFERROR(Q54-LARGE($Q$3:$Q$150,Settings!$F$21*Settings!$D$24),Q54-MIN($Q$3:$Q$150))+IF(Settings!$D$26>0,MAX(0,LARGE($Q$3:$Q$150,Settings!$F$21*Settings!$D$24)-LARGE(($Q$3:$Q$150,$J$3:$J$100),Settings!$F$21*(Settings!$D$23+Settings!$D$24+Settings!$D$26))),0) -> -17.61811434 | T54: =IFERROR((IFERROR(IF(Settings!$J$17=1,VLOOKUP(_xlfn.CONCAT(P54,O54),'full ppr adp'!$A:$K,11,FALSE),IF(Settings!$J$17=0,VLOOKUP(_xlfn.CONCAT(P54,O54),'standard adp'!$A:$J,10,FALSE),VLOOKUP(_xlfn.CONCAT(P54,O54),'half ppr adp'!$A:$J,10,FALSE))),VLOOKUP(_xlfn.CONCAT(P54,O54),'full ppr adp'!$A:$K,11,FALSE))),"UND") -> 87.66666667 | V54: Jacob Hollister | W54: SEA | X54: =VLOOKUP(_xlfn.CONCAT(W54,V54),'te data'!A:X,24,FALSE) -> 40.4352828 | Y54: =IFERROR(X54-LARGE($X$3:$X$54,'Position Expectations'!$B$6+1),X54-MIN($X$3:$X$54)) -> -82.1617148 | Z54: =IFERROR(X54-LARGE($X$3:$X$75,Settings!$F$21*Settings!$D$25),X54-MIN($X$3:$X$75))+IF(Settings!$D$26>0,MAX(0,LARGE($X$3:$X$75,Settings!$F$21*Settings!$D$25)-LARGE(($Q$3:$Q$150,$J$3:$J$100,$X$3:$X$75),Settings!$F$21*(Settings!$D$23+Settings!$D$24+Settings!$D$26))),0) -> -92.9904687 | AA54: =IFERROR((IFERROR(IF(Settings!$J$17=1,VLOOKUP(_xlfn.CONCAT(W54,V54),'full ppr adp'!$A:$K,11,FALSE),IF(Settings!$J$17=0,VLOOKUP(_xlfn.CONCAT(W54,V54),'standard adp'!$A:$J,10,FALSE),VLOOKUP(_xlfn.CONCAT(W54,V54),'half ppr adp'!$A:$J,10,FALSE))),VLOOKUP(_xlfn.CONCAT(W54,V54),'full ppr adp'!$A:$K,11,FALSE))),"UND") -> 313
A55: Michael Badgley | B55: LAC | C55: =VLOOKUP(_xlfn.CONCAT(B55,A55),'k data'!A:E,5,FALSE) -> 124.08 | D55: =IFERROR(C55-LARGE($C$38:$C$69,'Position Expectations'!$B$7+1),C55-MIN($C$38:$C$69)) -> -5.98 | E55: =IFERROR(C55-LARGE($C$38:$C$75,Settings!$F$21*Settings!$D$27),C55-MIN($C$38:$C$75)) -> -7.41 | F55: =IFERROR(IF(Settings!$J$17=1,VLOOKUP(_xlfn.CONCAT(B55,A55),'full ppr adp'!$A:$K,11,FALSE),IF(Settings!$J$17=0,VLOOKUP(_xlfn.CONCAT(B55,A55),'standard adp'!$A:$J,10,FALSE),VLOOKUP(_xlfn.CONCAT(B55,A55),'half ppr adp'!$A:$J,10,FALSE))),VLOOKUP(_xlfn.CONCAT(B55,A55),'full ppr adp'!$A:$K,11,FALSE)) -> 242 | H55: Giovani Bernard | I55: CIN | J55: =VLOOKUP(_xlfn.CONCAT(I55,H55),'rb data'!A:X,24,FALSE) -> 84.91090748 | K55: =IFERROR(J55-LARGE($J$3:$J$100,'Position Expectations'!$B$4+1),J55-MIN($J$3:$J$100)) -> 25.34438268 | L55: =IFERROR(J55-LARGE($J$3:$J$100,Settings!$F$21*Settings!$D$23),J55-MIN($J$3:$J$100))+IF(Settings!$D$26>0,MAX(0,LARGE($J$3:$J$100,Settings!$F$21*Settings!$D$23)-LARGE(($Q$3:$Q$150,$J$3:$J$100),Settings!$F$21*(Settings!$D$23+Settings!$D$24+Settings!$D$26))),0) -> -84.14475402 | M55: =IFERROR((IFERROR(IF(Settings!$J$17=1,VLOOKUP(_xlfn.CONCAT(I55,H55),'full ppr adp'!$A:$K,11,FALSE),IF(Settings!$J$17=0,VLOOKUP(_xlfn.CONCAT(I55,H55),'standard adp'!$A:$J,10,FALSE),VLOOKUP(_xlfn.CONCAT(I55,H55),'half ppr adp'!$A:$J,10,FALSE))),VLOOKUP(_xlfn.CONCAT(I55,H55),'full ppr adp'!$A:$K,11,FALSE))),"UND") -> 220 | O55: Curtis Samuel | P55: CAR | Q55: =VLOOKUP(_xlfn.CONCAT(P55,O55),'wr data'!A:X,24,FALSE) -> 152.5887324 | R55: =IFERROR(Q55-LARGE($Q$3:$Q$150,'Position Expectations'!$B$5+1),Q55-MIN($Q$3:$Q$150)) -> 26.0281379 | S55: =IFERROR(Q55-LARGE($Q$3:$Q$150,Settings!$F$21*Settings!$D$24),Q55-MIN($Q$3:$Q$150))+IF(Settings!$D$26>0,MAX(0,LARGE($Q$3:$Q$150,Settings!$F$21*Settings!$D$24)-LARGE(($Q$3:$Q$150,$J$3:$J$100),Settings!$F$21*(Settings!$D$23+Settings!$D$24+Settings!$D$26))),0) -> -19.1595455 | T55: =IFERROR((IFERROR(IF(Settings!$J$17=1,VLOOKUP(_xlfn.CONCAT(P55,O55),'full ppr adp'!$A:$K,11,FALSE),IF(Settings!$J$17=0,VLOOKUP(_xlfn.CONCAT(P55,O55),'standard adp'!$A:$J,10,FALSE),VLOOKUP(_xlfn.CONCAT(P55,O55),'half ppr adp'!$A:$J,10,FALSE))),VLOOKUP(_xlfn.CONCAT(P55,O55),'full ppr adp'!$A:$K,11,FALSE))),"UND") -> 152
A56: Nick Folk | B56: NE | C56: =VLOOKUP(_xlfn.CONCAT(B56,A56),'k data'!A:E,5,FALSE) -> 122.21 | D56: =IFERROR(C56-LARGE($C$38:$C$69,'Position Expectations'!$B$7+1),C56-MIN($C$38:$C$69)) -> -7.85 | E56: =IFERROR(C56-LARGE($C$38:$C$75,Settings!$F$21*Settings!$D$27),C56-MIN($C$38:$C$75)) -> -9.28 | F56: =IFERROR(IF(Settings!$J$17=1,VLOOKUP(_xlfn.CONCAT(B56,A56),'full ppr adp'!$A:$K,11,FALSE),IF(Settings!$J$17=0,VLOOKUP(_xlfn.CONCAT(B56,A56),'standard adp'!$A:$J,10,FALSE),VLOOKUP(_xlfn.CONCAT(B56,A56),'half ppr adp'!$A:$J,10,FALSE))),VLOOKUP(_xlfn.CONCAT(B56,A56),'full ppr adp'!$A:$K,11,FALSE)) -> 267 | H56: Darrel Williams | I56: KC | J56: =VLOOKUP(_xlfn.CONCAT(I56,H56),'rb data'!A:X,24,FALSE) -> 84.2184284 | K56: =IFERROR(J56-LARGE($J$3:$J$100,'Position Expectations'!$B$4+1),J56-MIN($J$3:$J$100)) -> 24.6519036 | L56: =IFERROR(J56-LARGE($J$3:$J$100,Settings!$F$21*Settings!$D$23),J56-MIN($J$3:$J$100))+IF(Settings!$D$26>0,MAX(0,LARGE($J$3:$J$100,Settings!$F$21*Settings!$D$23)-LARGE(($Q$3:$Q$150,$J$3:$J$100),Settings!$F$21*(Settings!$D$23+Settings!$D$24+Settings!$D$26))),0) -> -84.8372331 | M56: =IFERROR((IFERROR(IF(Settings!$J$17=1,VLOOKUP(_xlfn.CONCAT(I56,H56),'full ppr adp'!$A:$K,11,FALSE),IF(Settings!$J$17=0,VLOOKUP(_xlfn.CONCAT(I56,H56),'standard adp'!$A:$J,10,FALSE),VLOOKUP(_xlfn.CONCAT(I56,H56),'half ppr adp'!$A:$J,10,FALSE))),VLOOKUP(_xlfn.CONCAT(I56,H56),'full ppr adp'!$A:$K,11,FALSE))),"UND") -> 278.6666667 | O56: Henry Ruggs III | P56: LV | Q56: =VLOOKUP(_xlfn.CONCAT(P56,O56),'wr data'!A:X,24,FALSE) -> 150.8271056 | R56: =IFERROR(Q56-LARGE($Q$3:$Q$150,'Position Expectations'!$B$5+1),Q56-MIN($Q$3:$Q$150)) -> 24.2665111 | S56: =IFERROR(Q56-LARGE($Q$3:$Q$150,Settings!$F$21*Settings!$D$24),Q56-MIN($Q$3:$Q$150))+IF(Settings!$D$26>0,MAX(0,LARGE($Q$3:$Q$150,Settings!$F$21*Settings!$D$24)-LARGE(($Q$3:$Q$150,$J$3:$J$100),Settings!$F$21*(Settings!$D$23+Settings!$D$24+Settings!$D$26))),0) -> -20.9211723 | T56: =IFERROR((IFERROR(IF(Settings!$J$17=1,VLOOKUP(_xlfn.CONCAT(P56,O56),'full ppr adp'!$A:$K,11,FALSE),IF(Settings!$J$17=0,VLOOKUP(_xlfn.CONCAT(P56,O56),'standard adp'!$A:$J,10,FALSE),VLOOKUP(_xlfn.CONCAT(P56,O56),'half ppr adp'!$A:$J,10,FALSE))),VLOOKUP(_xlfn.CONCAT(P56,O56),'full ppr adp'!$A:$K,11,FALSE))),"UND") -> 119
A57: Sam Sloman | B57: LAR | C57: =VLOOKUP(_xlfn.CONCAT(B57,A57),'k data'!A:E,5,FALSE) -> 120.65 | D57: =IFERROR(C57-LARGE($C$38:$C$69,'Position Expectations'!$B$7+1),C57-MIN($C$38:$C$69)) -> -9.41 | E57: =IFERROR(C57-LARGE($C$38:$C$75,Settings!$F$21*Settings!$D$27),C57-MIN($C$38:$C$75)) -> -10.84 | F57: =IFERROR(IF(Settings!$J$17=1,VLOOKUP(_xlfn.CONCAT(B57,A57),'full ppr adp'!$A:$K,11,FALSE),IF(Settings!$J$17=0,VLOOKUP(_xlfn.CONCAT(B57,A57),'standard adp'!$A:$J,10,FALSE),VLOOKUP(_xlfn.CONCAT(B57,A57),'half ppr adp'!$A:$J,10,FALSE))),VLOOKUP(_xlfn.CONCAT(B57,A57),'full ppr adp'!$A:$K,11,FALSE)) -> 317 | H57: Darrynton Evans | I57: TEN | J57: =VLOOKUP(_xlfn.CONCAT(I57,H57),'rb data'!A:X,24,FALSE) -> 84.0948741 | K57: =IFERROR(J57-LARGE($J$3:$J$100,'Position Expectations'!$B$4+1),J57-MIN($J$3:$J$100)) -> 24.5283493 | L57: =IFERROR(J57-LARGE($J$3:$J$100,Settings!$F$21*Settings!$D$23),J57-MIN($J$3:$J$100))+IF(Settings!$D$26>0,MAX(0,LARGE($J$3:$J$100,Settings!$F$21*Settings!$D$23)-LARGE(($Q$3:$Q$150,$J$3:$J$100),Settings!$F$21*(Settings!$D$23+Settings!$D$24+Settings!$D$26))),0) -> -84.9607874 | M57: =IFERROR((IFERROR(IF(Settings!$J$17=1,VLOOKUP(_xlfn.CONCAT(I57,H57),'full ppr adp'!$A:$K,11,FALSE),IF(Settings!$J$17=0,VLOOKUP(_xlfn.CONCAT(I57,H57),'standard adp'!$A:$J,10,FALSE),VLOOKUP(_xlfn.CONCAT(I57,H57),'half ppr adp'!$A:$J,10,FALSE))),VLOOKUP(_xlfn.CONCAT(I57,H57),'full ppr adp'!$A:$K,11,FALSE))),"UND") -> 193 | O57: CeeDee Lamb | P57: DAL | Q57: =VLOOKUP(_xlfn.CONCAT(P57,O57),'wr data'!A:X,24,FALSE) -> 150.4300758 | R57: =IFERROR(Q57-LARGE($Q$3:$Q$150,'Position Expectations'!$B$5+1),Q57-MIN($Q$3:$Q$150)) -> 23.8694813 | S57: =IFERROR(Q57-LARGE($Q$3:$Q$150,Settings!$F$21*Settings!$D$24),Q57-MIN($Q$3:$Q$150))+IF(Settings!$D$26>0,MAX(0,LARGE($Q$3:$Q$150,Settings!$F$21*Settings!$D$24)-LARGE(($Q$3:$Q$150,$J$3:$J$100),Settings!$F$21*(Settings!$D$23+Settings!$D$24+Settings!$D$26))),0) -> -21.3182021 | T57: =IFERROR((IFERROR(IF(Settings!$J$17=1,VLOOKUP(_xlfn.CONCAT(P57,O57),'full ppr adp'!$A:$K,11,FALSE),IF(Settings!$J$17=0,VLOOKUP(_xlfn.CONCAT(P57,O57),'standard adp'!$A:$J,10,FALSE),VLOOKUP(_xlfn.CONCAT(P57,O57),'half ppr adp'!$A:$J,10,FALSE))),VLOOKUP(_xlfn.CONCAT(P57,O57),'full ppr adp'!$A:$K,11,FALSE))),"UND") -> 110
A58: Mason Crosby | B58: GB | C58: =VLOOKUP(_xlfn.CONCAT(B58,A58),'k data'!A:E,5,FALSE) -> 119.6 | D58: =IFERROR(C58-LARGE($C$38:$C$69,'Position Expectations'!$B$7+1),C58-MIN($C$38:$C$69)) -> -10.46 | E58: =IFERROR(C58-LARGE($C$38:$C$75,Settings!$F$21*Settings!$D$27),C58-MIN($C$38:$C$75)) -> -11.89 | F58: =IFERROR(IF(Settings!$J$17=1,VLOOKUP(_xlfn.CONCAT(B58,A58),'full ppr adp'!$A:$K,11,FALSE),IF(Settings!$J$17=0,VLOOKUP(_xlfn.CONCAT(B58,A58),'standard adp'!$A:$J,10,FALSE),VLOOKUP(_xlfn.CONCAT(B58,A58),'half ppr adp'!$A:$J,10,FALSE))),VLOOKUP(_xlfn.CONCAT(B58,A58),'full ppr adp'!$A:$K,11,FALSE)) -> 226.6666667 | H58: Jerick McKinnon | I58: SF | J58: =VLOOKUP(_xlfn.CONCAT(I58,H58),'rb data'!A:X,24,FALSE) -> 82.33788742 | K58: =IFERROR(J58-LARGE($J$3:$J$100,'Position Expectations'!$B$4+1),J58-MIN($J$3:$J$100)) -> 22.77136262 | L58: =IFERROR(J58-LARGE($J$3:$J$100,Settings!$F$21*Settings!$D$23),J58-MIN($J$3:$J$100))+IF(Settings!$D$26>0,MAX(0,LARGE($J$3:$J$100,Settings!$F$21*Settings!$D$23)-LARGE(($Q$3:$Q$150,$J$3:$J$100),Settings!$F$21*(Settings!$D$23+Settings!$D$24+Settings!$D$26))),0) -> -86.71777408 | M58: =IFERROR((IFERROR(IF(Settings!$J$17=1,VLOOKUP(_xlfn.CONCAT(I58,H58),'full ppr adp'!$A:$K,11,FALSE),IF(Settings!$J$17=0,VLOOKUP(_xlfn.CONCAT(I58,H58),'standard adp'!$A:$J,10,FALSE),VLOOKUP(_xlfn.CONCAT(I58,H58),'half ppr adp'!$A:$J,10,FALSE))),VLOOKUP(_xlfn.CONCAT(I58,H58),'full ppr adp'!$A:$K,11,FALSE))),"UND") -> 230 | O58: Cole Beasley | P58: BUF | Q58: =VLOOKUP(_xlfn.CONCAT(P58,O58),'wr data'!A:X,24,FALSE) -> 141.5815335 | R58: =IFERROR(Q58-LARGE($Q$3:$Q$150,'Position Expectations'!$B$5+1),Q58-MIN($Q$3:$Q$150)) -> 15.020939 | S58: =IFERROR(Q58-LARGE($Q$3:$Q$150,Settings!$F$21*Settings!$D$24),Q58-MIN($Q$3:$Q$150))+IF(Settings!$D$26>0,MAX(0,LARGE($Q$3:$Q$150,Settings!$F$21*Settings!$D$24)-LARGE(($Q$3:$Q$150,$J$3:$J$100),Settings!$F$21*(Settings!$D$23+Settings!$D$24+Settings!$D$26))),0) -> -30.1667444 | T58: =IFERROR((IFERROR(IF(Settings!$J$17=1,VLOOKUP(_xlfn.CONCAT(P58,O58),'full ppr adp'!$A:$K,11,FALSE),IF(Settings!$J$17=0,VLOOKUP(_xlfn.CONCAT(P58,O58),'standard adp'!$A:$J,10,FALSE),VLOOKUP(_xlfn.CONCAT(P58,O58),'half ppr adp'!$A:$J,10,FALSE))),VLOOKUP(_xlfn.CONCAT(P58,O58),'full ppr adp'!$A:$K,11,FALSE))),"UND") -> 216.6666667
A59: Tyler Bass | B59: BUF | C59: =VLOOKUP(_xlfn.CONCAT(B59,A59),'k data'!A:E,5,FALSE) -> 115 | D59: =IFERROR(C59-LARGE($C$38:$C$69,'Position Expectations'!$B$7+1),C59-MIN($C$38:$C$69)) -> -15.06 | E59: =IFERROR(C59-LARGE($C$38:$C$75,Settings!$F$21*Settings!$D$27),C59-MIN($C$38:$C$75)) -> -16.49 | F59: =IFERROR(IF(Settings!$J$17=1,VLOOKUP(_xlfn.CONCAT(B59,A59),'full ppr adp'!$A:$K,11,FALSE),IF(Settings!$J$17=0,VLOOKUP(_xlfn.CONCAT(B59,A59),'standard adp'!$A:$J,10,FALSE),VLOOKUP(_xlfn.CONCAT(B59,A59),'half ppr adp'!$A:$J,10,FALSE))),VLOOKUP(_xlfn.CONCAT(B59,A59),'full ppr adp'!$A:$K,11,FALSE)) -> 298.5 | H59: Sony Michel | I59: NE | J59: =VLOOKUP(_xlfn.CONCAT(I59,H59),'rb data'!A:X,24,FALSE) -> 82.16322456 | K59: =IFERROR(J59-LARGE($J$3:$J$100,'Position Expectations'!$B$4+1),J59-MIN($J$3:$J$100)) -> 22.59669976 | L59: =IFERROR(J59-LARGE($J$3:$J$100,Settings!$F$21*Settings!$D$23),J59-MIN($J$3:$J$100))+IF(Settings!$D$26>0,MAX(0,LARGE($J$3:$J$100,Settings!$F$21*Settings!$D$23)-LARGE(($Q$3:$Q$150,$J$3:$J$100),Settings!$F$21*(Settings!$D$23+Settings!$D$24+Settings!$D$26))),0) -> -86.89243694 | M59: =IFERROR((IFERROR(IF(Settings!$J$17=1,VLOOKUP(_xlfn.CONCAT(I59,H59),'full ppr adp'!$A:$K,11,FALSE),IF(Settings!$J$17=0,VLOOKUP(_xlfn.CONCAT(I59,H59),'standard adp'!$A:$J,10,FALSE),VLOOKUP(_xlfn.CONCAT(I59,H59),'half ppr adp'!$A:$J,10,FALSE))),VLOOKUP(_xlfn.CONCAT(I59,H59),'full ppr adp'!$A:$K,11,FALSE))),"UND") -> 122.6666667 | O59: Allen Lazard | P59: GB | Q59: =VLOOKUP(_xlfn.CONCAT(P59,O59),'wr data'!A:X,24,FALSE) -> 140.2085376 | R59: =IFERROR(Q59-LARGE($Q$3:$Q$150,'Position Expectations'!$B$5+1),Q59-MIN($Q$3:$Q$150)) -> 13.6479431 | S59: =IFERROR(Q59-LARGE($Q$3:$Q$150,Settings!$F$21*Settings!$D$24),Q59-MIN($Q$3:$Q$150))+IF(Settings!$D$26>0,MAX(0,LARGE($Q$3:$Q$150,Settings!$F$21*Settings!$D$24)-LARGE(($Q$3:$Q$150,$J$3:$J$100),Settings!$F$21*(Settings!$D$23+Settings!$D$24+Settings!$D$26))),0) -> -31.5397403 | T59: =IFERROR((IFERROR(IF(Settings!$J$17=1,VLOOKUP(_xlfn.CONCAT(P59,O59),'full ppr adp'!$A:$K,11,FALSE),IF(Settings!$J$17=0,VLOOKUP(_xlfn.CONCAT(P59,O59),'standard adp'!$A:$J,10,FALSE),VLOOKUP(_xlfn.CONCAT(P59,O59),'half ppr adp'!$A:$J,10,FALSE))),VLOOKUP(_xlfn.CONCAT(P59,O59),'full ppr adp'!$A:$K,11,FALSE))),"UND") -> 174.3333333
A60: Austin Seibert | B60: CLE | C60: =VLOOKUP(_xlfn.CONCAT(B60,A60),'k data'!A:E,5,FALSE) -> 112.25 | D60: =IFERROR(C60-LARGE($C$38:$C$69,'Position Expectations'!$B$7+1),C60-MIN($C$38:$C$69)) -> -17.81 | E60: =IFERROR(C60-LARGE($C$38:$C$75,Settings!$F$21*Settings!$D$27),C60-MIN($C$38:$C$75)) -> -19.24 | F60: =IFERROR(IF(Settings!$J$17=1,VLOOKUP(_xlfn.CONCAT(B60,A60),'full ppr adp'!$A:$K,11,FALSE),IF(Settings!$J$17=0,VLOOKUP(_xlfn.CONCAT(B60,A60),'standard adp'!$A:$J,10,FALSE),VLOOKUP(_xlfn.CONCAT(B60,A60),'half ppr adp'!$A:$J,10,FALSE))),VLOOKUP(_xlfn.CONCAT(B60,A60),'full ppr adp'!$A:$K,11,FALSE)) -> 264 | H60: Jamaal Williams | I60: GB | J60: =VLOOKUP(_xlfn.CONCAT(I60,H60),'rb data'!A:X,24,FALSE) -> 81.025357 | K60: =IFERROR(J60-LARGE($J$3:$J$100,'Position Expectations'!$B$4+1),J60-MIN($J$3:$J$100)) -> 21.4588322 | L60: =IFERROR(J60-LARGE($J$3:$J$100,Settings!$F$21*Settings!$D$23),J60-MIN($J$3:$J$100))+IF(Settings!$D$26>0,MAX(0,LARGE($J$3:$J$100,Settings!$F$21*Settings!$D$23)-LARGE(($Q$3:$Q$150,$J$3:$J$100),Settings!$F$21*(Settings!$D$23+Settings!$D$24+Settings!$D$26))),0) -> -88.0303045 | M60: =IFERROR((IFERROR(IF(Settings!$J$17=1,VLOOKUP(_xlfn.CONCAT(I60,H60),'full ppr adp'!$A:$K,11,FALSE),IF(Settings!$J$17=0,VLOOKUP(_xlfn.CONCAT(I60,H60),'standard adp'!$A:$J,10,FALSE),VLOOKUP(_xlfn.CONCAT(I60,H60),'half ppr adp'!$A:$J,10,FALSE))),VLOOKUP(_xlfn.CONCAT(I60,H60),'full ppr adp'!$A:$K,11,FALSE))),"UND") -> 171 | O60: Sammy Watkins | P60: KC | Q60: =VLOOKUP(_xlfn.CONCAT(P60,O60),'wr data'!A:X,24,FALSE) -> 137.1359328 | R60: =IFERROR(Q60-LARGE($Q$3:$Q$150,'Position Expectations'!$B$5+1),Q60-MIN($Q$3:$Q$150)) -> 10.5753383 | S60: =IFERROR(Q60-LARGE($Q$3:$Q$150,Settings!$F$21*Settings!$D$24),Q60-MIN($Q$3:$Q$150))+IF(Settings!$D$26>0,MAX(0,LARGE($Q$3:$Q$150,Settings!$F$21*Settings!$D$24)-LARGE(($Q$3:$Q$150,$J$3:$J$100),Settings!$F$21*(Settings!$D$23+Settings!$D$24+Settings!$D$26))),0) -> -34.6123451 | T60: =IFERROR((IFERROR(IF(Settings!$J$17=1,VLOOKUP(_xlfn.CONCAT(P60,O60),'full ppr adp'!$A:$K,11,FALSE),IF(Settings!$J$17=0,VLOOKUP(_xlfn.CONCAT(P60,O60),'standard adp'!$A:$J,10,FALSE),VLOOKUP(_xlfn.CONCAT(P60,O60),'half ppr adp'!$A:$J,10,FALSE))),VLOOKUP(_xlfn.CONCAT(P60,O60),'full ppr adp'!$A:$K,11,FALSE))),"UND") -> 158.6666667
A61: Dustin Hopkins | B61: WAS | C61: =VLOOKUP(_xlfn.CONCAT(B61,A61),'k data'!A:E,5,FALSE) -> 111.8 | D61: =IFERROR(C61-LARGE($C$38:$C$69,'Position Expectations'!$B$7+1),C61-MIN($C$38:$C$69)) -> -18.26 | E61: =IFERROR(C61-LARGE($C$38:$C$75,Settings!$F$21*Settings!$D$27),C61-MIN($C$38:$C$75)) -> -19.69 | F61: =IFERROR(IF(Settings!$J$17=1,VLOOKUP(_xlfn.CONCAT(B61,A61),'full ppr adp'!$A:$K,11,FALSE),IF(Settings!$J$17=0,VLOOKUP(_xlfn.CONCAT(B61,A61),'standard adp'!$A:$J,10,FALSE),VLOOKUP(_xlfn.CONCAT(B61,A61),'half ppr adp'!$A:$J,10,FALSE))),VLOOKUP(_xlfn.CONCAT(B61,A61),'full ppr adp'!$A:$K,11,FALSE)) -> 278 | H61: Jalen Richard | I61: LV | J61: =VLOOKUP(_xlfn.CONCAT(I61,H61),'rb data'!A:X,24,FALSE) -> 80.8012216 | K61: =IFERROR(J61-LARGE($J$3:$J$100,'Position Expectations'!$B$4+1),J61-MIN($J$3:$J$100)) -> 21.2346968 | L61: =IFERROR(J61-LARGE($J$3:$J$100,Settings!$F$21*Settings!$D$23),J61-MIN($J$3:$J$100))+IF(Settings!$D$26>0,MAX(0,LARGE($J$3:$J$100,Settings!$F$21*Settings!$D$23)-LARGE(($Q$3:$Q$150,$J$3:$J$100),Settings!$F$21*(Settings!$D$23+Settings!$D$24+Settings!$D$26))),0) -> -88.2544399 | M61: =IFERROR((IFERROR(IF(Settings!$J$17=1,VLOOKUP(_xlfn.CONCAT(I61,H61),'full ppr adp'!$A:$K,11,FALSE),IF(Settings!$J$17=0,VLOOKUP(_xlfn.CONCAT(I61,H61),'standard adp'!$A:$J,10,FALSE),VLOOKUP(_xlfn.CONCAT(I61,H61),'half ppr adp'!$A:$J,10,FALSE))),VLOOKUP(_xlfn.CONCAT(I61,H61),'full ppr adp'!$A:$K,11,FALSE))),"UND") -> 229.5 | O61: N'Keal Harry | P61: NE | Q61: =VLOOKUP(_xlfn.CONCAT(P61,O61),'wr data'!A:X,24,FALSE) -> 136.2447346 | R61: =IFERROR(Q61-LARGE($Q$3:$Q$150,'Position Expectations'!$B$5+1),Q61-MIN($Q$3:$Q$150)) -> 9.68414006 | S61: =IFERROR(Q61-LARGE($Q$3:$Q$150,Settings!$F$21*Settings!$D$24),Q61-MIN($Q$3:$Q$150))+IF(Settings!$D$26>0,MAX(0,LARGE($Q$3:$Q$150,Settings!$F$21*Settings!$D$24)-LARGE(($Q$3:$Q$150,$J$3:$J$100),Settings!$F$21*(Settings!$D$23+Settings!$D$24+Settings!$D$26))),0) -> -35.50354334 | T61: =IFERROR((IFERROR(IF(Settings!$J$17=1,VLOOKUP(_xlfn.CONCAT(P61,O61),'full ppr adp'!$A:$K,11,FALSE),IF(Settings!$J$17=0,VLOOKUP(_xlfn.CONCAT(P61,O61),'standard adp'!$A:$J,10,FALSE),VLOOKUP(_xlfn.CONCAT(P61,O61),'half ppr adp'!$A:$J,10,FALSE))),VLOOKUP(_xlfn.CONCAT(P61,O61),'full ppr adp'!$A:$K,11,FALSE))),"UND") -> 181.6666667
A62: Jason Myers | B62: SEA | C62: =VLOOKUP(_xlfn.CONCAT(B62,A62),'k data'!A:E,5,FALSE) -> 111.06 | D62: =IFERROR(C62-LARGE($C$38:$C$69,'Position Expectations'!$B$7+1),C62-MIN($C$38:$C$69)) -> -19 | E62: =IFERROR(C62-LARGE($C$38:$C$75,Settings!$F$21*Settings!$D$27),C62-MIN($C$38:$C$75)) -> -20.43 | F62: =IFERROR(IF(Settings!$J$17=1,VLOOKUP(_xlfn.CONCAT(B62,A62),'full ppr adp'!$A:$K,11,FALSE),IF(Settings!$J$17=0,VLOOKUP(_xlfn.CONCAT(B62,A62),'standard adp'!$A:$J,10,FALSE),VLOOKUP(_xlfn.CONCAT(B62,A62),'half ppr adp'!$A:$J,10,FALSE))),VLOOKUP(_xlfn.CONCAT(B62,A62),'full ppr adp'!$A:$K,11,FALSE)) -> 255.5 | H62: Ito Smith | I62: ATL | J62: =VLOOKUP(_xlfn.CONCAT(I62,H62),'rb data'!A:X,24,FALSE) -> 79.0476516 | K62: =IFERROR(J62-LARGE($J$3:$J$100,'Position Expectations'!$B$4+1),J62-MIN($J$3:$J$100)) -> 19.4811268 | L62: =IFERROR(J62-LARGE($J$3:$J$100,Settings!$F$21*Settings!$D$23),J62-MIN($J$3:$J$100))+IF(Settings!$D$26>0,MAX(0,LARGE($J$3:$J$100,Settings!$F$21*Settings!$D$23)-LARGE(($Q$3:$Q$150,$J$3:$J$100),Settings!$F$21*(Settings!$D$23+Settings!$D$24+Settings!$D$26))),0) -> -90.0080099 | M62: =IFERROR((IFERROR(IF(Settings!$J$17=1,VLOOKUP(_xlfn.CONCAT(I62,H62),'full ppr adp'!$A:$K,11,FALSE),IF(Settings!$J$17=0,VLOOKUP(_xlfn.CONCAT(I62,H62),'standard adp'!$A:$J,10,FALSE),VLOOKUP(_xlfn.CONCAT(I62,H62),'half ppr adp'!$A:$J,10,FALSE))),VLOOKUP(_xlfn.CONCAT(I62,H62),'full ppr adp'!$A:$K,11,FALSE))),"UND") -> 240.5 | O62: Jalen Reagor | P62: PHI | Q62: =VLOOKUP(_xlfn.CONCAT(P62,O62),'wr data'!A:X,24,FALSE) -> 133.7953279 | R62: =IFERROR(Q62-LARGE($Q$3:$Q$150,'Position Expectations'!$B$5+1),Q62-MIN($Q$3:$Q$150)) -> 7.2347334 | S62: =IFERROR(Q62-LARGE($Q$3:$Q$150,Settings!$F$21*Settings!$D$24),Q62-MIN($Q$3:$Q$150))+IF(Settings!$D$26>0,MAX(0,LARGE($Q$3:$Q$150,Settings!$F$21*Settings!$D$24)-LARGE(($Q$3:$Q$150,$J$3:$J$100),Settings!$F$21*(Settings!$D$23+Settings!$D$24+Settings!$D$26))),0) -> -37.95295 | T62: =IFERROR((IFERROR(IF(Settings!$J$17=1,VLOOKUP(_xlfn.CONCAT(P62,O62),'full ppr adp'!$A:$K,11,FALSE),IF(Settings!$J$17=0,VLOOKUP(_xlfn.CONCAT(P62,O62),'standard adp'!$A:$J,10,FALSE),VLOOKUP(_xlfn.CONCAT(P62,O62),'half ppr adp'!$A:$J,10,FALSE))),VLOOKUP(_xlfn.CONCAT(P62,O62),'full ppr adp'!$A:$K,11,FALSE))),"UND") -> 150
A63: Sam Ficken | B63: NYJ | C63: =VLOOKUP(_xlfn.CONCAT(B63,A63),'k data'!A:E,5,FALSE) -> 110.03 | D63: =IFERROR(C63-LARGE($C$38:$C$69,'Position Expectations'!$B$7+1),C63-MIN($C$38:$C$69)) -> -20.03 | E63: =IFERROR(C63-LARGE($C$38:$C$75,Settings!$F$21*Settings!$D$27),C63-MIN($C$38:$C$75)) -> -21.46 | F63: =IFERROR(IF(Settings!$J$17=1,VLOOKUP(_xlfn.CONCAT(B63,A63),'full ppr adp'!$A:$K,11,FALSE),IF(Settings!$J$17=0,VLOOKUP(_xlfn.CONCAT(B63,A63),'standard adp'!$A:$J,10,FALSE),VLOOKUP(_xlfn.CONCAT(B63,A63),'half ppr adp'!$A:$J,10,FALSE))),VLOOKUP(_xlfn.CONCAT(B63,A63),'full ppr adp'!$A:$K,11,FALSE)) -> 298 | H63: Justin Jackson | I63: LAC | J63: =VLOOKUP(_xlfn.CONCAT(I63,H63),'rb data'!A:X,24,FALSE) -> 75.78796464 | K63: =IFERROR(J63-LARGE($J$3:$J$100,'Position Expectations'!$B$4+1),J63-MIN($J$3:$J$100)) -> 16.22143984 | L63: =IFERROR(J63-LARGE($J$3:$J$100,Settings!$F$21*Settings!$D$23),J63-MIN($J$3:$J$100))+IF(Settings!$D$26>0,MAX(0,LARGE($J$3:$J$100,Settings!$F$21*Settings!$D$23)-LARGE(($Q$3:$Q$150,$J$3:$J$100),Settings!$F$21*(Settings!$D$23+Settings!$D$24+Settings!$D$26))),0) -> -93.26769686 | M63: =IFERROR((IFERROR(IF(Settings!$J$17=1,VLOOKUP(_xlfn.CONCAT(I63,H63),'full ppr adp'!$A:$K,11,FALSE),IF(Settings!$J$17=0,VLOOKUP(_xlfn.CONCAT(I63,H63),'standard adp'!$A:$J,10,FALSE),VLOOKUP(_xlfn.CONCAT(I63,H63),'half ppr adp'!$A:$J,10,FALSE))),VLOOKUP(_xlfn.CONCAT(I63,H63),'full ppr adp'!$A:$K,11,FALSE))),"UND") -> 162.6666667 | O63: Steven Sims | P63: WAS | Q63: =VLOOKUP(_xlfn.CONCAT(P63,O63),'wr data'!A:X,24,FALSE) -> 132.34618 | R63: =IFERROR(Q63-LARGE($Q$3:$Q$150,'Position Expectations'!$B$5+1),Q63-MIN($Q$3:$Q$150)) -> 5.7855855 | S63: =IFERROR(Q63-LARGE($Q$3:$Q$150,Settings!$F$21*Settings!$D$24),Q63-MIN($Q$3:$Q$150))+IF(Settings!$D$26>0,MAX(0,LARGE($Q$3:$Q$150,Settings!$F$21*Settings!$D$24)-LARGE(($Q$3:$Q$150,$J$3:$J$100),Settings!$F$21*(Settings!$D$23+Settings!$D$24+Settings!$D$26))),0) -> -39.4020979 | T63: =IFERROR((IFERROR(IF(Settings!$J$17=1,VLOOKUP(_xlfn.CONCAT(P63,O63),'full ppr adp'!$A:$K,11,FALSE),IF(Settings!$J$17=0,VLOOKUP(_xlfn.CONCAT(P63,O63),'standard adp'!$A:$J,10,FALSE),VLOOKUP(_xlfn.CONCAT(P63,O63),'half ppr adp'!$A:$J,10,FALSE))),VLOOKUP(_xlfn.CONCAT(P63,O63),'full ppr adp'!$A:$K,11,FALSE))),"UND") -> 281.5
A64: Jake Elliott | B64: PHI | C64: =VLOOKUP(_xlfn.CONCAT(B64,A64),'k data'!A:E,5,FALSE) -> 106.64 | D64: =IFERROR(C64-LARGE($C$38:$C$69,'Position Expectations'!$B$7+1),C64-MIN($C$38:$C$69)) -> -23.42 | E64: =IFERROR(C64-LARGE($C$38:$C$75,Settings!$F$21*Settings!$D$27),C64-MIN($C$38:$C$75)) -> -24.85 | F64: =IFERROR(IF(Settings!$J$17=1,VLOOKUP(_xlfn.CONCAT(B64,A64),'full ppr adp'!$A:$K,11,FALSE),IF(Settings!$J$17=0,VLOOKUP(_xlfn.CONCAT(B64,A64),'standard adp'!$A:$J,10,FALSE),VLOOKUP(_xlfn.CONCAT(B64,A64),'half ppr adp'!$A:$J,10,FALSE))),VLOOKUP(_xlfn.CONCAT(B64,A64),'full ppr adp'!$A:$K,11,FALSE)) -> 225.3333333 | H64: Joshua Kelley | I64: LAC | J64: =VLOOKUP(_xlfn.CONCAT(I64,H64),'rb data'!A:X,24,FALSE) -> 74.3604552 | K64: =IFERROR(J64-LARGE($J$3:$J$100,'Position Expectations'!$B$4+1),J64-MIN($J$3:$J$100)) -> 14.7939304 | L64: =IFERROR(J64-LARGE($J$3:$J$100,Settings!$F$21*Settings!$D$23),J64-MIN($J$3:$J$100))+IF(Settings!$D$26>0,MAX(0,LARGE($J$3:$J$100,Settings!$F$21*Settings!$D$23)-LARGE(($Q$3:$Q$150,$J$3:$J$100),Settings!$F$21*(Settings!$D$23+Settings!$D$24+Settings!$D$26))),0) -> -94.6952063 | M64: =IFERROR((IFERROR(IF(Settings!$J$17=1,VLOOKUP(_xlfn.CONCAT(I64,H64),'full ppr adp'!$A:$K,11,FALSE),IF(Settings!$J$17=0,VLOOKUP(_xlfn.CONCAT(I64,H64),'standard adp'!$A:$J,10,FALSE),VLOOKUP(_xlfn.CONCAT(I64,H64),'half ppr adp'!$A:$J,10,FALSE))),VLOOKUP(_xlfn.CONCAT(I64,H64),'full ppr adp'!$A:$K,11,FALSE))),"UND") -> 208 | O64: Jerry Jeudy | P64: DEN | Q64: =VLOOKUP(_xlfn.CONCAT(P64,O64),'wr data'!A:X,24,FALSE) -> 132.2627216 | R64: =IFERROR(Q64-LARGE($Q$3:$Q$150,'Position Expectations'!$B$5+1),Q64-MIN($Q$3:$Q$150)) -> 5.7021271 | S64: =IFERROR(Q64-LARGE($Q$3:$Q$150,Settings!$F$21*Settings!$D$24),Q64-MIN($Q$3:$Q$150))+IF(Settings!$D$26>0,MAX(0,LARGE($Q$3:$Q$150,Settings!$F$21*Settings!$D$24)-LARGE(($Q$3:$Q$150,$J$3:$J$100),Settings!$F$21*(Settings!$D$23+Settings!$D$24+Settings!$D$26))),0) -> -39.4855563 | T64: =IFERROR((IFERROR(IF(Settings!$J$17=1,VLOOKUP(_xlfn.CONCAT(P64,O64),'full ppr adp'!$A:$K,11,FALSE),IF(Settings!$J$17=0,VLOOKUP(_xlfn.CONCAT(P64,O64),'standard adp'!$A:$J,10,FALSE),VLOOKUP(_xlfn.CONCAT(P64,O64),'half ppr adp'!$A:$J,10,FALSE))),VLOOKUP(_xlfn.CONCAT(P64,O64),'full ppr adp'!$A:$K,11,FALSE))),"UND") -> 114.6666667
A65: Eddy Pineiro | B65: CHI | C65: =VLOOKUP(_xlfn.CONCAT(B65,A65),'k data'!A:E,5,FALSE) -> 101.14 | D65: =IFERROR(C65-LARGE($C$38:$C$69,'Position Expectations'!$B$7+1),C65-MIN($C$38:$C$69)) -> -28.92 | E65: =IFERROR(C65-LARGE($C$38:$C$75,Settings!$F$21*Settings!$D$27),C65-MIN($C$38:$C$75)) -> -30.35 | F65: =IFERROR(IF(Settings!$J$17=1,VLOOKUP(_xlfn.CONCAT(B65,A65),'full ppr adp'!$A:$K,11,FALSE),IF(Settings!$J$17=0,VLOOKUP(_xlfn.CONCAT(B65,A65),'standard adp'!$A:$J,10,FALSE),VLOOKUP(_xlfn.CONCAT(B65,A65),'half ppr adp'!$A:$J,10,FALSE))),VLOOKUP(_xlfn.CONCAT(B65,A65),'full ppr adp'!$A:$K,11,FALSE)) -> 296 | H65: AJ Dillon | I65: GB | J65: =VLOOKUP(_xlfn.CONCAT(I65,H65),'rb data'!A:X,24,FALSE) -> 67.1484002 | K65: =IFERROR(J65-LARGE($J$3:$J$100,'Position Expectations'!$B$4+1),J65-MIN($J$3:$J$100)) -> 7.5818754 | L65: =IFERROR(J65-LARGE($J$3:$J$100,Settings!$F$21*Settings!$D$23),J65-MIN($J$3:$J$100))+IF(Settings!$D$26>0,MAX(0,LARGE($J$3:$J$100,Settings!$F$21*Settings!$D$23)-LARGE(($Q$3:$Q$150,$J$3:$J$100),Settings!$F$21*(Settings!$D$23+Settings!$D$24+Settings!$D$26))),0) -> -101.9072613 | M65: =IFERROR((IFERROR(IF(Settings!$J$17=1,VLOOKUP(_xlfn.CONCAT(I65,H65),'full ppr adp'!$A:$K,11,FALSE),IF(Settings!$J$17=0,VLOOKUP(_xlfn.CONCAT(I65,H65),'standard adp'!$A:$J,10,FALSE),VLOOKUP(_xlfn.CONCAT(I65,H65),'half ppr adp'!$A:$J,10,FALSE))),VLOOKUP(_xlfn.CONCAT(I65,H65),'full ppr adp'!$A:$K,11,FALSE))),"UND") -> 175.3333333 | O65: Michael Pittman Jr. | P65: IND | Q65: =VLOOKUP(_xlfn.CONCAT(P65,O65),'wr data'!A:X,24,FALSE) -> 130.2183223 | R65: =IFERROR(Q65-LARGE($Q$3:$Q$150,'Position Expectations'!$B$5+1),Q65-MIN($Q$3:$Q$150)) -> 3.6577278 | S65: =IFERROR(Q65-LARGE($Q$3:$Q$150,Settings!$F$21*Settings!$D$24),Q65-MIN($Q$3:$Q$150))+IF(Settings!$D$26>0,MAX(0,LARGE($Q$3:$Q$150,Settings!$F$21*Settings!$D$24)-LARGE(($Q$3:$Q$150,$J$3:$J$100),Settings!$F$21*(Settings!$D$23+Settings!$D$24+Settings!$D$26))),0) -> -41.5299556 | T65: =IFERROR((IFERROR(IF(Settings!$J$17=1,VLOOKUP(_xlfn.CONCAT(P65,O65),'full ppr adp'!$A:$K,11,FALSE),IF(Settings!$J$17=0,VLOOKUP(_xlfn.CONCAT(P65,O65),'standard adp'!$A:$J,10,FALSE),VLOOKUP(_xlfn.CONCAT(P65,O65),'half ppr adp'!$A:$J,10,FALSE))),VLOOKUP(_xlfn.CONCAT(P65,O65),'full ppr adp'!$A:$K,11,FALSE))),"UND") -> 167.6666667
A66: Ka'imi Fairbairn | B66: HOU | C66: =VLOOKUP(_xlfn.CONCAT(B66,A66),'k data'!A:E,5,FALSE) -> 99.73 | D66: =IFERROR(C66-LARGE($C$38:$C$69,'Position Expectations'!$B$7+1),C66-MIN($C$38:$C$69)) -> -30.33 | E66: =IFERROR(C66-LARGE($C$38:$C$75,Settings!$F$21*Settings!$D$27),C66-MIN($C$38:$C$75)) -> -31.76 | F66: =IFERROR(IF(Settings!$J$17=1,VLOOKUP(_xlfn.CONCAT(B66,A66),'full ppr adp'!$A:$K,11,FALSE),IF(Settings!$J$17=0,VLOOKUP(_xlfn.CONCAT(B66,A66),'standard adp'!$A:$J,10,FALSE),VLOOKUP(_xlfn.CONCAT(B66,A66),'half ppr adp'!$A:$J,10,FALSE))),VLOOKUP(_xlfn.CONCAT(B66,A66),'full ppr adp'!$A:$K,11,FALSE)) -> 227.3333333 | H66: Damien Harris | I66: NE | J66: =VLOOKUP(_xlfn.CONCAT(I66,H66),'rb data'!A:X,24,FALSE) -> 62.5899276 | K66: =IFERROR(J66-LARGE($J$3:$J$100,'Position Expectations'!$B$4+1),J66-MIN($J$3:$J$100)) -> 3.0234028 | L66: =IFERROR(J66-LARGE($J$3:$J$100,Settings!$F$21*Settings!$D$23),J66-MIN($J$3:$J$100))+IF(Settings!$D$26>0,MAX(0,LARGE($J$3:$J$100,Settings!$F$21*Settings!$D$23)-LARGE(($Q$3:$Q$150,$J$3:$J$100),Settings!$F$21*(Settings!$D$23+Settings!$D$24+Settings!$D$26))),0) -> -106.4657339 | M66: =IFERROR((IFERROR(IF(Settings!$J$17=1,VLOOKUP(_xlfn.CONCAT(I66,H66),'full ppr adp'!$A:$K,11,FALSE),IF(Settings!$J$17=0,VLOOKUP(_xlfn.CONCAT(I66,H66),'standard adp'!$A:$J,10,FALSE),VLOOKUP(_xlfn.CONCAT(I66,H66),'half ppr adp'!$A:$J,10,FALSE))),VLOOKUP(_xlfn.CONCAT(I66,H66),'full ppr adp'!$A:$K,11,FALSE))),"UND") -> 180 | O66: Hunter Renfrow | P66: LV | Q66: =VLOOKUP(_xlfn.CONCAT(P66,O66),'wr data'!A:X,24,FALSE) -> 128.8700856 | R66: =IFERROR(Q66-LARGE($Q$3:$Q$150,'Position Expectations'!$B$5+1),Q66-MIN($Q$3:$Q$150)) -> 2.3094911 | S66: =IFERROR(Q66-LARGE($Q$3:$Q$150,Settings!$F$21*Settings!$D$24),Q66-MIN($Q$3:$Q$150))+IF(Settings!$D$26>0,MAX(0,LARGE($Q$3:$Q$150,Settings!$F$21*Settings!$D$24)-LARGE(($Q$3:$Q$150,$J$3:$J$100),Settings!$F$21*(Settings!$D$23+Settings!$D$24+Settings!$D$26))),0) -> -42.8781923 | T66: =IFERROR((IFERROR(IF(Settings!$J$17=1,VLOOKUP(_xlfn.CONCAT(P66,O66),'full ppr adp'!$A:$K,11,FALSE),IF(Settings!$J$17=0,VLOOKUP(_xlfn.CONCAT(P66,O66),'standard adp'!$A:$J,10,FALSE),VLOOKUP(_xlfn.CONCAT(P66,O66),'half ppr adp'!$A:$J,10,FALSE))),VLOOKUP(_xlfn.CONCAT(P66,O66),'full ppr adp'!$A:$K,11,FALSE))),"UND") -> 165
A67: Graham Gano | B67: NYG | C67: =VLOOKUP(_xlfn.CONCAT(B67,A67),'k data'!A:E,5,FALSE) -> 98.96 | D67: =IFERROR(C67-LARGE($C$38:$C$69,'Position Expectations'!$B$7+1),C67-MIN($C$38:$C$69)) -> -31.1 | E67: =IFERROR(C67-LARGE($C$38:$C$75,Settings!$F$21*Settings!$D$27),C67-MIN($C$38:$C$75)) -> -32.53 | F67: =IFERROR(IF(Settings!$J$17=1,VLOOKUP(_xlfn.CONCAT(B67,A67),'full ppr adp'!$A:$K,11,FALSE),IF(Settings!$J$17=0,VLOOKUP(_xlfn.CONCAT(B67,A67),'standard adp'!$A:$J,10,FALSE),VLOOKUP(_xlfn.CONCAT(B67,A67),'half ppr adp'!$A:$J,10,FALSE))),VLOOKUP(_xlfn.CONCAT(B67,A67),'full ppr adp'!$A:$K,11,FALSE)) -> 281 | H67: Frank Gore | I67: NYJ | J67: =VLOOKUP(_xlfn.CONCAT(I67,H67),'rb data'!A:X,24,FALSE) -> 62.2371984 | K67: =IFERROR(J67-LARGE($J$3:$J$100,'Position Expectations'!$B$4+1),J67-MIN($J$3:$J$100)) -> 2.6706736 | L67: =IFERROR(J67-LARGE($J$3:$J$100,Settings!$F$21*Settings!$D$23),J67-MIN($J$3:$J$100))+IF(Settings!$D$26>0,MAX(0,LARGE($J$3:$J$100,Settings!$F$21*Settings!$D$23)-LARGE(($Q$3:$Q$150,$J$3:$J$100),Settings!$F$21*(Settings!$D$23+Settings!$D$24+Settings!$D$26))),0) -> -106.8184631 | M67: =IFERROR((IFERROR(IF(Settings!$J$17=1,VLOOKUP(_xlfn.CONCAT(I67,H67),'full ppr adp'!$A:$K,11,FALSE),IF(Settings!$J$17=0,VLOOKUP(_xlfn.CONCAT(I67,H67),'standard adp'!$A:$J,10,FALSE),VLOOKUP(_xlfn.CONCAT(I67,H67),'half ppr adp'!$A:$J,10,FALSE))),VLOOKUP(_xlfn.CONCAT(I67,H67),'full ppr adp'!$A:$K,11,FALSE))),"UND") -> 248 | O67: Mecole Hardman | P67: KC | Q67: =VLOOKUP(_xlfn.CONCAT(P67,O67),'wr data'!A:X,24,FALSE) -> 126.5605945 | R67: =IFERROR(Q67-LARGE($Q$3:$Q$150,'Position Expectations'!$B$5+1),Q67-MIN($Q$3:$Q$150)) -> 0 | S67: =IFERROR(Q67-LARGE($Q$3:$Q$150,Settings!$F$21*Settings!$D$24),Q67-MIN($Q$3:$Q$150))+IF(Settings!$D$26>0,MAX(0,LARGE($Q$3:$Q$150,Settings!$F$21*Settings!$D$24)-LARGE(($Q$3:$Q$150,$J$3:$J$100),Settings!$F$21*(Settings!$D$23+Settings!$D$24+Settings!$D$26))),0) -> -45.1876834 | T67: =IFERROR((IFERROR(IF(Settings!$J$17=1,VLOOKUP(_xlfn.CONCAT(P67,O67),'full ppr adp'!$A:$K,11,FALSE),IF(Settings!$J$17=0,VLOOKUP(_xlfn.CONCAT(P67,O67),'standard adp'!$A:$J,10,FALSE),VLOOKUP(_xlfn.CONCAT(P67,O67),'half ppr adp'!$A:$J,10,FALSE))),VLOOKUP(_xlfn.CONCAT(P67,O67),'full ppr adp'!$A:$K,11,FALSE))),"UND") -> 135.6666667
A68: Daniel Carlson | B68: LV | C68: =VLOOKUP(_xlfn.CONCAT(B68,A68),'k data'!A:E,5,FALSE) -> 95.94 | D68: =IFERROR(C68-LARGE($C$38:$C$69,'Position Expectations'!$B$7+1),C68-MIN($C$38:$C$69)) -> -34.12 | E68: =IFERROR(C68-LARGE($C$38:$C$75,Settings!$F$21*Settings!$D$27),C68-MIN($C$38:$C$75)) -> -35.55 | F68: =IFERROR(IF(Settings!$J$17=1,VLOOKUP(_xlfn.CONCAT(B68,A68),'full ppr adp'!$A:$K,11,FALSE),IF(Settings!$J$17=0,VLOOKUP(_xlfn.CONCAT(B68,A68),'standard adp'!$A:$J,10,FALSE),VLOOKUP(_xlfn.CONCAT(B68,A68),'half ppr adp'!$A:$J,10,FALSE))),VLOOKUP(_xlfn.CONCAT(B68,A68),'full ppr adp'!$A:$K,11,FALSE)) -> 301.5 | H68: Devine Ozigbo | I68: JAC | J68: =VLOOKUP(_xlfn.CONCAT(I68,H68),'rb data'!A:X,24,FALSE) -> 61.3568359 | K68: =IFERROR(J68-LARGE($J$3:$J$100,'Position Expectations'!$B$4+1),J68-MIN($J$3:$J$100)) -> 1.7903111 | L68: =IFERROR(J68-LARGE($J$3:$J$100,Settings!$F$21*Settings!$D$23),J68-MIN($J$3:$J$100))+IF(Settings!$D$26>0,MAX(0,LARGE($J$3:$J$100,Settings!$F$21*Settings!$D$23)-LARGE(($Q$3:$Q$150,$J$3:$J$100),Settings!$F$21*(Settings!$D$23+Settings!$D$24+Settings!$D$26))),0) -> -107.6988256 | M68: =IFERROR((IFERROR(IF(Settings!$J$17=1,VLOOKUP(_xlfn.CONCAT(I68,H68),'full ppr adp'!$A:$K,11,FALSE),IF(Settings!$J$17=0,VLOOKUP(_xlfn.CONCAT(I68,H68),'standard adp'!$A:$J,10,FALSE),VLOOKUP(_xlfn.CONCAT(I68,H68),'half ppr adp'!$A:$J,10,FALSE))),VLOOKUP(_xlfn.CONCAT(I68,H68),'full ppr adp'!$A:$K,11,FALSE))),"UND") -> 293.5 | O68: Justin Jefferson | P68: MIN | Q68: =VLOOKUP(_xlfn.CONCAT(P68,O68),'wr data'!A:X,24,FALSE) -> 126.3012051 | R68: =IFERROR(Q68-LARGE($Q$3:$Q$150,'Position Expectations'!$B$5+1),Q68-MIN($Q$3:$Q$150)) -> -0.2593894 | S68: =IFERROR(Q68-LARGE($Q$3:$Q$150,Settings!$F$21*Settings!$D$24),Q68-MIN($Q$3:$Q$150))+IF(Settings!$D$26>0,MAX(0,LARGE($Q$3:$Q$150,Settings!$F$21*Settings!$D$24)-LARGE(($Q$3:$Q$150,$J$3:$J$100),Settings!$F$21*(Settings!$D$23+Settings!$D$24+Settings!$D$26))),0) -> -45.4470728 | T68: =IFERROR((IFERROR(IF(Settings!$J$17=1,VLOOKUP(_xlfn.CONCAT(P68,O68),'full ppr adp'!$A:$K,11,FALSE),IF(Settings!$J$17=0,VLOOKUP(_xlfn.CONCAT(P68,O68),'standard adp'!$A:$J,10,FALSE),VLOOKUP(_xlfn.CONCAT(P68,O68),'half ppr adp'!$A:$J,10,FALSE))),VLOOKUP(_xlfn.CONCAT(P68,O68),'full ppr adp'!$A:$K,11,FALSE))),"UND") -> 117.6666667
A69: Greg Joseph | B69: TEN | C69: =VLOOKUP(_xlfn.CONCAT(B69,A69),'k data'!A:E,5,FALSE) -> 80.22 | D69: =IFERROR(C69-LARGE($C$38:$C$69,'Position Expectations'!$B$7+1),C69-MIN($C$38:$C$69)) -> -49.84 | E69: =IFERROR(C69-LARGE($C$38:$C$75,Settings!$F$21*Settings!$D$27),C69-MIN($C$38:$C$75)) -> -51.27 | F69: =IFERROR(IF(Settings!$J$17=1,VLOOKUP(_xlfn.CONCAT(B69,A69),'full ppr adp'!$A:$K,11,FALSE),IF(Settings!$J$17=0,VLOOKUP(_xlfn.CONCAT(B69,A69),'standard adp'!$A:$J,10,FALSE),VLOOKUP(_xlfn.CONCAT(B69,A69),'half ppr adp'!$A:$J,10,FALSE))),VLOOKUP(_xlfn.CONCAT(B69,A69),'full ppr adp'!$A:$K,11,FALSE)) -> 280 | H69: Rex Burkhead | I69: NE | J69: =VLOOKUP(_xlfn.CONCAT(I69,H69),'rb data'!A:X,24,FALSE) -> 59.5665248 | K69: =IFERROR(J69-LARGE($J$3:$J$100,'Position Expectations'!$B$4+1),J69-MIN($J$3:$J$100)) -> 0 | L69: =IFERROR(J69-LARGE($J$3:$J$100,Settings!$F$21*Settings!$D$23),J69-MIN($J$3:$J$100))+IF(Settings!$D$26>0,MAX(0,LARGE($J$3:$J$100,Settings!$F$21*Settings!$D$23)-LARGE(($Q$3:$Q$150,$J$3:$J$100),Settings!$F$21*(Settings!$D$23+Settings!$D$24+Settings!$D$26))),0) -> -109.4891367 | M69: =IFERROR((IFERROR(IF(Settings!$J$17=1,VLOOKUP(_xlfn.CONCAT(I69,H69),'full ppr adp'!$A:$K,11,FALSE),IF(Settings!$J$17=0,VLOOKUP(_xlfn.CONCAT(I69,H69),'standard adp'!$A:$J,10,FALSE),VLOOKUP(_xlfn.CONCAT(I69,H69),'half ppr adp'!$A:$J,10,FALSE))),VLOOKUP(_xlfn.CONCAT(I69,H69),'full ppr adp'!$A:$K,11,FALSE))),"UND") -> 288 | O69: Larry Fitzgerald | P69: ARI | Q69: =VLOOKUP(_xlfn.CONCAT(P69,O69),'wr data'!A:X,24,FALSE) -> 123.078048 | R69: =IFERROR(Q69-LARGE($Q$3:$Q$150,'Position Expectations'!$B$5+1),Q69-MIN($Q$3:$Q$150)) -> -3.4825465 | S69: =IFERROR(Q69-LARGE($Q$3:$Q$150,Settings!$F$21*Settings!$D$24),Q69-MIN($Q$3:$Q$150))+IF(Settings!$D$26>0,MAX(0,LARGE($Q$3:$Q$150,Settings!$F$21*Settings!$D$24)-LARGE(($Q$3:$Q$150,$J$3:$J$100),Settings!$F$21*(Settings!$D$23+Settings!$D$24+Settings!$D$26))),0) -> -48.6702299 | T69: =IFERROR((IFERROR(IF(Settings!$J$17=1,VLOOKUP(_xlfn.CONCAT(P69,O69),'full ppr adp'!$A:$K,11,FALSE),IF(Settings!$J$17=0,VLOOKUP(_xlfn.CONCAT(P69,O69),'standard adp'!$A:$J,10,FALSE),VLOOKUP(_xlfn.CONCAT(P69,O69),'half ppr adp'!$A:$J,10,FALSE))),VLOOKUP(_xlfn.CONCAT(P69,O69),'full ppr adp'!$A:$K,11,FALSE))),"UND") -> 181.6666667
H70: Lamar Miller | I70: NE | J70: =VLOOKUP(_xlfn.CONCAT(I70,H70),'rb data'!A:X,24,FALSE) -> 58.9990444 | K70: =IFERROR(J70-LARGE($J$3:$J$100,'Position Expectations'!$B$4+1),J70-MIN($J$3:$J$100)) -> -0.5674804 | L70: =IFERROR(J70-LARGE($J$3:$J$100,Settings!$F$21*Settings!$D$23),J70-MIN($J$3:$J$100))+IF(Settings!$D$26>0,MAX(0,LARGE($J$3:$J$100,Settings!$F$21*Settings!$D$23)-LARGE(($Q$3:$Q$150,$J$3:$J$100),Settings!$F$21*(Settings!$D$23+Settings!$D$24+Settings!$D$26))),0) -> -110.0566171 | M70: =IFERROR((IFERROR(IF(Settings!$J$17=1,VLOOKUP(_xlfn.CONCAT(I70,H70),'full ppr adp'!$A:$K,11,FALSE),IF(Settings!$J$17=0,VLOOKUP(_xlfn.CONCAT(I70,H70),'standard adp'!$A:$J,10,FALSE),VLOOKUP(_xlfn.CONCAT(I70,H70),'half ppr adp'!$A:$J,10,FALSE))),VLOOKUP(_xlfn.CONCAT(I70,H70),'full ppr adp'!$A:$K,11,FALSE))),"UND") -> 199.5 | O70: Corey Davis | P70: TEN | Q70: =VLOOKUP(_xlfn.CONCAT(P70,O70),'wr data'!A:X,24,FALSE) -> 120.7365905 | R70: =IFERROR(Q70-LARGE($Q$3:$Q$150,'Position Expectations'!$B$5+1),Q70-MIN($Q$3:$Q$150)) -> -5.824004 | S70: =IFERROR(Q70-LARGE($Q$3:$Q$150,Settings!$F$21*Settings!$D$24),Q70-MIN($Q$3:$Q$150))+IF(Settings!$D$26>0,MAX(0,LARGE($Q$3:$Q$150,Settings!$F$21*Settings!$D$24)-LARGE(($Q$3:$Q$150,$J$3:$J$100),Settings!$F$21*(Settings!$D$23+Settings!$D$24+Settings!$D$26))),0) -> -51.0116874 | T70: =IFERROR((IFERROR(IF(Settings!$J$17=1,VLOOKUP(_xlfn.CONCAT(P70,O70),'full ppr adp'!$A:$K,11,FALSE),IF(Settings!$J$17=0,VLOOKUP(_xlfn.CONCAT(P70,O70),'standard adp'!$A:$J,10,FALSE),VLOOKUP(_xlfn.CONCAT(P70,O70),'half ppr adp'!$A:$J,10,FALSE))),VLOOKUP(_xlfn.CONCAT(P70,O70),'full ppr adp'!$A:$K,11,FALSE))),"UND") -> 200
H71: Malcolm Brown | I71: LAR | J71: =VLOOKUP(_xlfn.CONCAT(I71,H71),'rb data'!A:X,24,FALSE) -> 58.94944912 | K71: =IFERROR(J71-LARGE($J$3:$J$100,'Position Expectations'!$B$4+1),J71-MIN($J$3:$J$100)) -> -0.61707568 | L71: =IFERROR(J71-LARGE($J$3:$J$100,Settings!$F$21*Settings!$D$23),J71-MIN($J$3:$J$100))+IF(Settings!$D$26>0,MAX(0,LARGE($J$3:$J$100,Settings!$F$21*Settings!$D$23)-LARGE(($Q$3:$Q$150,$J$3:$J$100),Settings!$F$21*(Settings!$D$23+Settings!$D$24+Settings!$D$26))),0) -> -110.1062124 | M71: =IFERROR((IFERROR(IF(Settings!$J$17=1,VLOOKUP(_xlfn.CONCAT(I71,H71),'full ppr adp'!$A:$K,11,FALSE),IF(Settings!$J$17=0,VLOOKUP(_xlfn.CONCAT(I71,H71),'standard adp'!$A:$J,10,FALSE),VLOOKUP(_xlfn.CONCAT(I71,H71),'half ppr adp'!$A:$J,10,FALSE))),VLOOKUP(_xlfn.CONCAT(I71,H71),'full ppr adp'!$A:$K,11,FALSE))),"UND") -> 218 | O71: Bryan Edwards | P71: LV | Q71: =VLOOKUP(_xlfn.CONCAT(P71,O71),'wr data'!A:X,24,FALSE) -> 118.5613117 | R71: =IFERROR(Q71-LARGE($Q$3:$Q$150,'Position Expectations'!$B$5+1),Q71-MIN($Q$3:$Q$150)) -> -7.9992828 | S71: =IFERROR(Q71-LARGE($Q$3:$Q$150,Settings!$F$21*Settings!$D$24),Q71-MIN($Q$3:$Q$150))+IF(Settings!$D$26>0,MAX(0,LARGE($Q$3:$Q$150,Settings!$F$21*Settings!$D$24)-LARGE(($Q$3:$Q$150,$J$3:$J$100),Settings!$F$21*(Settings!$D$23+Settings!$D$24+Settings!$D$26))),0) -> -53.1869662 | T71: =IFERROR((IFERROR(IF(Settings!$J$17=1,VLOOKUP(_xlfn.CONCAT(P71,O71),'full ppr adp'!$A:$K,11,FALSE),IF(Settings!$J$17=0,VLOOKUP(_xlfn.CONCAT(P71,O71),'standard adp'!$A:$J,10,FALSE),VLOOKUP(_xlfn.CONCAT(P71,O71),'half ppr adp'!$A:$J,10,FALSE))),VLOOKUP(_xlfn.CONCAT(P71,O71),'full ppr adp'!$A:$K,11,FALSE))),"UND") -> 219
H72: Brian Hill | I72: ATL | J72: =VLOOKUP(_xlfn.CONCAT(I72,H72),'rb data'!A:X,24,FALSE) -> 58.8059208 | K72: =IFERROR(J72-LARGE($J$3:$J$100,'Position Expectations'!$B$4+1),J72-MIN($J$3:$J$100)) -> -0.760604 | L72: =IFERROR(J72-LARGE($J$3:$J$100,Settings!$F$21*Settings!$D$23),J72-MIN($J$3:$J$100))+IF(Settings!$D$26>0,MAX(0,LARGE($J$3:$J$100,Settings!$F$21*Settings!$D$23)-LARGE(($Q$3:$Q$150,$J$3:$J$100),Settings!$F$21*(Settings!$D$23+Settings!$D$24+Settings!$D$26))),0) -> -110.2497407 | M72: =IFERROR((IFERROR(IF(Settings!$J$17=1,VLOOKUP(_xlfn.CONCAT(I72,H72),'full ppr adp'!$A:$K,11,FALSE),IF(Settings!$J$17=0,VLOOKUP(_xlfn.CONCAT(I72,H72),'standard adp'!$A:$J,10,FALSE),VLOOKUP(_xlfn.CONCAT(I72,H72),'half ppr adp'!$A:$J,10,FALSE))),VLOOKUP(_xlfn.CONCAT(I72,H72),'full ppr adp'!$A:$K,11,FALSE))),"UND") -> 234 | O72: Brandon Aiyuk | P72: SF | Q72: =VLOOKUP(_xlfn.CONCAT(P72,O72),'wr data'!A:X,24,FALSE) -> 117.976375 | R72: =IFERROR(Q72-LARGE($Q$3:$Q$150,'Position Expectations'!$B$5+1),Q72-MIN($Q$3:$Q$150)) -> -8.5842195 | S72: =IFERROR(Q72-LARGE($Q$3:$Q$150,Settings!$F$21*Settings!$D$24),Q72-MIN($Q$3:$Q$150))+IF(Settings!$D$26>0,MAX(0,LARGE($Q$3:$Q$150,Settings!$F$21*Settings!$D$24)-LARGE(($Q$3:$Q$150,$J$3:$J$100),Settings!$F$21*(Settings!$D$23+Settings!$D$24+Settings!$D$26))),0) -> -53.7719029 | T72: =IFERROR((IFERROR(IF(Settings!$J$17=1,VLOOKUP(_xlfn.CONCAT(P72,O72),'full ppr adp'!$A:$K,11,FALSE),IF(Settings!$J$17=0,VLOOKUP(_xlfn.CONCAT(P72,O72),'standard adp'!$A:$J,10,FALSE),VLOOKUP(_xlfn.CONCAT(P72,O72),'half ppr adp'!$A:$J,10,FALSE))),VLOOKUP(_xlfn.CONCAT(P72,O72),'full ppr adp'!$A:$K,11,FALSE))),"UND") -> 174.3333333
H73: Rashaad Penny | I73: SEA | J73: =VLOOKUP(_xlfn.CONCAT(I73,H73),'rb data'!A:X,24,FALSE) -> 58.19488168 | K73: =IFERROR(J73-LARGE($J$3:$J$100,'Position Expectations'!$B$4+1),J73-MIN($J$3:$J$100)) -> -1.37164312 | L73: =IFERROR(J73-LARGE($J$3:$J$100,Settings!$F$21*Settings!$D$23),J73-MIN($J$3:$J$100))+IF(Settings!$D$26>0,MAX(0,LARGE($J$3:$J$100,Settings!$F$21*Settings!$D$23)-LARGE(($Q$3:$Q$150,$J$3:$J$100),Settings!$F$21*(Settings!$D$23+Settings!$D$24+Settings!$D$26))),0) -> -110.8607798 | M73: =IFERROR((IFERROR(IF(Settings!$J$17=1,VLOOKUP(_xlfn.CONCAT(I73,H73),'full ppr adp'!$A:$K,11,FALSE),IF(Settings!$J$17=0,VLOOKUP(_xlfn.CONCAT(I73,H73),'standard adp'!$A:$J,10,FALSE),VLOOKUP(_xlfn.CONCAT(I73,H73),'half ppr adp'!$A:$J,10,FALSE))),VLOOKUP(_xlfn.CONCAT(I73,H73),'full ppr adp'!$A:$K,11,FALSE))),"UND") -> 181 | O73: Danny Amendola | P73: DET | Q73: =VLOOKUP(_xlfn.CONCAT(P73,O73),'wr data'!A:X,24,FALSE) -> 117.2553908 | R73: =IFERROR(Q73-LARGE($Q$3:$Q$150,'Position Expectations'!$B$5+1),Q73-MIN($Q$3:$Q$150)) -> -9.30520372 | S73: =IFERROR(Q73-LARGE($Q$3:$Q$150,Settings!$F$21*Settings!$D$24),Q73-MIN($Q$3:$Q$150))+IF(Settings!$D$26>0,MAX(0,LARGE($Q$3:$Q$150,Settings!$F$21*Settings!$D$24)-LARGE(($Q$3:$Q$150,$J$3:$J$100),Settings!$F$21*(Settings!$D$23+Settings!$D$24+Settings!$D$26))),0) -> -54.49288712 | T73: =IFERROR((IFERROR(IF(Settings!$J$17=1,VLOOKUP(_xlfn.CONCAT(P73,O73),'full ppr adp'!$A:$K,11,FALSE),IF(Settings!$J$17=0,VLOOKUP(_xlfn.CONCAT(P73,O73),'standard adp'!$A:$J,10,FALSE),VLOOKUP(_xlfn.CONCAT(P73,O73),'half ppr adp'!$A:$J,10,FALSE))),VLOOKUP(_xlfn.CONCAT(P73,O73),'full ppr adp'!$A:$K,11,FALSE))),"UND") -> 248
H74: Dion Lewis | I74: NYG | J74: =VLOOKUP(_xlfn.CONCAT(I74,H74),'rb data'!A:X,24,FALSE) -> 56.4233408 | K74: =IFERROR(J74-LARGE($J$3:$J$100,'Position Expectations'!$B$4+1),J74-MIN($J$3:$J$100)) -> -3.143184 | L74: =IFERROR(J74-LARGE($J$3:$J$100,Settings!$F$21*Settings!$D$23),J74-MIN($J$3:$J$100))+IF(Settings!$D$26>0,MAX(0,LARGE($J$3:$J$100,Settings!$F$21*Settings!$D$23)-LARGE(($Q$3:$Q$150,$J$3:$J$100),Settings!$F$21*(Settings!$D$23+Settings!$D$24+Settings!$D$26))),0) -> -112.6323207 | M74: =IFERROR((IFERROR(IF(Settings!$J$17=1,VLOOKUP(_xlfn.CONCAT(I74,H74),'full ppr adp'!$A:$K,11,FALSE),IF(Settings!$J$17=0,VLOOKUP(_xlfn.CONCAT(I74,H74),'standard adp'!$A:$J,10,FALSE),VLOOKUP(_xlfn.CONCAT(I74,H74),'half ppr adp'!$A:$J,10,FALSE))),VLOOKUP(_xlfn.CONCAT(I74,H74),'full ppr adp'!$A:$K,11,FALSE))),"UND") -> 224.5 | O74: John Ross | P74: CIN | Q74: =VLOOKUP(_xlfn.CONCAT(P74,O74),'wr data'!A:X,24,FALSE) -> 111.1748171 | R74: =IFERROR(Q74-LARGE($Q$3:$Q$150,'Position Expectations'!$B$5+1),Q74-MIN($Q$3:$Q$150)) -> -15.38577745 | S74: =IFERROR(Q74-LARGE($Q$3:$Q$150,Settings!$F$21*Settings!$D$24),Q74-MIN($Q$3:$Q$150))+IF(Settings!$D$26>0,MAX(0,LARGE($Q$3:$Q$150,Settings!$F$21*Settings!$D$24)-LARGE(($Q$3:$Q$150,$J$3:$J$100),Settings!$F$21*(Settings!$D$23+Settings!$D$24+Settings!$D$26))),0) -> -60.57346085 | T74: =IFERROR((IFERROR(IF(Settings!$J$17=1,VLOOKUP(_xlfn.CONCAT(P74,O74),'full ppr adp'!$A:$K,11,FALSE),IF(Settings!$J$17=0,VLOOKUP(_xlfn.CONCAT(P74,O74),'standard adp'!$A:$J,10,FALSE),VLOOKUP(_xlfn.CONCAT(P74,O74),'half ppr adp'!$A:$J,10,FALSE))),VLOOKUP(_xlfn.CONCAT(P74,O74),'full ppr adp'!$A:$K,11,FALSE))),"UND") -> 182
H75: Bryce Love | I75: WAS | J75: =VLOOKUP(_xlfn.CONCAT(I75,H75),'rb data'!A:X,24,FALSE) -> 55.1229338 | K75: =IFERROR(J75-LARGE($J$3:$J$100,'Position Expectations'!$B$4+1),J75-MIN($J$3:$J$100)) -> -4.443591 | L75: =IFERROR(J75-LARGE($J$3:$J$100,Settings!$F$21*Settings!$D$23),J75-MIN($J$3:$J$100))+IF(Settings!$D$26>0,MAX(0,LARGE($J$3:$J$100,Settings!$F$21*Settings!$D$23)-LARGE(($Q$3:$Q$150,$J$3:$J$100),Settings!$F$21*(Settings!$D$23+Settings!$D$24+Settings!$D$26))),0) -> -113.9327277 | M75: =IFERROR((IFERROR(IF(Settings!$J$17=1,VLOOKUP(_xlfn.CONCAT(I75,H75),'full ppr adp'!$A:$K,11,FALSE),IF(Settings!$J$17=0,VLOOKUP(_xlfn.CONCAT(I75,H75),'standard adp'!$A:$J,10,FALSE),VLOOKUP(_xlfn.CONCAT(I75,H75),'half ppr adp'!$A:$J,10,FALSE))),VLOOKUP(_xlfn.CONCAT(I75,H75),'full ppr adp'!$A:$K,11,FALSE))),"UND") -> 262 | O75: Josh Reynolds | P75: LAR | Q75: =VLOOKUP(_xlfn.CONCAT(P75,O75),'wr data'!A:X,24,FALSE) -> 110.8543853 | R75: =IFERROR(Q75-LARGE($Q$3:$Q$150,'Position Expectations'!$B$5+1),Q75-MIN($Q$3:$Q$150)) -> -15.70620922 | S75: =IFERROR(Q75-LARGE($Q$3:$Q$150,Settings!$F$21*Settings!$D$24),Q75-MIN($Q$3:$Q$150))+IF(Settings!$D$26>0,MAX(0,LARGE($Q$3:$Q$150,Settings!$F$21*Settings!$D$24)-LARGE(($Q$3:$Q$150,$J$3:$J$100),Settings!$F$21*(Settings!$D$23+Settings!$D$24+Settings!$D$26))),0) -> -60.89389262 | T75: =IFERROR((IFERROR(IF(Settings!$J$17=1,VLOOKUP(_xlfn.CONCAT(P75,O75),'full ppr adp'!$A:$K,11,FALSE),IF(Settings!$J$17=0,VLOOKUP(_xlfn.CONCAT(P75,O75),'standard adp'!$A:$J,10,FALSE),VLOOKUP(_xlfn.CONCAT(P75,O75),'half ppr adp'!$A:$J,10,FALSE))),VLOOKUP(_xlfn.CONCAT(P75,O75),'full ppr adp'!$A:$K,11,FALSE))),"UND") -> 257
H76: Benny Snell Jr. | I76: PIT | J76: =VLOOKUP(_xlfn.CONCAT(I76,H76),'rb data'!A:X,24,FALSE) -> 51.6016368 | K76: =IFERROR(J76-LARGE($J$3:$J$100,'Position Expectations'!$B$4+1),J76-MIN($J$3:$J$100)) -> -7.964888 | L76: =IFERROR(J76-LARGE($J$3:$J$100,Settings!$F$21*Settings!$D$23),J76-MIN($J$3:$J$100))+IF(Settings!$D$26>0,MAX(0,LARGE($J$3:$J$100,Settings!$F$21*Settings!$D$23)-LARGE(($Q$3:$Q$150,$J$3:$J$100),Settings!$F$21*(Settings!$D$23+Settings!$D$24+Settings!$D$26))),0) -> -117.4540247 | M76: =IFERROR((IFERROR(IF(Settings!$J$17=1,VLOOKUP(_xlfn.CONCAT(I76,H76),'full ppr adp'!$A:$K,11,FALSE),IF(Settings!$J$17=0,VLOOKUP(_xlfn.CONCAT(I76,H76),'standard adp'!$A:$J,10,FALSE),VLOOKUP(_xlfn.CONCAT(I76,H76),'half ppr adp'!$A:$J,10,FALSE))),VLOOKUP(_xlfn.CONCAT(I76,H76),'full ppr adp'!$A:$K,11,FALSE))),"UND") -> 228.6666667 | O76: Randall Cobb | P76: HOU | Q76: =VLOOKUP(_xlfn.CONCAT(P76,O76),'wr data'!A:X,24,FALSE) -> 107.7694055 | R76: =IFERROR(Q76-LARGE($Q$3:$Q$150,'Position Expectations'!$B$5+1),Q76-MIN($Q$3:$Q$150)) -> -18.791189 | S76: =IFERROR(Q76-LARGE($Q$3:$Q$150,Settings!$F$21*Settings!$D$24),Q76-MIN($Q$3:$Q$150))+IF(Settings!$D$26>0,MAX(0,LARGE($Q$3:$Q$150,Settings!$F$21*Settings!$D$24)-LARGE(($Q$3:$Q$150,$J$3:$J$100),Settings!$F$21*(Settings!$D$23+Settings!$D$24+Settings!$D$26))),0) -> -63.9788724 | T76: =IFERROR((IFERROR(IF(Settings!$J$17=1,VLOOKUP(_xlfn.CONCAT(P76,O76),'full ppr adp'!$A:$K,11,FALSE),IF(Settings!$J$17=0,VLOOKUP(_xlfn.CONCAT(P76,O76),'standard adp'!$A:$J,10,FALSE),VLOOKUP(_xlfn.CONCAT(P76,O76),'half ppr adp'!$A:$J,10,FALSE))),VLOOKUP(_xlfn.CONCAT(P76,O76),'full ppr adp'!$A:$K,11,FALSE))),"UND") -> 208.3333333
H77: Anthony McFarland Jr. | I77: PIT | J77: =VLOOKUP(_xlfn.CONCAT(I77,H77),'rb data'!A:X,24,FALSE) -> 50.4599359 | K77: =IFERROR(J77-LARGE($J$3:$J$100,'Position Expectations'!$B$4+1),J77-MIN($J$3:$J$100)) -> -9.1065889 | L77: =IFERROR(J77-LARGE($J$3:$J$100,Settings!$F$21*Settings!$D$23),J77-MIN($J$3:$J$100))+IF(Settings!$D$26>0,MAX(0,LARGE($J$3:$J$100,Settings!$F$21*Settings!$D$23)-LARGE(($Q$3:$Q$150,$J$3:$J$100),Settings!$F$21*(Settings!$D$23+Settings!$D$24+Settings!$D$26))),0) -> -118.5957256 | M77: =IFERROR((IFERROR(IF(Settings!$J$17=1,VLOOKUP(_xlfn.CONCAT(I77,H77),'full ppr adp'!$A:$K,11,FALSE),IF(Settings!$J$17=0,VLOOKUP(_xlfn.CONCAT(I77,H77),'standard adp'!$A:$J,10,FALSE),VLOOKUP(_xlfn.CONCAT(I77,H77),'half ppr adp'!$A:$J,10,FALSE))),VLOOKUP(_xlfn.CONCAT(I77,H77),'full ppr adp'!$A:$K,11,FALSE))),"UND") -> 206 | O77: James Washington | P77: PIT | Q77: =VLOOKUP(_xlfn.CONCAT(P77,O77),'wr data'!A:X,24,FALSE) -> 103.2461619 | R77: =IFERROR(Q77-LARGE($Q$3:$Q$150,'Position Expectations'!$B$5+1),Q77-MIN($Q$3:$Q$150)) -> -23.31443258 | S77: =IFERROR(Q77-LARGE($Q$3:$Q$150,Settings!$F$21*Settings!$D$24),Q77-MIN($Q$3:$Q$150))+IF(Settings!$D$26>0,MAX(0,LARGE($Q$3:$Q$150,Settings!$F$21*Settings!$D$24)-LARGE(($Q$3:$Q$150,$J$3:$J$100),Settings!$F$21*(Settings!$D$23+Settings!$D$24+Settings!$D$26))),0) -> -68.50211598 | T77: =IFERROR((IFERROR(IF(Settings!$J$17=1,VLOOKUP(_xlfn.CONCAT(P77,O77),'full ppr adp'!$A:$K,11,FALSE),IF(Settings!$J$17=0,VLOOKUP(_xlfn.CONCAT(P77,O77),'standard adp'!$A:$J,10,FALSE),VLOOKUP(_xlfn.CONCAT(P77,O77),'half ppr adp'!$A:$J,10,FALSE))),VLOOKUP(_xlfn.CONCAT(P77,O77),'full ppr adp'!$A:$K,11,FALSE))),"UND") -> 216
H78: Kyle Juszczyk | I78: SF | J78: =VLOOKUP(_xlfn.CONCAT(I78,H78),'rb data'!A:X,24,FALSE) -> 49.19172218 | K78: =IFERROR(J78-LARGE($J$3:$J$100,'Position Expectations'!$B$4+1),J78-MIN($J$3:$J$100)) -> -10.37480262 | L78: =IFERROR(J78-LARGE($J$3:$J$100,Settings!$F$21*Settings!$D$23),J78-MIN($J$3:$J$100))+IF(Settings!$D$26>0,MAX(0,LARGE($J$3:$J$100,Settings!$F$21*Settings!$D$23)-LARGE(($Q$3:$Q$150,$J$3:$J$100),Settings!$F$21*(Settings!$D$23+Settings!$D$24+Settings!$D$26))),0) -> -119.8639393 | M78: =IFERROR((IFERROR(IF(Settings!$J$17=1,VLOOKUP(_xlfn.CONCAT(I78,H78),'full ppr adp'!$A:$K,11,FALSE),IF(Settings!$J$17=0,VLOOKUP(_xlfn.CONCAT(I78,H78),'standard adp'!$A:$J,10,FALSE),VLOOKUP(_xlfn.CONCAT(I78,H78),'half ppr adp'!$A:$J,10,FALSE))),VLOOKUP(_xlfn.CONCAT(I78,H78),'full ppr adp'!$A:$K,11,FALSE))),"UND") -> 325 | O78: Dede Westbrook | P78: JAC | Q78: =VLOOKUP(_xlfn.CONCAT(P78,O78),'wr data'!A:X,24,FALSE) -> 102.7033758 | R78: =IFERROR(Q78-LARGE($Q$3:$Q$150,'Position Expectations'!$B$5+1),Q78-MIN($Q$3:$Q$150)) -> -23.85721866 | S78: =IFERROR(Q78-LARGE($Q$3:$Q$150,Settings!$F$21*Settings!$D$24),Q78-MIN($Q$3:$Q$150))+IF(Settings!$D$26>0,MAX(0,LARGE($Q$3:$Q$150,Settings!$F$21*Settings!$D$24)-LARGE(($Q$3:$Q$150,$J$3:$J$100),Settings!$F$21*(Settings!$D$23+Settings!$D$24+Settings!$D$26))),0) -> -69.04490206 | T78: =IFERROR((IFERROR(IF(Settings!$J$17=1,VLOOKUP(_xlfn.CONCAT(P78,O78),'full ppr adp'!$A:$K,11,FALSE),IF(Settings!$J$17=0,VLOOKUP(_xlfn.CONCAT(P78,O78),'standard adp'!$A:$J,10,FALSE),VLOOKUP(_xlfn.CONCAT(P78,O78),'half ppr adp'!$A:$J,10,FALSE))),VLOOKUP(_xlfn.CONCAT(P78,O78),'full ppr adp'!$A:$K,11,FALSE))),"UND") -> 189
H79: Lynn Bowden Jr. | I79: LV | J79: =VLOOKUP(_xlfn.CONCAT(I79,H79),'rb data'!A:X,24,FALSE) -> 48.8421112 | K79: =IFERROR(J79-LARGE($J$3:$J$100,'Position Expectations'!$B$4+1),J79-MIN($J$3:$J$100)) -> -10.7244136 | L79: =IFERROR(J79-LARGE($J$3:$J$100,Settings!$F$21*Settings!$D$23),J79-MIN($J$3:$J$100))+IF(Settings!$D$26>0,MAX(0,LARGE($J$3:$J$100,Settings!$F$21*Settings!$D$23)-LARGE(($Q$3:$Q$150,$J$3:$J$100),Settings!$F$21*(Settings!$D$23+Settings!$D$24+Settings!$D$26))),0) -> -120.2135503 | M79: =IFERROR((IFERROR(IF(Settings!$J$17=1,VLOOKUP(_xlfn.CONCAT(I79,H79),'full ppr adp'!$A:$K,11,FALSE),IF(Settings!$J$17=0,VLOOKUP(_xlfn.CONCAT(I79,H79),'standard adp'!$A:$J,10,FALSE),VLOOKUP(_xlfn.CONCAT(I79,H79),'half ppr adp'!$A:$J,10,FALSE))),VLOOKUP(_xlfn.CONCAT(I79,H79),'full ppr adp'!$A:$K,11,FALSE))),"UND") -> 219 | O79: Laviska Shenault Jr. | P79: JAC | Q79: =VLOOKUP(_xlfn.CONCAT(P79,O79),'wr data'!A:X,24,FALSE) -> 102.5116779 | R79: =IFERROR(Q79-LARGE($Q$3:$Q$150,'Position Expectations'!$B$5+1),Q79-MIN($Q$3:$Q$150)) -> -24.0489166 | S79: =IFERROR(Q79-LARGE($Q$3:$Q$150,Settings!$F$21*Settings!$D$24),Q79-MIN($Q$3:$Q$150))+IF(Settings!$D$26>0,MAX(0,LARGE($Q$3:$Q$150,Settings!$F$21*Settings!$D$24)-LARGE(($Q$3:$Q$150,$J$3:$J$100),Settings!$F$21*(Settings!$D$23+Settings!$D$24+Settings!$D$26))),0) -> -69.2366 | T79: =IFERROR((IFERROR(IF(Settings!$J$17=1,VLOOKUP(_xlfn.CONCAT(P79,O79),'full ppr adp'!$A:$K,11,FALSE),IF(Settings!$J$17=0,VLOOKUP(_xlfn.CONCAT(P79,O79),'standard adp'!$A:$J,10,FALSE),VLOOKUP(_xlfn.CONCAT(P79,O79),'half ppr adp'!$A:$J,10,FALSE))),VLOOKUP(_xlfn.CONCAT(P79,O79),'full ppr adp'!$A:$K,11,FALSE))),"UND") -> 222.5
H80: Royce Freeman | I80: DEN | J80: =VLOOKUP(_xlfn.CONCAT(I80,H80),'rb data'!A:X,24,FALSE) -> 48.28894384 | K80: =IFERROR(J80-LARGE($J$3:$J$100,'Position Expectations'!$B$4+1),J80-MIN($J$3:$J$100)) -> -11.27758096 | L80: =IFERROR(J80-LARGE($J$3:$J$100,Settings!$F$21*Settings!$D$23),J80-MIN($J$3:$J$100))+IF(Settings!$D$26>0,MAX(0,LARGE($J$3:$J$100,Settings!$F$21*Settings!$D$23)-LARGE(($Q$3:$Q$150,$J$3:$J$100),Settings!$F$21*(Settings!$D$23+Settings!$D$24+Settings!$D$26))),0) -> -120.7667177 | M80: =IFERROR((IFERROR(IF(Settings!$J$17=1,VLOOKUP(_xlfn.CONCAT(I80,H80),'full ppr adp'!$A:$K,11,FALSE),IF(Settings!$J$17=0,VLOOKUP(_xlfn.CONCAT(I80,H80),'standard adp'!$A:$J,10,FALSE),VLOOKUP(_xlfn.CONCAT(I80,H80),'half ppr adp'!$A:$J,10,FALSE))),VLOOKUP(_xlfn.CONCAT(I80,H80),'full ppr adp'!$A:$K,11,FALSE))),"UND") -> 230 | O80: Alshon Jeffery | P80: PHI | Q80: =VLOOKUP(_xlfn.CONCAT(P80,O80),'wr data'!A:X,24,FALSE) -> 98.52629 | R80: =IFERROR(Q80-LARGE($Q$3:$Q$150,'Position Expectations'!$B$5+1),Q80-MIN($Q$3:$Q$150)) -> -28.0343045 | S80: =IFERROR(Q80-LARGE($Q$3:$Q$150,Settings!$F$21*Settings!$D$24),Q80-MIN($Q$3:$Q$150))+IF(Settings!$D$26>0,MAX(0,LARGE($Q$3:$Q$150,Settings!$F$21*Settings!$D$24)-LARGE(($Q$3:$Q$150,$J$3:$J$100),Settings!$F$21*(Settings!$D$23+Settings!$D$24+Settings!$D$26))),0) -> -73.2219879 | T80: =IFERROR((IFERROR(IF(Settings!$J$17=1,VLOOKUP(_xlfn.CONCAT(P80,O80),'full ppr adp'!$A:$K,11,FALSE),IF(Settings!$J$17=0,VLOOKUP(_xlfn.CONCAT(P80,O80),'standard adp'!$A:$J,10,FALSE),VLOOKUP(_xlfn.CONCAT(P80,O80),'half ppr adp'!$A:$J,10,FALSE))),VLOOKUP(_xlfn.CONCAT(P80,O80),'full ppr adp'!$A:$K,11,FALSE))),"UND") -> 162.5
H81: Mike Davis | I81: CAR | J81: =VLOOKUP(_xlfn.CONCAT(I81,H81),'rb data'!A:X,24,FALSE) -> 46.8016831 | K81: =IFERROR(J81-LARGE($J$3:$J$100,'Position Expectations'!$B$4+1),J81-MIN($J$3:$J$100)) -> -12.7648417 | L81: =IFERROR(J81-LARGE($J$3:$J$100,Settings!$F$21*Settings!$D$23),J81-MIN($J$3:$J$100))+IF(Settings!$D$26>0,MAX(0,LARGE($J$3:$J$100,Settings!$F$21*Settings!$D$23)-LARGE(($Q$3:$Q$150,$J$3:$J$100),Settings!$F$21*(Settings!$D$23+Settings!$D$24+Settings!$D$26))),0) -> -122.2539784 | M81: =IFERROR((IFERROR(IF(Settings!$J$17=1,VLOOKUP(_xlfn.CONCAT(I81,H81),'full ppr adp'!$A:$K,11,FALSE),IF(Settings!$J$17=0,VLOOKUP(_xlfn.CONCAT(I81,H81),'standard adp'!$A:$J,10,FALSE),VLOOKUP(_xlfn.CONCAT(I81,H81),'half ppr adp'!$A:$J,10,FALSE))),VLOOKUP(_xlfn.CONCAT(I81,H81),'full ppr adp'!$A:$K,11,FALSE))),"UND") -> 299.5 | O81: Josh Gordon | P81: SEA | Q81: =VLOOKUP(_xlfn.CONCAT(P81,O81),'wr data'!A:X,24,FALSE) -> 95.857344 | R81: =IFERROR(Q81-LARGE($Q$3:$Q$150,'Position Expectations'!$B$5+1),Q81-MIN($Q$3:$Q$150)) -> -30.7032505 | S81: =IFERROR(Q81-LARGE($Q$3:$Q$150,Settings!$F$21*Settings!$D$24),Q81-MIN($Q$3:$Q$150))+IF(Settings!$D$26>0,MAX(0,LARGE($Q$3:$Q$150,Settings!$F$21*Settings!$D$24)-LARGE(($Q$3:$Q$150,$J$3:$J$100),Settings!$F$21*(Settings!$D$23+Settings!$D$24+Settings!$D$26))),0) -> -75.8909339 | T81: =IFERROR((IFERROR(IF(Settings!$J$17=1,VLOOKUP(_xlfn.CONCAT(P81,O81),'full ppr adp'!$A:$K,11,FALSE),IF(Settings!$J$17=0,VLOOKUP(_xlfn.CONCAT(P81,O81),'standard adp'!$A:$J,10,FALSE),VLOOKUP(_xlfn.CONCAT(P81,O81),'half ppr adp'!$A:$J,10,FALSE))),VLOOKUP(_xlfn.CONCAT(P81,O81),'full ppr adp'!$A:$K,11,FALSE))),"UND") -> 198
H82: Carlos Hyde | I82: SEA | J82: =VLOOKUP(_xlfn.CONCAT(I82,H82),'rb data'!A:X,24,FALSE) -> 45.6440138 | K82: =IFERROR(J82-LARGE($J$3:$J$100,'Position Expectations'!$B$4+1),J82-MIN($J$3:$J$100)) -> -13.922511 | L82: =IFERROR(J82-LARGE($J$3:$J$100,Settings!$F$21*Settings!$D$23),J82-MIN($J$3:$J$100))+IF(Settings!$D$26>0,MAX(0,LARGE($J$3:$J$100,Settings!$F$21*Settings!$D$23)-LARGE(($Q$3:$Q$150,$J$3:$J$100),Settings!$F$21*(Settings!$D$23+Settings!$D$24+Settings!$D$26))),0) -> -123.4116477 | M82: =IFERROR((IFERROR(IF(Settings!$J$17=1,VLOOKUP(_xlfn.CONCAT(I82,H82),'full ppr adp'!$A:$K,11,FALSE),IF(Settings!$J$17=0,VLOOKUP(_xlfn.CONCAT(I82,H82),'standard adp'!$A:$J,10,FALSE),VLOOKUP(_xlfn.CONCAT(I82,H82),'half ppr adp'!$A:$J,10,FALSE))),VLOOKUP(_xlfn.CONCAT(I82,H82),'full ppr adp'!$A:$K,11,FALSE))),"UND") -> 219.6666667 | O82: Adam Humphries | P82: TEN | Q82: =VLOOKUP(_xlfn.CONCAT(P82,O82),'wr data'!A:X,24,FALSE) -> 91.77237251 | R82: =IFERROR(Q82-LARGE($Q$3:$Q$150,'Position Expectations'!$B$5+1),Q82-MIN($Q$3:$Q$150)) -> -34.78822199 | S82: =IFERROR(Q82-LARGE($Q$3:$Q$150,Settings!$F$21*Settings!$D$24),Q82-MIN($Q$3:$Q$150))+IF(Settings!$D$26>0,MAX(0,LARGE($Q$3:$Q$150,Settings!$F$21*Settings!$D$24)-LARGE(($Q$3:$Q$150,$J$3:$J$100),Settings!$F$21*(Settings!$D$23+Settings!$D$24+Settings!$D$26))),0) -> -79.97590539 | T82: =IFERROR((IFERROR(IF(Settings!$J$17=1,VLOOKUP(_xlfn.CONCAT(P82,O82),'full ppr adp'!$A:$K,11,FALSE),IF(Settings!$J$17=0,VLOOKUP(_xlfn.CONCAT(P82,O82),'standard adp'!$A:$J,10,FALSE),VLOOKUP(_xlfn.CONCAT(P82,O82),'half ppr adp'!$A:$J,10,FALSE))),VLOOKUP(_xlfn.CONCAT(P82,O82),'full ppr adp'!$A:$K,11,FALSE))),"UND") -> 311
H83: LeSean McCoy | I83: TB | J83: =VLOOKUP(_xlfn.CONCAT(I83,H83),'rb data'!A:X,24,FALSE) -> 43.53547886 | K83: =IFERROR(J83-LARGE($J$3:$J$100,'Position Expectations'!$B$4+1),J83-MIN($J$3:$J$100)) -> -16.03104594 | L83: =IFERROR(J83-LARGE($J$3:$J$100,Settings!$F$21*Settings!$D$23),J83-MIN($J$3:$J$100))+IF(Settings!$D$26>0,MAX(0,LARGE($J$3:$J$100,Settings!$F$21*Settings!$D$23)-LARGE(($Q$3:$Q$150,$J$3:$J$100),Settings!$F$21*(Settings!$D$23+Settings!$D$24+Settings!$D$26))),0) -> -125.5201826 | M83: =IFERROR((IFERROR(IF(Settings!$J$17=1,VLOOKUP(_xlfn.CONCAT(I83,H83),'full ppr adp'!$A:$K,11,FALSE),IF(Settings!$J$17=0,VLOOKUP(_xlfn.CONCAT(I83,H83),'standard adp'!$A:$J,10,FALSE),VLOOKUP(_xlfn.CONCAT(I83,H83),'half ppr adp'!$A:$J,10,FALSE))),VLOOKUP(_xlfn.CONCAT(I83,H83),'full ppr adp'!$A:$K,11,FALSE))),"UND") -> 192.3333333 | O83: Tee Higgins | P83: CIN | Q83: =VLOOKUP(_xlfn.CONCAT(P83,O83),'wr data'!A:X,24,FALSE) -> 91.6888572 | R83: =IFERROR(Q83-LARGE($Q$3:$Q$150,'Position Expectations'!$B$5+1),Q83-MIN($Q$3:$Q$150)) -> -34.8717373 | S83: =IFERROR(Q83-LARGE($Q$3:$Q$150,Settings!$F$21*Settings!$D$24),Q83-MIN($Q$3:$Q$150))+IF(Settings!$D$26>0,MAX(0,LARGE($Q$3:$Q$150,Settings!$F$21*Settings!$D$24)-LARGE(($Q$3:$Q$150,$J$3:$J$100),Settings!$F$21*(Settings!$D$23+Settings!$D$24+Settings!$D$26))),0) -> -80.0594207 | T83: =IFERROR((IFERROR(IF(Settings!$J$17=1,VLOOKUP(_xlfn.CONCAT(P83,O83),'full ppr adp'!$A:$K,11,FALSE),IF(Settings!$J$17=0,VLOOKUP(_xlfn.CONCAT(P83,O83),'standard adp'!$A:$J,10,FALSE),VLOOKUP(_xlfn.CONCAT(P83,O83),'half ppr adp'!$A:$J,10,FALSE))),VLOOKUP(_xlfn.CONCAT(P83,O83),'full ppr adp'!$A:$K,11,FALSE))),"UND") -> 206.3333333
H84: Jaylen Samuels | I84: PIT | J84: =VLOOKUP(_xlfn.CONCAT(I84,H84),'rb data'!A:X,24,FALSE) -> 39.9969414 | K84: =IFERROR(J84-LARGE($J$3:$J$100,'Position Expectations'!$B$4+1),J84-MIN($J$3:$J$100)) -> -19.5695834 | L84: =IFERROR(J84-LARGE($J$3:$J$100,Settings!$F$21*Settings!$D$23),J84-MIN($J$3:$J$100))+IF(Settings!$D$26>0,MAX(0,LARGE($J$3:$J$100,Settings!$F$21*Settings!$D$23)-LARGE(($Q$3:$Q$150,$J$3:$J$100),Settings!$F$21*(Settings!$D$23+Settings!$D$24+Settings!$D$26))),0) -> -129.0587201 | M84: =IFERROR((IFERROR(IF(Settings!$J$17=1,VLOOKUP(_xlfn.CONCAT(I84,H84),'full ppr adp'!$A:$K,11,FALSE),IF(Settings!$J$17=0,VLOOKUP(_xlfn.CONCAT(I84,H84),'standard adp'!$A:$J,10,FALSE),VLOOKUP(_xlfn.CONCAT(I84,H84),'half ppr adp'!$A:$J,10,FALSE))),VLOOKUP(_xlfn.CONCAT(I84,H84),'full ppr adp'!$A:$K,11,FALSE))),"UND") -> 214 | O84: Kenny Stills | P84: HOU | Q84: =VLOOKUP(_xlfn.CONCAT(P84,O84),'wr data'!A:X,24,FALSE) -> 88.2118684 | R84: =IFERROR(Q84-LARGE($Q$3:$Q$150,'Position Expectations'!$B$5+1),Q84-MIN($Q$3:$Q$150)) -> -38.3487261 | S84: =IFERROR(Q84-LARGE($Q$3:$Q$150,Settings!$F$21*Settings!$D$24),Q84-MIN($Q$3:$Q$150))+IF(Settings!$D$26>0,MAX(0,LARGE($Q$3:$Q$150,Settings!$F$21*Settings!$D$24)-LARGE(($Q$3:$Q$150,$J$3:$J$100),Settings!$F$21*(Settings!$D$23+Settings!$D$24+Settings!$D$26))),0) -> -83.5364095 | T84: =IFERROR((IFERROR(IF(Settings!$J$17=1,VLOOKUP(_xlfn.CONCAT(P84,O84),'full ppr adp'!$A:$K,11,FALSE),IF(Settings!$J$17=0,VLOOKUP(_xlfn.CONCAT(P84,O84),'standard adp'!$A:$J,10,FALSE),VLOOKUP(_xlfn.CONCAT(P84,O84),'half ppr adp'!$A:$J,10,FALSE))),VLOOKUP(_xlfn.CONCAT(P84,O84),'full ppr adp'!$A:$K,11,FALSE))),"UND") -> 203
H85: Reggie Bonnafon | I85: CAR | J85: =VLOOKUP(_xlfn.CONCAT(I85,H85),'rb data'!A:X,24,FALSE) -> 39.1369482 | K85: =IFERROR(J85-LARGE($J$3:$J$100,'Position Expectations'!$B$4+1),J85-MIN($J$3:$J$100)) -> -20.4295766 | L85: =IFERROR(J85-LARGE($J$3:$J$100,Settings!$F$21*Settings!$D$23),J85-MIN($J$3:$J$100))+IF(Settings!$D$26>0,MAX(0,LARGE($J$3:$J$100,Settings!$F$21*Settings!$D$23)-LARGE(($Q$3:$Q$150,$J$3:$J$100),Settings!$F$21*(Settings!$D$23+Settings!$D$24+Settings!$D$26))),0) -> -129.9187133 | M85: =IFERROR((IFERROR(IF(Settings!$J$17=1,VLOOKUP(_xlfn.CONCAT(I85,H85),'full ppr adp'!$A:$K,11,FALSE),IF(Settings!$J$17=0,VLOOKUP(_xlfn.CONCAT(I85,H85),'standard adp'!$A:$J,10,FALSE),VLOOKUP(_xlfn.CONCAT(I85,H85),'half ppr adp'!$A:$J,10,FALSE))),VLOOKUP(_xlfn.CONCAT(I85,H85),'full ppr adp'!$A:$K,11,FALSE))),"UND") -> 343 | O85: Miles Boykin | P85: BAL | Q85: =VLOOKUP(_xlfn.CONCAT(P85,O85),'wr data'!A:X,24,FALSE) -> 86.0836 | R85: =IFERROR(Q85-LARGE($Q$3:$Q$150,'Position Expectations'!$B$5+1),Q85-MIN($Q$3:$Q$150)) -> -40.4769945 | S85: =IFERROR(Q85-LARGE($Q$3:$Q$150,Settings!$F$21*Settings!$D$24),Q85-MIN($Q$3:$Q$150))+IF(Settings!$D$26>0,MAX(0,LARGE($Q$3:$Q$150,Settings!$F$21*Settings!$D$24)-LARGE(($Q$3:$Q$150,$J$3:$J$100),Settings!$F$21*(Settings!$D$23+Settings!$D$24+Settings!$D$26))),0) -> -85.6646779 | T85: =IFERROR((IFERROR(IF(Settings!$J$17=1,VLOOKUP(_xlfn.CONCAT(P85,O85),'full ppr adp'!$A:$K,11,FALSE),IF(Settings!$J$17=0,VLOOKUP(_xlfn.CONCAT(P85,O85),'standard adp'!$A:$J,10,FALSE),VLOOKUP(_xlfn.CONCAT(P85,O85),'half ppr adp'!$A:$J,10,FALSE))),VLOOKUP(_xlfn.CONCAT(P85,O85),'full ppr adp'!$A:$K,11,FALSE))),"UND") -> 287
H86: Lamical Perine | I86: NYJ | J86: =VLOOKUP(_xlfn.CONCAT(I86,H86),'rb data'!A:X,24,FALSE) -> 38.9373578 | K86: =IFERROR(J86-LARGE($J$3:$J$100,'Position Expectations'!$B$4+1),J86-MIN($J$3:$J$100)) -> -20.629167 | L86: =IFERROR(J86-LARGE($J$3:$J$100,Settings!$F$21*Settings!$D$23),J86-MIN($J$3:$J$100))+IF(Settings!$D$26>0,MAX(0,LARGE($J$3:$J$100,Settings!$F$21*Settings!$D$23)-LARGE(($Q$3:$Q$150,$J$3:$J$100),Settings!$F$21*(Settings!$D$23+Settings!$D$24+Settings!$D$26))),0) -> -130.1183037 | M86: =IFERROR((IFERROR(IF(Settings!$J$17=1,VLOOKUP(_xlfn.CONCAT(I86,H86),'full ppr adp'!$A:$K,11,FALSE),IF(Settings!$J$17=0,VLOOKUP(_xlfn.CONCAT(I86,H86),'standard adp'!$A:$J,10,FALSE),VLOOKUP(_xlfn.CONCAT(I86,H86),'half ppr adp'!$A:$J,10,FALSE))),VLOOKUP(_xlfn.CONCAT(I86,H86),'full ppr adp'!$A:$K,11,FALSE))),"UND") -> 300 | O86: Jakeem Grant | P86: MIA | Q86: =VLOOKUP(_xlfn.CONCAT(P86,O86),'wr data'!A:X,24,FALSE) -> 83.4153574 | R86: =IFERROR(Q86-LARGE($Q$3:$Q$150,'Position Expectations'!$B$5+1),Q86-MIN($Q$3:$Q$150)) -> -43.1452371 | S86: =IFERROR(Q86-LARGE($Q$3:$Q$150,Settings!$F$21*Settings!$D$24),Q86-MIN($Q$3:$Q$150))+IF(Settings!$D$26>0,MAX(0,LARGE($Q$3:$Q$150,Settings!$F$21*Settings!$D$24)-LARGE(($Q$3:$Q$150,$J$3:$J$100),Settings!$F$21*(Settings!$D$23+Settings!$D$24+Settings!$D$26))),0) -> -88.3329205 | T86: =IFERROR((IFERROR(IF(Settings!$J$17=1,VLOOKUP(_xlfn.CONCAT(P86,O86),'full ppr adp'!$A:$K,11,FALSE),IF(Settings!$J$17=0,VLOOKUP(_xlfn.CONCAT(P86,O86),'standard adp'!$A:$J,10,FALSE),VLOOKUP(_xlfn.CONCAT(P86,O86),'half ppr adp'!$A:$J,10,FALSE))),VLOOKUP(_xlfn.CONCAT(P86,O86),'full ppr adp'!$A:$K,11,FALSE))),"UND") -> UND
H87: DeAndre Washington | I87: KC | J87: =VLOOKUP(_xlfn.CONCAT(I87,H87),'rb data'!A:X,24,FALSE) -> 32.06856968 | K87: =IFERROR(J87-LARGE($J$3:$J$100,'Position Expectations'!$B$4+1),J87-MIN($J$3:$J$100)) -> -27.49795512 | L87: =IFERROR(J87-LARGE($J$3:$J$100,Settings!$F$21*Settings!$D$23),J87-MIN($J$3:$J$100))+IF(Settings!$D$26>0,MAX(0,LARGE($J$3:$J$100,Settings!$F$21*Settings!$D$23)-LARGE(($Q$3:$Q$150,$J$3:$J$100),Settings!$F$21*(Settings!$D$23+Settings!$D$24+Settings!$D$26))),0) -> -136.9870918 | M87: =IFERROR((IFERROR(IF(Settings!$J$17=1,VLOOKUP(_xlfn.CONCAT(I87,H87),'full ppr adp'!$A:$K,11,FALSE),IF(Settings!$J$17=0,VLOOKUP(_xlfn.CONCAT(I87,H87),'standard adp'!$A:$J,10,FALSE),VLOOKUP(_xlfn.CONCAT(I87,H87),'half ppr adp'!$A:$J,10,FALSE))),VLOOKUP(_xlfn.CONCAT(I87,H87),'full ppr adp'!$A:$K,11,FALSE))),"UND") -> 249 | O87: Dontrelle Inman | P87: WAS | Q87: =VLOOKUP(_xlfn.CONCAT(P87,O87),'wr data'!A:X,24,FALSE) -> 80.06417524 | R87: =IFERROR(Q87-LARGE($Q$3:$Q$150,'Position Expectations'!$B$5+1),Q87-MIN($Q$3:$Q$150)) -> -46.49641926 | S87: =IFERROR(Q87-LARGE($Q$3:$Q$150,Settings!$F$21*Settings!$D$24),Q87-MIN($Q$3:$Q$150))+IF(Settings!$D$26>0,MAX(0,LARGE($Q$3:$Q$150,Settings!$F$21*Settings!$D$24)-LARGE(($Q$3:$Q$150,$J$3:$J$100),Settings!$F$21*(Settings!$D$23+Settings!$D$24+Settings!$D$26))),0) -> -91.68410266 | T87: =IFERROR((IFERROR(IF(Settings!$J$17=1,VLOOKUP(_xlfn.CONCAT(P87,O87),'full ppr adp'!$A:$K,11,FALSE),IF(Settings!$J$17=0,VLOOKUP(_xlfn.CONCAT(P87,O87),'standard adp'!$A:$J,10,FALSE),VLOOKUP(_xlfn.CONCAT(P87,O87),'half ppr adp'!$A:$J,10,FALSE))),VLOOKUP(_xlfn.CONCAT(P87,O87),'full ppr adp'!$A:$K,11,FALSE))),"UND") -> UND
H88: Ke'Shawn Vaughn | I88: TB | J88: =VLOOKUP(_xlfn.CONCAT(I88,H88),'rb data'!A:X,24,FALSE) -> 22.2135017 | K88: =IFERROR(J88-LARGE($J$3:$J$100,'Position Expectations'!$B$4+1),J88-MIN($J$3:$J$100)) -> -37.3530231 | L88: =IFERROR(J88-LARGE($J$3:$J$100,Settings!$F$21*Settings!$D$23),J88-MIN($J$3:$J$100))+IF(Settings!$D$26>0,MAX(0,LARGE($J$3:$J$100,Settings!$F$21*Settings!$D$23)-LARGE(($Q$3:$Q$150,$J$3:$J$100),Settings!$F$21*(Settings!$D$23+Settings!$D$24+Settings!$D$26))),0) -> -146.8421598 | M88: =IFERROR((IFERROR(IF(Settings!$J$17=1,VLOOKUP(_xlfn.CONCAT(I88,H88),'full ppr adp'!$A:$K,11,FALSE),IF(Settings!$J$17=0,VLOOKUP(_xlfn.CONCAT(I88,H88),'standard adp'!$A:$J,10,FALSE),VLOOKUP(_xlfn.CONCAT(I88,H88),'half ppr adp'!$A:$J,10,FALSE))),VLOOKUP(_xlfn.CONCAT(I88,H88),'full ppr adp'!$A:$K,11,FALSE))),"UND") -> 131.6666667 | O88: Chase Claypool | P88: PIT | Q88: =VLOOKUP(_xlfn.CONCAT(P88,O88),'wr data'!A:X,24,FALSE) -> 77.6195783 | R88: =IFERROR(Q88-LARGE($Q$3:$Q$150,'Position Expectations'!$B$5+1),Q88-MIN($Q$3:$Q$150)) -> -48.9410162 | S88: =IFERROR(Q88-LARGE($Q$3:$Q$150,Settings!$F$21*Settings!$D$24),Q88-MIN($Q$3:$Q$150))+IF(Settings!$D$26>0,MAX(0,LARGE($Q$3:$Q$150,Settings!$F$21*Settings!$D$24)-LARGE(($Q$3:$Q$150,$J$3:$J$100),Settings!$F$21*(Settings!$D$23+Settings!$D$24+Settings!$D$26))),0) -> -94.1286996 | T88: =IFERROR((IFERROR(IF(Settings!$J$17=1,VLOOKUP(_xlfn.CONCAT(P88,O88),'full ppr adp'!$A:$K,11,FALSE),IF(Settings!$J$17=0,VLOOKUP(_xlfn.CONCAT(P88,O88),'standard adp'!$A:$J,10,FALSE),VLOOKUP(_xlfn.CONCAT(P88,O88),'half ppr adp'!$A:$J,10,FALSE))),VLOOKUP(_xlfn.CONCAT(P88,O88),'full ppr adp'!$A:$K,11,FALSE))),"UND") -> 221
O89: Van Jefferson | P89: LAR | Q89: =VLOOKUP(_xlfn.CONCAT(P89,O89),'wr data'!A:X,24,FALSE) -> 77.2681713 | R89: =IFERROR(Q89-LARGE($Q$3:$Q$150,'Position Expectations'!$B$5+1),Q89-MIN($Q$3:$Q$150)) -> -49.2924232 | S89: =IFERROR(Q89-LARGE($Q$3:$Q$150,Settings!$F$21*Settings!$D$24),Q89-MIN($Q$3:$Q$150))+IF(Settings!$D$26>0,MAX(0,LARGE($Q$3:$Q$150,Settings!$F$21*Settings!$D$24)-LARGE(($Q$3:$Q$150,$J$3:$J$100),Settings!$F$21*(Settings!$D$23+Settings!$D$24+Settings!$D$26))),0) -> -94.4801066 | T89: =IFERROR((IFERROR(IF(Settings!$J$17=1,VLOOKUP(_xlfn.CONCAT(P89,O89),'full ppr adp'!$A:$K,11,FALSE),IF(Settings!$J$17=0,VLOOKUP(_xlfn.CONCAT(P89,O89),'standard adp'!$A:$J,10,FALSE),VLOOKUP(_xlfn.CONCAT(P89,O89),'half ppr adp'!$A:$J,10,FALSE))),VLOOKUP(_xlfn.CONCAT(P89,O89),'full ppr adp'!$A:$K,11,FALSE))),"UND") -> 301.5
O90: Kendrick Bourne | P90: SF | Q90: =VLOOKUP(_xlfn.CONCAT(P90,O90),'wr data'!A:X,24,FALSE) -> 76.3789741 | R90: =IFERROR(Q90-LARGE($Q$3:$Q$150,'Position Expectations'!$B$5+1),Q90-MIN($Q$3:$Q$150)) -> -50.1816204 | S90: =IFERROR(Q90-LARGE($Q$3:$Q$150,Settings!$F$21*Settings!$D$24),Q90-MIN($Q$3:$Q$150))+IF(Settings!$D$26>0,MAX(0,LARGE($Q$3:$Q$150,Settings!$F$21*Settings!$D$24)-LARGE(($Q$3:$Q$150,$J$3:$J$100),Settings!$F$21*(Settings!$D$23+Settings!$D$24+Settings!$D$26))),0) -> -95.3693038 | T90: =IFERROR((IFERROR(IF(Settings!$J$17=1,VLOOKUP(_xlfn.CONCAT(P90,O90),'full ppr adp'!$A:$K,11,FALSE),IF(Settings!$J$17=0,VLOOKUP(_xlfn.CONCAT(P90,O90),'standard adp'!$A:$J,10,FALSE),VLOOKUP(_xlfn.CONCAT(P90,O90),'half ppr adp'!$A:$J,10,FALSE))),VLOOKUP(_xlfn.CONCAT(P90,O90),'full ppr adp'!$A:$K,11,FALSE))),"UND") -> 285.5
O91: Russell Gage | P91: ATL | Q91: =VLOOKUP(_xlfn.CONCAT(P91,O91),'wr data'!A:X,24,FALSE) -> 76.3522632 | R91: =IFERROR(Q91-LARGE($Q$3:$Q$150,'Position Expectations'!$B$5+1),Q91-MIN($Q$3:$Q$150)) -> -50.2083313 | S91: =IFERROR(Q91-LARGE($Q$3:$Q$150,Settings!$F$21*Settings!$D$24),Q91-MIN($Q$3:$Q$150))+IF(Settings!$D$26>0,MAX(0,LARGE($Q$3:$Q$150,Settings!$F$21*Settings!$D$24)-LARGE(($Q$3:$Q$150,$J$3:$J$100),Settings!$F$21*(Settings!$D$23+Settings!$D$24+Settings!$D$26))),0) -> -95.3960147 | T91: =IFERROR((IFERROR(IF(Settings!$J$17=1,VLOOKUP(_xlfn.CONCAT(P91,O91),'full ppr adp'!$A:$K,11,FALSE),IF(Settings!$J$17=0,VLOOKUP(_xlfn.CONCAT(P91,O91),'standard adp'!$A:$J,10,FALSE),VLOOKUP(_xlfn.CONCAT(P91,O91),'half ppr adp'!$A:$J,10,FALSE))),VLOOKUP(_xlfn.CONCAT(P91,O91),'full ppr adp'!$A:$K,11,FALSE))),"UND") -> 312
O92: Jakobi Meyers | P92: NE | Q92: =VLOOKUP(_xlfn.CONCAT(P92,O92),'wr data'!A:X,24,FALSE) -> 74.16307296 | R92: =IFERROR(Q92-LARGE($Q$3:$Q$150,'Position Expectations'!$B$5+1),Q92-MIN($Q$3:$Q$150)) -> -52.39752154 | S92: =IFERROR(Q92-LARGE($Q$3:$Q$150,Settings!$F$21*Settings!$D$24),Q92-MIN($Q$3:$Q$150))+IF(Settings!$D$26>0,MAX(0,LARGE($Q$3:$Q$150,Settings!$F$21*Settings!$D$24)-LARGE(($Q$3:$Q$150,$J$3:$J$100),Settings!$F$21*(Settings!$D$23+Settings!$D$24+Settings!$D$26))),0) -> -97.58520494 | T92: =IFERROR((IFERROR(IF(Settings!$J$17=1,VLOOKUP(_xlfn.CONCAT(P92,O92),'full ppr adp'!$A:$K,11,FALSE),IF(Settings!$J$17=0,VLOOKUP(_xlfn.CONCAT(P92,O92),'standard adp'!$A:$J,10,FALSE),VLOOKUP(_xlfn.CONCAT(P92,O92),'half ppr adp'!$A:$J,10,FALSE))),VLOOKUP(_xlfn.CONCAT(P92,O92),'full ppr adp'!$A:$K,11,FALSE))),"UND") -> 340
O93: Tre'Quan Smith | P93: NO | Q93: =VLOOKUP(_xlfn.CONCAT(P93,O93),'wr data'!A:X,24,FALSE) -> 72.96754925 | R93: =IFERROR(Q93-LARGE($Q$3:$Q$150,'Position Expectations'!$B$5+1),Q93-MIN($Q$3:$Q$150)) -> -53.59304525 | S93: =IFERROR(Q93-LARGE($Q$3:$Q$150,Settings!$F$21*Settings!$D$24),Q93-MIN($Q$3:$Q$150))+IF(Settings!$D$26>0,MAX(0,LARGE($Q$3:$Q$150,Settings!$F$21*Settings!$D$24)-LARGE(($Q$3:$Q$150,$J$3:$J$100),Settings!$F$21*(Settings!$D$23+Settings!$D$24+Settings!$D$26))),0) -> -98.78072865 | T93: =IFERROR((IFERROR(IF(Settings!$J$17=1,VLOOKUP(_xlfn.CONCAT(P93,O93),'full ppr adp'!$A:$K,11,FALSE),IF(Settings!$J$17=0,VLOOKUP(_xlfn.CONCAT(P93,O93),'standard adp'!$A:$J,10,FALSE),VLOOKUP(_xlfn.CONCAT(P93,O93),'half ppr adp'!$A:$J,10,FALSE))),VLOOKUP(_xlfn.CONCAT(P93,O93),'full ppr adp'!$A:$K,11,FALSE))),"UND") -> 264.5
O94: Denzel Mims | P94: NYJ | Q94: =VLOOKUP(_xlfn.CONCAT(P94,O94),'wr data'!A:X,24,FALSE) -> 72.3136392 | R94: =IFERROR(Q94-LARGE($Q$3:$Q$150,'Position Expectations'!$B$5+1),Q94-MIN($Q$3:$Q$150)) -> -54.2469553 | S94: =IFERROR(Q94-LARGE($Q$3:$Q$150,Settings!$F$21*Settings!$D$24),Q94-MIN($Q$3:$Q$150))+IF(Settings!$D$26>0,MAX(0,LARGE($Q$3:$Q$150,Settings!$F$21*Settings!$D$24)-LARGE(($Q$3:$Q$150,$J$3:$J$100),Settings!$F$21*(Settings!$D$23+Settings!$D$24+Settings!$D$26))),0) -> -99.4346387 | T94: =IFERROR((IFERROR(IF(Settings!$J$17=1,VLOOKUP(_xlfn.CONCAT(P94,O94),'full ppr adp'!$A:$K,11,FALSE),IF(Settings!$J$17=0,VLOOKUP(_xlfn.CONCAT(P94,O94),'standard adp'!$A:$J,10,FALSE),VLOOKUP(_xlfn.CONCAT(P94,O94),'half ppr adp'!$A:$J,10,FALSE))),VLOOKUP(_xlfn.CONCAT(P94,O94),'full ppr adp'!$A:$K,11,FALSE))),"UND") -> 179
O95: Willie Snead | P95: BAL | Q95: =VLOOKUP(_xlfn.CONCAT(P95,O95),'wr data'!A:X,24,FALSE) -> 67.9848484 | R95: =IFERROR(Q95-LARGE($Q$3:$Q$150,'Position Expectations'!$B$5+1),Q95-MIN($Q$3:$Q$150)) -> -58.5757461 | S95: =IFERROR(Q95-LARGE($Q$3:$Q$150,Settings!$F$21*Settings!$D$24),Q95-MIN($Q$3:$Q$150))+IF(Settings!$D$26>0,MAX(0,LARGE($Q$3:$Q$150,Settings!$F$21*Settings!$D$24)-LARGE(($Q$3:$Q$150,$J$3:$J$100),Settings!$F$21*(Settings!$D$23+Settings!$D$24+Settings!$D$26))),0) -> -103.7634295 | T95: =IFERROR((IFERROR(IF(Settings!$J$17=1,VLOOKUP(_xlfn.CONCAT(P95,O95),'full ppr adp'!$A:$K,11,FALSE),IF(Settings!$J$17=0,VLOOKUP(_xlfn.CONCAT(P95,O95),'standard adp'!$A:$J,10,FALSE),VLOOKUP(_xlfn.CONCAT(P95,O95),'half ppr adp'!$A:$J,10,FALSE))),VLOOKUP(_xlfn.CONCAT(P95,O95),'full ppr adp'!$A:$K,11,FALSE))),"UND") -> 217
O96: Keelan Cole | P96: JAC | Q96: =VLOOKUP(_xlfn.CONCAT(P96,O96),'wr data'!A:X,24,FALSE) -> 66.32897021 | R96: =IFERROR(Q96-LARGE($Q$3:$Q$150,'Position Expectations'!$B$5+1),Q96-MIN($Q$3:$Q$150)) -> -60.23162429 | S96: =IFERROR(Q96-LARGE($Q$3:$Q$150,Settings!$F$21*Settings!$D$24),Q96-MIN($Q$3:$Q$150))+IF(Settings!$D$26>0,MAX(0,LARGE($Q$3:$Q$150,Settings!$F$21*Settings!$D$24)-LARGE(($Q$3:$Q$150,$J$3:$J$100),Settings!$F$21*(Settings!$D$23+Settings!$D$24+Settings!$D$26))),0) -> -105.4193077 | T96: =IFERROR((IFERROR(IF(Settings!$J$17=1,VLOOKUP(_xlfn.CONCAT(P96,O96),'full ppr adp'!$A:$K,11,FALSE),IF(Settings!$J$17=0,VLOOKUP(_xlfn.CONCAT(P96,O96),'standard adp'!$A:$J,10,FALSE),VLOOKUP(_xlfn.CONCAT(P96,O96),'half ppr adp'!$A:$J,10,FALSE))),VLOOKUP(_xlfn.CONCAT(P96,O96),'full ppr adp'!$A:$K,11,FALSE))),"UND") -> UND
O97: Andy Isabella | P97: ARI | Q97: =VLOOKUP(_xlfn.CONCAT(P97,O97),'wr data'!A:X,24,FALSE) -> 66.1916906 | R97: =IFERROR(Q97-LARGE($Q$3:$Q$150,'Position Expectations'!$B$5+1),Q97-MIN($Q$3:$Q$150)) -> -60.3689039 | S97: =IFERROR(Q97-LARGE($Q$3:$Q$150,Settings!$F$21*Settings!$D$24),Q97-MIN($Q$3:$Q$150))+IF(Settings!$D$26>0,MAX(0,LARGE($Q$3:$Q$150,Settings!$F$21*Settings!$D$24)-LARGE(($Q$3:$Q$150,$J$3:$J$100),Settings!$F$21*(Settings!$D$23+Settings!$D$24+Settings!$D$26))),0) -> -105.5565873 | T97: =IFERROR((IFERROR(IF(Settings!$J$17=1,VLOOKUP(_xlfn.CONCAT(P97,O97),'full ppr adp'!$A:$K,11,FALSE),IF(Settings!$J$17=0,VLOOKUP(_xlfn.CONCAT(P97,O97),'standard adp'!$A:$J,10,FALSE),VLOOKUP(_xlfn.CONCAT(P97,O97),'half ppr adp'!$A:$J,10,FALSE))),VLOOKUP(_xlfn.CONCAT(P97,O97),'full ppr adp'!$A:$K,11,FALSE))),"UND") -> 250
O98: Zach Pascal | P98: IND | Q98: =VLOOKUP(_xlfn.CONCAT(P98,O98),'wr data'!A:X,24,FALSE) -> 65.7597448 | R98: =IFERROR(Q98-LARGE($Q$3:$Q$150,'Position Expectations'!$B$5+1),Q98-MIN($Q$3:$Q$150)) -> -60.8008497 | S98: =IFERROR(Q98-LARGE($Q$3:$Q$150,Settings!$F$21*Settings!$D$24),Q98-MIN($Q$3:$Q$150))+IF(Settings!$D$26>0,MAX(0,LARGE($Q$3:$Q$150,Settings!$F$21*Settings!$D$24)-LARGE(($Q$3:$Q$150,$J$3:$J$100),Settings!$F$21*(Settings!$D$23+Settings!$D$24+Settings!$D$26))),0) -> -105.9885331 | T98: =IFERROR((IFERROR(IF(Settings!$J$17=1,VLOOKUP(_xlfn.CONCAT(P98,O98),'full ppr adp'!$A:$K,11,FALSE),IF(Settings!$J$17=0,VLOOKUP(_xlfn.CONCAT(P98,O98),'standard adp'!$A:$J,10,FALSE),VLOOKUP(_xlfn.CONCAT(P98,O98),'half ppr adp'!$A:$J,10,FALSE))),VLOOKUP(_xlfn.CONCAT(P98,O98),'full ppr adp'!$A:$K,11,FALSE))),"UND") -> 295
O99: Parris Campbell | P99: IND | Q99: =VLOOKUP(_xlfn.CONCAT(P99,O99),'wr data'!A:X,24,FALSE) -> 64.0884738 | R99: =IFERROR(Q99-LARGE($Q$3:$Q$150,'Position Expectations'!$B$5+1),Q99-MIN($Q$3:$Q$150)) -> -62.4721207 | S99: =IFERROR(Q99-LARGE($Q$3:$Q$150,Settings!$F$21*Settings!$D$24),Q99-MIN($Q$3:$Q$150))+IF(Settings!$D$26>0,MAX(0,LARGE($Q$3:$Q$150,Settings!$F$21*Settings!$D$24)-LARGE(($Q$3:$Q$150,$J$3:$J$100),Settings!$F$21*(Settings!$D$23+Settings!$D$24+Settings!$D$26))),0) -> -107.6598041 | T99: =IFERROR((IFERROR(IF(Settings!$J$17=1,VLOOKUP(_xlfn.CONCAT(P99,O99),'full ppr adp'!$A:$K,11,FALSE),IF(Settings!$J$17=0,VLOOKUP(_xlfn.CONCAT(P99,O99),'standard adp'!$A:$J,10,FALSE),VLOOKUP(_xlfn.CONCAT(P99,O99),'half ppr adp'!$A:$J,10,FALSE))),VLOOKUP(_xlfn.CONCAT(P99,O99),'full ppr adp'!$A:$K,11,FALSE))),"UND") -> 182.6666667
O100: KJ Hamler | P100: DEN | Q100: =VLOOKUP(_xlfn.CONCAT(P100,O100),'wr data'!A:X,24,FALSE) -> 63.4690104 | R100: =IFERROR(Q100-LARGE($Q$3:$Q$150,'Position Expectations'!$B$5+1),Q100-MIN($Q$3:$Q$150)) -> -63.0915841 | S100: =IFERROR(Q100-LARGE($Q$3:$Q$150,Settings!$F$21*Settings!$D$24),Q100-MIN($Q$3:$Q$150))+IF(Settings!$D$26>0,MAX(0,LARGE($Q$3:$Q$150,Settings!$F$21*Settings!$D$24)-LARGE(($Q$3:$Q$150,$J$3:$J$100),Settings!$F$21*(Settings!$D$23+Settings!$D$24+Settings!$D$26))),0) -> -108.2792675 | T100: =IFERROR((IFERROR(IF(Settings!$J$17=1,VLOOKUP(_xlfn.CONCAT(P100,O100),'full ppr adp'!$A:$K,11,FALSE),IF(Settings!$J$17=0,VLOOKUP(_xlfn.CONCAT(P100,O100),'standard adp'!$A:$J,10,FALSE),VLOOKUP(_xlfn.CONCAT(P100,O100),'half ppr adp'!$A:$J,10,FALSE))),VLOOKUP(_xlfn.CONCAT(P100,O100),'full ppr adp'!$A:$K,11,FALSE))),"UND") -> 277
O101: Marquez Valdes-Scantling | P101: GB | Q101: =VLOOKUP(_xlfn.CONCAT(P101,O101),'wr data'!A:X,24,FALSE) -> 61.228689 | R101: =IFERROR(Q101-LARGE($Q$3:$Q$150,'Position Expectations'!$B$5+1),Q101-MIN($Q$3:$Q$150)) -> -65.3319055 | S101: =IFERROR(Q101-LARGE($Q$3:$Q$150,Settings!$F$21*Settings!$D$24),Q101-MIN($Q$3:$Q$150))+IF(Settings!$D$26>0,MAX(0,LARGE($Q$3:$Q$150,Settings!$F$21*Settings!$D$24)-LARGE(($Q$3:$Q$150,$J$3:$J$100),Settings!$F$21*(Settings!$D$23+Settings!$D$24+Settings!$D$26))),0) -> -110.5195889 | T101: =IFERROR((IFERROR(IF(Settings!$J$17=1,VLOOKUP(_xlfn.CONCAT(P101,O101),'full ppr adp'!$A:$K,11,FALSE),IF(Settings!$J$17=0,VLOOKUP(_xlfn.CONCAT(P101,O101),'standard adp'!$A:$J,10,FALSE),VLOOKUP(_xlfn.CONCAT(P101,O101),'half ppr adp'!$A:$J,10,FALSE))),VLOOKUP(_xlfn.CONCAT(P101,O101),'full ppr adp'!$A:$K,11,FALSE))),"UND") -> 320
O102: Equanimeous St. Brown | P102: GB | Q102: =VLOOKUP(_xlfn.CONCAT(P102,O102),'wr data'!A:X,24,FALSE) -> 60.5192406 | R102: =IFERROR(Q102-LARGE($Q$3:$Q$150,'Position Expectations'!$B$5+1),Q102-MIN($Q$3:$Q$150)) -> -66.0413539 | S102: =IFERROR(Q102-LARGE($Q$3:$Q$150,Settings!$F$21*Settings!$D$24),Q102-MIN($Q$3:$Q$150))+IF(Settings!$D$26>0,MAX(0,LARGE($Q$3:$Q$150,Settings!$F$21*Settings!$D$24)-LARGE(($Q$3:$Q$150,$J$3:$J$100),Settings!$F$21*(Settings!$D$23+Settings!$D$24+Settings!$D$26))),0) -> -111.2290373 | T102: =IFERROR((IFERROR(IF(Settings!$J$17=1,VLOOKUP(_xlfn.CONCAT(P102,O102),'full ppr adp'!$A:$K,11,FALSE),IF(Settings!$J$17=0,VLOOKUP(_xlfn.CONCAT(P102,O102),'standard adp'!$A:$J,10,FALSE),VLOOKUP(_xlfn.CONCAT(P102,O102),'half ppr adp'!$A:$J,10,FALSE))),VLOOKUP(_xlfn.CONCAT(P102,O102),'full ppr adp'!$A:$K,11,FALSE))),"UND") -> UND
O103: Olabisi Johnson | P103: MIN | Q103: =VLOOKUP(_xlfn.CONCAT(P103,O103),'wr data'!A:X,24,FALSE) -> 59.658865 | R103: =IFERROR(Q103-LARGE($Q$3:$Q$150,'Position Expectations'!$B$5+1),Q103-MIN($Q$3:$Q$150)) -> -66.9017295 | S103: =IFERROR(Q103-LARGE($Q$3:$Q$150,Settings!$F$21*Settings!$D$24),Q103-MIN($Q$3:$Q$150))+IF(Settings!$D$26>0,MAX(0,LARGE($Q$3:$Q$150,Settings!$F$21*Settings!$D$24)-LARGE(($Q$3:$Q$150,$J$3:$J$100),Settings!$F$21*(Settings!$D$23+Settings!$D$24+Settings!$D$26))),0) -> -112.0894129 | T103: =IFERROR((IFERROR(IF(Settings!$J$17=1,VLOOKUP(_xlfn.CONCAT(P103,O103),'full ppr adp'!$A:$K,11,FALSE),IF(Settings!$J$17=0,VLOOKUP(_xlfn.CONCAT(P103,O103),'standard adp'!$A:$J,10,FALSE),VLOOKUP(_xlfn.CONCAT(P103,O103),'half ppr adp'!$A:$J,10,FALSE))),VLOOKUP(_xlfn.CONCAT(P103,O103),'full ppr adp'!$A:$K,11,FALSE))),"UND") -> 356
O104: Scott Miller | P104: TB | Q104: =VLOOKUP(_xlfn.CONCAT(P104,O104),'wr data'!A:X,24,FALSE) -> 59.63765785 | R104: =IFERROR(Q104-LARGE($Q$3:$Q$150,'Position Expectations'!$B$5+1),Q104-MIN($Q$3:$Q$150)) -> -66.92293666 | S104: =IFERROR(Q104-LARGE($Q$3:$Q$150,Settings!$F$21*Settings!$D$24),Q104-MIN($Q$3:$Q$150))+IF(Settings!$D$26>0,MAX(0,LARGE($Q$3:$Q$150,Settings!$F$21*Settings!$D$24)-LARGE(($Q$3:$Q$150,$J$3:$J$100),Settings!$F$21*(Settings!$D$23+Settings!$D$24+Settings!$D$26))),0) -> -112.1106201 | T104: =IFERROR((IFERROR(IF(Settings!$J$17=1,VLOOKUP(_xlfn.CONCAT(P104,O104),'full ppr adp'!$A:$K,11,FALSE),IF(Settings!$J$17=0,VLOOKUP(_xlfn.CONCAT(P104,O104),'standard adp'!$A:$J,10,FALSE),VLOOKUP(_xlfn.CONCAT(P104,O104),'half ppr adp'!$A:$J,10,FALSE))),VLOOKUP(_xlfn.CONCAT(P104,O104),'full ppr adp'!$A:$K,11,FALSE))),"UND") -> 356
O105: Antonio Gandy-Golden | P105: WAS | Q105: =VLOOKUP(_xlfn.CONCAT(P105,O105),'wr data'!A:X,24,FALSE) -> 57.9056414 | R105: =IFERROR(Q105-LARGE($Q$3:$Q$150,'Position Expectations'!$B$5+1),Q105-MIN($Q$3:$Q$150)) -> -68.6549531 | S105: =IFERROR(Q105-LARGE($Q$3:$Q$150,Settings!$F$21*Settings!$D$24),Q105-MIN($Q$3:$Q$150))+IF(Settings!$D$26>0,MAX(0,LARGE($Q$3:$Q$150,Settings!$F$21*Settings!$D$24)-LARGE(($Q$3:$Q$150,$J$3:$J$100),Settings!$F$21*(Settings!$D$23+Settings!$D$24+Settings!$D$26))),0) -> -113.8426365 | T105: =IFERROR((IFERROR(IF(Settings!$J$17=1,VLOOKUP(_xlfn.CONCAT(P105,O105),'full ppr adp'!$A:$K,11,FALSE),IF(Settings!$J$17=0,VLOOKUP(_xlfn.CONCAT(P105,O105),'standard adp'!$A:$J,10,FALSE),VLOOKUP(_xlfn.CONCAT(P105,O105),'half ppr adp'!$A:$J,10,FALSE))),VLOOKUP(_xlfn.CONCAT(P105,O105),'full ppr adp'!$A:$K,11,FALSE))),"UND") -> 345
O106: Paul Richardson | P106: SEA | Q106: =VLOOKUP(_xlfn.CONCAT(P106,O106),'wr data'!A:X,24,FALSE) -> 56.01857408 | R106: =IFERROR(Q106-LARGE($Q$3:$Q$150,'Position Expectations'!$B$5+1),Q106-MIN($Q$3:$Q$150)) -> -70.54202042 | S106: =IFERROR(Q106-LARGE($Q$3:$Q$150,Settings!$F$21*Settings!$D$24),Q106-MIN($Q$3:$Q$150))+IF(Settings!$D$26>0,MAX(0,LARGE($Q$3:$Q$150,Settings!$F$21*Settings!$D$24)-LARGE(($Q$3:$Q$150,$J$3:$J$100),Settings!$F$21*(Settings!$D$23+Settings!$D$24+Settings!$D$26))),0) -> -115.7297038 | T106: =IFERROR((IFERROR(IF(Settings!$J$17=1,VLOOKUP(_xlfn.CONCAT(P106,O106),'full ppr adp'!$A:$K,11,FALSE),IF(Settings!$J$17=0,VLOOKUP(_xlfn.CONCAT(P106,O106),'standard adp'!$A:$J,10,FALSE),VLOOKUP(_xlfn.CONCAT(P106,O106),'half ppr adp'!$A:$J,10,FALSE))),VLOOKUP(_xlfn.CONCAT(P106,O106),'full ppr adp'!$A:$K,11,FALSE))),"UND") -> UND
O107: David Moore | P107: SEA | Q107: =VLOOKUP(_xlfn.CONCAT(P107,O107),'wr data'!A:X,24,FALSE) -> 55.9634156 | R107: =IFERROR(Q107-LARGE($Q$3:$Q$150,'Position Expectations'!$B$5+1),Q107-MIN($Q$3:$Q$150)) -> -70.5971789 | S107: =IFERROR(Q107-LARGE($Q$3:$Q$150,Settings!$F$21*Settings!$D$24),Q107-MIN($Q$3:$Q$150))+IF(Settings!$D$26>0,MAX(0,LARGE($Q$3:$Q$150,Settings!$F$21*Settings!$D$24)-LARGE(($Q$3:$Q$150,$J$3:$J$100),Settings!$F$21*(Settings!$D$23+Settings!$D$24+Settings!$D$26))),0) -> -115.7848623 | T107: =IFERROR((IFERROR(IF(Settings!$J$17=1,VLOOKUP(_xlfn.CONCAT(P107,O107),'full ppr adp'!$A:$K,11,FALSE),IF(Settings!$J$17=0,VLOOKUP(_xlfn.CONCAT(P107,O107),'standard adp'!$A:$J,10,FALSE),VLOOKUP(_xlfn.CONCAT(P107,O107),'half ppr adp'!$A:$J,10,FALSE))),VLOOKUP(_xlfn.CONCAT(P107,O107),'full ppr adp'!$A:$K,11,FALSE))),"UND") -> 331
O108: Nelson Agholor | P108: LV | Q108: =VLOOKUP(_xlfn.CONCAT(P108,O108),'wr data'!A:X,24,FALSE) -> 52.8416884 | R108: =IFERROR(Q108-LARGE($Q$3:$Q$150,'Position Expectations'!$B$5+1),Q108-MIN($Q$3:$Q$150)) -> -73.7189061 | S108: =IFERROR(Q108-LARGE($Q$3:$Q$150,Settings!$F$21*Settings!$D$24),Q108-MIN($Q$3:$Q$150))+IF(Settings!$D$26>0,MAX(0,LARGE($Q$3:$Q$150,Settings!$F$21*Settings!$D$24)-LARGE(($Q$3:$Q$150,$J$3:$J$100),Settings!$F$21*(Settings!$D$23+Settings!$D$24+Settings!$D$26))),0) -> -118.9065895 | T108: =IFERROR((IFERROR(IF(Settings!$J$17=1,VLOOKUP(_xlfn.CONCAT(P108,O108),'full ppr adp'!$A:$K,11,FALSE),IF(Settings!$J$17=0,VLOOKUP(_xlfn.CONCAT(P108,O108),'standard adp'!$A:$J,10,FALSE),VLOOKUP(_xlfn.CONCAT(P108,O108),'half ppr adp'!$A:$J,10,FALSE))),VLOOKUP(_xlfn.CONCAT(P108,O108),'full ppr adp'!$A:$K,11,FALSE))),"UND") -> 298
O109: Devin Duvernay | P109: BAL | Q109: =VLOOKUP(_xlfn.CONCAT(P109,O109),'wr data'!A:X,24,FALSE) -> 52.2075155 | R109: =IFERROR(Q109-LARGE($Q$3:$Q$150,'Position Expectations'!$B$5+1),Q109-MIN($Q$3:$Q$150)) -> -74.353079 | S109: =IFERROR(Q109-LARGE($Q$3:$Q$150,Settings!$F$21*Settings!$D$24),Q109-MIN($Q$3:$Q$150))+IF(Settings!$D$26>0,MAX(0,LARGE($Q$3:$Q$150,Settings!$F$21*Settings!$D$24)-LARGE(($Q$3:$Q$150,$J$3:$J$100),Settings!$F$21*(Settings!$D$23+Settings!$D$24+Settings!$D$26))),0) -> -119.5407624 | T109: =IFERROR((IFERROR(IF(Settings!$J$17=1,VLOOKUP(_xlfn.CONCAT(P109,O109),'full ppr adp'!$A:$K,11,FALSE),IF(Settings!$J$17=0,VLOOKUP(_xlfn.CONCAT(P109,O109),'standard adp'!$A:$J,10,FALSE),VLOOKUP(_xlfn.CONCAT(P109,O109),'half ppr adp'!$A:$J,10,FALSE))),VLOOKUP(_xlfn.CONCAT(P109,O109),'full ppr adp'!$A:$K,11,FALSE))),"UND") -> 212
O110: Jake Kumerow | P110: GB | Q110: =VLOOKUP(_xlfn.CONCAT(P110,O110),'wr data'!A:X,24,FALSE) -> 51.9782276 | R110: =IFERROR(Q110-LARGE($Q$3:$Q$150,'Position Expectations'!$B$5+1),Q110-MIN($Q$3:$Q$150)) -> -74.5823669 | S110: =IFERROR(Q110-LARGE($Q$3:$Q$150,Settings!$F$21*Settings!$D$24),Q110-MIN($Q$3:$Q$150))+IF(Settings!$D$26>0,MAX(0,LARGE($Q$3:$Q$150,Settings!$F$21*Settings!$D$24)-LARGE(($Q$3:$Q$150,$J$3:$J$100),Settings!$F$21*(Settings!$D$23+Settings!$D$24+Settings!$D$26))),0) -> -119.7700503 | T110: =IFERROR((IFERROR(IF(Settings!$J$17=1,VLOOKUP(_xlfn.CONCAT(P110,O110),'full ppr adp'!$A:$K,11,FALSE),IF(Settings!$J$17=0,VLOOKUP(_xlfn.CONCAT(P110,O110),'standard adp'!$A:$J,10,FALSE),VLOOKUP(_xlfn.CONCAT(P110,O110),'half ppr adp'!$A:$J,10,FALSE))),VLOOKUP(_xlfn.CONCAT(P110,O110),'full ppr adp'!$A:$K,11,FALSE))),"UND") -> UND
O111: Demarcus Robinson | P111: KC | Q111: =VLOOKUP(_xlfn.CONCAT(P111,O111),'wr data'!A:X,24,FALSE) -> 51.189775 | R111: =IFERROR(Q111-LARGE($Q$3:$Q$150,'Position Expectations'!$B$5+1),Q111-MIN($Q$3:$Q$150)) -> -75.3708195 | S111: =IFERROR(Q111-LARGE($Q$3:$Q$150,Settings!$F$21*Settings!$D$24),Q111-MIN($Q$3:$Q$150))+IF(Settings!$D$26>0,MAX(0,LARGE($Q$3:$Q$150,Settings!$F$21*Settings!$D$24)-LARGE(($Q$3:$Q$150,$J$3:$J$100),Settings!$F$21*(Settings!$D$23+Settings!$D$24+Settings!$D$26))),0) -> -120.5585029 | T111: =IFERROR((IFERROR(IF(Settings!$J$17=1,VLOOKUP(_xlfn.CONCAT(P111,O111),'full ppr adp'!$A:$K,11,FALSE),IF(Settings!$J$17=0,VLOOKUP(_xlfn.CONCAT(P111,O111),'standard adp'!$A:$J,10,FALSE),VLOOKUP(_xlfn.CONCAT(P111,O111),'half ppr adp'!$A:$J,10,FALSE))),VLOOKUP(_xlfn.CONCAT(P111,O111),'full ppr adp'!$A:$K,11,FALSE))),"UND") -> 324
O112: Joe Reed | P112: LAC | Q112: =VLOOKUP(_xlfn.CONCAT(P112,O112),'wr data'!A:X,24,FALSE) -> 50.4727552 | R112: =IFERROR(Q112-LARGE($Q$3:$Q$150,'Position Expectations'!$B$5+1),Q112-MIN($Q$3:$Q$150)) -> -76.0878393 | S112: =IFERROR(Q112-LARGE($Q$3:$Q$150,Settings!$F$21*Settings!$D$24),Q112-MIN($Q$3:$Q$150))+IF(Settings!$D$26>0,MAX(0,LARGE($Q$3:$Q$150,Settings!$F$21*Settings!$D$24)-LARGE(($Q$3:$Q$150,$J$3:$J$100),Settings!$F$21*(Settings!$D$23+Settings!$D$24+Settings!$D$26))),0) -> -121.2755227 | T112: =IFERROR((IFERROR(IF(Settings!$J$17=1,VLOOKUP(_xlfn.CONCAT(P112,O112),'full ppr adp'!$A:$K,11,FALSE),IF(Settings!$J$17=0,VLOOKUP(_xlfn.CONCAT(P112,O112),'standard adp'!$A:$J,10,FALSE),VLOOKUP(_xlfn.CONCAT(P112,O112),'half ppr adp'!$A:$J,10,FALSE))),VLOOKUP(_xlfn.CONCAT(P112,O112),'full ppr adp'!$A:$K,11,FALSE))),"UND") -> UND
O113: Isaiah Ford | P113: MIA | Q113: =VLOOKUP(_xlfn.CONCAT(P113,O113),'wr data'!A:X,24,FALSE) -> 47.8812174 | R113: =IFERROR(Q113-LARGE($Q$3:$Q$150,'Position Expectations'!$B$5+1),Q113-MIN($Q$3:$Q$150)) -> -78.6793771 | S113: =IFERROR(Q113-LARGE($Q$3:$Q$150,Settings!$F$21*Settings!$D$24),Q113-MIN($Q$3:$Q$150))+IF(Settings!$D$26>0,MAX(0,LARGE($Q$3:$Q$150,Settings!$F$21*Settings!$D$24)-LARGE(($Q$3:$Q$150,$J$3:$J$100),Settings!$F$21*(Settings!$D$23+Settings!$D$24+Settings!$D$26))),0) -> -123.8670605 | T113: =IFERROR((IFERROR(IF(Settings!$J$17=1,VLOOKUP(_xlfn.CONCAT(P113,O113),'full ppr adp'!$A:$K,11,FALSE),IF(Settings!$J$17=0,VLOOKUP(_xlfn.CONCAT(P113,O113),'standard adp'!$A:$J,10,FALSE),VLOOKUP(_xlfn.CONCAT(P113,O113),'half ppr adp'!$A:$J,10,FALSE))),VLOOKUP(_xlfn.CONCAT(P113,O113),'full ppr adp'!$A:$K,11,FALSE))),"UND") -> UND
O114: Ted Ginn | P114: CHI | Q114: =VLOOKUP(_xlfn.CONCAT(P114,O114),'wr data'!A:X,24,FALSE) -> 46.54957016 | R114: =IFERROR(Q114-LARGE($Q$3:$Q$150,'Position Expectations'!$B$5+1),Q114-MIN($Q$3:$Q$150)) -> -80.01102434 | S114: =IFERROR(Q114-LARGE($Q$3:$Q$150,Settings!$F$21*Settings!$D$24),Q114-MIN($Q$3:$Q$150))+IF(Settings!$D$26>0,MAX(0,LARGE($Q$3:$Q$150,Settings!$F$21*Settings!$D$24)-LARGE(($Q$3:$Q$150,$J$3:$J$100),Settings!$F$21*(Settings!$D$23+Settings!$D$24+Settings!$D$26))),0) -> -125.1987077 | T114: =IFERROR((IFERROR(IF(Settings!$J$17=1,VLOOKUP(_xlfn.CONCAT(P114,O114),'full ppr adp'!$A:$K,11,FALSE),IF(Settings!$J$17=0,VLOOKUP(_xlfn.CONCAT(P114,O114),'standard adp'!$A:$J,10,FALSE),VLOOKUP(_xlfn.CONCAT(P114,O114),'half ppr adp'!$A:$J,10,FALSE))),VLOOKUP(_xlfn.CONCAT(P114,O114),'full ppr adp'!$A:$K,11,FALSE))),"UND") -> 365
O115: Greg Ward | P115: PHI | Q115: =VLOOKUP(_xlfn.CONCAT(P115,O115),'wr data'!A:X,24,FALSE) -> 46.4565115 | R115: =IFERROR(Q115-LARGE($Q$3:$Q$150,'Position Expectations'!$B$5+1),Q115-MIN($Q$3:$Q$150)) -> -80.104083 | S115: =IFERROR(Q115-LARGE($Q$3:$Q$150,Settings!$F$21*Settings!$D$24),Q115-MIN($Q$3:$Q$150))+IF(Settings!$D$26>0,MAX(0,LARGE($Q$3:$Q$150,Settings!$F$21*Settings!$D$24)-LARGE(($Q$3:$Q$150,$J$3:$J$100),Settings!$F$21*(Settings!$D$23+Settings!$D$24+Settings!$D$26))),0) -> -125.2917664 | T115: =IFERROR((IFERROR(IF(Settings!$J$17=1,VLOOKUP(_xlfn.CONCAT(P115,O115),'full ppr adp'!$A:$K,11,FALSE),IF(Settings!$J$17=0,VLOOKUP(_xlfn.CONCAT(P115,O115),'standard adp'!$A:$J,10,FALSE),VLOOKUP(_xlfn.CONCAT(P115,O115),'half ppr adp'!$A:$J,10,FALSE))),VLOOKUP(_xlfn.CONCAT(P115,O115),'full ppr adp'!$A:$K,11,FALSE))),"UND") -> 348
O116: Trent Taylor | P116: SF | Q116: =VLOOKUP(_xlfn.CONCAT(P116,O116),'wr data'!A:X,24,FALSE) -> 43.11611142 | R116: =IFERROR(Q116-LARGE($Q$3:$Q$150,'Position Expectations'!$B$5+1),Q116-MIN($Q$3:$Q$150)) -> -83.44448308 | S116: =IFERROR(Q116-LARGE($Q$3:$Q$150,Settings!$F$21*Settings!$D$24),Q116-MIN($Q$3:$Q$150))+IF(Settings!$D$26>0,MAX(0,LARGE($Q$3:$Q$150,Settings!$F$21*Settings!$D$24)-LARGE(($Q$3:$Q$150,$J$3:$J$100),Settings!$F$21*(Settings!$D$23+Settings!$D$24+Settings!$D$26))),0) -> -128.6321665 | T116: =IFERROR((IFERROR(IF(Settings!$J$17=1,VLOOKUP(_xlfn.CONCAT(P116,O116),'full ppr adp'!$A:$K,11,FALSE),IF(Settings!$J$17=0,VLOOKUP(_xlfn.CONCAT(P116,O116),'standard adp'!$A:$J,10,FALSE),VLOOKUP(_xlfn.CONCAT(P116,O116),'half ppr adp'!$A:$J,10,FALSE))),VLOOKUP(_xlfn.CONCAT(P116,O116),'full ppr adp'!$A:$K,11,FALSE))),"UND") -> 374
O117: Phillip Dorsett | P117: SEA | Q117: =VLOOKUP(_xlfn.CONCAT(P117,O117),'wr data'!A:X,24,FALSE) -> 38.7700984 | R117: =IFERROR(Q117-LARGE($Q$3:$Q$150,'Position Expectations'!$B$5+1),Q117-MIN($Q$3:$Q$150)) -> -87.7904961 | S117: =IFERROR(Q117-LARGE($Q$3:$Q$150,Settings!$F$21*Settings!$D$24),Q117-MIN($Q$3:$Q$150))+IF(Settings!$D$26>0,MAX(0,LARGE($Q$3:$Q$150,Settings!$F$21*Settings!$D$24)-LARGE(($Q$3:$Q$150,$J$3:$J$100),Settings!$F$21*(Settings!$D$23+Settings!$D$24+Settings!$D$26))),0) -> -132.9781795 | T117: =IFERROR((IFERROR(IF(Settings!$J$17=1,VLOOKUP(_xlfn.CONCAT(P117,O117),'full ppr adp'!$A:$K,11,FALSE),IF(Settings!$J$17=0,VLOOKUP(_xlfn.CONCAT(P117,O117),'standard adp'!$A:$J,10,FALSE),VLOOKUP(_xlfn.CONCAT(P117,O117),'half ppr adp'!$A:$J,10,FALSE))),VLOOKUP(_xlfn.CONCAT(P117,O117),'full ppr adp'!$A:$K,11,FALSE))),"UND") -> 313
O118: Rashard Higgins | P118: CLE | Q118: =VLOOKUP(_xlfn.CONCAT(P118,O118),'wr data'!A:X,24,FALSE) -> 36.20506977 | R118: =IFERROR(Q118-LARGE($Q$3:$Q$150,'Position Expectations'!$B$5+1),Q118-MIN($Q$3:$Q$150)) -> -90.35552473 | S118: =IFERROR(Q118-LARGE($Q$3:$Q$150,Settings!$F$21*Settings!$D$24),Q118-MIN($Q$3:$Q$150))+IF(Settings!$D$26>0,MAX(0,LARGE($Q$3:$Q$150,Settings!$F$21*Settings!$D$24)-LARGE(($Q$3:$Q$150,$J$3:$J$100),Settings!$F$21*(Settings!$D$23+Settings!$D$24+Settings!$D$26))),0) -> -135.5432081 | T118: =IFERROR((IFERROR(IF(Settings!$J$17=1,VLOOKUP(_xlfn.CONCAT(P118,O118),'full ppr adp'!$A:$K,11,FALSE),IF(Settings!$J$17=0,VLOOKUP(_xlfn.CONCAT(P118,O118),'standard adp'!$A:$J,10,FALSE),VLOOKUP(_xlfn.CONCAT(P118,O118),'half ppr adp'!$A:$J,10,FALSE))),VLOOKUP(_xlfn.CONCAT(P118,O118),'full ppr adp'!$A:$K,11,FALSE))),"UND") -> 411
O119: Dante Pettis | P119: SF | Q119: =VLOOKUP(_xlfn.CONCAT(P119,O119),'wr data'!A:X,24,FALSE) -> 16.64854566 | R119: =IFERROR(Q119-LARGE($Q$3:$Q$150,'Position Expectations'!$B$5+1),Q119-MIN($Q$3:$Q$150)) -> -109.9120488 | S119: =IFERROR(Q119-LARGE($Q$3:$Q$150,Settings!$F$21*Settings!$D$24),Q119-MIN($Q$3:$Q$150))+IF(Settings!$D$26>0,MAX(0,LARGE($Q$3:$Q$150,Settings!$F$21*Settings!$D$24)-LARGE(($Q$3:$Q$150,$J$3:$J$100),Settings!$F$21*(Settings!$D$23+Settings!$D$24+Settings!$D$26))),0) -> -155.0997322 | T119: =IFERROR((IFERROR(IF(Settings!$J$17=1,VLOOKUP(_xlfn.CONCAT(P119,O119),'full ppr adp'!$A:$K,11,FALSE),IF(Settings!$J$17=0,VLOOKUP(_xlfn.CONCAT(P119,O119),'standard adp'!$A:$J,10,FALSE),VLOOKUP(_xlfn.CONCAT(P119,O119),'half ppr adp'!$A:$J,10,FALSE))),VLOOKUP(_xlfn.CONCAT(P119,O119),'full ppr adp'!$A:$K,11,FALSE))),"UND") -> 364

Sheet qb data
A1: Team Abbr | B1: Team | C1: New HC | D1: New OC | E1: New Receivers | F1: Lost Receivers | G1: QB | H1: Pass Attempts | I1: Yds/Att | J1: TD/Att | K1: Int/Att | L1: Rush Attempts | M1: Yds/Att | N1: TD/Att | O1: Fum/Att | P1: HC Mod | Q1: Pass Eff Mod | R1: Reg Mod | S1: xTotal Pts
A2: ARI | B2: Arizona Cardinals | E2: DeAndre Hopkins | F2: David Johnson | G2: Kyler Murray | H2: 554.16 | I2: 6.87 | J2: 0.0369 | K2: 0.0221 | L2: 92.65 | M2: 5.85 | N2: 0.043 | O2: 0.0215 | P2: 1 | Q2: 1.1 | R2: 1 | S2: =((I2*Q2*H2*Settings!$D$15)+(J2*Q2*H2*Settings!$D$16)+(K2*H2*Settings!$D$17)+(M2*L2*Settings!$G$15)+(N2*L2*Settings!$G$16)+(O2*L2*Settings!$M$15))*R2*P2 -> 307.1110304
A3: ATL | B3: Atlanta Falcons | E3: Hayden Hurst | F3: Austin Hooper | G3: Matt Ryan | H3: 649.33 | I3: 7.25 | J3: 0.0422 | K3: 0.0227 | L3: 32 | M3: 4.32 | N3: 0.0294 | O3: 0.1471 | P3: 1 | Q3: 1 | R3: 1 | S3: =((I3*Q3*H3*Settings!$D$15)+(J3*Q3*H3*Settings!$D$16)+(K3*H3*Settings!$D$17)+(M3*L3*Settings!$G$15)+(N3*L3*Settings!$G$16)+(O3*L3*Settings!$M$15))*R3*P3 -> 278.487422
A4: BAL | B4: Baltimore Ravens | G4: Lamar Jackson | H4: 421.63 | I4: 7.8 | J4: 0.07 | K4: 0.015 | L4: 199.25 | M4: 6.85 | N4: 0.0398 | O4: 0.0114 | P4: 1 | Q4: 0.95 | R4: 0.85 | S4: =((I4*Q4*H4*Settings!$D$15)+(J4*Q4*H4*Settings!$D$16)+(K4*H4*Settings!$D$17)+(M4*L4*Settings!$G$15)+(N4*L4*Settings!$G$16)+(O4*L4*Settings!$M$15))*R4*P4 -> 343.4000527
A5: BUF | B5: Buffalo Bills | E5: Stefon Diggs | G5: Josh Allen | H5: 565.23 | I5: 6.7 | J5: 0.0434 | K5: 0.0195 | L5: 88.5 | M5: 4.68 | N5: 0.0826 | O5: 0.1284 | P5: 1 | Q5: 1.05 | R5: 1 | S5: =((I5*Q5*H5*Settings!$D$15)+(J5*Q5*H5*Settings!$D$16)+(K5*H5*Settings!$D$17)+(M5*L5*Settings!$G$15)+(N5*L5*Settings!$G$16)+(O5*L5*Settings!$M$15))*R5*P5 -> 302.5936764
A6: CAR | B6: Carolina Panthers | C6: Matt Rhule | D6: Joe Brady | E6: Robby Anderson | F6: Greg Olsen | G6: Teddy Bridgewater | H6: 618.33 | I6: 7.06 | J6: 0.0459 | K6: 0.0102 | L6: 33.75 | M6: 1.11 | N6: 0.03 | O6: 0.01 | P6: 0.95 | Q6: 0.9 | R6: 1 | S6: =((I6*Q6*H6*Settings!$D$15)+(J6*Q6*H6*Settings!$D$16)+(K6*H6*Settings!$D$17)+(M6*L6*Settings!$G$15)+(N6*L6*Settings!$G$16)+(O6*L6*Settings!$M$15))*R6*P6 -> 243.066924
A7: CHI | B7: Chicago Bears | D7: Bill Lazor | E7: Jimmy Graham | G7: Nick Foles | H7: 588 | I7: 6.29 | J7: 0.0256 | K7: 0.0171 | L7: 10.8 | M7: 5.75 | N7: 0.0388 | O7: 0.01 | P7: 1 | Q7: 1.05 | R7: 1 | S7: =((I7*Q7*H7*Settings!$D$15)+(J7*Q7*H7*Settings!$D$16)+(K7*H7*Settings!$D$17)+(M7*L7*Settings!$G$15)+(N7*L7*Settings!$G$16)+(O7*L7*Settings!$M$15))*R7*P7 -> 206.95824
A8: CIN | B8: Cincinnati Bengals | E8: AJ Green | G8: Joe Burrow | H8: 583 | I8: 6.5 | J8: 0.035 | K8: 0.02 | L8: 43.125 | M8: 4.3 | N8: 0.025 | O8: 0.05 | P8: 1 | Q8: 1.15 | R8: 1 | S8: =((I8*Q8*H8*Settings!$D$15)+(J8*Q8*H8*Settings!$D$16)+(K8*H8*Settings!$D$17)+(M8*L8*Settings!$G$15)+(N8*L8*Settings!$G$16)+(O8*L8*Settings!$M$15))*R8*P8 -> 265.56
A9: CLE | B9: Cleveland Browns | C9: Kevin Stefanski | D9: Alex Van Pelt | E9: Austin Hooper | G9: Baker Mayfield | H9: 555.55 | I9: 7.17 | J9: 0.0412 | K9: 0.0393 | L9: 26.6 | M9: 5.04 | N9: 0.1071 | O9: 0.0714 | P9: 1 | Q9: 1.05 | R9: 1 | S9: =((I9*Q9*H9*Settings!$D$15)+(J9*Q9*H9*Settings!$D$16)+(K9*H9*Settings!$D$17)+(M9*L9*Settings!$G$15)+(N9*L9*Settings!$G$16)+(O9*L9*Settings!$M$15))*R9*P9 -> 246.465549
A10: DAL | B10: Dallas Cowboys | C10: Mike McCarthy | E10: CeeDee Lamb | F10: Randall Cobb, Jason Witten | G10: Dak Prescott | H10: 584 | I10: 8.22 | J10: 0.0503 | K10: 0.0185 | L10: 57 | M10: 5.33 | N10: 0.0577 | O10: 0.0385 | P10: 1.05 | Q10: 0.95 | R10: 0.95 | S10: =((I10*Q10*H10*Settings!$D$15)+(J10*Q10*H10*Settings!$D$16)+(K10*H10*Settings!$D$17)+(M10*L10*Settings!$G$15)+(N10*L10*Settings!$G$16)+(O10*L10*Settings!$M$15))*R10*P10 -> 317.3659965
A11: DEN | B11: Denver Broncos | D11: Pat Shurmur | E11: Jerry Jeudy, KJ Hamler, Melvin Gordon | F11: Emmanuel Sanders | G11: Drew Lock | H11: 524.6 | I11: 6.54 | J11: 0.0449 | K11: 0.0192 | L11: 41.8 | M11: 4 | N11: 0.005 | O11: 0.1667 | P11: 1 | Q11: 1 | R11: 1.1 | S11: =((I11*Q11*H11*Settings!$D$15)+(J11*Q11*H11*Settings!$D$16)+(K11*H11*Settings!$D$17)+(M11*L11*Settings!$G$15)+(N11*L11*Settings!$G$16)+(O11*L11*Settings!$M$15))*R11*P11 -> 236.881436
A12: DET | B12: Detroit Lions | G12: Matt Stafford | H12: 557.13 | I12: 8.59 | J12: 0.0516 | K12: 0.0185 | L12: 23.1 | M12: 3.04 | N12: 0.005 | O12: 0.2444 | P12: 1 | Q12: 1 | R12: 1 | S12: =((I12*Q12*H12*Settings!$D$15)+(J12*Q12*H12*Settings!$D$16)+(K12*H12*Settings!$D$17)+(M12*L12*Settings!$G$15)+(N12*L12*Settings!$G$16)+(O12*L12*Settings!$M$15))*R12*P12 -> 282.23181
A13: GB | B13: Green Bay Packers | F13: Jimmy Graham, Geronimo Allison | G13: Aaron Rodgers | H13: 598.63 | I13: 7.03 | J13: 0.0457 | K13: 0.007 | L13: 48 | M13: 3.98 | N13: 0.0217 | O13: 0.087 | P13: 1 | Q13: 1 | R13: 1 | S13: =((I13*Q13*H13*Settings!$D$15)+(J13*Q13*H13*Settings!$D$16)+(K13*H13*Settings!$D$17)+(M13*L13*Settings!$G$15)+(N13*L13*Settings!$G$16)+(O13*L13*Settings!$M$15))*R13*P13 -> 286.3851
A14: HOU | B14: Houston Texans | E14: David Johnson, Brandin Cooks, Randall Cobb | F14: DeAndre Hopkins | G14: Deshaun Watson | H14: 543.11 | I14: 7.78 | J14: 0.0525 | K14: 0.0242 | L14: 81.9 | M14: 5.04 | N14: 0.0854 | O14: 0.0732 | P14: 1 | Q14: 0.95 | R14: 1 | S14: =((I14*Q14*H14*Settings!$D$15)+(J14*Q14*H14*Settings!$D$16)+(K14*H14*Settings!$D$17)+(M14*L14*Settings!$G$15)+(N14*L14*Settings!$G$16)+(O14*L14*Settings!$M$15))*R14*P14 -> 313.8819614
A15: IND | B15: Indianapolis Colts | E15: Michael Pittman, Jonathan Taylor | F15: Eric Ebron | G15: Philip Rivers | H15: 537.6 | I15: 7.81 | J15: 0.0389 | K15: 0.0338 | L15: 9 | M15: 2.42 | N15: 0.005 | O15: 0.01 | P15: 1.05 | Q15: 1 | R15: 1 | S15: =((I15*Q15*H15*Settings!$D$15)+(J15*Q15*H15*Settings!$D$16)+(K15*H15*Settings!$D$17)+(M15*L15*Settings!$G$15)+(N15*L15*Settings!$G$16)+(O15*L15*Settings!$M$15))*R15*P15 -> 228.399192
A16: JAC | B16: Jacksonville Jaguars | D16: Jay Gruden | E16: Laviska Shenault | G16: Gardner Minshew | H16: 640.98 | I16: 6.96 | J16: 0.0447 | K16: 0.0128 | L16: 80 | M16: 4.5 | N16: 0.005 | O16: 0.0149 | P16: 1 | Q16: 1 | R16: 0.9 | S16: =((I16*Q16*H16*Settings!$D$15)+(J16*Q16*H16*Settings!$D$16)+(K16*H16*Settings!$D$17)+(M16*L16*Settings!$G$15)+(N16*L16*Settings!$G$16)+(O16*L16*Settings!$M$15))*R16*P16 -> 281.3966712
A17: KC | B17: Kansas City Chiefs | G17: Patrick Mahomes | H17: 557.38 | I17: 8.33 | J17: 0.0537 | K17: 0.0103 | L17: 42.9 | M17: 5.07 | N17: 0.0465 | O17: 0.0465 | P17: 1 | Q17: 1 | R17: 1 | S17: =((I17*Q17*H17*Settings!$D$15)+(J17*Q17*H17*Settings!$D$16)+(K17*H17*Settings!$D$17)+(M17*L17*Settings!$G$15)+(N17*L17*Settings!$G$16)+(O17*L17*Settings!$M$15))*R17*P17 -> 323.691912
A18: LAC | B18: Los Angeles Chargers | D18: Shane Steichen | G18: Taylor / Herbert | H18: 507.83 | I18: 6.5 | J18: 0.03 | K18: 0.02 | L18: 56 | M18: 4 | N18: 0.005 | O18: 0.01 | P18: 1 | Q18: 1 | R18: 1 | S18: =((I18*Q18*H18*Settings!$D$15)+(J18*Q18*H18*Settings!$D$16)+(K18*H18*Settings!$D$17)+(M18*L18*Settings!$G$15)+(N18*L18*Settings!$G$16)+(O18*L18*Settings!$M$15))*R18*P18 -> 195.6222
A19: LAR | B19: Los Angeles Rams | D19: Kevin O'Connell | E19: Van Jefferson | F19: Brandin Cooks, Todd Gurley | G19: Jared Goff | H19: 634.6 | I19: 7.41 | J19: 0.0461 | K19: 0.0235 | L19: 33.6 | M19: 1.21 | N19: 0.0606 | O19: 0.1515 | P19: 1 | Q19: 0.95 | R19: 1 | S19: =((I19*Q19*H19*Settings!$D$15)+(J19*Q19*H19*Settings!$D$16)+(K19*H19*Settings!$D$17)+(M19*L19*Settings!$G$15)+(N19*L19*Settings!$G$16)+(O19*L19*Settings!$M$15))*R19*P19 -> 266.135456
A20: MIA | B20: Miami Dolphins | D20: Chan Gailey | F20: Albert Wilson, Allen Hurns | G20: Fitzpatrick / Tagovailoa | H20: 604.5 | I20: 7.03 | J20: 0.0398 | K20: 0.0259 | L20: 63 | M20: 4.5 | N20: 0.0741 | O20: 0.037 | P20: 1 | Q20: 0.9 | R20: 1 | S20: =((I20*Q20*H20*Settings!$D$15)+(J20*Q20*H20*Settings!$D$16)+(K20*H20*Settings!$D$17)+(M20*L20*Settings!$G$15)+(N20*L20*Settings!$G$16)+(O20*L20*Settings!$M$15))*R20*P20 -> 259.98432
A21: MIN | B21: Minnesota Vikings | D21: Gary Kubiak | E21: Justin Jefferson | F21: Stefon Diggs | G21: Kirk Cousins | H21: 447.3 | I21: 8.11 | J21: 0.0586 | K21: 0.0135 | L21: 22.5 | M21: 2.03 | N21: 0.0323 | O21: 0.0968 | P21: 1 | Q21: 1 | R21: 1 | S21: =((I21*Q21*H21*Settings!$D$15)+(J21*Q21*H21*Settings!$D$16)+(K21*H21*Settings!$D$17)+(M21*L21*Settings!$G$15)+(N21*L21*Settings!$G$16)+(O21*L21*Settings!$M$15))*R21*P21 -> 242.44614
A22: NO | B22: New Orleans Saints | E22: Emmanuel Sanders | F22: Ted Ginn | G22: Drew Brees | H22: 603.11 | I22: 7.62 | J22: 0.054 | K22: 0.0233 | L22: 28.8 | M22: 1.57 | N22: 0.0479 | O22: 0.208 | P22: 1 | Q22: 1 | R22: 0.975 | S22: =((I22*Q22*H22*Settings!$D$15)+(J22*Q22*H22*Settings!$D$16)+(K22*H22*Settings!$D$17)+(M22*L22*Settings!$G$15)+(N22*L22*Settings!$G$16)+(O22*L22*Settings!$M$15))*R22*P22 -> 279.642365
A23: NE | B23: New England Patriots | G23: Cam Newton | H23: 585.4 | I23: 7.21 | J23: 0.051 | K23: 0.0276 | L23: 76.5 | M23: 4.83 | N23: 0.0396 | O23: 0.01 | P23: 1 | Q23: 0.9 | R23: 1 | S23: =((I23*Q23*H23*Settings!$D$15)+(J23*Q23*H23*Settings!$D$16)+(K23*H23*Settings!$D$17)+(M23*L23*Settings!$G$15)+(N23*L23*Settings!$G$16)+(O23*L23*Settings!$M$15))*R23*P23 -> 280.707684
A24: NYG | B24: New York Giants | C24: Joe Judge | D24: Jason Garrett | G24: Daniel Jones | H24: 578.75 | I24: 6.59 | J24: 0.0523 | K24: 0.0261 | L24: 54.5 | M24: 6.2 | N24: 0.0444 | O24: 0.2444 | P24: 1 | Q24: 1 | R24: 1 | S24: =((I24*Q24*H24*Settings!$D$15)+(J24*Q24*H24*Settings!$D$16)+(K24*H24*Settings!$D$17)+(M24*L24*Settings!$G$15)+(N24*L24*Settings!$G$16)+(O24*L24*Settings!$M$15))*R24*P24 -> 265.09145
A25: NYJ | B25: New York Jets | E25: Denzel Mims | F25: Robby Anderson | G25: Sam Darnold | H25: 517.25 | I25: 6.86 | J25: 0.0431 | K25: 0.0295 | L25: 34.5 | M25: 1.88 | N25: 0.0606 | O25: 0.0909 | P25: 1 | Q25: 1 | R25: 1.05 | S25: =((I25*Q25*H25*Settings!$D$15)+(J25*Q25*H25*Settings!$D$16)+(K25*H25*Settings!$D$17)+(M25*L25*Settings!$G$15)+(N25*L25*Settings!$G$16)+(O25*L25*Settings!$M$15))*R25*P25 -> 224.0150325
A26: LV | B26: Las Vegas Raiders | E26: Henry Ruggs, Nelson Agholor | G26: Derek Carr | H26: 547.58 | I26: 7.9 | J26: 0.0409 | K26: 0.0156 | L26: 22.325 | M26: 3.04 | N26: 0.0741 | O26: 0.1111 | P26: 1 | Q26: 1 | R26: 1 | S26: =((I26*Q26*H26*Settings!$D$15)+(J26*Q26*H26*Settings!$D$16)+(K26*H26*Settings!$D$17)+(M26*L26*Settings!$G$15)+(N26*L26*Settings!$G$16)+(O26*L26*Settings!$M$15))*R26*P26 -> 257.286752
A27: PHI | B27: Philadelphia Eagles | D27: NONE | E27: Jalen Reagor | F27: Alshon Jeffery, Nelson Agholor | G27: Carson Wentz | H27: 602 | I27: 7.06 | J27: 0.047619 | K27: 0.0139 | L27: 57.5 | M27: 3.92 | N27: 0.0161 | O27: 0.1129 | P27: 1 | Q27: 1 | R27: 1 | S27: =((I27*Q27*H27*Settings!$D$15)+(J27*Q27*H27*Settings!$D$16)+(K27*H27*Settings!$D$17)+(M27*L27*Settings!$G$15)+(N27*L27*Settings!$G$16)+(O27*L27*Settings!$M$15))*R27*P27 -> 283.046752
A28: PIT | B28: Pittsburgh Steelers | E28: Chase Claypool | F28: James Washington, Jaylen Samuels | G28: Ben Roethlisberger | H28: 620.81 | I28: 7.6 | J28: 0.0504 | K28: 0.0237 | L28: 28.75 | M28: 3.16 | N28: 0.0968 | O28: 0.2258 | P28: 1 | Q28: 0.95 | R28: 0.95 | S28: =((I28*Q28*H28*Settings!$D$15)+(J28*Q28*H28*Settings!$D$16)+(K28*H28*Settings!$D$17)+(M28*L28*Settings!$G$15)+(N28*L28*Settings!$G$16)+(O28*L28*Settings!$M$15))*R28*P28 -> 267.4825369
A29: SEA | B29: Seattle Seahawks | G29: Russell Wilson | H29: 532 | I29: 7.97 | J29: 0.0601 | K29: 0.0097 | L29: 71 | M29: 4.56 | N29: 0.04 | O29: 0.0267 | P29: 1 | Q29: 1 | R29: 0.95 | S29: =((I29*Q29*H29*Settings!$D$15)+(J29*Q29*H29*Settings!$D$16)+(K29*H29*Settings!$D$17)+(M29*L29*Settings!$G$15)+(N29*L29*Settings!$G$16)+(O29*L29*Settings!$M$15))*R29*P29 -> 316.15829
A30: SF | B30: San Francisco 49ers | E30: Brandon Aiyuk | F30: Emmanuel Sanders | G30: Jimmy Garoppolo | H30: 494.03 | I30: 8.36 | J30: 0.0567 | K30: 0.0273 | L30: 42.5 | M30: 1.35 | N30: 0.0217 | O30: 0.1087 | P30: 1 | Q30: 1 | R30: 1.05 | S30: =((I30*Q30*H30*Settings!$D$15)+(J30*Q30*H30*Settings!$D$16)+(K30*H30*Settings!$D$17)+(M30*L30*Settings!$G$15)+(N30*L30*Settings!$G$16)+(O30*L30*Settings!$M$15))*R30*P30 -> 264.9224529
A31: TB | B31: Tampa Bay Buccaneers | F31: Breshad Perriman | G31: Tom Brady | H31: 615.84 | I31: 6.62 | J31: 0.0392 | K31: 0.0131 | L31: 22.25 | M31: 1.31 | N31: 0.1154 | O31: 0.0385 | P31: 1 | Q31: 1.2 | R31: 0.95 | S31: =((I31*Q31*H31*Settings!$D$15)+(J31*Q31*H31*Settings!$D$16)+(K31*H31*Settings!$D$17)+(M31*L31*Settings!$G$15)+(N31*L31*Settings!$G$16)+(O31*L31*Settings!$M$15))*R31*P31 -> 296.4362566
A32: TEN | B32: Tennessee Titans | G32: Ryan Tannehill | H32: 458.72 | I32: 9.59 | J32: 0.07 | K32: 0.021 | L32: 49 | M32: 4.3 | N32: 0.093 | O32: 0.1395 | P32: 1 | Q32: 0.85 | R32: 0.95 | S32: =((I32*Q32*H32*Settings!$D$15)+(J32*Q32*H32*Settings!$D$16)+(K32*H32*Settings!$D$17)+(M32*L32*Settings!$G$15)+(N32*L32*Settings!$G$16)+(O32*L32*Settings!$M$15))*R32*P32 -> 260.509345
A33: WAS | B33: Washington Football Team | C33: Ron Rivera | D33: Scott Turner | G33: Dwayne Haskins | H33: 486 | I33: 6.72 | J33: 0.0345 | K33: 0.0345 | L33: 39.5 | M33: 5.05 | N33: 0.01 | O33: 0.1 | P33: 1 | Q33: 1.05 | R33: 1.1 | S33: =((I33*Q33*H33*Settings!$D$15)+(J33*Q33*H33*Settings!$D$16)+(K33*H33*Settings!$D$17)+(M33*L33*Settings!$G$15)+(N33*L33*Settings!$G$16)+(O33*L33*Settings!$M$15))*R33*P33 -> 207.320894

Sheet rb data
A1: Code | B1: Abbr | C1: Team | D1: New HC | E1: New OC | F1: Name | G1: Position | H1: 2019 Team | I1: OLine | J1: OLine | K1: 2019 QB | L1: 2020 QB | M1: xTargets | N1: xRush | O1: Catch % | P1: Yds/Tar | Q1: TD/Tar | R1: Yds/Att | S1: TD/Att | T1: Fum/(Att+Tar) | U1: QB Mod | V1: OLine Mod | W1: OLine Mod | X1: Final xPts
A2: =_xlfn.CONCAT(B2,F2) -> ARIKenyan Drake | B2: =VLOOKUP(C2,'team abbr lookup'!B:C,2,FALSE) -> ARI | C2: Arizona Cardinals | D2: --- | E2: --- | F2: Kenyan Drake | G2: RB1 | H2: Miami Dolphins | I2: 292.2 | J2: 286.8 | K2: Fitzpatrick / Tagovailoa | L2: Kyler Murray | M2: 74 | N2: 188 | O2: 0.7321 | P2: 5.58 | Q2: 0.035 | R2: 4.72 | S2: 0.041 | T2: 0.011 | U2: 1 | V2: 0.9954 | W2: 0.9908 | X2: =(O2*M2*Settings!$J$17)+(P2*V2*U2*M2*Settings!$J$15)+(Q2*V2*U2*M2*Settings!$J$16)+(R2*W2*N2*Settings!$G$15)+(S2*W2*N2*Settings!$G$16)+(T2*(N2+M2)*Settings!$M$15) -> 238.72412
A3: =_xlfn.CONCAT(B3,F3) -> ARIChase Edmonds | B3: =VLOOKUP(C3,'team abbr lookup'!B:C,2,FALSE) -> ARI | C3: Arizona Cardinals | D3: --- | E3: --- | F3: Chase Edmonds | G3: RB2 | H3: Arizona Cardinals | I3: 301.8 | J3: 286.8 | K3: Kyler Murray | L3: Kyler Murray | M3: 26 | N3: 85 | O3: 0.6769 | P3: 4.82 | Q3: 0.023 | R3: 4.52 | S3: 0.05 | T3: 0.006 | U3: 1 | V3: 0.9876 | W3: 0.9751 | X3: =(O3*M3*Settings!$J$17)+(P3*V3*U3*M3*Settings!$J$15)+(Q3*V3*U3*M3*Settings!$J$16)+(R3*W3*N3*Settings!$G$15)+(S3*W3*N3*Settings!$G$16)+(T3*(N3+M3)*Settings!$M$15) -> 94.515904
A4: ATLTodd Gurley | B4: =VLOOKUP(C4,'team abbr lookup'!B:C,2,FALSE) -> ATL | C4: Atlanta Falcons | D4: --- | E4: --- | F4: Todd Gurley | G4: RB1 | H4: Los Angeles Rams | I4: 318.8 | J4: 301.8 | K4: Jared Goff | L4: Matt Ryan | M4: 62 | N4: 202 | O4: 0.676 | P4: 5.55 | Q4: 0.046 | R4: 4.22 | S4: 0.04 | T4: 0.009 | U4: 1 | V4: 0.9867 | W4: 0.9733 | X4: =(O4*M4*Settings!$J$17)+(P4*V4*U4*M4*Settings!$J$15)+(Q4*V4*U4*M4*Settings!$J$16)+(R4*W4*N4*Settings!$G$15)+(S4*W4*N4*Settings!$G$16)+(T4*(N4+M4)*Settings!$M$15) -> 218.1503266
A5: ATLIto Smith | B5: =VLOOKUP(C5,'team abbr lookup'!B:C,2,FALSE) -> ATL | C5: Atlanta Falcons | D5: --- | E5: --- | F5: Ito Smith | G5: RB2 | H5: Atlanta Falcons | I5: 326 | J5: 301.8 | K5: Matt Ryan | L5: Matt Ryan | M5: 27 | N5: 66 | O5: 0.8167 | P5: 5.43 | Q5: 0.01 | R5: 3.93 | S5: 0.045 | T5: 0.006 | U5: 1 | V5: 0.9814 | W5: 0.9629 | X5: =(O5*M5*Settings!$J$17)+(P5*V5*U5*M5*Settings!$J$15)+(Q5*V5*U5*M5*Settings!$J$16)+(R5*W5*N5*Settings!$G$15)+(S5*W5*N5*Settings!$G$16)+(T5*(N5+M5)*Settings!$M$15) -> 79.0476516
A6: ATLBrian Hill | B6: =VLOOKUP(C6,'team abbr lookup'!B:C,2,FALSE) -> ATL | C6: Atlanta Falcons | D6: --- | E6: --- | F6: Brian Hill | G6: RB3 | H6: Atlanta Falcons | I6: 326 | J6: 301.8 | K6: Matt Ryan | L6: Matt Ryan | M6: 19 | N6: 55 | O6: 0.7 | P6: 4.9 | Q6: 0.063 | R6: 4.56 | S6: 0.02 | T6: 0.008 | U6: 1 | V6: 0.9814 | W6: 0.9629 | X6: =(O6*M6*Settings!$J$17)+(P6*V6*U6*M6*Settings!$J$15)+(Q6*V6*U6*M6*Settings!$J$16)+(R6*W6*N6*Settings!$G$15)+(S6*W6*N6*Settings!$G$16)+(T6*(N6+M6)*Settings!$M$15) -> 58.8059208
A7: BALMark Ingram | B7: =VLOOKUP(C7,'team abbr lookup'!B:C,2,FALSE) -> BAL | C7: Baltimore Ravens | D7: --- | E7: --- | F7: Mark Ingram | G7: RB1 | H7: Baltimore Ravens | I7: 321.2 | J7: 328.6 | K7: Lamar Jackson | L7: Lamar Jackson | M7: 24 | N7: 159 | O7: 0.8588 | P7: 7.81 | Q7: 0.09 | R7: 4.95 | S7: 0.047 | T7: 0.009 | U7: 1 | V7: 1.0058 | W7: 1.0115 | X7: =(O7*M7*Settings!$J$17)+(P7*V7*U7*M7*Settings!$J$15)+(Q7*V7*U7*M7*Settings!$J$16)+(R7*W7*N7*Settings!$G$15)+(S7*W7*N7*Settings!$G$16)+(T7*(N7+M7)*Settings!$M$15) -> 174.1688277
A8: BALJ.K. Dobbins | B8: =VLOOKUP(C8,'team abbr lookup'!B:C,2,FALSE) -> BAL | C8: Baltimore Ravens | D8: --- | E8: --- | F8: J.K. Dobbins | G8: RB2 | H8: --- | I8: 321.2 | J8: 328.6 | K8: --- | L8: Lamar Jackson | M8: 18 | N8: 147 | O8: 0.75 | P8: 5.99 | Q8: 0.02 | R8: 4.21 | S8: 0.026 | T8: 0.006 | U8: 1 | V8: 1.0058 | W8: 1.0115 | X8: =(O8*M8*Settings!$J$17)+(P8*V8*U8*M8*Settings!$J$15)+(Q8*V8*U8*M8*Settings!$J$16)+(R8*W8*N8*Settings!$G$15)+(S8*W8*N8*Settings!$G$16)+(T8*(N8+M8)*Settings!$M$15) -> 110.3314821
A9: BUFDevin Singletary | B9: =VLOOKUP(C9,'team abbr lookup'!B:C,2,FALSE) -> BUF | C9: Buffalo Bills | D9: --- | E9: --- | F9: Devin Singletary | G9: RB1 | H9: Buffalo Bills | I9: 311.4 | J9: 300.6 | K9: Josh Allen | L9: Josh Allen | M9: 52 | N9: 175 | O9: 0.7073 | P9: 4.73 | Q9: 0.049 | R9: 5.13 | S9: 0.02 | T9: 0.021 | U9: 1 | V9: 0.9913 | W9: 0.9827 | X9: =(O9*M9*Settings!$J$17)+(P9*V9*U9*M9*Settings!$J$15)+(Q9*V9*U9*M9*Settings!$J$16)+(R9*W9*N9*Settings!$G$15)+(S9*W9*N9*Settings!$G$16)+(T9*(N9+M9)*Settings!$M$15) -> 175.6412017
A10: BUFZack Moss | B10: =VLOOKUP(C10,'team abbr lookup'!B:C,2,FALSE) -> BUF | C10: Buffalo Bills | D10: --- | E10: --- | F10: Zack Moss | G10: RB2 | H10: --- | I10: 311.4 | J10: 300.6 | K10: --- | L10: Josh Allen | M10: 24 | N10: 150 | O10: 0.75 | P10: 5.99 | Q10: 0.02 | R10: 4.21 | S10: 0.026 | T10: 0.006 | U10: 1 | V10: 0.9913 | W10: 0.9827 | X10: =(O10*M10*Settings!$J$17)+(P10*V10*U10*M10*Settings!$J$15)+(Q10*V10*U10*M10*Settings!$J$16)+(R10*W10*N10*Settings!$G$15)+(S10*W10*N10*Settings!$G$16)+(T10*(N10+M10)*Settings!$M$15) -> 118.0705578
A11: CARChristian McCaffrey | B11: =VLOOKUP(C11,'team abbr lookup'!B:C,2,FALSE) -> CAR | C11: Carolina Panthers | D11: Matt Rhule | E11: Joe Brady | F11: Christian McCaffrey | G11: RB1 | H11: Carolina Panthers | I11: 319.2 | J11: 297.8 | K11: Kyle Allen | L11: Teddy Bridgewater | M11: 128 | N11: 235 | O11: 0.8309 | P11: 7.05 | Q11: 0.038 | R11: 4.88 | S11: 0.043 | T11: 0.007 | U11: 1 | V11: 0.9832 | W11: 0.9665 | X11: =(O11*M11*Settings!$J$17)+(P11*V11*U11*M11*Settings!$J$15)+(Q11*V11*U11*M11*Settings!$J$16)+(R11*W11*N11*Settings!$G$15)+(S11*W11*N11*Settings!$G$16)+(T11*(N11+M11)*Settings!$M$15) -> 388.1279918
A12: CARMike Davis | B12: =VLOOKUP(C12,'team abbr lookup'!B:C,2,FALSE) -> CAR | C12: Carolina Panthers | D12: Matt Rhule | E12: Joe Brady | F12: Mike Davis | G12: RB2 | H12: Chicago Bears | I12: 303.8 | J12: 297.8 | K12: Mitchell Trubisky | L12: Teddy Bridgewater | M12: 14 | N12: 45 | O12: 0.8276 | P12: 4.45 | Q12: 0.02 | R12: 4.12 | S12: 0.032 | T12: 0.003 | U12: 1.1 | V12: 0.9951 | W12: 0.9901 | X12: =(O12*M12*Settings!$J$17)+(P12*V12*U12*M12*Settings!$J$15)+(Q12*V12*U12*M12*Settings!$J$16)+(R12*W12*N12*Settings!$G$15)+(S12*W12*N12*Settings!$G$16)+(T12*(N12+M12)*Settings!$M$15) -> 46.8016831
A13: CARReggie Bonnafon | B13: =VLOOKUP(C13,'team abbr lookup'!B:C,2,FALSE) -> CAR | C13: Carolina Panthers | D13: Matt Rhule | E13: Joe Brady | F13: Reggie Bonnafon | G13: RB3 | H13: Carolina Panthers | I13: 319.2 | J13: 297.8 | K13: Kyle Allen | L13: Teddy Bridgewater | M13: 7 | N13: 35 | O13: 0.6667 | P13: 6.33 | Q13: 0.01 | R13: 5 | S13: 0.063 | T13: 0 | U13: 1 | V13: 0.9832 | W13: 0.9665 | X13: =(O13*M13*Settings!$J$17)+(P13*V13*U13*M13*Settings!$J$15)+(Q13*V13*U13*M13*Settings!$J$16)+(R13*W13*N13*Settings!$G$15)+(S13*W13*N13*Settings!$G$16)+(T13*(N13+M13)*Settings!$M$15) -> 39.1369482
A14: CHIDavid Montgomery | B14: =VLOOKUP(C14,'team abbr lookup'!B:C,2,FALSE) -> CHI | C14: Chicago Bears | D14: --- | E14: Bill Lazor | F14: David Montgomery | G14: RB1 | H14: Chicago Bears | I14: 303.8 | J14: 303.4 | K14: Mitchell Trubisky | L14: Nick Foles | M14: 27 | N14: 224 | O14: 0.7143 | P14: 5.29 | Q14: 0.029 | R14: 3.67 | S14: 0.025 | T14: 0.007 | U14: 1.1 | V14: 0.9997 | W14: 0.9993 | X14: =(O14*M14*Settings!$J$17)+(P14*V14*U14*M14*Settings!$J$15)+(Q14*V14*U14*M14*Settings!$J$16)+(R14*W14*N14*Settings!$G$15)+(S14*W14*N14*Settings!$G$16)+(T14*(N14+M14)*Settings!$M$15) -> 152.3718707
A15: CHITarik Cohen | B15: =VLOOKUP(C15,'team abbr lookup'!B:C,2,FALSE) -> CHI | C15: Chicago Bears | D15: --- | E15: Bill Lazor | F15: Tarik Cohen | G15: RB2 | H15: Chicago Bears | I15: 303.8 | J15: 303.4 | K15: Mitchell Trubisky | L15: Nick Foles | M15: 82 | N15: 86 | O15: 0.7659 | P15: 5.47 | Q15: 0.041 | R15: 3.83 | S15: 0.018 | T15: 0.025 | U15: 1.1 | V15: 0.9997 | W15: 0.9993 | X15: =(O15*M15*Settings!$J$17)+(P15*V15*U15*M15*Settings!$J$15)+(Q15*V15*U15*M15*Settings!$J$16)+(R15*W15*N15*Settings!$G$15)+(S15*W15*N15*Settings!$G$16)+(T15*(N15+M15)*Settings!$M$15) -> 168.1073832
A16: CINJoe Mixon | B16: =VLOOKUP(C16,'team abbr lookup'!B:C,2,FALSE) -> CIN | C16: Cincinnati Bengals | D16: --- | E16: --- | F16: Joe Mixon | G16: RB1 | H16: Cincinnati Bengals | I16: 300.8 | J16: 274.6 | K16: Andy Dalton | L16: Joe Burrow | M16: 49 | N16: 254 | O16: 0.7793 | P16: 6 | Q16: 0.04 | R16: 4.34 | S16: 0.03 | T16: 0.004 | U16: 1.05 | V16: 0.9782 | W16: 0.9564 | X16: =(O16*M16*Settings!$J$17)+(P16*V16*U16*M16*Settings!$J$15)+(Q16*V16*U16*M16*Settings!$J$16)+(R16*W16*N16*Settings!$G$15)+(S16*W16*N16*Settings!$G$16)+(T16*(N16+M16)*Settings!$M$15) -> 227.193866
A17: CINGiovani Bernard | B17: =VLOOKUP(C17,'team abbr lookup'!B:C,2,FALSE) -> CIN | C17: Cincinnati Bengals | D17: --- | E17: --- | F17: Giovani Bernard | G17: RB2 | H17: Cincinnati Bengals | I17: 300.8 | J17: 274.6 | K17: Andy Dalton | L17: Joe Burrow | M17: 39 | N17: 73 | O17: 0.709 | P17: 5.12 | Q17: 0.01 | R17: 3.4 | S17: 0.028 | T17: 0.005 | U17: 1.05 | V17: 0.9782 | W17: 0.9564 | X17: =(O17*M17*Settings!$J$17)+(P17*V17*U17*M17*Settings!$J$15)+(Q17*V17*U17*M17*Settings!$J$16)+(R17*W17*N17*Settings!$G$15)+(S17*W17*N17*Settings!$G$16)+(T17*(N17+M17)*Settings!$M$15) -> 84.91090748
A18: CLENick Chubb | B18: =VLOOKUP(C18,'team abbr lookup'!B:C,2,FALSE) -> CLE | C18: Cleveland Browns | D18: Kevin Stefanski | E18: Alex Van Pelt | F18: Nick Chubb | G18: RB1 | H18: Cleveland Browns | I18: 314.2 | J18: 302.8 | K18: Baker Mayfield | L18: Baker Mayfield | M18: 30 | N18: 247 | O18: 0.7244 | P18: 5.55 | Q18: 0.026 | R18: 5.06 | S18: 0.033 | T18: 0.005 | U18: 1.05 | V18: 0.9909 | W18: 0.9819 | X18: =(O18*M18*Settings!$J$17)+(P18*V18*U18*M18*Settings!$J$15)+(Q18*V18*U18*M18*Settings!$J$16)+(R18*W18*N18*Settings!$G$15)+(S18*W18*N18*Settings!$G$16)+(T18*(N18+M18)*Settings!$M$15) -> 211.895319
A19: CLEKareem Hunt | B19: =VLOOKUP(C19,'team abbr lookup'!B:C,2,FALSE) -> CLE | C19: Cleveland Browns | D19: Kevin Stefanski | E19: Alex Van Pelt | F19: Kareem Hunt | G19: RB2 | H19: Cleveland Browns | I19: 314.2 | J19: 302.8 | K19: Baker Mayfield | L19: Baker Mayfield | M19: 51 | N19: 104 | O19: 0.813 | P19: 7.71 | Q19: 0.05 | R19: 4.43 | S19: 0.04 | T19: 0.003 | U19: 1.05 | V19: 0.9909 | W19: 0.9819 | X19: =(O19*M19*Settings!$J$17)+(P19*V19*U19*M19*Settings!$J$15)+(Q19*V19*U19*M19*Settings!$J$16)+(R19*W19*N19*Settings!$G$15)+(S19*W19*N19*Settings!$G$16)+(T19*(N19+M19)*Settings!$M$15) -> 167.1094671
A20: DALEzekiel Elliott | B20: =VLOOKUP(C20,'team abbr lookup'!B:C,2,FALSE) -> DAL | C20: Dallas Cowboys | D20: Mike McCarthy | E20: --- | F20: Ezekiel Elliott | G20: RB1 | H20: Dallas Cowboys | I20: 358.6 | J20: 337.2 | K20: Dak Prescott | L20: Dak Prescott | M20: 79 | N20: 307 | O20: 0.7806 | P20: 5.94 | Q20: 0.03 | R20: 4.58 | S20: 0.03 | T20: 0.011 | U20: 0.95 | V20: 0.9851 | W20: 0.9702 | X20: =(O20*M20*Settings!$J$17)+(P20*V20*U20*M20*Settings!$J$15)+(Q20*V20*U20*M20*Settings!$J$16)+(R20*W20*N20*Settings!$G$15)+(S20*W20*N20*Settings!$G$16)+(T20*(N20+M20)*Settings!$M$15) -> 300.4277716
A21: DALTony Pollard | B21: =VLOOKUP(C21,'team abbr lookup'!B:C,2,FALSE) -> DAL | C21: Dallas Cowboys | D21: Mike McCarthy | E21: --- | F21: Tony Pollard | G21: RB2 | H21: Dallas Cowboys | I21: 358.6 | J21: 337.2 | K21: Dak Prescott | L21: Dak Prescott | M21: 34 | N21: 104 | O21: 0.75 | P21: 5.35 | Q21: 0.05 | R21: 5.29 | S21: 0.023 | T21: 0.009 | U21: 0.95 | V21: 0.9851 | W21: 0.9702 | X21: =(O21*M21*Settings!$J$17)+(P21*V21*U21*M21*Settings!$J$15)+(Q21*V21*U21*M21*Settings!$J$16)+(R21*W21*N21*Settings!$G$15)+(S21*W21*N21*Settings!$G$16)+(T21*(N21+M21)*Settings!$M$15) -> 116.8854732
A22: DENMelvin Gordon | B22: =VLOOKUP(C22,'team abbr lookup'!B:C,2,FALSE) -> DEN | C22: Denver Broncos | D22: --- | E22: Pat Shurmur | F22: Melvin Gordon | G22: RB1 | H22: Los Angeles Chargers | I22: 304.6 | J22: 284.4 | K22: Philip Rivers | L22: Drew Lock | M22: 48 | N22: 182 | O22: 0.7614 | P22: 6.15 | Q22: 0.041 | R22: 4.23 | S22: 0.053 | T22: 0.01 | U22: 1 | V22: 0.9834 | W22: 0.9668 | X22: =(O22*M22*Settings!$J$17)+(P22*V22*U22*M22*Settings!$J$15)+(Q22*V22*U22*M22*Settings!$J$16)+(R22*W22*N22*Settings!$G$15)+(S22*W22*N22*Settings!$G$16)+(T22*(N22+M22)*Settings!$M$15) -> 202.9737368
A23: DENPhillip Lindsay | B23: =VLOOKUP(C23,'team abbr lookup'!B:C,2,FALSE) -> DEN | C23: Denver Broncos | D23: --- | E23: Pat Shurmur | F23: Phillip Lindsay | G23: RB2 | H23: Denver Broncos | I23: 301.8 | J23: 284.4 | K23: Joe Flacco | L23: Drew Lock | M23: 37 | N23: 128 | O23: 0.7343 | P23: 4.43 | Q23: 0.011 | R23: 4.78 | S23: 0.038 | T23: 0 | U23: 1.1 | V23: 0.9856 | W23: 0.9712 | X23: =(O23*M23*Settings!$J$17)+(P23*V23*U23*M23*Settings!$J$15)+(Q23*V23*U23*M23*Settings!$J$16)+(R23*W23*N23*Settings!$G$15)+(S23*W23*N23*Settings!$G$16)+(T23*(N23+M23)*Settings!$M$15) -> 135.3524869
A24: DENRoyce Freeman | B24: =VLOOKUP(C24,'team abbr lookup'!B:C,2,FALSE) -> DEN | C24: Denver Broncos | D24: --- | E24: Pat Shurmur | F24: Royce Freeman | G24: RB3 | H24: Denver Broncos | I24: 301.8 | J24: 284.4 | K24: Joe Flacco | L24: Drew Lock | M24: 19 | N24: 38 | O24: 0.8333 | P24: 4.87 | Q24: 0.014 | R24: 3.84 | S24: 0.031 | T24: 0.003 | U24: 1.1 | V24: 0.9856 | W24: 0.9712 | X24: =(O24*M24*Settings!$J$17)+(P24*V24*U24*M24*Settings!$J$15)+(Q24*V24*U24*M24*Settings!$J$16)+(R24*W24*N24*Settings!$G$15)+(S24*W24*N24*Settings!$G$16)+(T24*(N24+M24)*Settings!$M$15) -> 48.28894384
A25: DETD'Andre Swift | B25: =VLOOKUP(C25,'team abbr lookup'!B:C,2,FALSE) -> DET | C25: Detroit Lions | D25: --- | E25: --- | F25: D'Andre Swift | G25: RB1 | H25: --- | I25: 297.2 | J25: 288.4 | K25: --- | L25: Matt Stafford | M25: 41 | N25: 167 | O25: 0.75 | P25: 5.99 | Q25: 0.02 | R25: 4.21 | S25: 0.026 | T25: 0.006 | U25: 1 | V25: 0.9926 | W25: 0.9852 | X25: =(O25*M25*Settings!$J$17)+(P25*V25*U25*M25*Settings!$J$15)+(Q25*V25*U25*M25*Settings!$J$16)+(R25*W25*N25*Settings!$G$15)+(S25*W25*N25*Settings!$G$16)+(T25*(N25+M25)*Settings!$M$15) -> 152.4477422
A26: DETKerryon Johnson | B26: =VLOOKUP(C26,'team abbr lookup'!B:C,2,FALSE) -> DET | C26: Detroit Lions | D26: --- | E26: --- | F26: Kerryon Johnson | G26: RB2 | H26: Detroit Lions | I26: 297.2 | J26: 288.4 | K26: Matt Stafford | L26: Matt Stafford | M26: 32 | N26: 153 | O26: 0.7536 | P26: 6.77 | Q26: 0.037 | R26: 4.21 | S26: 0.026 | T26: 0.007 | U26: 1.05 | V26: 0.9926 | W26: 0.9852 | X26: =(O26*M26*Settings!$J$17)+(P26*V26*U26*M26*Settings!$J$15)+(Q26*V26*U26*M26*Settings!$J$16)+(R26*W26*N26*Settings!$G$15)+(S26*W26*N26*Settings!$G$16)+(T26*(N26+M26)*Settings!$M$15) -> 138.4825138
A27: GBAaron Jones | B27: =VLOOKUP(C27,'team abbr lookup'!B:C,2,FALSE) -> GB | C27: Green Bay Packers | D27: --- | E27: --- | F27: Aaron Jones | G27: RB1 | H27: Green Bay Packers | I27: 328.2 | J27: 324.8 | K27: Aaron Rodgers | L27: Aaron Rodgers | M27: 57 | N27: 176 | O27: 0.7251 | P27: 6.75 | Q27: 0.039 | R27: 4.79 | S27: 0.06 | T27: 0.007 | U27: 1 | V27: 0.9974 | W27: 0.9948 | X27: =(O27*M27*Settings!$J$17)+(P27*V27*U27*M27*Settings!$J$15)+(Q27*V27*U27*M27*Settings!$J$16)+(R27*W27*N27*Settings!$G$15)+(S27*W27*N27*Settings!$G$16)+(T27*(N27+M27)*Settings!$M$15) -> 236.6431334
A28: GBJamaal Williams | B28: =VLOOKUP(C28,'team abbr lookup'!B:C,2,FALSE) -> GB | C28: Green Bay Packers | D28: --- | E28: --- | F28: Jamaal Williams | G28: RB2 | H28: Green Bay Packers | I28: 328.2 | J28: 324.8 | K28: Aaron Rodgers | L28: Aaron Rodgers | M28: 31 | N28: 55 | O28: 0.8015 | P28: 5.47 | Q28: 0.058 | R28: 4.13 | S28: 0.018 | T28: 0 | U28: 1 | V28: 0.9974 | W28: 0.9948 | X28: =(O28*M28*Settings!$J$17)+(P28*V28*U28*M28*Settings!$J$15)+(Q28*V28*U28*M28*Settings!$J$16)+(R28*W28*N28*Settings!$G$15)+(S28*W28*N28*Settings!$G$16)+(T28*(N28+M28)*Settings!$M$15) -> 81.025357
A29: GBAJ Dillon | B29: =VLOOKUP(C29,'team abbr lookup'!B:C,2,FALSE) -> GB | C29: Green Bay Packers | D29: --- | E29: --- | F29: AJ Dillon | G29: RB3 | H29: --- | I29: 328.2 | J29: 324.8 | K29: --- | L29: Aaron Rodgers | M29: 11 | N29: 91 | O29: 0.75 | P29: 5.99 | Q29: 0.02 | R29: 4.21 | S29: 0.026 | T29: 0.006 | U29: 1 | V29: 0.9974 | W29: 0.9948 | X29: =(O29*M29*Settings!$J$17)+(P29*V29*U29*M29*Settings!$J$15)+(Q29*V29*U29*M29*Settings!$J$16)+(R29*W29*N29*Settings!$G$15)+(S29*W29*N29*Settings!$G$16)+(T29*(N29+M29)*Settings!$M$15) -> 67.1484002
A30: HOUDavid Johnson | B30: =VLOOKUP(C30,'team abbr lookup'!B:C,2,FALSE) -> HOU | C30: Houston Texans | D30: --- | E30: --- | F30: David Johnson | G30: RB1 | H30: Arizona Cardinals | I30: 301.8 | J30: 296 | K30: Kyler Murray | L30: Deshaun Watson | M30: 55 | N30: 225 | O30: 0.7176 | P30: 6.98 | Q30: 0.057 | R30: 3.65 | S30: 0.026 | T30: 0.014 | U30: 1 | V30: 0.9952 | W30: 0.9904 | X30: =(O30*M30*Settings!$J$17)+(P30*V30*U30*M30*Settings!$J$15)+(Q30*V30*U30*M30*Settings!$J$16)+(R30*W30*N30*Settings!$G$15)+(S30*W30*N30*Settings!$G$16)+(T30*(N30+M30)*Settings!$M$15) -> 204.65308
A31: HOUDuke Johnson | B31: =VLOOKUP(C31,'team abbr lookup'!B:C,2,FALSE) -> HOU | C31: Houston Texans | D31: --- | E31: --- | F31: Duke Johnson | G31: RB2 | H31: Houston Texans | I31: 312.2 | J31: 296 | K31: Deshaun Watson | L31: Deshaun Watson | M31: 51 | N31: 89 | O31: 0.7258 | P31: 6.72 | Q31: 0.048 | R31: 4.96 | S31: 0.016 | T31: 0.012 | U31: 1 | V31: 0.987 | W31: 0.9741 | X31: =(O31*M31*Settings!$J$17)+(P31*V31*U31*M31*Settings!$J$15)+(Q31*V31*U31*M31*Settings!$J$16)+(R31*W31*N31*Settings!$G$15)+(S31*W31*N31*Settings!$G$16)+(T31*(N31+M31)*Settings!$M$15) -> 133.3027008
A32: INDJonathan Taylor | B32: =VLOOKUP(C32,'team abbr lookup'!B:C,2,FALSE) -> IND | C32: Indianapolis Colts | D32: --- | E32: --- | F32: Jonathan Taylor | G32: RB1 | H32: --- | I32: 328.6 | J32: 331.8 | K32: --- | L32: Philip Rivers | M32: 29 | N32: 188 | O32: 0.75 | P32: 5.99 | Q32: 0.02 | R32: 4.21 | S32: 0.026 | T32: 0.006 | U32: 1 | V32: 1.0024 | W32: 1.0049 | X32: =(O32*M32*Settings!$J$17)+(P32*V32*U32*M32*Settings!$J$15)+(Q32*V32*U32*M32*Settings!$J$16)+(R32*W32*N32*Settings!$G$15)+(S32*W32*N32*Settings!$G$16)+(T32*(N32+M32)*Settings!$M$15) -> 149.0545748
A33: INDMarlon Mack | B33: =VLOOKUP(C33,'team abbr lookup'!B:C,2,FALSE) -> IND | C33: Indianapolis Colts | D33: --- | E33: --- | F33: Marlon Mack | G33: RB2 | H33: Indianapolis Colts | I33: 328.6 | J33: 331.8 | K33: Jacoby Brissett | L33: Philip Rivers | M33: 17 | N33: 162 | O33: 0.75 | P33: 4.45 | Q33: 0.023 | R33: 4.48 | S33: 0.038 | T33: 0.005 | U33: 1 | V33: 1.0024 | W33: 1.0049 | X33: =(O33*M33*Settings!$J$17)+(P33*V33*U33*M33*Settings!$J$15)+(Q33*V33*U33*M33*Settings!$J$16)+(R33*W33*N33*Settings!$G$15)+(S33*W33*N33*Settings!$G$16)+(T33*(N33+M33)*Settings!$M$15) -> 130.9433952
